Workbook

Sheet fnd budget
S1: =VLOOKUP(orderCHA,charterinfo_a,4) -> 409
S2: =VLOOKUP(orderCHA,charterinfo_a,5) -> 201
S3: =VLOOKUP(orderCHA,charterinfo_a,6) -> 95
A5: F Y 2 3 F O U N D A T I O N B U D G E T
A6: =VLOOKUP(orderCHA,charterinfo_a,2) -> 409 - ALMA DEL MAR Charter School - FALL RIVER pupils
C7: Items | D7: - A L L P U P I L S | L7: - S P E C I A L P O P U L A T I O N I N C R E M E N T S
C8: Adj by
C9: Wage | D9: Pre- | E9: -- Kindergarten -- | G9: Elem- | H9: Jr High/ | I9: High | J9: Voca- | L9: Spec Ed In | M9: Spec Ed | O9: English Learners | Q9: Low
C10: Fctr = w | D10: School | E10: Half | F10: Full | G10: entary | H10: Middle | I10: School | J10: tional | L10: (3.82% of total) | M10: Out | N10: PK-5 | O10: 6-8 | P10: 9-12 | Q10: Income | S10: TOTAL**
A12: F O U N D A T I O N E N R O L L M E N T | D12: =VLOOKUP(VLOOKUP(orderCHA,charterinfo_a,3), rate_chafnd,3) -> 0 | E12: =VLOOKUP(VLOOKUP(orderCHA,charterinfo_a,3),rate_chafnd,4) -> 0 | F12: =VLOOKUP(VLOOKUP(orderCHA,charterinfo_a,3),rate_chafnd,5) -> 0 | G12: =VLOOKUP(VLOOKUP(orderCHA,charterinfo_a,3),rate_chafnd,6) -> 1 | H12: =VLOOKUP(VLOOKUP(orderCHA,charterinfo_a,3),rate_chafnd,7) -> 0 | I12: =VLOOKUP(VLOOKUP(orderCHA,charterinfo_a,3),rate_chafnd,8) -> 0 | J12: =VLOOKUP(VLOOKUP(orderCHA,charterinfo_a,3),rate_chafnd,9) -> 0 | L12: =VLOOKUP(VLOOKUP(orderCHA,charterinfo_a,3),rate_chafnd,10) -> 0.0386 | M12: =VLOOKUP(VLOOKUP(orderCHA,charterinfo_a,3),rate_chafnd,11) -> 0 | N12: =VLOOKUP(VLOOKUP(orderCHA,charterinfo_a,3),rate_chafnd,12) -> 0 | O12: =VLOOKUP(VLOOKUP(orderCHA,charterinfo_a,3),rate_chafnd,13) -> 0 | P12: =VLOOKUP(VLOOKUP(orderCHA,charterinfo_a,3),rate_chafnd,14) -> 0 | Q12: =VLOOKUP(VLOOKUP(orderCHA,charterinfo_a,3),rate_chafnd,15) -> 1 | S12: =VLOOKUP(VLOOKUP(orderCHA,charterinfo_a,3),rate_chafnd,16) -> 1
A14: 1 | B14: Administration | C14: w | D14: ='fnd base rates'!$C107*$D$28*D$12 -> 0 | E14: ='fnd base rates'!$C108*$D$28*E$12 -> 0 | F14: ='fnd base rates'!$C109*$D$28*F$12 -> 0 | G14: ='fnd base rates'!$C110*$D$28*G$12 -> 423.61 | H14: ='fnd base rates'!$C111*$D$28*H$12 -> 0 | I14: ='fnd base rates'!$C112*$D$28*I$12 -> 0 | J14: ='fnd base rates'!$C113*$D$28*J$12 -> 0 | L14: ='fnd base rates'!$C114*$D$28*L$12 -> 112.851346 | M14: ='fnd base rates'!$C115*$D$28*M$12 -> 0 | N14: ='fnd base rates'!$C116*$D$28*N$12 -> 0 | O14: ='fnd base rates'!$C117*$D$28*O$12 -> 0 | P14: ='fnd base rates'!$C118*$D$28*P$12 -> 0 | Q14: =VLOOKUP((VLOOKUP(VLOOKUP(orderCHA,charterinfo_a,3),rate_chafnd,18)+12),rate_basefnd,3)*$D$28*Q$12 -> 87.92 | S14: =SUM(D14:Q14) -> 624.381346
A15: 2 | B15: Instructional Leadership | C15: w | D15: ='fnd base rates'!$D107*$D$28*D$12 -> 0 | E15: ='fnd base rates'!$D108*$D$28*E$12 -> 0 | F15: ='fnd base rates'!$D109*$D$28*F$12 -> 0 | G15: ='fnd base rates'!$D110*$D$28*G$12 -> 765.08 | H15: ='fnd base rates'!$D111*$D$28*H$12 -> 0 | I15: ='fnd base rates'!$D112*$D$28*I$12 -> 0 | J15: ='fnd base rates'!$D113*$D$28*J$12 -> 0 | L15: ='fnd base rates'!$D114*$D$28*L$12 -> 0 | M15: ='fnd base rates'!$D115*$D$28*M$12 -> 0 | N15: ='fnd base rates'!$D116*$D$28*N$12 -> 0 | O15: ='fnd base rates'!$D117*$D$28*O$12 -> 0 | P15: ='fnd base rates'!$D118*$D$28*P$12 -> 0 | Q15: =VLOOKUP((VLOOKUP(VLOOKUP(orderCHA,charterinfo_a,3),rate_chafnd,18)+12),rate_basefnd,4)*$D$28*Q$12 -> 416.57 | S15: 1181.65
A16: 3 | B16: Classroom and Specialist Teachers | C16: w | D16: ='fnd base rates'!$E107*$D$28*D$12 -> 0 | E16: ='fnd base rates'!$E108*$D$28*E$12 -> 0 | F16: ='fnd base rates'!$E109*$D$28*F$12 -> 0 | G16: ='fnd base rates'!$E110*$D$28*G$12 -> 3508.05 | H16: ='fnd base rates'!$E111*$D$28*H$12 -> 0 | I16: ='fnd base rates'!$E112*$D$28*I$12 -> 0 | J16: ='fnd base rates'!$E113*$D$28*J$12 -> 0 | L16: ='fnd base rates'!$E114*$D$28*L$12 -> 372.380376 | M16: ='fnd base rates'!$E115*$D$28*M$12 -> 0 | N16: ='fnd base rates'!$E116*$D$28*N$12 -> 0 | O16: ='fnd base rates'!$E117*$D$28*O$12 -> 0 | P16: ='fnd base rates'!$E118*$D$28*P$12 -> 0 | Q16: =VLOOKUP((VLOOKUP(VLOOKUP(orderCHA,charterinfo_a,3),rate_chafnd,18)+12),rate_basefnd,5)*$D$28*Q$12 -> 4066.47 | S16: 7946.900376
A17: 4 | B17: Other Teaching Services | C17: w | D17: ='fnd base rates'!$F107*$D$28*D$12 -> 0 | E17: ='fnd base rates'!$F108*$D$28*E$12 -> 0 | F17: ='fnd base rates'!$F109*$D$28*F$12 -> 0 | G17: ='fnd base rates'!$F110*$D$28*G$12 -> 899.76 | H17: ='fnd base rates'!$F111*$D$28*H$12 -> 0 | I17: ='fnd base rates'!$F112*$D$28*I$12 -> 0 | J17: ='fnd base rates'!$F113*$D$28*J$12 -> 0 | L17: ='fnd base rates'!$F114*$D$28*L$12 -> 347.686412 | M17: ='fnd base rates'!$F115*$D$28*M$12 -> 0 | N17: ='fnd base rates'!$F116*$D$28*N$12 -> 0 | O17: ='fnd base rates'!$F117*$D$28*O$12 -> 0 | P17: ='fnd base rates'!$F118*$D$28*P$12 -> 0 | Q17: =VLOOKUP((VLOOKUP(VLOOKUP(orderCHA,charterinfo_a,3),rate_chafnd,18)+12),rate_basefnd,6)*$D$28*Q$12 -> 0 | S17: 1247.446412
A18: 5 | B18: Professional Development | C18: w | D18: ='fnd base rates'!$G107*$D$28*D$12 -> 0 | E18: ='fnd base rates'!$G108*$D$28*E$12 -> 0 | F18: ='fnd base rates'!$G109*$D$28*F$12 -> 0 | G18: ='fnd base rates'!$G110*$D$28*G$12 -> 138.83 | H18: ='fnd base rates'!$G111*$D$28*H$12 -> 0 | I18: ='fnd base rates'!$G112*$D$28*I$12 -> 0 | J18: ='fnd base rates'!$G113*$D$28*J$12 -> 0 | L18: ='fnd base rates'!$G114*$D$28*L$12 -> 17.963282 | M18: ='fnd base rates'!$G115*$D$28*M$12 -> 0 | N18: ='fnd base rates'!$G116*$D$28*N$12 -> 0 | O18: ='fnd base rates'!$G117*$D$28*O$12 -> 0 | P18: ='fnd base rates'!$G118*$D$28*P$12 -> 0 | Q18: =VLOOKUP((VLOOKUP(VLOOKUP(orderCHA,charterinfo_a,3),rate_chafnd,18)+12),rate_basefnd,7)*$D$28*Q$12 -> 197.28 | S18: 354.073282
A19: 6 | B19: Instructional Equipment & Tech | C19: nw | D19: ='fnd base rates'!$H107*D$12 -> 0 | E19: ='fnd base rates'!$H108*E$12 -> 0 | F19: ='fnd base rates'!$H109*F$12 -> 0 | G19: ='fnd base rates'!$H110*G$12 -> 507.76 | H19: ='fnd base rates'!$H111*H$12 -> 0 | I19: ='fnd base rates'!$H112*I$12 -> 0 | J19: ='fnd base rates'!$H113*J$12 -> 0 | L19: ='fnd base rates'!$H114*L$12 -> 15.678934 | M19: ='fnd base rates'!$H115*M$12 -> 0 | N19: ='fnd base rates'!$H116*N$12 -> 0 | O19: ='fnd base rates'!$H117*O$12 -> 0 | P19: ='fnd base rates'!$H118*P$12 -> 0 | Q19: =VLOOKUP((VLOOKUP(VLOOKUP(orderCHA,charterinfo_a,3),rate_chafnd,18)+12),rate_basefnd,8)*Q$12 -> 30.24 | S19: 553.678934
A20: 7 | B20: Guidance and Pschological | C20: w | D20: ='fnd base rates'!$I107*$D$28*D$12 -> 0 | E20: ='fnd base rates'!$I108*$D$28*E$12 -> 0 | F20: ='fnd base rates'!$I109*$D$28*F$12 -> 0 | G20: ='fnd base rates'!$I110*$D$28*G$12 -> 306.35 | H20: ='fnd base rates'!$I111*$D$28*H$12 -> 0 | I20: ='fnd base rates'!$I112*$D$28*I$12 -> 0 | J20: ='fnd base rates'!$I113*$D$28*J$12 -> 0 | L20: ='fnd base rates'!$I114*$D$28*L$12 -> 0 | M20: ='fnd base rates'!$I115*$D$28*M$12 -> 0 | N20: ='fnd base rates'!$I116*$D$28*N$12 -> 0 | O20: ='fnd base rates'!$I117*$D$28*O$12 -> 0 | P20: ='fnd base rates'!$I118*$D$28*P$12 -> 0 | Q20: =VLOOKUP((VLOOKUP(VLOOKUP(orderCHA,charterinfo_a,3),rate_chafnd,18)+12),rate_basefnd,9)*$D$28*Q$12 -> 164.67 | S20: 471.02
A21: 8 | B21: Pupil Services | C21: w | D21: ='fnd base rates'!$J107*$D$28*D$12 -> 0 | E21: ='fnd base rates'!$J108*$D$28*E$12 -> 0 | F21: ='fnd base rates'!$J109*$D$28*F$12 -> 0 | G21: ='fnd base rates'!$J110*$D$28*G$12 -> 152.32 | H21: ='fnd base rates'!$J111*$D$28*H$12 -> 0 | I21: ='fnd base rates'!$J112*$D$28*I$12 -> 0 | J21: ='fnd base rates'!$J113*$D$28*J$12 -> 0 | L21: ='fnd base rates'!$J114*$D$28*L$12 -> 0 | M21: ='fnd base rates'!$J115*$D$28*M$12 -> 0 | N21: ='fnd base rates'!$J116*$D$28*N$12 -> 0 | O21: ='fnd base rates'!$J117*$D$28*O$12 -> 0 | P21: ='fnd base rates'!$J118*$D$28*P$12 -> 0 | Q21: =VLOOKUP((VLOOKUP(VLOOKUP(orderCHA,charterinfo_a,3),rate_chafnd,18)+12),rate_basefnd,10)*$D$28*Q$12 -> 855.64 | S21: 1007.96
A22: 9 | B22: Operations and Maintenance | C22: w | D22: ='fnd base rates'!$K107*$D$28*D$12 -> 0 | E22: ='fnd base rates'!$K108*$D$28*E$12 -> 0 | F22: ='fnd base rates'!$K109*$D$28*F$12 -> 0 | G22: ='fnd base rates'!$K110*$D$28*G$12 -> 974.15 | H22: ='fnd base rates'!$K111*$D$28*H$12 -> 0 | I22: ='fnd base rates'!$K112*$D$28*I$12 -> 0 | J22: ='fnd base rates'!$K113*$D$28*J$12 -> 0 | L22: ='fnd base rates'!$K114*$D$28*L$12 -> 126.05988 | M22: ='fnd base rates'!$K115*$D$28*M$12 -> 0 | N22: ='fnd base rates'!$K116*$D$28*N$12 -> 0 | O22: ='fnd base rates'!$K117*$D$28*O$12 -> 0 | P22: ='fnd base rates'!$K118*$D$28*P$12 -> 0 | Q22: =VLOOKUP((VLOOKUP(VLOOKUP(orderCHA,charterinfo_a,3),rate_chafnd,18)+12),rate_basefnd,11)*$D$28*Q$12 -> 0 | S22: 1100.20988
A23: 10 | B23: Employee Benefits & Fixed Charges | C23: nw | D23: ='fnd base rates'!$L107*D$12 -> 0 | E23: ='fnd base rates'!$L108*E$12 -> 0 | F23: ='fnd base rates'!$L109*F$12 -> 0 | G23: ='fnd base rates'!$L110*G$12 -> 1303.19 | H23: ='fnd base rates'!$L111*H$12 -> 0 | I23: ='fnd base rates'!$L112*I$12 -> 0 | J23: ='fnd base rates'!$L113*J$12 -> 0 | L23: ='fnd base rates'!$L114*L$12 -> 142.96668 | M23: ='fnd base rates'!$L115*M$12 -> 0 | N23: ='fnd base rates'!$L116*N$12 -> 0 | O23: ='fnd base rates'!$L117*O$12 -> 0 | P23: ='fnd base rates'!$L118*P$12 -> 0 | Q23: =VLOOKUP((VLOOKUP(VLOOKUP(orderCHA,charterinfo_a,3),rate_chafnd,18)+12),rate_basefnd,12)*Q$12 -> 657.78 | S23: 2103.93668
A24: 11 | B24: Special Ed Tuition | C24: nw | D24: ='fnd base rates'!$M107*D$12 -> 0 | E24: ='fnd base rates'!$M108*E$12 -> 0 | F24: ='fnd base rates'!$M109*F$12 -> 0 | G24: ='fnd base rates'!$M110*G$12 -> 0 | H24: ='fnd base rates'!$M111*H$12 -> 0 | I24: ='fnd base rates'!$M112*I$12 -> 0 | J24: ='fnd base rates'!$M113*J$12 -> 0 | L24: ='fnd base rates'!$M114*L$12 -> 0 | M24: ='fnd base rates'!$M115*M$12 -> 0 | N24: ='fnd base rates'!$M116*N$12 -> 0 | O24: ='fnd base rates'!$M117*O$12 -> 0 | P24: ='fnd base rates'!$M118*P$12 -> 0 | Q24: =VLOOKUP((VLOOKUP(VLOOKUP(orderCHA,charterinfo_a,3),rate_chafnd,18)+12),rate_basefnd,13)*Q$12 -> 0 | S24: 0
A26: 12 | B26: Total | D26: =SUM(D14:D24) -> 0 | E26: 0 | F26: 0 | G26: 8979.1 | H26: =SUM(H14:H24) -> 0 | I26: 0 | J26: 0 | K26: 0 | L26: 1135.58691 | M26: 0 | N26: 0 | O26: 0 | P26: 0 | Q26: 6476.57 | S26: =SUM(S14:S24) -> 16591.25691
A28: 13 | B28: Wage Adjustment Factor | D28: =VLOOKUP(orderCHA,charterinfo_a,8) -> 1 | Q28: F O U N D A T I O N T U I T I O N R A T E | S28: =IF(S12=0,0,ROUND(S26/S12,0)) -> 16591
A29: 14 | B29: Low Income Group | D29: =VLOOKUP(orderCHA,charterinfo_a,9) -> 12
A31: C A V E A T S | L31: English Learners as a % of Total Full Rate and Budget | S31: =SUM(N26:P26)/S26 -> 0
A32: - Charter schools do not send special education pupils to other districts or private programs. | L32: Economically Disadvantaged Proportion of Full Rate and Budget | S32: =Q26/S26 -> 0.3903604191
A33: - The in-district special education increment uses an "assumed" enrollment percentage of 3.86.
A34: - Total foundation enrollment includes only the All Pupils section. Special Population Increments enrollment has already been counted in All Pupils cohorts.
A35: - Pre-kindergarten and half-time kindergarten pupils count as one-half in totals for ELL, low income, and total foundation enrollment.
A36: - Each component of the foundation budget represents the enrollment on line 1 multiplied by the appropriate state-wide foundation allotment.
A37: - The wage adjustment factor is applied to the underlying base rates in all functions except instructional equipment, benefits, and special education.
A38: - October 2021 enrollment is being used to generate the FY23 rate.

Sheet fnd base rates (hidden)
A4: FY22 Foundation Base Rates
H5: Instruction- | I5: Guid- | K5: Opera- | L5: Employee | N5: Total
E6: Classroom | F6: Other | G6: Profess- | H6: al Materials, | I6: ance & | K6: tions & | L6: Benefits | N6: Opera-
C7: Admini- | D7: Instructional | E7: & Specialist | F7: Teaching | G7: ional Dev- | H7: Equipment & | I7: Psycho- | J7: Pupil | K7: Maint- | L7: & Fixed | M7: Sped | N7: ting Exp-
A8: Foundation Subsets | C8: stration | D8: Leadership | E8: Teachers | F8: Services | G8: elopment | H8: Technology | I8: logical | J8: Services | K8: enance | L8: Charges | M8: Tuition | N8: enditures
A10: 1 | B10: Pre-School | C10: 202.69 | D10: 366.06 | E10: 1678.52 | F10: 430.49 | G10: 66.38 | H10: 242.94 | I10: 134.35 | J10: 48.57 | K10: 466.11 | L10: 583.96 | M10: 0 | N10: 4220.07
A11: 2 | B11: Kindergarten-Half | C11: 202.69 | D11: 366.06 | E11: 1678.52 | F11: 430.49 | G11: 66.38 | H11: 242.94 | I11: 134.35 | J11: 48.57 | K11: 466.11 | L11: 583.96 | M11: 0 | N11: 4220.07
A12: 3 | B12: Kindergarten-Full | C12: 405.37 | D12: 732.13 | E12: 3357.03 | F12: 861.01 | G12: 132.83 | H12: 485.89 | I12: 268.72 | J12: 97.19 | K12: 932.2 | L12: 1167.9 | M12: 0 | N12: 8440.27
A13: 4 | B13: Elementary | C13: 405.37 | D13: 732.13 | E13: 3356.99 | F13: 861.01 | G13: 132.85 | H13: 485.89 | I13: 268.72 | J13: 145.76 | K13: 932.2 | L13: 1167.93 | M13: 0 | N13: 8488.85
A14: 5 | B14: Junior/Middle | C14: 405.37 | D14: 732.13 | E14: 2954.16 | F14: 619.8 | G14: 144.01 | H14: 485.89 | I14: 336.12 | J14: 238.1 | K14: 1010.62 | L14: 1215.91 | M14: 0 | N14: 8142.11
A15: 6 | B15: High School | C15: 405.37 | D15: 732.13 | E15: 4344.33 | F15: 515.98 | G15: 139.64 | H15: 777.42 | I15: 407.6 | J15: 549.04 | K15: 979.9 | L15: 1093.9 | M15: 0 | N15: 9945.31
A16: 7 | B16: Vocational | C16: 405.37 | D16: 732.13 | E16: 7385.41 | F16: 515.98 | G16: 230.86 | H16: 1360.47 | I16: 407.6 | J16: 549.04 | K16: 1833.94 | L16: 1531.98 | M16: 0 | N16: 14952.78
A17: 8 | B17: Special Ed-In School | C17: 2797.71 | D17: 0 | E17: 9231.73 | F17: 8619.54 | G17: 445.33 | H17: 388.7 | I17: 0 | J17: 0 | K17: 3125.17 | L17: 3540.82 | M17: 0 | N17: 28149
A18: 9 | B18: Special Ed-Tuitioned Out | C18: 3010.64 | D18: 0 | E18: 0 | F18: 45.99 | G18: 0 | H18: 0 | I18: 0 | J18: 0 | K18: 0 | L18: 0 | M18: 28584.4 | N18: 31641.03
A19: 10 | B19: EL PK-5 | C19: 95.01 | D19: 166.27 | E19: 1163.85 | F19: 166.27 | G19: 47.5 | H19: 118.75 | I19: 71.26 | J19: 23.76 | K19: 285.02 | L19: 261.27 | M19: 0 | N19: 2398.96
A20: 11 | B20: EL jr/middle | C20: 99.85 | D20: 174.72 | E20: 1222.99 | F20: 174.72 | G20: 49.92 | H20: 124.79 | I20: 74.88 | J20: 24.96 | K20: 299.51 | L20: 274.55 | M20: 0 | N20: 2520.89
A21: 12 | B21: EL high | C21: 85.72 | D21: 150.02 | E21: 1050.09 | F21: 150.02 | G21: 42.86 | H21: 107.15 | I21: 64.29 | J21: 21.43 | K21: 257.17 | L21: 235.73 | M21: 0 | N21: 2164.48
A22: 13 | B22: Low Income 1 | C22: 52.17 | D22: 247.19 | E22: 2413.12 | F22: 0 | G22: 117.08 | H22: 17.94 | I22: 97.71 | J22: 507.75 | K22: 0 | L22: 390.34 | M22: 0 | N22: 3843.3
A23: 14 | B23: Low Income 2 | C23: 53.18 | D23: 251.94 | E23: 2459.38 | F23: 0 | G23: 119.32 | H23: 18.29 | I23: 99.58 | J23: 517.49 | K23: 0 | L23: 397.82 | M23: 0 | N23: 3917
A24: 15 | B24: Low Income 3 | C24: 54.17 | D24: 256.68 | E24: 2505.65 | F24: 0 | G24: 121.57 | H24: 18.64 | I24: 101.47 | J24: 527.23 | K24: 0 | L24: 405.31 | M24: 0 | N24: 3990.72
A25: 16 | B25: Low Income 4 | C25: 55.17 | D25: 261.41 | E25: 2551.91 | F25: 0 | G25: 123.81 | H25: 18.98 | I25: 103.34 | J25: 536.95 | K25: 0 | L25: 412.79 | M25: 0 | N25: 4064.36
A26: 17 | B26: Low Income 5 | C26: 56.17 | D26: 266.15 | E26: 2598.17 | F26: 0 | G26: 126.05 | H26: 19.32 | I26: 105.21 | J26: 546.69 | K26: 0 | L26: 420.28 | M26: 0 | N26: 4138.04
A27: 18 | B27: Low Income 6 | C27: 60.56 | D27: 286.93 | E27: 2800.97 | F27: 0 | G27: 135.88 | H27: 20.83 | I27: 113.42 | J27: 589.36 | K27: 0 | L27: 453.08 | M27: 0 | N27: 4461.03
A28: 19 | B28: Low Income 7 | C28: 62.96 | D28: 298.31 | E28: 2912.09 | F28: 0 | G28: 141.28 | H28: 21.66 | I28: 117.92 | J28: 612.75 | K28: 0 | L28: 471.05 | M28: 0 | N28: 4638.02
A29: 20 | B29: Low Income 8 | C29: 65.36 | D29: 309.69 | E29: 3023.19 | F29: 0 | G29: 146.67 | H29: 22.49 | I29: 122.42 | J29: 636.12 | K29: 0 | L29: 489.02 | M29: 0 | N29: 4814.96
A30: 21 | B30: Low Income 9 | C30: 67.77 | D30: 321.08 | E30: 3134.33 | F30: 0 | G30: 152.06 | H30: 23.31 | I30: 126.92 | J30: 659.5 | K30: 0 | L30: 507 | M30: 0 | N30: 4991.97
A31: 22 | B31: Low Income 10 | C31: 70.17 | D31: 332.46 | E31: 3245.44 | F31: 0 | G31: 157.45 | H31: 24.14 | I31: 131.42 | J31: 682.88 | K31: 0 | L31: 524.98 | M31: 0 | N31: 5168.94
A32: 23 | B32: Low Income 11 | C32: 72.23 | D32: 342.21 | E32: 3340.67 | F32: 0 | G32: 162.07 | H32: 24.84 | I32: 135.27 | J32: 702.92 | K32: 0 | L32: 540.38 | M32: 0 | N32: 5320.59
A33: 24 | B33: Low Income 12 | C33: 74.29 | D33: 351.97 | E33: 3435.89 | F33: 0 | G33: 166.69 | H33: 25.55 | I33: 139.13 | J33: 722.96 | K33: 0 | L33: 555.78 | M33: 0 | N33: 5472.26
B96: Inflation Adjustment
B97: FY22 baseline | C97: 1 | K97: Rates in Orange cells are values. They are increased accord-
B98: FY23 inflation cap'd | C98: 0.045 | K98: ing to SOA parameters.
B99: FY23 adjustment | C99: =C97+C98 -> 1.045
A101: FY23 Foundation Budget Rates
H102: Instruction- | I102: Guid- | K102: Opera- | L102: Employee | N102: Total
E103: Classroom | F103: Other | G103: Profess- | H103: al Materials, | I103: ance & | K103: tions & | L103: Benefits | N103: Opera- | T103: FY23 | V103: FY23 | X103: FY23
C104: Admini- | D104: Instructional | E104: & Specialist | F104: Teaching | G104: ional Dev- | H104: Equipment & | I104: Psycho- | J104: Pupil | K104: Maint- | L104: & Fixed | M104: Sped | N104: ting Exp- | P104: FY | R104: FY22 | T104: PROJa | V104: Gov | X104: HWM
A105: Adjusted Foundation Budget | C105: stration | D105: Leadership | E105: Teachers | F105: Services | G105: elopment | H105: Technology | I105: logical | J105: Services | K105: enance | L105: Charges | M105: Tuition | N105: enditures | P105: diff
C106: 3 | D106: 4 | E106: 5 | F106: 6 | G106: 7 | H106: 8 | I106: 9 | J106: 10 | K106: 11 | L106: 12 | M106: 13 | N106: 14
A107: 1 | B107: Pre-School | C107: =IF(C10>0,ROUND(C10+(C10*inflat),2),0) -> 211.81 | D107: 382.53 | E107: 1754.05 | F107: 449.86 | G107: 69.37 | H107: 253.87 | I107: 153.16 | J107: 50.76 | K107: 487.08 | L107: 651.59 | M107: 0 | N107: =SUM(C107:M107) -> 4464.08 | P107: =N107-R107 -> 244.01 | R107: 4220.07 | T107: 4464.08 | V107: 4464.08 | X107: 4464.08
A108: 2 | B108: Kindergarten-Half | C108: =IF(C11>0,ROUND(C11+(C11*inflat),2),0) -> 211.81 | D108: 382.53 | E108: 1754.05 | F108: 449.86 | G108: 69.37 | H108: 253.87 | I108: 153.16 | J108: 50.76 | K108: 487.08 | L108: 651.59 | M108: 0 | N108: =SUM(C108:M108) -> 4464.08 | P108: =N108-R108 -> 244.01 | R108: 4220.07 | T108: 4464.08 | V108: 4464.08 | X108: 4464.08
A109: 3 | B109: Kindergarten-Full | C109: =IF(C12>0,ROUND(C12+(C12*inflat),2),0) -> 423.61 | D109: 765.08 | E109: 3508.1 | F109: 899.76 | G109: 138.81 | H109: 507.76 | I109: 306.35 | J109: 101.56 | K109: 974.15 | L109: 1303.16 | M109: 0 | N109: 8928.34 | P109: 488.07 | R109: 8440.27 | T109: 8928.34 | V109: 8928.34 | X109: 8928.34
A110: 4 | B110: Elementary | C110: =IF(C13>0,ROUND(C13+(C13*inflat),2),0) -> 423.61 | D110: 765.08 | E110: 3508.05 | F110: 899.76 | G110: 138.83 | H110: 507.76 | I110: 306.35 | J110: 152.32 | K110: 974.15 | L110: 1303.19 | M110: 0 | N110: 8979.1 | P110: 490.25 | R110: 8488.85 | T110: 8979.1 | V110: 8979.1 | X110: 8979.1
A111: 5 | B111: Junior/Middle | C111: =IF(C14>0,ROUND(C14+(C14*inflat),2),0) -> 423.61 | D111: 765.08 | E111: 3087.1 | F111: 647.69 | G111: 150.49 | H111: 507.76 | I111: 362.69 | J111: 248.81 | K111: 1056.1 | L111: 1369.51 | M111: 0 | N111: 8618.84 | P111: 476.73 | R111: 8142.11 | T111: 8618.85 | V111: 8618.84 | X111: 8618.84
A112: 6 | B112: High School | C112: =IF(C15>0,ROUND(C15+(C15*inflat),2),0) -> 423.61 | D112: 765.08 | E112: 4539.82 | F112: 539.2 | G112: 145.92 | H112: 812.4 | I112: 425.94 | J112: 573.75 | K112: 1024 | L112: 1226.16 | M112: 0 | N112: 10475.88 | P112: 530.57 | R112: 9945.31 | T112: 10475.88 | V112: 10475.88 | X112: 10475.88
A113: 7 | B113: Vocational | C113: =IF(C16>0,ROUND(C16+(C16*inflat),2),0) -> 423.61 | D113: 765.08 | E113: 7717.75 | F113: 539.2 | G113: 241.25 | H113: 1421.69 | I113: 425.94 | J113: 573.75 | K113: 1916.47 | L113: 1672.97 | M113: 0 | N113: 15697.71 | P113: 744.93 | R113: 14952.78 | T113: 15697.71 | V113: 15697.71 | X113: 15697.71
A114: 8 | B114: Special Ed-In School | C114: =IF(C17>0,ROUND(C17+(C17*inflat),2),0) -> 2923.61 | D114: 0 | E114: 9647.16 | F114: 9007.42 | G114: 465.37 | H114: 406.19 | I114: 0 | J114: 0 | K114: 3265.8 | L114: 3703.8 | M114: 0 | N114: 29419.35 | P114: 1270.35 | R114: 28149 | T114: 29419.35 | V114: 29419.35 | X114: 29419.35
A115: 9 | B115: Special Ed-Tuitioned Out | C115: 3262.78 | D115: 0 | E115: 0 | F115: 49.84 | G115: 0 | H115: 0 | I115: 0 | J115: 0 | K115: 0 | L115: 0 | M115: 30978.37 | N115: 34290.99 | P115: 2649.96 | R115: 31641.03 | T115: 34291 | V115: 34290.99 | X115: 34290.99
A116: 10 | B116: EL PK-5 | C116: 101.16 | D116: 177.02 | E116: 1239.09 | F116: 177.02 | G116: 50.57 | H116: 126.43 | I116: 75.86 | J116: 25.3 | K116: 303.45 | L116: 278.17 | M116: 0 | N116: 2554.07 | P116: 155.11 | R116: 2398.96 | T116: 2554.051126 | V116: 2554.07 | X116: 2554.07
A117: 11 | B117: EL jr/middle | C117: 106.77 | D117: 186.83 | E117: 1307.82 | F117: 186.83 | G117: 53.38 | H117: 133.45 | I117: 80.08 | J117: 26.69 | K117: 320.28 | L117: 293.59 | M117: 0 | N117: 2695.72 | P117: 174.83 | R117: 2520.89 | T117: 2695.744516 | V117: 2695.72 | X117: 2695.72
A118: 12 | B118: EL high | C118: 99.63 | D118: 174.34 | E118: 1220.36 | F118: 174.34 | G118: 49.8 | H118: 124.52 | I118: 74.71 | J118: 24.91 | K118: 298.86 | L118: 273.96 | M118: 0 | N118: 2515.43 | P118: 350.95 | R118: 2164.48 | T118: 2515.445234 | V118: 2515.43 | X118: 2515.43
A119: 13 | B119: Low Income 1 | C119: 53.94 | D119: 255.58 | E119: 2495 | F119: 0 | G119: 121.05 | H119: 18.55 | I119: 101.03 | J119: 524.98 | K119: 0 | L119: 403.58 | M119: 0 | N119: 3973.71 | P119: 130.41 | R119: 3843.3 | T119: 3973.71 | V119: 3973.71 | X119: 3973.71
A120: 14 | B120: Low Income 2 | C120: 55.43 | D120: 262.6 | E120: 2563.53 | F120: 0 | G120: 124.37 | H120: 19.06 | I120: 103.8 | J120: 539.4 | K120: 0 | L120: 414.67 | M120: 0 | N120: 4082.86 | P120: 165.86 | R120: 3917 | T120: 4082.86 | V120: 4082.86 | X120: 4082.86
A121: 15 | B121: Low Income 3 | C121: 56.9 | D121: 269.63 | E121: 2632.05 | F121: 0 | G121: 127.7 | H121: 19.58 | I121: 106.58 | J121: 553.82 | K121: 0 | L121: 425.76 | M121: 0 | N121: 4192.02 | P121: 201.3 | R121: 3990.72 | T121: 4192.02 | V121: 4192.02 | X121: 4192.02
A122: 16 | B122: Low Income 4 | C122: 58.39 | D122: 276.64 | E122: 2700.58 | F122: 0 | G122: 131.02 | H122: 20.08 | I122: 109.36 | J122: 568.24 | K122: 0 | L122: 436.84 | M122: 0 | N122: 4301.15 | P122: 236.79 | R122: 4064.36 | T122: 4301.15 | V122: 4301.15 | X122: 4301.15
A123: 17 | B123: Low Income 5 | C123: 59.87 | D123: 283.66 | E123: 2769.11 | F123: 0 | G123: 134.35 | H123: 20.59 | I123: 112.13 | J123: 582.66 | K123: 0 | L123: 447.93 | M123: 0 | N123: 4410.3 | P123: 272.26 | R123: 4138.04 | T123: 4410.29 | V123: 4410.3 | X123: 4410.3
A124: 18 | B124: Low Income 6 | C124: 65.09 | D124: 308.37 | E124: 3010.3 | F124: 0 | G124: 146.04 | H124: 22.39 | I124: 121.89 | J124: 633.4 | K124: 0 | L124: 486.94 | M124: 0 | N124: 4794.42 | P124: 333.39 | R124: 4461.03 | T124: 4794.42 | V124: 4794.42 | X124: 4794.42
A125: 19 | B125: Low Income 7 | C125: 68.64 | D125: 325.22 | E125: 3174.83 | F125: 0 | G125: 154.02 | H125: 23.61 | I125: 128.56 | J125: 668.03 | K125: 0 | L125: 513.55 | M125: 0 | N125: 5056.46 | P125: 418.44 | R125: 4638.02 | T125: 5056.47 | V125: 5056.46 | X125: 5056.46
A126: 20 | B126: Low Income 8 | C126: 72.2 | D126: 342.08 | E126: 3339.36 | F126: 0 | G126: 162.01 | H126: 24.84 | I126: 135.22 | J126: 702.64 | K126: 0 | L126: 540.16 | M126: 0 | N126: 5318.51 | P126: 503.55 | R126: 4814.96 | T126: 5318.48 | V126: 5318.51 | X126: 5318.51
A127: 21 | B127: Low Income 9 | C127: 75.76 | D127: 358.94 | E127: 3503.91 | F127: 0 | G127: 169.99 | H127: 26.06 | I127: 141.88 | J127: 737.27 | K127: 0 | L127: 566.78 | M127: 0 | N127: 5580.59 | P127: 588.62 | R127: 4991.97 | T127: 5580.59 | V127: 5580.59 | X127: 5580.59
A128: 22 | B128: Low Income 10 | C128: 79.31 | D128: 375.8 | E128: 3668.44 | F128: 0 | G128: 177.97 | H128: 27.28 | I128: 148.55 | J128: 771.89 | K128: 0 | L128: 593.4 | M128: 0 | N128: 5842.64 | P128: 673.7 | R128: 5168.94 | T128: 5842.64 | V128: 5842.64 | X128: 5842.64
A129: 23 | B129: Low Income 11 | C129: 83.62 | D129: 396.18 | E129: 3867.46 | F129: 0 | G129: 187.63 | H129: 28.76 | I129: 156.61 | J129: 813.77 | K129: 0 | L129: 625.59 | M129: 0 | N129: 6159.62 | P129: 839.03 | R129: 5320.59 | T129: 6159.6 | V129: 6159.62 | X129: 6159.62
A130: 24 | B130: Low Income 12 | C130: 87.92 | D130: 416.57 | E130: 4066.47 | F130: 0 | G130: 197.28 | H130: 30.24 | I130: 164.67 | J130: 855.64 | K130: 0 | L130: 657.78 | M130: 0 | N130: 6476.57 | P130: 1004.31 | R130: 5472.26 | T130: 6476.55 | V130: 6476.57 | X130: 6476.57
H303: Instruction- | I303: Guid- | K303: Opera- | L303: Employee | N303: Total
E304: Classroom | F304: Other | G304: Profess- | H304: al Materials, | I304: ance & | K304: tions & | L304: Benefits | N304: Opera-
C305: Admini- | D305: Instructional | E305: & Specialist | F305: Teaching | G305: ional Dev- | H305: Equipment & | I305: Psycho- | J305: Pupil | K305: Maint- | L305: & Fixed | M305: Sped | N305: ting Exp-
A306: Adjusted Foundation Budget | C306: stration | D306: Leadership | E306: Teachers | F306: Services | G306: elopment | H306: Technology | I306: logical | J306: Services | K306: enance | L306: Charges | M306: Tuition | N306: enditures
A307: =A107=A207 -> FALSE | B307: =B107=B207 -> FALSE | C307: =C107-C207 -> 211.81 | D307: =D107-D207 -> 382.53 | E307: 1754.05 | F307: 449.86 | G307: 69.37 | H307: 253.87 | I307: 153.16 | J307: 50.76 | K307: 487.08 | L307: 651.59 | M307: 0 | N307: 4464.08
A308: =A108=A208 -> FALSE | B308: FALSE | C308: =C108-C208 -> 211.81 | D308: 382.53 | E308: 1754.05 | F308: 449.86 | G308: 69.37 | H308: 253.87 | I308: 153.16 | J308: 50.76 | K308: 487.08 | L308: 651.59 | M308: 0 | N308: 4464.08
A309: =A109=A209 -> FALSE | B309: FALSE | C309: =C109-C209 -> 423.61 | D309: 765.08 | E309: 3508.1 | F309: 899.76 | G309: 138.81 | H309: 507.76 | I309: 306.35 | J309: 101.56 | K309: 974.15 | L309: 1303.16 | M309: 0 | N309: 8928.34
A310: =A110=A210 -> FALSE | B310: FALSE | C310: =C110-C210 -> 423.61 | D310: 765.08 | E310: 3508.05 | F310: 899.76 | G310: 138.83 | H310: 507.76 | I310: 306.35 | J310: 152.32 | K310: 974.15 | L310: 1303.19 | M310: 0 | N310: 8979.1
A311: =A111=A211 -> FALSE | B311: FALSE | C311: =C111-C211 -> 423.61 | D311: 765.08 | E311: 3087.1 | F311: 647.69 | G311: 150.49 | H311: 507.76 | I311: 362.69 | J311: 248.81 | K311: 1056.1 | L311: =L111-L211 -> 1369.51 | M311: 0 | N311: 8618.84
A312: =A112=A212 -> FALSE | B312: FALSE | C312: =C112-C212 -> 423.61 | D312: 765.08 | E312: 4539.82 | F312: 539.2 | G312: 145.92 | H312: 812.4 | I312: 425.94 | J312: 573.75 | K312: 1024 | L312: 1226.16 | M312: 0 | N312: 10475.88
A313: =A113=A213 -> FALSE | B313: FALSE | C313: =C113-C213 -> 423.61 | D313: 765.08 | E313: 7717.75 | F313: 539.2 | G313: 241.25 | H313: 1421.69 | I313: 425.94 | J313: 573.75 | K313: 1916.47 | L313: 1672.97 | M313: 0 | N313: 15697.71
A314: =A114=A214 -> FALSE | B314: FALSE | C314: =C114-C214 -> 2923.61 | D314: 0 | E314: 9647.16 | F314: 9007.42 | G314: 465.37 | H314: 406.19 | I314: 0 | J314: 0 | K314: 3265.8 | L314: 3703.8 | M314: 0 | N314: 29419.35
A315: =A115=A215 -> FALSE | B315: FALSE | C315: =C115-C215 -> 3262.78 | D315: 0 | E315: 0 | F315: 49.84 | G315: 0 | H315: 0 | I315: 0 | J315: 0 | K315: 0 | L315: 0 | M315: 30978.37 | N315: 34290.99
A316: =A116=A216 -> FALSE | B316: FALSE | C316: =C116-C216 -> 101.16 | D316: 177.02 | E316: 1239.09 | F316: 177.02 | G316: 50.57 | H316: 126.43 | I316: 75.86 | J316: 25.3 | K316: 303.45 | L316: 278.17 | M316: 0 | N316: 2554.07
A317: =A117=A217 -> FALSE | B317: FALSE | C317: =C117-C217 -> 106.77 | D317: 186.83 | E317: 1307.82 | F317: 186.83 | G317: 53.38 | H317: 133.45 | I317: 80.08 | J317: 26.69 | K317: 320.28 | L317: 293.59 | M317: 0 | N317: 2695.72
A318: =A118=A218 -> FALSE | B318: FALSE | C318: =C118-C218 -> 99.63 | D318: 174.34 | E318: 1220.36 | F318: 174.34 | G318: 49.8 | H318: 124.52 | I318: 74.71 | J318: 24.91 | K318: 298.86 | L318: 273.96 | M318: 0 | N318: 2515.43
A319: =A119=A219 -> FALSE | B319: FALSE | C319: =C119-C219 -> 53.94 | D319: 255.58 | E319: 2495 | F319: 0 | G319: 121.05 | H319: 18.55 | I319: 101.03 | J319: 524.98 | K319: 0 | L319: 403.58 | M319: 0 | N319: 3973.71
A320: =A120=A220 -> FALSE | B320: FALSE | C320: =C120-C220 -> 55.43 | D320: 262.6 | E320: 2563.53 | F320: 0 | G320: 124.37 | H320: 19.06 | I320: 103.8 | J320: 539.4 | K320: 0 | L320: 414.67 | M320: 0 | N320: 4082.86
A321: =A121=A221 -> FALSE | B321: FALSE | C321: =C121-C221 -> 56.9 | D321: 269.63 | E321: 2632.05 | F321: 0 | G321: 127.7 | H321: 19.58 | I321: 106.58 | J321: 553.82 | K321: 0 | L321: 425.76 | M321: 0 | N321: 4192.02
A322: =A122=A222 -> FALSE | B322: FALSE | C322: =C122-C222 -> 58.39 | D322: 276.64 | E322: 2700.58 | F322: 0 | G322: 131.02 | H322: 20.08 | I322: 109.36 | J322: 568.24 | K322: 0 | L322: 436.84 | M322: 0 | N322: 4301.15
A323: =A123=A223 -> FALSE | B323: FALSE | C323: =C123-C223 -> 59.87 | D323: 283.66 | E323: 2769.11 | F323: 0 | G323: 134.35 | H323: 20.59 | I323: 112.13 | J323: 582.66 | K323: 0 | L323: 447.93 | M323: 0 | N323: 4410.3
A324: =A124=A224 -> FALSE | B324: FALSE | C324: =C124-C224 -> 65.09 | D324: 308.37 | E324: 3010.3 | F324: 0 | G324: 146.04 | H324: 22.39 | I324: 121.89 | J324: 633.4 | K324: 0 | L324: 486.94 | M324: 0 | N324: 4794.42
A325: =A125=A225 -> FALSE | B325: FALSE | C325: =C125-C225 -> 68.64 | D325: 325.22 | E325: 3174.83 | F325: 0 | G325: 154.02 | H325: 23.61 | I325: 128.56 | J325: 668.03 | K325: 0 | L325: 513.55 | M325: 0 | N325: 5056.46
A326: =A126=A226 -> FALSE | B326: FALSE | C326: =C126-C226 -> 72.2 | D326: 342.08 | E326: 3339.36 | F326: 0 | G326: 162.01 | H326: 24.84 | I326: 135.22 | J326: 702.64 | K326: 0 | L326: 540.16 | M326: 0 | N326: 5318.51
A327: =A127=A227 -> FALSE | B327: FALSE | C327: =C127-C227 -> 75.76 | D327: 358.94 | E327: 3503.91 | F327: 0 | G327: 169.99 | H327: 26.06 | I327: 141.88 | J327: 737.27 | K327: 0 | L327: 566.78 | M327: 0 | N327: 5580.59
A328: =A128=A228 -> FALSE | B328: FALSE | C328: =C128-C228 -> 79.31 | D328: 375.8 | E328: 3668.44 | F328: 0 | G328: 177.97 | H328: 27.28 | I328: 148.55 | J328: 771.89 | K328: 0 | L328: 593.4 | M328: 0 | N328: 5842.64
A329: =A129=A229 -> FALSE | B329: FALSE | C329: =C129-C229 -> 83.62 | D329: 396.18 | E329: 3867.46 | F329: 0 | G329: 187.63 | H329: 28.76 | I329: 156.61 | J329: 813.77 | K329: 0 | L329: 625.59 | M329: 0 | N329: 6159.62
A330: =A130=A230 -> FALSE | B330: FALSE | C330: =C130-C230 -> 87.92 | D330: 416.57 | E330: 4066.47 | F330: 0 | G330: 197.28 | H330: 30.24 | I330: 164.67 | J330: 855.64 | K330: 0 | L330: 657.78 | M330: 0 | N330: 6476.57

Sheet pre fnd budg (hidden)
A1: a | B1: 1 | C1: 2 | D1: 3 | E1: 4 | F1: 5 | G1: 6 | H1: 7 | I1: 8 | J1: 9 | K1: 10 | L1: 11 | M1: 12 | N1: 13 | O1: 14 | P1: 15 | Q1: 16 | R1: 17 | S1: 18 | T1: 19 | U1: 20 | V1: 21 | W1: 22 | X1: 23 | Y1: 24 | Z1: 25 | AA1: 26 | AB1: 27 | AC1: 28 | AD1: 29 | AE1: 30 | AF1: 31 | AG1: 32 | AH1: 33 | AI1: 34 | AJ1: 35 | AK1: 36 | AL1: 37 | AM1: 38 | AN1: 39 | AO1: 40 | AP1: 41 | AQ1: 42 | AR1: 43 | AS1: # of rates | AT1: =COUNTA(AX10:AX1801) -> 1063 | AU1: greater than 0 | AV1: =COUNTIF($AX$10:$AX$1801,">0") -> 7
AS2: less than $0 | AT2: =COUNTIF($AX$10:$AX$1801,"<0") -> 1 | AU2: = $0 | AV2: =COUNTIF($AX$10:$AX$1801,"=0") -> 1055
B3: Insert chalocsend & school name from the FND ENRO sheet | U3: w | V3: w | W3: w | X3: w | Y3: w | Z3: nw | AA3: w | AB3: w | AC3: w | AD3: nw | AE3: nw | AS3: < $20 | AT3: =COUNTIF($AX$10:$AX$1801,"<0")-AT4-AT5-AT6-AT7 -> 0 | AU3: > $20 | AV3: =COUNTIF($AX$10:$AX$1801,">0")-AV4-AV5-AV6-AV7 -> 0
K4: =SUM(K10:K1801) -> 1749.2376 | O4: =SUM(M10:O1801) -> 5832 | P4: =SUM(P10:P1801) -> 28598 | AS4: < $50 | AT4: =COUNTIF($AX$10:$AX$1801,"<-49.999")-AT5-AT6-AT7 -> 0 | AU4: > $50 | AV4: =COUNTIF($AX$10:$AX$1801,">49.9999")-AV5-AV6-AV7 -> 0
Z5: Instruction- | AA5: Guid- | AC5: Opera- | AD5: Employee | AS5: < $100 | AT5: =COUNTIF($AX$10:$AX$1801,"<-99.9999")-AT6-AT7 -> 1 | AU5: > $100 | AV5: =COUNTIF($AX$10:$AX$1801,">99.9999")-AV6-AV7 -> 0
K6: Assumed | L6: Assumed | Q6: Total | S6: Low | W6: Classroom | X6: Other | Y6: Profess- | Z6: al Materials, | AA6: ance & | AC6: tions & | AD6: Benefits | AF6: Found- | AL6: wage | AM6: =SUM(AM10:AM1000890) -> 45634 | AS6: < $500 | AT6: =COUNTIF($AX$10:$AX$1801,"<-499.9999")-AT7 -> 0 | AU6: > $200 | AV6: =COUNTIF($AX$10:$AX$1801,">199.9999")-AV7 -> 0
H7: Junior | I7: High | K7: Special Ed | L7: Special Ed | M7: EL | N7: EL | O7: EL | P7: Ecodis | Q7: Found | R7: WAF | S7: Inc | U7: Admini- | V7: Instructional | W7: & Specialist | X7: Teaching | Y7: s | Z7: Equipment & | AA7: Psycho- | AB7: Pupil | AC7: Maint- | AD7: & Fixed | AE7: Sped | AF7: ation | AI7: Cha | AJ7: Loc | AK7: Sending | AL7: fct check | AS7: < $1000 | AT7: =COUNTIF($AX$10:$AX$1801,"<-999.9999") -> 0 | AU7: > $500 | AV7: =COUNTIF($AX$10:$AX$1801,">299.9999") -> 7
A8: chalea | B8: chalocsend | C8: Charter | D8: PK | E8: KP | F8: KF | G8: Elem | H8: Middle | I8: School | J8: voke | K8: In School | L8: Tuitioned | M8: PK-5 | N8: 6-8 | O8: 9-12 | P8: Low Inc | Q8: Enro | R8: Adjusted | S8: Group | U8: stration | V8: Leadership | W8: Teachers | X8: Services | Y8: elopment | Z8: Technology | AA8: logical | AB8: Services | AC8: enance | AD8: Charges | AE8: Tuition | AF8: Budget | AH8: chalocsend | AI8: LEA | AJ8: LEA | AK8: LEA | AL8: 1=good | AM8: enro | AN8: fnd budget | AO8: rate | AP8: diff | AQ8: rate check | AW8: gov | AX8: diff | AY8: hwm test | AZ8: diff | BB8: diff
AP9: x | AR9: x | AW9: 2022-01-06 | AX9: x | AY9: 2022-04-06 | AZ9: x | BB9: x
A10: 409 | B10: 409201003 | C10: ALMA DEL MAR | D10: ='fnd enro'!D10 -> 0 | E10: ='fnd enro'!E10 -> 0 | F10: ='fnd enro'!F10 -> 0 | G10: ='fnd enro'!G10 -> 1 | H10: ='fnd enro'!H10 -> 1 | I10: ='fnd enro'!I10 -> 0 | J10: ='fnd enro'!J10 -> 0 | K10: ='fnd enro'!K10 -> 0.0772 | L10: ='fnd enro'!L10 -> 0 | M10: ='fnd enro'!M10 -> 0 | N10: ='fnd enro'!N10 -> 0 | O10: ='fnd enro'!O10 -> 0 | P10: ='fnd enro'!P10 -> 0 | Q10: ='fnd enro'!R10 -> 2 | R10: =VLOOKUP(B10,charterinfo_b,6) -> 1 | S10: =VALUE('fnd enro'!Q10) -> 7 | U10: =(($D10*'fnd base rates'!C$107) +($E10*'fnd base rates'!C$108) +($F10*'fnd base rates'!C$109) +($G10*'fnd base rates'!C$110) +($H10*'fnd base rates'!C$111) +($I10*'fnd base rates'!C$112) +($J10*'fnd base rates'!C$113) +($K10*'fnd base rates'!C$114) +($M10*'fnd base rates'!C$116) +($N10*'fnd base rates'!C$117) +($O10*'fnd base rates'!C$118) +($P10*VLOOKUP($S10+12,rate_basefnd,3))) *$R10 -> 1072.922692 | V10: =(($D10*'fnd base rates'!D$107) +($E10*'fnd base rates'!D$108) +($F10*'fnd base rates'!D$109) +($G10*'fnd base rates'!D$110) +($H10*'fnd base rates'!D$111) +($I10*'fnd base rates'!D$112) +($J10*'fnd base rates'!D$113) +($K10*'fnd base rates'!D$114) +($M10*'fnd base rates'!D$116) +($N10*'fnd base rates'!D$117) +($O10*'fnd base rates'!D$118) +($P10*VLOOKUP($S10+12,rate_basefnd,4))) *$R10 -> 1530.16 | W10: =(($D10*'fnd base rates'!E$107) +($E10*'fnd base rates'!E$108) +($F10*'fnd base rates'!E$109) +($G10*'fnd base rates'!E$110) +($H10*'fnd base rates'!E$111) +($I10*'fnd base rates'!E$112) +($J10*'fnd base rates'!E$113) +($K10*'fnd base rates'!E$114) +($M10*'fnd base rates'!E$116) +($N10*'fnd base rates'!E$117) +($O10*'fnd base rates'!E$118) +($P10*VLOOKUP($S10+12,rate_basefnd,5))) *$R10 -> 7339.910752 | X10: =(($D10*'fnd base rates'!F$107) +($E10*'fnd base rates'!F$108) +($F10*'fnd base rates'!F$109) +($G10*'fnd base rates'!F$110) +($H10*'fnd base rates'!F$111) +($I10*'fnd base rates'!F$112) +($J10*'fnd base rates'!F$113) +($K10*'fnd base rates'!F$114) +($M10*'fnd base rates'!F$116) +($N10*'fnd base rates'!F$117) +($O10*'fnd base rates'!F$118) +($P10*VLOOKUP($S10+12,rate_basefnd,6))) *$R10 -> 2242.822824 | Y10: =(($D10*'fnd base rates'!G$107) +($E10*'fnd base rates'!G$108) +($F10*'fnd base rates'!G$109) +($G10*'fnd base rates'!G$110) +($H10*'fnd base rates'!G$111) +($I10*'fnd base rates'!G$112) +($J10*'fnd base rates'!G$113) +($K10*'fnd base rates'!G$114) +($M10*'fnd base rates'!G$116) +($N10*'fnd base rates'!G$117) +($O10*'fnd base rates'!G$118) +($P10*VLOOKUP($S10+12,rate_basefnd,7))) *$R10 -> 325.246564 | Z10: =(($D10*'fnd base rates'!H$107) +($E10*'fnd base rates'!H$108) +($F10*'fnd base rates'!H$109) +($G10*'fnd base rates'!H$110) +($H10*'fnd base rates'!H$111) +($I10*'fnd base rates'!H$112) +($J10*'fnd base rates'!H$113) +($K10*'fnd base rates'!H$114) +($M10*'fnd base rates'!H$116) +($N10*'fnd base rates'!H$117) +($O10*'fnd base rates'!H$118) +($P10*VLOOKUP($S10+12,rate_basefnd,8))) -> 1046.877868 | AA10: =(($D10*'fnd base rates'!I$107) +($E10*'fnd base rates'!I$108) +($F10*'fnd base rates'!I$109) +($G10*'fnd base rates'!I$110) +($H10*'fnd base rates'!I$111) +($I10*'fnd base rates'!I$112) +($J10*'fnd base rates'!I$113) +($K10*'fnd base rates'!I$114) +($M10*'fnd base rates'!I$116) +($N10*'fnd base rates'!I$117) +($O10*'fnd base rates'!I$118) +($P10*VLOOKUP($S10+12,rate_basefnd,9))) *$R10 -> 669.04 | AB10: =(($D10*'fnd base rates'!J$107) +($E10*'fnd base rates'!J$108) +($F10*'fnd base rates'!J$109) +($G10*'fnd base rates'!J$110) +($H10*'fnd base rates'!J$111) +($I10*'fnd base rates'!J$112) +($J10*'fnd base rates'!J$113) +($K10*'fnd base rates'!J$114) +($M10*'fnd base rates'!J$116) +($N10*'fnd base rates'!J$117) +($O10*'fnd base rates'!J$118) +($P10*VLOOKUP($S10+12,rate_basefnd,10))) *$R10 -> 401.13 | AC10: =(($D10*'fnd base rates'!K$107) +($E10*'fnd base rates'!K$108) +($F10*'fnd base rates'!K$109) +($G10*'fnd base rates'!K$110) +($H10*'fnd base rates'!K$111) +($I10*'fnd base rates'!K$112) +($J10*'fnd base rates'!K$113) +($K10*'fnd base rates'!K$114) +($M10*'fnd base rates'!K$116) +($N10*'fnd base rates'!K$117) +($O10*'fnd base rates'!K$118) +($P10*VLOOKUP($S10+12,rate_basefnd,11))) *$R10 -> 2282.36976 | AD10: =(($D10*'fnd base rates'!L$107) +($E10*'fnd base rates'!L$108) +($F10*'fnd base rates'!L$109) +($G10*'fnd base rates'!L$110) +($H10*'fnd base rates'!L$111) +($I10*'fnd base rates'!L$112) +($J10*'fnd base rates'!L$113) +($K10*'fnd base rates'!L$114) +($M10*'fnd base rates'!L$116) +($N10*'fnd base rates'!L$117) +($O10*'fnd base rates'!L$118) +($P10*VLOOKUP($S10+12,rate_basefnd,12))) -> 2958.63336 | AE10: =(($D10*'fnd base rates'!M$107) +($E10*'fnd base rates'!M$108) +($F10*'fnd base rates'!M$109) +($G10*'fnd base rates'!M$110) +($H10*'fnd base rates'!M$111) +($I10*'fnd base rates'!M$112) +($J10*'fnd base rates'!M$113) +($K10*'fnd base rates'!M$114) +($M10*'fnd base rates'!M$116) +($N10*'fnd base rates'!M$117) +($O10*'fnd base rates'!M$118) +($P10*VLOOKUP($S10+12,rate_basefnd,13))) -> 0 | AF10: =SUM(U10:AE10) -> 19869.11382 | AH10: =B10 -> 409201003 | AI10: =IF($B10<499999999,MID($B10,1,3),MID($B10,1,4)) -> 409 | AJ10: =IF($B10<499999999,MID($B10,4,3),MID($B10,5,3)) -> 201 | AK10: =IF($B10<499999999,MID($B10,7,3),MID($B10,8,3)) -> 003 | AL10: =IF(VLOOKUP(VALUE(IF(AH10<499999999,MID(AH10,4,3),MID(AH10,5,3))),distinfo,4)=R10,1,0) -> 1 | AM10: =enro -> 2 | AN10: =AF10 -> 19869.11382 | AO10: =IF(OR(AF10=0,AM10=0),0,ROUND(AN10/AM10,0)) -> 9935 | AP10: =AO10-AQ10 -> 0 | AQ10: 9935 | AW10: 9935 | AX10: =AY10-AW10 -> 0 | AY10: 9935 | BB10: =BC10-BA10 -> 0
A11: 409 | B11: 409201014 | C11: ALMA DEL MAR | D11: ='fnd enro'!D11 -> 0 | E11: ='fnd enro'!E11 -> 0 | F11: ='fnd enro'!F11 -> 1 | G11: ='fnd enro'!G11 -> 0 | H11: ='fnd enro'!H11 -> 0 | I11: ='fnd enro'!I11 -> 0 | J11: ='fnd enro'!J11 -> 0 | K11: ='fnd enro'!K11 -> 0.0386 | L11: ='fnd enro'!L11 -> 0 | M11: ='fnd enro'!M11 -> 0 | N11: ='fnd enro'!N11 -> 0 | O11: ='fnd enro'!O11 -> 0 | P11: ='fnd enro'!P11 -> 0 | Q11: ='fnd enro'!R11 -> 1 | R11: =VLOOKUP(B11,charterinfo_b,6) -> 1 | S11: =VALUE('fnd enro'!Q11) -> 5 | U11: =(($D11*'fnd base rates'!C$107) +($E11*'fnd base rates'!C$108) +($F11*'fnd base rates'!C$109) +($G11*'fnd base rates'!C$110) +($H11*'fnd base rates'!C$111) +($I11*'fnd base rates'!C$112) +($J11*'fnd base rates'!C$113) +($K11*'fnd base rates'!C$114) +($M11*'fnd base rates'!C$116) +($N11*'fnd base rates'!C$117) +($O11*'fnd base rates'!C$118) +($P11*VLOOKUP($S11+12,rate_basefnd,3))) *$R11 -> 536.461346 | V11: =(($D11*'fnd base rates'!D$107) +($E11*'fnd base rates'!D$108) +($F11*'fnd base rates'!D$109) +($G11*'fnd base rates'!D$110) +($H11*'fnd base rates'!D$111) +($I11*'fnd base rates'!D$112) +($J11*'fnd base rates'!D$113) +($K11*'fnd base rates'!D$114) +($M11*'fnd base rates'!D$116) +($N11*'fnd base rates'!D$117) +($O11*'fnd base rates'!D$118) +($P11*VLOOKUP($S11+12,rate_basefnd,4))) *$R11 -> 765.08 | W11: =(($D11*'fnd base rates'!E$107) +($E11*'fnd base rates'!E$108) +($F11*'fnd base rates'!E$109) +($G11*'fnd base rates'!E$110) +($H11*'fnd base rates'!E$111) +($I11*'fnd base rates'!E$112) +($J11*'fnd base rates'!E$113) +($K11*'fnd base rates'!E$114) +($M11*'fnd base rates'!E$116) +($N11*'fnd base rates'!E$117) +($O11*'fnd base rates'!E$118) +($P11*VLOOKUP($S11+12,rate_basefnd,5))) *$R11 -> 3880.480376 | X11: =(($D11*'fnd base rates'!F$107) +($E11*'fnd base rates'!F$108) +($F11*'fnd base rates'!F$109) +($G11*'fnd base rates'!F$110) +($H11*'fnd base rates'!F$111) +($I11*'fnd base rates'!F$112) +($J11*'fnd base rates'!F$113) +($K11*'fnd base rates'!F$114) +($M11*'fnd base rates'!F$116) +($N11*'fnd base rates'!F$117) +($O11*'fnd base rates'!F$118) +($P11*VLOOKUP($S11+12,rate_basefnd,6))) *$R11 -> 1247.446412 | Y11: =(($D11*'fnd base rates'!G$107) +($E11*'fnd base rates'!G$108) +($F11*'fnd base rates'!G$109) +($G11*'fnd base rates'!G$110) +($H11*'fnd base rates'!G$111) +($I11*'fnd base rates'!G$112) +($J11*'fnd base rates'!G$113) +($K11*'fnd base rates'!G$114) +($M11*'fnd base rates'!G$116) +($N11*'fnd base rates'!G$117) +($O11*'fnd base rates'!G$118) +($P11*VLOOKUP($S11+12,rate_basefnd,7))) *$R11 -> 156.773282 | Z11: =(($D11*'fnd base rates'!H$107) +($E11*'fnd base rates'!H$108) +($F11*'fnd base rates'!H$109) +($G11*'fnd base rates'!H$110) +($H11*'fnd base rates'!H$111) +($I11*'fnd base rates'!H$112) +($J11*'fnd base rates'!H$113) +($K11*'fnd base rates'!H$114) +($M11*'fnd base rates'!H$116) +($N11*'fnd base rates'!H$117) +($O11*'fnd base rates'!H$118) +($P11*VLOOKUP($S11+12,rate_basefnd,8))) -> 523.438934 | AA11: =(($D11*'fnd base rates'!I$107) +($E11*'fnd base rates'!I$108) +($F11*'fnd base rates'!I$109) +($G11*'fnd base rates'!I$110) +($H11*'fnd base rates'!I$111) +($I11*'fnd base rates'!I$112) +($J11*'fnd base rates'!I$113) +($K11*'fnd base rates'!I$114) +($M11*'fnd base rates'!I$116) +($N11*'fnd base rates'!I$117) +($O11*'fnd base rates'!I$118) +($P11*VLOOKUP($S11+12,rate_basefnd,9))) *$R11 -> 306.35 | AB11: =(($D11*'fnd base rates'!J$107) +($E11*'fnd base rates'!J$108) +($F11*'fnd base rates'!J$109) +($G11*'fnd base rates'!J$110) +($H11*'fnd base rates'!J$111) +($I11*'fnd base rates'!J$112) +($J11*'fnd base rates'!J$113) +($K11*'fnd base rates'!J$114) +($M11*'fnd base rates'!J$116) +($N11*'fnd base rates'!J$117) +($O11*'fnd base rates'!J$118) +($P11*VLOOKUP($S11+12,rate_basefnd,10))) *$R11 -> 101.56 | AC11: =(($D11*'fnd base rates'!K$107) +($E11*'fnd base rates'!K$108) +($F11*'fnd base rates'!K$109) +($G11*'fnd base rates'!K$110) +($H11*'fnd base rates'!K$111) +($I11*'fnd base rates'!K$112) +($J11*'fnd base rates'!K$113) +($K11*'fnd base rates'!K$114) +($M11*'fnd base rates'!K$116) +($N11*'fnd base rates'!K$117) +($O11*'fnd base rates'!K$118) +($P11*VLOOKUP($S11+12,rate_basefnd,11))) *$R11 -> 1100.20988 | AD11: =(($D11*'fnd base rates'!L$107) +($E11*'fnd base rates'!L$108) +($F11*'fnd base rates'!L$109) +($G11*'fnd base rates'!L$110) +($H11*'fnd base rates'!L$111) +($I11*'fnd base rates'!L$112) +($J11*'fnd base rates'!L$113) +($K11*'fnd base rates'!L$114) +($M11*'fnd base rates'!L$116) +($N11*'fnd base rates'!L$117) +($O11*'fnd base rates'!L$118) +($P11*VLOOKUP($S11+12,rate_basefnd,12))) -> 1446.12668 | AE11: =(($D11*'fnd base rates'!M$107) +($E11*'fnd base rates'!M$108) +($F11*'fnd base rates'!M$109) +($G11*'fnd base rates'!M$110) +($H11*'fnd base rates'!M$111) +($I11*'fnd base rates'!M$112) +($J11*'fnd base rates'!M$113) +($K11*'fnd base rates'!M$114) +($M11*'fnd base rates'!M$116) +($N11*'fnd base rates'!M$117) +($O11*'fnd base rates'!M$118) +($P11*VLOOKUP($S11+12,rate_basefnd,13))) -> 0 | AF11: =SUM(U11:AE11) -> 10063.92691 | AH11: =B11 -> 409201014 | AI11: =IF($B11<499999999,MID($B11,1,3),MID($B11,1,4)) -> 409 | AJ11: =IF($B11<499999999,MID($B11,4,3),MID($B11,5,3)) -> 201 | AK11: =IF($B11<499999999,MID($B11,7,3),MID($B11,8,3)) -> 014 | AL11: =IF(VLOOKUP(VALUE(IF(AH11<499999999,MID(AH11,4,3),MID(AH11,5,3))),distinfo,4)=R11,1,0) -> 1 | AM11: 1 | AN11: =AF11 -> 10063.92691 | AO11: =IF(OR(AF11=0,AM11=0),0,ROUND(AN11/AM11,0)) -> 10064 | AP11: 0 | AQ11: 10064 | AW11: 10064 | AX11: =AY11-AW11 -> 0 | AY11: 10064 | BB11: =BC11-BA11 -> 0
A12: 409 | B12: 409201094 | C12: ALMA DEL MAR | D12: ='fnd enro'!D12 -> 0 | E12: ='fnd enro'!E12 -> 0 | F12: ='fnd enro'!F12 -> 0 | G12: ='fnd enro'!G12 -> 1 | H12: ='fnd enro'!H12 -> 0 | I12: ='fnd enro'!I12 -> 0 | J12: ='fnd enro'!J12 -> 0 | K12: ='fnd enro'!K12 -> 0.0386 | L12: ='fnd enro'!L12 -> 0 | M12: ='fnd enro'!M12 -> 0 | N12: ='fnd enro'!N12 -> 0 | O12: ='fnd enro'!O12 -> 0 | P12: ='fnd enro'!P12 -> 1 | Q12: ='fnd enro'!R12 -> 1 | R12: 1 | S12: =VALUE('fnd enro'!Q12) -> 8 | U12: =(($D12*'fnd base rates'!C$107) +($E12*'fnd base rates'!C$108) +($F12*'fnd base rates'!C$109) +($G12*'fnd base rates'!C$110) +($H12*'fnd base rates'!C$111) +($I12*'fnd base rates'!C$112) +($J12*'fnd base rates'!C$113) +($K12*'fnd base rates'!C$114) +($M12*'fnd base rates'!C$116) +($N12*'fnd base rates'!C$117) +($O12*'fnd base rates'!C$118) +($P12*VLOOKUP($S12+12,rate_basefnd,3))) *$R12 -> 608.661346 | V12: =(($D12*'fnd base rates'!D$107) +($E12*'fnd base rates'!D$108) +($F12*'fnd base rates'!D$109) +($G12*'fnd base rates'!D$110) +($H12*'fnd base rates'!D$111) +($I12*'fnd base rates'!D$112) +($J12*'fnd base rates'!D$113) +($K12*'fnd base rates'!D$114) +($M12*'fnd base rates'!D$116) +($N12*'fnd base rates'!D$117) +($O12*'fnd base rates'!D$118) +($P12*VLOOKUP($S12+12,rate_basefnd,4))) *$R12 -> 1107.16 | W12: =(($D12*'fnd base rates'!E$107) +($E12*'fnd base rates'!E$108) +($F12*'fnd base rates'!E$109) +($G12*'fnd base rates'!E$110) +($H12*'fnd base rates'!E$111) +($I12*'fnd base rates'!E$112) +($J12*'fnd base rates'!E$113) +($K12*'fnd base rates'!E$114) +($M12*'fnd base rates'!E$116) +($N12*'fnd base rates'!E$117) +($O12*'fnd base rates'!E$118) +($P12*VLOOKUP($S12+12,rate_basefnd,5))) *$R12 -> 7219.790376 | X12: =(($D12*'fnd base rates'!F$107) +($E12*'fnd base rates'!F$108) +($F12*'fnd base rates'!F$109) +($G12*'fnd base rates'!F$110) +($H12*'fnd base rates'!F$111) +($I12*'fnd base rates'!F$112) +($J12*'fnd base rates'!F$113) +($K12*'fnd base rates'!F$114) +($M12*'fnd base rates'!F$116) +($N12*'fnd base rates'!F$117) +($O12*'fnd base rates'!F$118) +($P12*VLOOKUP($S12+12,rate_basefnd,6))) *$R12 -> 1247.446412 | Y12: =(($D12*'fnd base rates'!G$107) +($E12*'fnd base rates'!G$108) +($F12*'fnd base rates'!G$109) +($G12*'fnd base rates'!G$110) +($H12*'fnd base rates'!G$111) +($I12*'fnd base rates'!G$112) +($J12*'fnd base rates'!G$113) +($K12*'fnd base rates'!G$114) +($M12*'fnd base rates'!G$116) +($N12*'fnd base rates'!G$117) +($O12*'fnd base rates'!G$118) +($P12*VLOOKUP($S12+12,rate_basefnd,7))) *$R12 -> 318.803282 | Z12: =(($D12*'fnd base rates'!H$107) +($E12*'fnd base rates'!H$108) +($F12*'fnd base rates'!H$109) +($G12*'fnd base rates'!H$110) +($H12*'fnd base rates'!H$111) +($I12*'fnd base rates'!H$112) +($J12*'fnd base rates'!H$113) +($K12*'fnd base rates'!H$114) +($M12*'fnd base rates'!H$116) +($N12*'fnd base rates'!H$117) +($O12*'fnd base rates'!H$118) +($P12*VLOOKUP($S12+12,rate_basefnd,8))) -> 548.278934 | AA12: =(($D12*'fnd base rates'!I$107) +($E12*'fnd base rates'!I$108) +($F12*'fnd base rates'!I$109) +($G12*'fnd base rates'!I$110) +($H12*'fnd base rates'!I$111) +($I12*'fnd base rates'!I$112) +($J12*'fnd base rates'!I$113) +($K12*'fnd base rates'!I$114) +($M12*'fnd base rates'!I$116) +($N12*'fnd base rates'!I$117) +($O12*'fnd base rates'!I$118) +($P12*VLOOKUP($S12+12,rate_basefnd,9))) *$R12 -> 441.57 | AB12: =(($D12*'fnd base rates'!J$107) +($E12*'fnd base rates'!J$108) +($F12*'fnd base rates'!J$109) +($G12*'fnd base rates'!J$110) +($H12*'fnd base rates'!J$111) +($I12*'fnd base rates'!J$112) +($J12*'fnd base rates'!J$113) +($K12*'fnd base rates'!J$114) +($M12*'fnd base rates'!J$116) +($N12*'fnd base rates'!J$117) +($O12*'fnd base rates'!J$118) +($P12*VLOOKUP($S12+12,rate_basefnd,10))) *$R12 -> 854.96 | AC12: =(($D12*'fnd base rates'!K$107) +($E12*'fnd base rates'!K$108) +($F12*'fnd base rates'!K$109) +($G12*'fnd base rates'!K$110) +($H12*'fnd base rates'!K$111) +($I12*'fnd base rates'!K$112) +($J12*'fnd base rates'!K$113) +($K12*'fnd base rates'!K$114) +($M12*'fnd base rates'!K$116) +($N12*'fnd base rates'!K$117) +($O12*'fnd base rates'!K$118) +($P12*VLOOKUP($S12+12,rate_basefnd,11))) *$R12 -> 1100.20988 | AD12: =(($D12*'fnd base rates'!L$107) +($E12*'fnd base rates'!L$108) +($F12*'fnd base rates'!L$109) +($G12*'fnd base rates'!L$110) +($H12*'fnd base rates'!L$111) +($I12*'fnd base rates'!L$112) +($J12*'fnd base rates'!L$113) +($K12*'fnd base rates'!L$114) +($M12*'fnd base rates'!L$116) +($N12*'fnd base rates'!L$117) +($O12*'fnd base rates'!L$118) +($P12*VLOOKUP($S12+12,rate_basefnd,12))) -> 1986.31668 | AE12: =(($D12*'fnd base rates'!M$107) +($E12*'fnd base rates'!M$108) +($F12*'fnd base rates'!M$109) +($G12*'fnd base rates'!M$110) +($H12*'fnd base rates'!M$111) +($I12*'fnd base rates'!M$112) +($J12*'fnd base rates'!M$113) +($K12*'fnd base rates'!M$114) +($M12*'fnd base rates'!M$116) +($N12*'fnd base rates'!M$117) +($O12*'fnd base rates'!M$118) +($P12*VLOOKUP($S12+12,rate_basefnd,13))) -> 0 | AF12: 15433.19691 | AH12: 409201094 | AI12: 409 | AJ12: 201 | AK12: 094 | AL12: 1 | AM12: 1 | AN12: 15433.19691 | AO12: 15433 | AP12: 0 | AQ12: 15433 | AW12: 15433 | AX12: 0 | AY12: 15433 | BB12: =BC12-BA12 -> 0
A13: 409 | B13: 409201095 | C13: ALMA DEL MAR | D13: ='fnd enro'!D13 -> 0 | E13: ='fnd enro'!E13 -> 0 | F13: ='fnd enro'!F13 -> 0 | G13: ='fnd enro'!G13 -> 1 | H13: ='fnd enro'!H13 -> 0 | I13: ='fnd enro'!I13 -> 0 | J13: ='fnd enro'!J13 -> 0 | K13: ='fnd enro'!K13 -> 0.0386 | L13: ='fnd enro'!L13 -> 0 | M13: ='fnd enro'!M13 -> 0 | N13: ='fnd enro'!N13 -> 0 | O13: ='fnd enro'!O13 -> 0 | P13: ='fnd enro'!P13 -> 1 | Q13: ='fnd enro'!R13 -> 1 | R13: 1 | S13: =VALUE('fnd enro'!Q13) -> 12 | U13: =(($D13*'fnd base rates'!C$107) +($E13*'fnd base rates'!C$108) +($F13*'fnd base rates'!C$109) +($G13*'fnd base rates'!C$110) +($H13*'fnd base rates'!C$111) +($I13*'fnd base rates'!C$112) +($J13*'fnd base rates'!C$113) +($K13*'fnd base rates'!C$114) +($M13*'fnd base rates'!C$116) +($N13*'fnd base rates'!C$117) +($O13*'fnd base rates'!C$118) +($P13*VLOOKUP($S13+12,rate_basefnd,3))) *$R13 -> 624.381346 | V13: =(($D13*'fnd base rates'!D$107) +($E13*'fnd base rates'!D$108) +($F13*'fnd base rates'!D$109) +($G13*'fnd base rates'!D$110) +($H13*'fnd base rates'!D$111) +($I13*'fnd base rates'!D$112) +($J13*'fnd base rates'!D$113) +($K13*'fnd base rates'!D$114) +($M13*'fnd base rates'!D$116) +($N13*'fnd base rates'!D$117) +($O13*'fnd base rates'!D$118) +($P13*VLOOKUP($S13+12,rate_basefnd,4))) *$R13 -> 1181.65 | W13: =(($D13*'fnd base rates'!E$107) +($E13*'fnd base rates'!E$108) +($F13*'fnd base rates'!E$109) +($G13*'fnd base rates'!E$110) +($H13*'fnd base rates'!E$111) +($I13*'fnd base rates'!E$112) +($J13*'fnd base rates'!E$113) +($K13*'fnd base rates'!E$114) +($M13*'fnd base rates'!E$116) +($N13*'fnd base rates'!E$117) +($O13*'fnd base rates'!E$118) +($P13*VLOOKUP($S13+12,rate_basefnd,5))) *$R13 -> 7946.900376 | X13: =(($D13*'fnd base rates'!F$107) +($E13*'fnd base rates'!F$108) +($F13*'fnd base rates'!F$109) +($G13*'fnd base rates'!F$110) +($H13*'fnd base rates'!F$111) +($I13*'fnd base rates'!F$112) +($J13*'fnd base rates'!F$113) +($K13*'fnd base rates'!F$114) +($M13*'fnd base rates'!F$116) +($N13*'fnd base rates'!F$117) +($O13*'fnd base rates'!F$118) +($P13*VLOOKUP($S13+12,rate_basefnd,6))) *$R13 -> 1247.446412 | Y13: =(($D13*'fnd base rates'!G$107) +($E13*'fnd base rates'!G$108) +($F13*'fnd base rates'!G$109) +($G13*'fnd base rates'!G$110) +($H13*'fnd base rates'!G$111) +($I13*'fnd base rates'!G$112) +($J13*'fnd base rates'!G$113) +($K13*'fnd base rates'!G$114) +($M13*'fnd base rates'!G$116) +($N13*'fnd base rates'!G$117) +($O13*'fnd base rates'!G$118) +($P13*VLOOKUP($S13+12,rate_basefnd,7))) *$R13 -> 354.073282 | Z13: =(($D13*'fnd base rates'!H$107) +($E13*'fnd base rates'!H$108) +($F13*'fnd base rates'!H$109) +($G13*'fnd base rates'!H$110) +($H13*'fnd base rates'!H$111) +($I13*'fnd base rates'!H$112) +($J13*'fnd base rates'!H$113) +($K13*'fnd base rates'!H$114) +($M13*'fnd base rates'!H$116) +($N13*'fnd base rates'!H$117) +($O13*'fnd base rates'!H$118) +($P13*VLOOKUP($S13+12,rate_basefnd,8))) -> 553.678934 | AA13: =(($D13*'fnd base rates'!I$107) +($E13*'fnd base rates'!I$108) +($F13*'fnd base rates'!I$109) +($G13*'fnd base rates'!I$110) +($H13*'fnd base rates'!I$111) +($I13*'fnd base rates'!I$112) +($J13*'fnd base rates'!I$113) +($K13*'fnd base rates'!I$114) +($M13*'fnd base rates'!I$116) +($N13*'fnd base rates'!I$117) +($O13*'fnd base rates'!I$118) +($P13*VLOOKUP($S13+12,rate_basefnd,9))) *$R13 -> 471.02 | AB13: =(($D13*'fnd base rates'!J$107) +($E13*'fnd base rates'!J$108) +($F13*'fnd base rates'!J$109) +($G13*'fnd base rates'!J$110) +($H13*'fnd base rates'!J$111) +($I13*'fnd base rates'!J$112) +($J13*'fnd base rates'!J$113) +($K13*'fnd base rates'!J$114) +($M13*'fnd base rates'!J$116) +($N13*'fnd base rates'!J$117) +($O13*'fnd base rates'!J$118) +($P13*VLOOKUP($S13+12,rate_basefnd,10))) *$R13 -> 1007.96 | AC13: =(($D13*'fnd base rates'!K$107) +($E13*'fnd base rates'!K$108) +($F13*'fnd base rates'!K$109) +($G13*'fnd base rates'!K$110) +($H13*'fnd base rates'!K$111) +($I13*'fnd base rates'!K$112) +($J13*'fnd base rates'!K$113) +($K13*'fnd base rates'!K$114) +($M13*'fnd base rates'!K$116) +($N13*'fnd base rates'!K$117) +($O13*'fnd base rates'!K$118) +($P13*VLOOKUP($S13+12,rate_basefnd,11))) *$R13 -> 1100.20988 | AD13: =(($D13*'fnd base rates'!L$107) +($E13*'fnd base rates'!L$108) +($F13*'fnd base rates'!L$109) +($G13*'fnd base rates'!L$110) +($H13*'fnd base rates'!L$111) +($I13*'fnd base rates'!L$112) +($J13*'fnd base rates'!L$113) +($K13*'fnd base rates'!L$114) +($M13*'fnd base rates'!L$116) +($N13*'fnd base rates'!L$117) +($O13*'fnd base rates'!L$118) +($P13*VLOOKUP($S13+12,rate_basefnd,12))) -> 2103.93668 | AE13: =(($D13*'fnd base rates'!M$107) +($E13*'fnd base rates'!M$108) +($F13*'fnd base rates'!M$109) +($G13*'fnd base rates'!M$110) +($H13*'fnd base rates'!M$111) +($I13*'fnd base rates'!M$112) +($J13*'fnd base rates'!M$113) +($K13*'fnd base rates'!M$114) +($M13*'fnd base rates'!M$116) +($N13*'fnd base rates'!M$117) +($O13*'fnd base rates'!M$118) +($P13*VLOOKUP($S13+12,rate_basefnd,13))) -> 0 | AF13: 16591.25691 | AH13: 409201095 | AI13: 409 | AJ13: 201 | AK13: 095 | AL13: 1 | AM13: 1 | AN13: 16591.25691 | AO13: 16591 | AP13: 0 | AQ13: 16591 | AW13: 16591 | AX13: 0 | AY13: 16591 | BB13: =BC13-BA13 -> 0
A14: 409 | B14: 409201201 | C14: ALMA DEL MAR | D14: ='fnd enro'!D14 -> 0 | E14: ='fnd enro'!E14 -> 0 | F14: ='fnd enro'!F14 -> 101 | G14: ='fnd enro'!G14 -> 456 | H14: ='fnd enro'!H14 -> 379 | I14: ='fnd enro'!I14 -> 0 | J14: ='fnd enro'!J14 -> 0 | K14: ='fnd enro'!K14 -> 36.1296 | L14: ='fnd enro'!L14 -> 0 | M14: ='fnd enro'!M14 -> 267 | N14: ='fnd enro'!N14 -> 42 | O14: ='fnd enro'!O14 -> 0 | P14: ='fnd enro'!P14 -> 742 | Q14: ='fnd enro'!R14 -> 936 | R14: 1 | S14: =VALUE('fnd enro'!Q14) -> 12 | U14: =(($D14*'fnd base rates'!C$107) +($E14*'fnd base rates'!C$108) +($F14*'fnd base rates'!C$109) +($G14*'fnd base rates'!C$110) +($H14*'fnd base rates'!C$111) +($I14*'fnd base rates'!C$112) +($J14*'fnd base rates'!C$113) +($K14*'fnd base rates'!C$114) +($M14*'fnd base rates'!C$116) +($N14*'fnd base rates'!C$117) +($O14*'fnd base rates'!C$118) +($P14*VLOOKUP($S14+12,rate_basefnd,3))) *$R14 -> 598858.5199 | V14: =(($D14*'fnd base rates'!D$107) +($E14*'fnd base rates'!D$108) +($F14*'fnd base rates'!D$109) +($G14*'fnd base rates'!D$110) +($H14*'fnd base rates'!D$111) +($I14*'fnd base rates'!D$112) +($J14*'fnd base rates'!D$113) +($K14*'fnd base rates'!D$114) +($M14*'fnd base rates'!D$116) +($N14*'fnd base rates'!D$117) +($O14*'fnd base rates'!D$118) +($P14*VLOOKUP($S14+12,rate_basefnd,4))) *$R14 -> 1080321.02 | W14: =(($D14*'fnd base rates'!E$107) +($E14*'fnd base rates'!E$108) +($F14*'fnd base rates'!E$109) +($G14*'fnd base rates'!E$110) +($H14*'fnd base rates'!E$111) +($I14*'fnd base rates'!E$112) +($J14*'fnd base rates'!E$113) +($K14*'fnd base rates'!E$114) +($M14*'fnd base rates'!E$116) +($N14*'fnd base rates'!E$117) +($O14*'fnd base rates'!E$118) +($P14*VLOOKUP($S14+12,rate_basefnd,5))) *$R14 -> 6875634.042 | X14: =(($D14*'fnd base rates'!F$107) +($E14*'fnd base rates'!F$108) +($F14*'fnd base rates'!F$109) +($G14*'fnd base rates'!F$110) +($H14*'fnd base rates'!F$111) +($I14*'fnd base rates'!F$112) +($J14*'fnd base rates'!F$113) +($K14*'fnd base rates'!F$114) +($M14*'fnd base rates'!F$116) +($N14*'fnd base rates'!F$117) +($O14*'fnd base rates'!F$118) +($P14*VLOOKUP($S14+12,rate_basefnd,6))) *$R14 -> 1127186.512 | Y14: =(($D14*'fnd base rates'!G$107) +($E14*'fnd base rates'!G$108) +($F14*'fnd base rates'!G$109) +($G14*'fnd base rates'!G$110) +($H14*'fnd base rates'!G$111) +($I14*'fnd base rates'!G$112) +($J14*'fnd base rates'!G$113) +($K14*'fnd base rates'!G$114) +($M14*'fnd base rates'!G$116) +($N14*'fnd base rates'!G$117) +($O14*'fnd base rates'!G$118) +($P14*VLOOKUP($S14+12,rate_basefnd,7))) *$R14 -> 313301.542 | Z14: =(($D14*'fnd base rates'!H$107) +($E14*'fnd base rates'!H$108) +($F14*'fnd base rates'!H$109) +($G14*'fnd base rates'!H$110) +($H14*'fnd base rates'!H$111) +($I14*'fnd base rates'!H$112) +($J14*'fnd base rates'!H$113) +($K14*'fnd base rates'!H$114) +($M14*'fnd base rates'!H$116) +($N14*'fnd base rates'!H$117) +($O14*'fnd base rates'!H$118) +($P14*VLOOKUP($S14+12,rate_basefnd,8))) -> 551738.6322 | AA14: =(($D14*'fnd base rates'!I$107) +($E14*'fnd base rates'!I$108) +($F14*'fnd base rates'!I$109) +($G14*'fnd base rates'!I$110) +($H14*'fnd base rates'!I$111) +($I14*'fnd base rates'!I$112) +($J14*'fnd base rates'!I$113) +($K14*'fnd base rates'!I$114) +($M14*'fnd base rates'!I$116) +($N14*'fnd base rates'!I$117) +($O14*'fnd base rates'!I$118) +($P14*VLOOKUP($S14+12,rate_basefnd,9))) *$R14 -> 453899.58 | AB14: =(($D14*'fnd base rates'!J$107) +($E14*'fnd base rates'!J$108) +($F14*'fnd base rates'!J$109) +($G14*'fnd base rates'!J$110) +($H14*'fnd base rates'!J$111) +($I14*'fnd base rates'!J$112) +($J14*'fnd base rates'!J$113) +($K14*'fnd base rates'!J$114) +($M14*'fnd base rates'!J$116) +($N14*'fnd base rates'!J$117) +($O14*'fnd base rates'!J$118) +($P14*VLOOKUP($S14+12,rate_basefnd,10))) *$R14 -> 816775.43 | AC14: =(($D14*'fnd base rates'!K$107) +($E14*'fnd base rates'!K$108) +($F14*'fnd base rates'!K$109) +($G14*'fnd base rates'!K$110) +($H14*'fnd base rates'!K$111) +($I14*'fnd base rates'!K$112) +($J14*'fnd base rates'!K$113) +($K14*'fnd base rates'!K$114) +($M14*'fnd base rates'!K$116) +($N14*'fnd base rates'!K$117) +($O14*'fnd base rates'!K$118) +($P14*VLOOKUP($S14+12,rate_basefnd,11))) *$R14 -> 1155328.408 | AD14: =(($D14*'fnd base rates'!L$107) +($E14*'fnd base rates'!L$108) +($F14*'fnd base rates'!L$109) +($G14*'fnd base rates'!L$110) +($H14*'fnd base rates'!L$111) +($I14*'fnd base rates'!L$112) +($J14*'fnd base rates'!L$113) +($K14*'fnd base rates'!L$114) +($M14*'fnd base rates'!L$116) +($N14*'fnd base rates'!L$117) +($O14*'fnd base rates'!L$118) +($P14*VLOOKUP($S14+12,rate_basefnd,12))) -> 1953409.832 | AE14: =(($D14*'fnd base rates'!M$107) +($E14*'fnd base rates'!M$108) +($F14*'fnd base rates'!M$109) +($G14*'fnd base rates'!M$110) +($H14*'fnd base rates'!M$111) +($I14*'fnd base rates'!M$112) +($J14*'fnd base rates'!M$113) +($K14*'fnd base rates'!M$114) +($M14*'fnd base rates'!M$116) +($N14*'fnd base rates'!M$117) +($O14*'fnd base rates'!M$118) +($P14*VLOOKUP($S14+12,rate_basefnd,13))) -> 0 | AF14: 14926453.52 | AH14: 409201201 | AI14: 409 | AJ14: 201 | AK14: 201 | AL14: 1 | AM14: 936 | AN14: 14926453.52 | AO14: 15947 | AP14: 0 | AQ14: 15947 | AW14: 15947 | AX14: 0 | AY14: 15947 | BB14: =BC14-BA14 -> 0
A15: 409 | B15: 409201331 | C15: ALMA DEL MAR | D15: ='fnd enro'!D15 -> 0 | E15: ='fnd enro'!E15 -> 0 | F15: ='fnd enro'!F15 -> 0 | G15: ='fnd enro'!G15 -> 1 | H15: ='fnd enro'!H15 -> 1 | I15: ='fnd enro'!I15 -> 0 | J15: ='fnd enro'!J15 -> 0 | K15: ='fnd enro'!K15 -> 0.0772 | L15: ='fnd enro'!L15 -> 0 | M15: ='fnd enro'!M15 -> 0 | N15: ='fnd enro'!N15 -> 0 | O15: ='fnd enro'!O15 -> 0 | P15: ='fnd enro'!P15 -> 0 | Q15: ='fnd enro'!R15 -> 2 | R15: 1 | S15: =VALUE('fnd enro'!Q15) -> 7 | U15: =(($D15*'fnd base rates'!C$107) +($E15*'fnd base rates'!C$108) +($F15*'fnd base rates'!C$109) +($G15*'fnd base rates'!C$110) +($H15*'fnd base rates'!C$111) +($I15*'fnd base rates'!C$112) +($J15*'fnd base rates'!C$113) +($K15*'fnd base rates'!C$114) +($M15*'fnd base rates'!C$116) +($N15*'fnd base rates'!C$117) +($O15*'fnd base rates'!C$118) +($P15*VLOOKUP($S15+12,rate_basefnd,3))) *$R15 -> 1072.922692 | V15: =(($D15*'fnd base rates'!D$107) +($E15*'fnd base rates'!D$108) +($F15*'fnd base rates'!D$109) +($G15*'fnd base rates'!D$110) +($H15*'fnd base rates'!D$111) +($I15*'fnd base rates'!D$112) +($J15*'fnd base rates'!D$113) +($K15*'fnd base rates'!D$114) +($M15*'fnd base rates'!D$116) +($N15*'fnd base rates'!D$117) +($O15*'fnd base rates'!D$118) +($P15*VLOOKUP($S15+12,rate_basefnd,4))) *$R15 -> 1530.16 | W15: =(($D15*'fnd base rates'!E$107) +($E15*'fnd base rates'!E$108) +($F15*'fnd base rates'!E$109) +($G15*'fnd base rates'!E$110) +($H15*'fnd base rates'!E$111) +($I15*'fnd base rates'!E$112) +($J15*'fnd base rates'!E$113) +($K15*'fnd base rates'!E$114) +($M15*'fnd base rates'!E$116) +($N15*'fnd base rates'!E$117) +($O15*'fnd base rates'!E$118) +($P15*VLOOKUP($S15+12,rate_basefnd,5))) *$R15 -> 7339.910752 | X15: =(($D15*'fnd base rates'!F$107) +($E15*'fnd base rates'!F$108) +($F15*'fnd base rates'!F$109) +($G15*'fnd base rates'!F$110) +($H15*'fnd base rates'!F$111) +($I15*'fnd base rates'!F$112) +($J15*'fnd base rates'!F$113) +($K15*'fnd base rates'!F$114) +($M15*'fnd base rates'!F$116) +($N15*'fnd base rates'!F$117) +($O15*'fnd base rates'!F$118) +($P15*VLOOKUP($S15+12,rate_basefnd,6))) *$R15 -> 2242.822824 | Y15: =(($D15*'fnd base rates'!G$107) +($E15*'fnd base rates'!G$108) +($F15*'fnd base rates'!G$109) +($G15*'fnd base rates'!G$110) +($H15*'fnd base rates'!G$111) +($I15*'fnd base rates'!G$112) +($J15*'fnd base rates'!G$113) +($K15*'fnd base rates'!G$114) +($M15*'fnd base rates'!G$116) +($N15*'fnd base rates'!G$117) +($O15*'fnd base rates'!G$118) +($P15*VLOOKUP($S15+12,rate_basefnd,7))) *$R15 -> 325.246564 | Z15: =(($D15*'fnd base rates'!H$107) +($E15*'fnd base rates'!H$108) +($F15*'fnd base rates'!H$109) +($G15*'fnd base rates'!H$110) +($H15*'fnd base rates'!H$111) +($I15*'fnd base rates'!H$112) +($J15*'fnd base rates'!H$113) +($K15*'fnd base rates'!H$114) +($M15*'fnd base rates'!H$116) +($N15*'fnd base rates'!H$117) +($O15*'fnd base rates'!H$118) +($P15*VLOOKUP($S15+12,rate_basefnd,8))) -> 1046.877868 | AA15: =(($D15*'fnd base rates'!I$107) +($E15*'fnd base rates'!I$108) +($F15*'fnd base rates'!I$109) +($G15*'fnd base rates'!I$110) +($H15*'fnd base rates'!I$111) +($I15*'fnd base rates'!I$112) +($J15*'fnd base rates'!I$113) +($K15*'fnd base rates'!I$114) +($M15*'fnd base rates'!I$116) +($N15*'fnd base rates'!I$117) +($O15*'fnd base rates'!I$118) +($P15*VLOOKUP($S15+12,rate_basefnd,9))) *$R15 -> 669.04 | AB15: =(($D15*'fnd base rates'!J$107) +($E15*'fnd base rates'!J$108) +($F15*'fnd base rates'!J$109) +($G15*'fnd base rates'!J$110) +($H15*'fnd base rates'!J$111) +($I15*'fnd base rates'!J$112) +($J15*'fnd base rates'!J$113) +($K15*'fnd base rates'!J$114) +($M15*'fnd base rates'!J$116) +($N15*'fnd base rates'!J$117) +($O15*'fnd base rates'!J$118) +($P15*VLOOKUP($S15+12,rate_basefnd,10))) *$R15 -> 401.13 | AC15: =(($D15*'fnd base rates'!K$107) +($E15*'fnd base rates'!K$108) +($F15*'fnd base rates'!K$109) +($G15*'fnd base rates'!K$110) +($H15*'fnd base rates'!K$111) +($I15*'fnd base rates'!K$112) +($J15*'fnd base rates'!K$113) +($K15*'fnd base rates'!K$114) +($M15*'fnd base rates'!K$116) +($N15*'fnd base rates'!K$117) +($O15*'fnd base rates'!K$118) +($P15*VLOOKUP($S15+12,rate_basefnd,11))) *$R15 -> 2282.36976 | AD15: =(($D15*'fnd base rates'!L$107) +($E15*'fnd base rates'!L$108) +($F15*'fnd base rates'!L$109) +($G15*'fnd base rates'!L$110) +($H15*'fnd base rates'!L$111) +($I15*'fnd base rates'!L$112) +($J15*'fnd base rates'!L$113) +($K15*'fnd base rates'!L$114) +($M15*'fnd base rates'!L$116) +($N15*'fnd base rates'!L$117) +($O15*'fnd base rates'!L$118) +($P15*VLOOKUP($S15+12,rate_basefnd,12))) -> 2958.63336 | AE15: =(($D15*'fnd base rates'!M$107) +($E15*'fnd base rates'!M$108) +($F15*'fnd base rates'!M$109) +($G15*'fnd base rates'!M$110) +($H15*'fnd base rates'!M$111) +($I15*'fnd base rates'!M$112) +($J15*'fnd base rates'!M$113) +($K15*'fnd base rates'!M$114) +($M15*'fnd base rates'!M$116) +($N15*'fnd base rates'!M$117) +($O15*'fnd base rates'!M$118) +($P15*VLOOKUP($S15+12,rate_basefnd,13))) -> 0 | AF15: 19869.11382 | AH15: 409201331 | AI15: 409 | AJ15: 201 | AK15: 331 | AL15: 1 | AM15: 2 | AN15: 19869.11382 | AO15: 9935 | AP15: 0 | AQ15: 9935 | AW15: 9935 | AX15: 0 | AY15: 9935 | BB15: =BC15-BA15 -> 0
A16: 409 | B16: 409201665 | C16: ALMA DEL MAR | D16: ='fnd enro'!D16 -> 0 | E16: ='fnd enro'!E16 -> 0 | F16: ='fnd enro'!F16 -> 0 | G16: ='fnd enro'!G16 -> 0 | H16: ='fnd enro'!H16 -> 1 | I16: ='fnd enro'!I16 -> 0 | J16: ='fnd enro'!J16 -> 0 | K16: ='fnd enro'!K16 -> 0.0386 | L16: ='fnd enro'!L16 -> 0 | M16: ='fnd enro'!M16 -> 0 | N16: ='fnd enro'!N16 -> 0 | O16: ='fnd enro'!O16 -> 0 | P16: ='fnd enro'!P16 -> 0 | Q16: ='fnd enro'!R16 -> 1 | R16: 1 | S16: =VALUE('fnd enro'!Q16) -> 5 | U16: =(($D16*'fnd base rates'!C$107) +($E16*'fnd base rates'!C$108) +($F16*'fnd base rates'!C$109) +($G16*'fnd base rates'!C$110) +($H16*'fnd base rates'!C$111) +($I16*'fnd base rates'!C$112) +($J16*'fnd base rates'!C$113) +($K16*'fnd base rates'!C$114) +($M16*'fnd base rates'!C$116) +($N16*'fnd base rates'!C$117) +($O16*'fnd base rates'!C$118) +($P16*VLOOKUP($S16+12,rate_basefnd,3))) *$R16 -> 536.461346 | V16: =(($D16*'fnd base rates'!D$107) +($E16*'fnd base rates'!D$108) +($F16*'fnd base rates'!D$109) +($G16*'fnd base rates'!D$110) +($H16*'fnd base rates'!D$111) +($I16*'fnd base rates'!D$112) +($J16*'fnd base rates'!D$113) +($K16*'fnd base rates'!D$114) +($M16*'fnd base rates'!D$116) +($N16*'fnd base rates'!D$117) +($O16*'fnd base rates'!D$118) +($P16*VLOOKUP($S16+12,rate_basefnd,4))) *$R16 -> 765.08 | W16: =(($D16*'fnd base rates'!E$107) +($E16*'fnd base rates'!E$108) +($F16*'fnd base rates'!E$109) +($G16*'fnd base rates'!E$110) +($H16*'fnd base rates'!E$111) +($I16*'fnd base rates'!E$112) +($J16*'fnd base rates'!E$113) +($K16*'fnd base rates'!E$114) +($M16*'fnd base rates'!E$116) +($N16*'fnd base rates'!E$117) +($O16*'fnd base rates'!E$118) +($P16*VLOOKUP($S16+12,rate_basefnd,5))) *$R16 -> 3459.480376 | X16: =(($D16*'fnd base rates'!F$107) +($E16*'fnd base rates'!F$108) +($F16*'fnd base rates'!F$109) +($G16*'fnd base rates'!F$110) +($H16*'fnd base rates'!F$111) +($I16*'fnd base rates'!F$112) +($J16*'fnd base rates'!F$113) +($K16*'fnd base rates'!F$114) +($M16*'fnd base rates'!F$116) +($N16*'fnd base rates'!F$117) +($O16*'fnd base rates'!F$118) +($P16*VLOOKUP($S16+12,rate_basefnd,6))) *$R16 -> 995.376412 | Y16: =(($D16*'fnd base rates'!G$107) +($E16*'fnd base rates'!G$108) +($F16*'fnd base rates'!G$109) +($G16*'fnd base rates'!G$110) +($H16*'fnd base rates'!G$111) +($I16*'fnd base rates'!G$112) +($J16*'fnd base rates'!G$113) +($K16*'fnd base rates'!G$114) +($M16*'fnd base rates'!G$116) +($N16*'fnd base rates'!G$117) +($O16*'fnd base rates'!G$118) +($P16*VLOOKUP($S16+12,rate_basefnd,7))) *$R16 -> 168.453282 | Z16: =(($D16*'fnd base rates'!H$107) +($E16*'fnd base rates'!H$108) +($F16*'fnd base rates'!H$109) +($G16*'fnd base rates'!H$110) +($H16*'fnd base rates'!H$111) +($I16*'fnd base rates'!H$112) +($J16*'fnd base rates'!H$113) +($K16*'fnd base rates'!H$114) +($M16*'fnd base rates'!H$116) +($N16*'fnd base rates'!H$117) +($O16*'fnd base rates'!H$118) +($P16*VLOOKUP($S16+12,rate_basefnd,8))) -> 523.438934 | AA16: =(($D16*'fnd base rates'!I$107) +($E16*'fnd base rates'!I$108) +($F16*'fnd base rates'!I$109) +($G16*'fnd base rates'!I$110) +($H16*'fnd base rates'!I$111) +($I16*'fnd base rates'!I$112) +($J16*'fnd base rates'!I$113) +($K16*'fnd base rates'!I$114) +($M16*'fnd base rates'!I$116) +($N16*'fnd base rates'!I$117) +($O16*'fnd base rates'!I$118) +($P16*VLOOKUP($S16+12,rate_basefnd,9))) *$R16 -> 362.69 | AB16: =(($D16*'fnd base rates'!J$107) +($E16*'fnd base rates'!J$108) +($F16*'fnd base rates'!J$109) +($G16*'fnd base rates'!J$110) +($H16*'fnd base rates'!J$111) +($I16*'fnd base rates'!J$112) +($J16*'fnd base rates'!J$113) +($K16*'fnd base rates'!J$114) +($M16*'fnd base rates'!J$116) +($N16*'fnd base rates'!J$117) +($O16*'fnd base rates'!J$118) +($P16*VLOOKUP($S16+12,rate_basefnd,10))) *$R16 -> 248.81 | AC16: =(($D16*'fnd base rates'!K$107) +($E16*'fnd base rates'!K$108) +($F16*'fnd base rates'!K$109) +($G16*'fnd base rates'!K$110) +($H16*'fnd base rates'!K$111) +($I16*'fnd base rates'!K$112) +($J16*'fnd base rates'!K$113) +($K16*'fnd base rates'!K$114) +($M16*'fnd base rates'!K$116) +($N16*'fnd base rates'!K$117) +($O16*'fnd base rates'!K$118) +($P16*VLOOKUP($S16+12,rate_basefnd,11))) *$R16 -> 1182.15988 | AD16: =(($D16*'fnd base rates'!L$107) +($E16*'fnd base rates'!L$108) +($F16*'fnd base rates'!L$109) +($G16*'fnd base rates'!L$110) +($H16*'fnd base rates'!L$111) +($I16*'fnd base rates'!L$112) +($J16*'fnd base rates'!L$113) +($K16*'fnd base rates'!L$114) +($M16*'fnd base rates'!L$116) +($N16*'fnd base rates'!L$117) +($O16*'fnd base rates'!L$118) +($P16*VLOOKUP($S16+12,rate_basefnd,12))) -> 1512.47668 | AE16: =(($D16*'fnd base rates'!M$107) +($E16*'fnd base rates'!M$108) +($F16*'fnd base rates'!M$109) +($G16*'fnd base rates'!M$110) +($H16*'fnd base rates'!M$111) +($I16*'fnd base rates'!M$112) +($J16*'fnd base rates'!M$113) +($K16*'fnd base rates'!M$114) +($M16*'fnd base rates'!M$116) +($N16*'fnd base rates'!M$117) +($O16*'fnd base rates'!M$118) +($P16*VLOOKUP($S16+12,rate_basefnd,13))) -> 0 | AF16: 9754.42691 | AH16: 409201665 | AI16: 409 | AJ16: 201 | AK16: 665 | AL16: 1 | AM16: 1 | AN16: 9754.42691 | AO16: 9754 | AP16: 0 | AQ16: 9754 | AW16: 9754 | AX16: 0 | AY16: 9754 | BB16: =BC16-BA16 -> 0
A17: 410 | B17: 410035035 | C17: EXCEL ACADEMY | D17: ='fnd enro'!D17 -> 0 | E17: ='fnd enro'!E17 -> 0 | F17: ='fnd enro'!F17 -> 0 | G17: ='fnd enro'!G17 -> 89 | H17: ='fnd enro'!H17 -> 236 | I17: ='fnd enro'!I17 -> 321 | J17: ='fnd enro'!J17 -> 0 | K17: ='fnd enro'!K17 -> 24.9356 | L17: ='fnd enro'!L17 -> 0 | M17: ='fnd enro'!M17 -> 30 | N17: ='fnd enro'!N17 -> 24 | O17: ='fnd enro'!O17 -> 33 | P17: ='fnd enro'!P17 -> 489 | Q17: ='fnd enro'!R17 -> 646 | R17: 1.088 | S17: =VALUE('fnd enro'!Q17) -> 11 | U17: =(($D17*'fnd base rates'!C$107) +($E17*'fnd base rates'!C$108) +($F17*'fnd base rates'!C$109) +($G17*'fnd base rates'!C$110) +($H17*'fnd base rates'!C$111) +($I17*'fnd base rates'!C$112) +($J17*'fnd base rates'!C$113) +($K17*'fnd base rates'!C$114) +($M17*'fnd base rates'!C$116) +($N17*'fnd base rates'!C$117) +($O17*'fnd base rates'!C$118) +($P17*VLOOKUP($S17+12,rate_basefnd,3))) *$R17 -> 431206.2561 | V17: =(($D17*'fnd base rates'!D$107) +($E17*'fnd base rates'!D$108) +($F17*'fnd base rates'!D$109) +($G17*'fnd base rates'!D$110) +($H17*'fnd base rates'!D$111) +($I17*'fnd base rates'!D$112) +($J17*'fnd base rates'!D$113) +($K17*'fnd base rates'!D$114) +($M17*'fnd base rates'!D$116) +($N17*'fnd base rates'!D$117) +($O17*'fnd base rates'!D$118) +($P17*VLOOKUP($S17+12,rate_basefnd,4))) *$R17 -> 765431.3267 | W17: =(($D17*'fnd base rates'!E$107) +($E17*'fnd base rates'!E$108) +($F17*'fnd base rates'!E$109) +($G17*'fnd base rates'!E$110) +($H17*'fnd base rates'!E$111) +($I17*'fnd base rates'!E$112) +($J17*'fnd base rates'!E$113) +($K17*'fnd base rates'!E$114) +($M17*'fnd base rates'!E$116) +($N17*'fnd base rates'!E$117) +($O17*'fnd base rates'!E$118) +($P17*VLOOKUP($S17+12,rate_basefnd,5))) *$R17 -> 5155631.826 | X17: =(($D17*'fnd base rates'!F$107) +($E17*'fnd base rates'!F$108) +($F17*'fnd base rates'!F$109) +($G17*'fnd base rates'!F$110) +($H17*'fnd base rates'!F$111) +($I17*'fnd base rates'!F$112) +($J17*'fnd base rates'!F$113) +($K17*'fnd base rates'!F$114) +($M17*'fnd base rates'!F$116) +($N17*'fnd base rates'!F$117) +($O17*'fnd base rates'!F$118) +($P17*VLOOKUP($S17+12,rate_basefnd,6))) *$R17 -> 703032.7883 | Y17: =(($D17*'fnd base rates'!G$107) +($E17*'fnd base rates'!G$108) +($F17*'fnd base rates'!G$109) +($G17*'fnd base rates'!G$110) +($H17*'fnd base rates'!G$111) +($I17*'fnd base rates'!G$112) +($J17*'fnd base rates'!G$113) +($K17*'fnd base rates'!G$114) +($M17*'fnd base rates'!G$116) +($N17*'fnd base rates'!G$117) +($O17*'fnd base rates'!G$118) +($P17*VLOOKUP($S17+12,rate_basefnd,7))) *$R17 -> 220329.5746 | Z17: =(($D17*'fnd base rates'!H$107) +($E17*'fnd base rates'!H$108) +($F17*'fnd base rates'!H$109) +($G17*'fnd base rates'!H$110) +($H17*'fnd base rates'!H$111) +($I17*'fnd base rates'!H$112) +($J17*'fnd base rates'!H$113) +($K17*'fnd base rates'!H$114) +($M17*'fnd base rates'!H$116) +($N17*'fnd base rates'!H$117) +($O17*'fnd base rates'!H$118) +($P17*VLOOKUP($S17+12,rate_basefnd,8))) -> 461099.4914 | AA17: =(($D17*'fnd base rates'!I$107) +($E17*'fnd base rates'!I$108) +($F17*'fnd base rates'!I$109) +($G17*'fnd base rates'!I$110) +($H17*'fnd base rates'!I$111) +($I17*'fnd base rates'!I$112) +($J17*'fnd base rates'!I$113) +($K17*'fnd base rates'!I$114) +($M17*'fnd base rates'!I$116) +($N17*'fnd base rates'!I$117) +($O17*'fnd base rates'!I$118) +($P17*VLOOKUP($S17+12,rate_basefnd,9))) *$R17 -> 362121.401 | AB17: =(($D17*'fnd base rates'!J$107) +($E17*'fnd base rates'!J$108) +($F17*'fnd base rates'!J$109) +($G17*'fnd base rates'!J$110) +($H17*'fnd base rates'!J$111) +($I17*'fnd base rates'!J$112) +($J17*'fnd base rates'!J$113) +($K17*'fnd base rates'!J$114) +($M17*'fnd base rates'!J$116) +($N17*'fnd base rates'!J$117) +($O17*'fnd base rates'!J$118) +($P17*VLOOKUP($S17+12,rate_basefnd,10))) *$R17 -> 714385.7069 | AC17: =(($D17*'fnd base rates'!K$107) +($E17*'fnd base rates'!K$108) +($F17*'fnd base rates'!K$109) +($G17*'fnd base rates'!K$110) +($H17*'fnd base rates'!K$111) +($I17*'fnd base rates'!K$112) +($J17*'fnd base rates'!K$113) +($K17*'fnd base rates'!K$114) +($M17*'fnd base rates'!K$116) +($N17*'fnd base rates'!K$117) +($O17*'fnd base rates'!K$118) +($P17*VLOOKUP($S17+12,rate_basefnd,11))) *$R17 -> 840730.4929 | AD17: =(($D17*'fnd base rates'!L$107) +($E17*'fnd base rates'!L$108) +($F17*'fnd base rates'!L$109) +($G17*'fnd base rates'!L$110) +($H17*'fnd base rates'!L$111) +($I17*'fnd base rates'!L$112) +($J17*'fnd base rates'!L$113) +($K17*'fnd base rates'!L$114) +($M17*'fnd base rates'!L$116) +($N17*'fnd base rates'!L$117) +($O17*'fnd base rates'!L$118) +($P17*VLOOKUP($S17+12,rate_basefnd,12))) -> 1255487.555 | AE17: =(($D17*'fnd base rates'!M$107) +($E17*'fnd base rates'!M$108) +($F17*'fnd base rates'!M$109) +($G17*'fnd base rates'!M$110) +($H17*'fnd base rates'!M$111) +($I17*'fnd base rates'!M$112) +($J17*'fnd base rates'!M$113) +($K17*'fnd base rates'!M$114) +($M17*'fnd base rates'!M$116) +($N17*'fnd base rates'!M$117) +($O17*'fnd base rates'!M$118) +($P17*VLOOKUP($S17+12,rate_basefnd,13))) -> 0 | AF17: 10909456.42 | AH17: 410035035 | AI17: 410 | AJ17: 035 | AK17: 035 | AL17: 1 | AM17: 646 | AN17: 10909456.42 | AO17: 16888 | AP17: 0 | AQ17: 16888 | AW17: 16888 | AX17: 0 | AY17: 16888 | BB17: =BC17-BA17 -> 0
A18: 410 | B18: 410035057 | C18: EXCEL ACADEMY | D18: ='fnd enro'!D18 -> 0 | E18: ='fnd enro'!E18 -> 0 | F18: ='fnd enro'!F18 -> 0 | G18: ='fnd enro'!G18 -> 17 | H18: ='fnd enro'!H18 -> 76 | I18: ='fnd enro'!I18 -> 276 | J18: ='fnd enro'!J18 -> 0 | K18: ='fnd enro'!K18 -> 14.2434 | L18: ='fnd enro'!L18 -> 0 | M18: ='fnd enro'!M18 -> 5 | N18: ='fnd enro'!N18 -> 7 | O18: ='fnd enro'!O18 -> 19 | P18: ='fnd enro'!P18 -> 284 | Q18: ='fnd enro'!R18 -> 369 | R18: 1.088 | S18: =VALUE('fnd enro'!Q18) -> 12 | U18: =(($D18*'fnd base rates'!C$107) +($E18*'fnd base rates'!C$108) +($F18*'fnd base rates'!C$109) +($G18*'fnd base rates'!C$110) +($H18*'fnd base rates'!C$111) +($I18*'fnd base rates'!C$112) +($J18*'fnd base rates'!C$113) +($K18*'fnd base rates'!C$114) +($M18*'fnd base rates'!C$116) +($N18*'fnd base rates'!C$117) +($O18*'fnd base rates'!C$118) +($P18*VLOOKUP($S18+12,rate_basefnd,3))) *$R18 -> 245963.8082 | V18: =(($D18*'fnd base rates'!D$107) +($E18*'fnd base rates'!D$108) +($F18*'fnd base rates'!D$109) +($G18*'fnd base rates'!D$110) +($H18*'fnd base rates'!D$111) +($I18*'fnd base rates'!D$112) +($J18*'fnd base rates'!D$113) +($K18*'fnd base rates'!D$114) +($M18*'fnd base rates'!D$116) +($N18*'fnd base rates'!D$117) +($O18*'fnd base rates'!D$118) +($P18*VLOOKUP($S18+12,rate_basefnd,4))) *$R18 -> 441864.8378 | W18: =(($D18*'fnd base rates'!E$107) +($E18*'fnd base rates'!E$108) +($F18*'fnd base rates'!E$109) +($G18*'fnd base rates'!E$110) +($H18*'fnd base rates'!E$111) +($I18*'fnd base rates'!E$112) +($J18*'fnd base rates'!E$113) +($K18*'fnd base rates'!E$114) +($M18*'fnd base rates'!E$116) +($N18*'fnd base rates'!E$117) +($O18*'fnd base rates'!E$118) +($P18*VLOOKUP($S18+12,rate_basefnd,5))) *$R18 -> 3131339.767 | X18: =(($D18*'fnd base rates'!F$107) +($E18*'fnd base rates'!F$108) +($F18*'fnd base rates'!F$109) +($G18*'fnd base rates'!F$110) +($H18*'fnd base rates'!F$111) +($I18*'fnd base rates'!F$112) +($J18*'fnd base rates'!F$113) +($K18*'fnd base rates'!F$114) +($M18*'fnd base rates'!F$116) +($N18*'fnd base rates'!F$117) +($O18*'fnd base rates'!F$118) +($P18*VLOOKUP($S18+12,rate_basefnd,6))) *$R18 -> 377689.643 | Y18: =(($D18*'fnd base rates'!G$107) +($E18*'fnd base rates'!G$108) +($F18*'fnd base rates'!G$109) +($G18*'fnd base rates'!G$110) +($H18*'fnd base rates'!G$111) +($I18*'fnd base rates'!G$112) +($J18*'fnd base rates'!G$113) +($K18*'fnd base rates'!G$114) +($M18*'fnd base rates'!G$116) +($N18*'fnd base rates'!G$117) +($O18*'fnd base rates'!G$118) +($P18*VLOOKUP($S18+12,rate_basefnd,7))) *$R18 -> 128710.3468 | Z18: =(($D18*'fnd base rates'!H$107) +($E18*'fnd base rates'!H$108) +($F18*'fnd base rates'!H$109) +($G18*'fnd base rates'!H$110) +($H18*'fnd base rates'!H$111) +($I18*'fnd base rates'!H$112) +($J18*'fnd base rates'!H$113) +($K18*'fnd base rates'!H$114) +($M18*'fnd base rates'!H$116) +($N18*'fnd base rates'!H$117) +($O18*'fnd base rates'!H$118) +($P18*VLOOKUP($S18+12,rate_basefnd,8))) -> 289749.9466 | AA18: =(($D18*'fnd base rates'!I$107) +($E18*'fnd base rates'!I$108) +($F18*'fnd base rates'!I$109) +($G18*'fnd base rates'!I$110) +($H18*'fnd base rates'!I$111) +($I18*'fnd base rates'!I$112) +($J18*'fnd base rates'!I$113) +($K18*'fnd base rates'!I$114) +($M18*'fnd base rates'!I$116) +($N18*'fnd base rates'!I$117) +($O18*'fnd base rates'!I$118) +($P18*VLOOKUP($S18+12,rate_basefnd,9))) *$R18 -> 217009.7165 | AB18: =(($D18*'fnd base rates'!J$107) +($E18*'fnd base rates'!J$108) +($F18*'fnd base rates'!J$109) +($G18*'fnd base rates'!J$110) +($H18*'fnd base rates'!J$111) +($I18*'fnd base rates'!J$112) +($J18*'fnd base rates'!J$113) +($K18*'fnd base rates'!J$114) +($M18*'fnd base rates'!J$116) +($N18*'fnd base rates'!J$117) +($O18*'fnd base rates'!J$118) +($P18*VLOOKUP($S18+12,rate_basefnd,10))) *$R18 -> 460922.9094 | AC18: =(($D18*'fnd base rates'!K$107) +($E18*'fnd base rates'!K$108) +($F18*'fnd base rates'!K$109) +($G18*'fnd base rates'!K$110) +($H18*'fnd base rates'!K$111) +($I18*'fnd base rates'!K$112) +($J18*'fnd base rates'!K$113) +($K18*'fnd base rates'!K$114) +($M18*'fnd base rates'!K$116) +($N18*'fnd base rates'!K$117) +($O18*'fnd base rates'!K$118) +($P18*VLOOKUP($S18+12,rate_basefnd,11))) *$R18 -> 473717.1537 | AD18: =(($D18*'fnd base rates'!L$107) +($E18*'fnd base rates'!L$108) +($F18*'fnd base rates'!L$109) +($G18*'fnd base rates'!L$110) +($H18*'fnd base rates'!L$111) +($I18*'fnd base rates'!L$112) +($J18*'fnd base rates'!L$113) +($K18*'fnd base rates'!L$114) +($M18*'fnd base rates'!L$116) +($N18*'fnd base rates'!L$117) +($O18*'fnd base rates'!L$118) +($P18*VLOOKUP($S18+12,rate_basefnd,12))) -> 712872.5949 | AE18: =(($D18*'fnd base rates'!M$107) +($E18*'fnd base rates'!M$108) +($F18*'fnd base rates'!M$109) +($G18*'fnd base rates'!M$110) +($H18*'fnd base rates'!M$111) +($I18*'fnd base rates'!M$112) +($J18*'fnd base rates'!M$113) +($K18*'fnd base rates'!M$114) +($M18*'fnd base rates'!M$116) +($N18*'fnd base rates'!M$117) +($O18*'fnd base rates'!M$118) +($P18*VLOOKUP($S18+12,rate_basefnd,13))) -> 0 | AF18: 6479840.724 | AH18: 410035057 | AI18: 410 | AJ18: 035 | AK18: 057 | AL18: 1 | AM18: 369 | AN18: 6479840.724 | AO18: 17561 | AP18: 0 | AQ18: 17561 | AW18: 17561 | AX18: 0 | AY18: 17561 | BB18: =BC18-BA18 -> 0
A19: 410 | B19: 410035071 | C19: EXCEL ACADEMY | D19: ='fnd enro'!D19 -> 0 | E19: ='fnd enro'!E19 -> 0 | F19: ='fnd enro'!F19 -> 0 | G19: ='fnd enro'!G19 -> 0 | H19: ='fnd enro'!H19 -> 0 | I19: ='fnd enro'!I19 -> 1 | J19: ='fnd enro'!J19 -> 0 | K19: ='fnd enro'!K19 -> 0.0386 | L19: ='fnd enro'!L19 -> 0 | M19: ='fnd enro'!M19 -> 0 | N19: ='fnd enro'!N19 -> 0 | O19: ='fnd enro'!O19 -> 0 | P19: ='fnd enro'!P19 -> 1 | Q19: ='fnd enro'!R19 -> 1 | R19: 1.088 | S19: =VALUE('fnd enro'!Q19) -> 5 | U19: =(($D19*'fnd base rates'!C$107) +($E19*'fnd base rates'!C$108) +($F19*'fnd base rates'!C$109) +($G19*'fnd base rates'!C$110) +($H19*'fnd base rates'!C$111) +($I19*'fnd base rates'!C$112) +($J19*'fnd base rates'!C$113) +($K19*'fnd base rates'!C$114) +($M19*'fnd base rates'!C$116) +($N19*'fnd base rates'!C$117) +($O19*'fnd base rates'!C$118) +($P19*VLOOKUP($S19+12,rate_basefnd,3))) *$R19 -> 648.8085044 | V19: =(($D19*'fnd base rates'!D$107) +($E19*'fnd base rates'!D$108) +($F19*'fnd base rates'!D$109) +($G19*'fnd base rates'!D$110) +($H19*'fnd base rates'!D$111) +($I19*'fnd base rates'!D$112) +($J19*'fnd base rates'!D$113) +($K19*'fnd base rates'!D$114) +($M19*'fnd base rates'!D$116) +($N19*'fnd base rates'!D$117) +($O19*'fnd base rates'!D$118) +($P19*VLOOKUP($S19+12,rate_basefnd,4))) *$R19 -> 1141.02912 | W19: =(($D19*'fnd base rates'!E$107) +($E19*'fnd base rates'!E$108) +($F19*'fnd base rates'!E$109) +($G19*'fnd base rates'!E$110) +($H19*'fnd base rates'!E$111) +($I19*'fnd base rates'!E$112) +($J19*'fnd base rates'!E$113) +($K19*'fnd base rates'!E$114) +($M19*'fnd base rates'!E$116) +($N19*'fnd base rates'!E$117) +($O19*'fnd base rates'!E$118) +($P19*VLOOKUP($S19+12,rate_basefnd,5))) *$R19 -> 8357.265689 | X19: =(($D19*'fnd base rates'!F$107) +($E19*'fnd base rates'!F$108) +($F19*'fnd base rates'!F$109) +($G19*'fnd base rates'!F$110) +($H19*'fnd base rates'!F$111) +($I19*'fnd base rates'!F$112) +($J19*'fnd base rates'!F$113) +($K19*'fnd base rates'!F$114) +($M19*'fnd base rates'!F$116) +($N19*'fnd base rates'!F$117) +($O19*'fnd base rates'!F$118) +($P19*VLOOKUP($S19+12,rate_basefnd,6))) *$R19 -> 964.9324163 | Y19: =(($D19*'fnd base rates'!G$107) +($E19*'fnd base rates'!G$108) +($F19*'fnd base rates'!G$109) +($G19*'fnd base rates'!G$110) +($H19*'fnd base rates'!G$111) +($I19*'fnd base rates'!G$112) +($J19*'fnd base rates'!G$113) +($K19*'fnd base rates'!G$114) +($M19*'fnd base rates'!G$116) +($N19*'fnd base rates'!G$117) +($O19*'fnd base rates'!G$118) +($P19*VLOOKUP($S19+12,rate_basefnd,7))) *$R19 -> 324.4778108 | Z19: =(($D19*'fnd base rates'!H$107) +($E19*'fnd base rates'!H$108) +($F19*'fnd base rates'!H$109) +($G19*'fnd base rates'!H$110) +($H19*'fnd base rates'!H$111) +($I19*'fnd base rates'!H$112) +($J19*'fnd base rates'!H$113) +($K19*'fnd base rates'!H$114) +($M19*'fnd base rates'!H$116) +($N19*'fnd base rates'!H$117) +($O19*'fnd base rates'!H$118) +($P19*VLOOKUP($S19+12,rate_basefnd,8))) -> 848.668934 | AA19: =(($D19*'fnd base rates'!I$107) +($E19*'fnd base rates'!I$108) +($F19*'fnd base rates'!I$109) +($G19*'fnd base rates'!I$110) +($H19*'fnd base rates'!I$111) +($I19*'fnd base rates'!I$112) +($J19*'fnd base rates'!I$113) +($K19*'fnd base rates'!I$114) +($M19*'fnd base rates'!I$116) +($N19*'fnd base rates'!I$117) +($O19*'fnd base rates'!I$118) +($P19*VLOOKUP($S19+12,rate_basefnd,9))) *$R19 -> 585.42016 | AB19: =(($D19*'fnd base rates'!J$107) +($E19*'fnd base rates'!J$108) +($F19*'fnd base rates'!J$109) +($G19*'fnd base rates'!J$110) +($H19*'fnd base rates'!J$111) +($I19*'fnd base rates'!J$112) +($J19*'fnd base rates'!J$113) +($K19*'fnd base rates'!J$114) +($M19*'fnd base rates'!J$116) +($N19*'fnd base rates'!J$117) +($O19*'fnd base rates'!J$118) +($P19*VLOOKUP($S19+12,rate_basefnd,10))) *$R19 -> 1258.17408 | AC19: =(($D19*'fnd base rates'!K$107) +($E19*'fnd base rates'!K$108) +($F19*'fnd base rates'!K$109) +($G19*'fnd base rates'!K$110) +($H19*'fnd base rates'!K$111) +($I19*'fnd base rates'!K$112) +($J19*'fnd base rates'!K$113) +($K19*'fnd base rates'!K$114) +($M19*'fnd base rates'!K$116) +($N19*'fnd base rates'!K$117) +($O19*'fnd base rates'!K$118) +($P19*VLOOKUP($S19+12,rate_basefnd,11))) *$R19 -> 1251.265149 | AD19: =(($D19*'fnd base rates'!L$107) +($E19*'fnd base rates'!L$108) +($F19*'fnd base rates'!L$109) +($G19*'fnd base rates'!L$110) +($H19*'fnd base rates'!L$111) +($I19*'fnd base rates'!L$112) +($J19*'fnd base rates'!L$113) +($K19*'fnd base rates'!L$114) +($M19*'fnd base rates'!L$116) +($N19*'fnd base rates'!L$117) +($O19*'fnd base rates'!L$118) +($P19*VLOOKUP($S19+12,rate_basefnd,12))) -> 1817.05668 | AE19: =(($D19*'fnd base rates'!M$107) +($E19*'fnd base rates'!M$108) +($F19*'fnd base rates'!M$109) +($G19*'fnd base rates'!M$110) +($H19*'fnd base rates'!M$111) +($I19*'fnd base rates'!M$112) +($J19*'fnd base rates'!M$113) +($K19*'fnd base rates'!M$114) +($M19*'fnd base rates'!M$116) +($N19*'fnd base rates'!M$117) +($O19*'fnd base rates'!M$118) +($P19*VLOOKUP($S19+12,rate_basefnd,13))) -> 0 | AF19: 17197.09854 | AH19: 410035071 | AI19: 410 | AJ19: 035 | AK19: 071 | AL19: 1 | AM19: 1 | AN19: 17197.09854 | AO19: 17197 | AP19: 0 | AQ19: 17197 | AW19: 17197 | AX19: 0 | AY19: 17197 | BB19: =BC19-BA19 -> 0
A20: 410 | B20: 410035093 | C20: EXCEL ACADEMY | D20: ='fnd enro'!D20 -> 0 | E20: ='fnd enro'!E20 -> 0 | F20: ='fnd enro'!F20 -> 0 | G20: ='fnd enro'!G20 -> 1 | H20: ='fnd enro'!H20 -> 2 | I20: ='fnd enro'!I20 -> 10 | J20: ='fnd enro'!J20 -> 0 | K20: ='fnd enro'!K20 -> 0.5018 | L20: ='fnd enro'!L20 -> 0 | M20: ='fnd enro'!M20 -> 0 | N20: ='fnd enro'!N20 -> 0 | O20: ='fnd enro'!O20 -> 2 | P20: ='fnd enro'!P20 -> 11 | Q20: ='fnd enro'!R20 -> 13 | R20: 1.088 | S20: =VALUE('fnd enro'!Q20) -> 11 | U20: =(($D20*'fnd base rates'!C$107) +($E20*'fnd base rates'!C$108) +($F20*'fnd base rates'!C$109) +($G20*'fnd base rates'!C$110) +($H20*'fnd base rates'!C$111) +($I20*'fnd base rates'!C$112) +($J20*'fnd base rates'!C$113) +($K20*'fnd base rates'!C$114) +($M20*'fnd base rates'!C$116) +($N20*'fnd base rates'!C$117) +($O20*'fnd base rates'!C$118) +($P20*VLOOKUP($S20+12,rate_basefnd,3))) *$R20 -> 8805.268318 | V20: =(($D20*'fnd base rates'!D$107) +($E20*'fnd base rates'!D$108) +($F20*'fnd base rates'!D$109) +($G20*'fnd base rates'!D$110) +($H20*'fnd base rates'!D$111) +($I20*'fnd base rates'!D$112) +($J20*'fnd base rates'!D$113) +($K20*'fnd base rates'!D$114) +($M20*'fnd base rates'!D$116) +($N20*'fnd base rates'!D$117) +($O20*'fnd base rates'!D$118) +($P20*VLOOKUP($S20+12,rate_basefnd,4))) *$R20 -> 15942.1376 | W20: =(($D20*'fnd base rates'!E$107) +($E20*'fnd base rates'!E$108) +($F20*'fnd base rates'!E$109) +($G20*'fnd base rates'!E$110) +($H20*'fnd base rates'!E$111) +($I20*'fnd base rates'!E$112) +($J20*'fnd base rates'!E$113) +($K20*'fnd base rates'!E$114) +($M20*'fnd base rates'!E$116) +($N20*'fnd base rates'!E$117) +($O20*'fnd base rates'!E$118) +($P20*VLOOKUP($S20+12,rate_basefnd,5))) *$R20 -> 114135.7423 | X20: =(($D20*'fnd base rates'!F$107) +($E20*'fnd base rates'!F$108) +($F20*'fnd base rates'!F$109) +($G20*'fnd base rates'!F$110) +($H20*'fnd base rates'!F$111) +($I20*'fnd base rates'!F$112) +($J20*'fnd base rates'!F$113) +($K20*'fnd base rates'!F$114) +($M20*'fnd base rates'!F$116) +($N20*'fnd base rates'!F$117) +($O20*'fnd base rates'!F$118) +($P20*VLOOKUP($S20+12,rate_basefnd,6))) *$R20 -> 13551.84877 | Y20: =(($D20*'fnd base rates'!G$107) +($E20*'fnd base rates'!G$108) +($F20*'fnd base rates'!G$109) +($G20*'fnd base rates'!G$110) +($H20*'fnd base rates'!G$111) +($I20*'fnd base rates'!G$112) +($J20*'fnd base rates'!G$113) +($K20*'fnd base rates'!G$114) +($M20*'fnd base rates'!G$116) +($N20*'fnd base rates'!G$117) +($O20*'fnd base rates'!G$118) +($P20*VLOOKUP($S20+12,rate_basefnd,7))) *$R20 -> 4674.116181 | Z20: =(($D20*'fnd base rates'!H$107) +($E20*'fnd base rates'!H$108) +($F20*'fnd base rates'!H$109) +($G20*'fnd base rates'!H$110) +($H20*'fnd base rates'!H$111) +($I20*'fnd base rates'!H$112) +($J20*'fnd base rates'!H$113) +($K20*'fnd base rates'!H$114) +($M20*'fnd base rates'!H$116) +($N20*'fnd base rates'!H$117) +($O20*'fnd base rates'!H$118) +($P20*VLOOKUP($S20+12,rate_basefnd,8))) -> 10416.50614 | AA20: =(($D20*'fnd base rates'!I$107) +($E20*'fnd base rates'!I$108) +($F20*'fnd base rates'!I$109) +($G20*'fnd base rates'!I$110) +($H20*'fnd base rates'!I$111) +($I20*'fnd base rates'!I$112) +($J20*'fnd base rates'!I$113) +($K20*'fnd base rates'!I$114) +($M20*'fnd base rates'!I$116) +($N20*'fnd base rates'!I$117) +($O20*'fnd base rates'!I$118) +($P20*VLOOKUP($S20+12,rate_basefnd,9))) *$R20 -> 7793.62688 | AB20: =(($D20*'fnd base rates'!J$107) +($E20*'fnd base rates'!J$108) +($F20*'fnd base rates'!J$109) +($G20*'fnd base rates'!J$110) +($H20*'fnd base rates'!J$111) +($I20*'fnd base rates'!J$112) +($J20*'fnd base rates'!J$113) +($K20*'fnd base rates'!J$114) +($M20*'fnd base rates'!J$116) +($N20*'fnd base rates'!J$117) +($O20*'fnd base rates'!J$118) +($P20*VLOOKUP($S20+12,rate_basefnd,10))) *$R20 -> 16742.93824 | AC20: =(($D20*'fnd base rates'!K$107) +($E20*'fnd base rates'!K$108) +($F20*'fnd base rates'!K$109) +($G20*'fnd base rates'!K$110) +($H20*'fnd base rates'!K$111) +($I20*'fnd base rates'!K$112) +($J20*'fnd base rates'!K$113) +($K20*'fnd base rates'!K$114) +($M20*'fnd base rates'!K$116) +($N20*'fnd base rates'!K$117) +($O20*'fnd base rates'!K$118) +($P20*VLOOKUP($S20+12,rate_basefnd,11))) *$R20 -> 16932.3791 | AD20: =(($D20*'fnd base rates'!L$107) +($E20*'fnd base rates'!L$108) +($F20*'fnd base rates'!L$109) +($G20*'fnd base rates'!L$110) +($H20*'fnd base rates'!L$111) +($I20*'fnd base rates'!L$112) +($J20*'fnd base rates'!L$113) +($K20*'fnd base rates'!L$114) +($M20*'fnd base rates'!L$116) +($N20*'fnd base rates'!L$117) +($O20*'fnd base rates'!L$118) +($P20*VLOOKUP($S20+12,rate_basefnd,12))) -> 25591.78684 | AE20: =(($D20*'fnd base rates'!M$107) +($E20*'fnd base rates'!M$108) +($F20*'fnd base rates'!M$109) +($G20*'fnd base rates'!M$110) +($H20*'fnd base rates'!M$111) +($I20*'fnd base rates'!M$112) +($J20*'fnd base rates'!M$113) +($K20*'fnd base rates'!M$114) +($M20*'fnd base rates'!M$116) +($N20*'fnd base rates'!M$117) +($O20*'fnd base rates'!M$118) +($P20*VLOOKUP($S20+12,rate_basefnd,13))) -> 0 | AF20: 234586.3504 | AH20: 410035093 | AI20: 410 | AJ20: 035 | AK20: 093 | AL20: 1 | AM20: 13 | AN20: 234586.3504 | AO20: 18045 | AP20: 0 | AQ20: 18045 | AW20: 18045 | AX20: 0 | AY20: 18045 | BB20: =BC20-BA20 -> 0
A21: 410 | B21: 410035103 | C21: EXCEL ACADEMY | D21: ='fnd enro'!D21 -> 0 | E21: ='fnd enro'!E21 -> 0 | F21: ='fnd enro'!F21 -> 0 | G21: ='fnd enro'!G21 -> 0 | H21: ='fnd enro'!H21 -> 0 | I21: ='fnd enro'!I21 -> 2 | J21: ='fnd enro'!J21 -> 0 | K21: ='fnd enro'!K21 -> 0.0772 | L21: ='fnd enro'!L21 -> 0 | M21: ='fnd enro'!M21 -> 0 | N21: ='fnd enro'!N21 -> 0 | O21: ='fnd enro'!O21 -> 0 | P21: ='fnd enro'!P21 -> 2 | Q21: ='fnd enro'!R21 -> 2 | R21: 1.088 | S21: =VALUE('fnd enro'!Q21) -> 10 | U21: =(($D21*'fnd base rates'!C$107) +($E21*'fnd base rates'!C$108) +($F21*'fnd base rates'!C$109) +($G21*'fnd base rates'!C$110) +($H21*'fnd base rates'!C$111) +($I21*'fnd base rates'!C$112) +($J21*'fnd base rates'!C$113) +($K21*'fnd base rates'!C$114) +($M21*'fnd base rates'!C$116) +($N21*'fnd base rates'!C$117) +($O21*'fnd base rates'!C$118) +($P21*VLOOKUP($S21+12,rate_basefnd,3))) *$R21 -> 1339.918449 | V21: =(($D21*'fnd base rates'!D$107) +($E21*'fnd base rates'!D$108) +($F21*'fnd base rates'!D$109) +($G21*'fnd base rates'!D$110) +($H21*'fnd base rates'!D$111) +($I21*'fnd base rates'!D$112) +($J21*'fnd base rates'!D$113) +($K21*'fnd base rates'!D$114) +($M21*'fnd base rates'!D$116) +($N21*'fnd base rates'!D$117) +($O21*'fnd base rates'!D$118) +($P21*VLOOKUP($S21+12,rate_basefnd,4))) *$R21 -> 2482.55488 | W21: =(($D21*'fnd base rates'!E$107) +($E21*'fnd base rates'!E$108) +($F21*'fnd base rates'!E$109) +($G21*'fnd base rates'!E$110) +($H21*'fnd base rates'!E$111) +($I21*'fnd base rates'!E$112) +($J21*'fnd base rates'!E$113) +($K21*'fnd base rates'!E$114) +($M21*'fnd base rates'!E$116) +($N21*'fnd base rates'!E$117) +($O21*'fnd base rates'!E$118) +($P21*VLOOKUP($S21+12,rate_basefnd,5))) *$R21 -> 18671.47346 | X21: =(($D21*'fnd base rates'!F$107) +($E21*'fnd base rates'!F$108) +($F21*'fnd base rates'!F$109) +($G21*'fnd base rates'!F$110) +($H21*'fnd base rates'!F$111) +($I21*'fnd base rates'!F$112) +($J21*'fnd base rates'!F$113) +($K21*'fnd base rates'!F$114) +($M21*'fnd base rates'!F$116) +($N21*'fnd base rates'!F$117) +($O21*'fnd base rates'!F$118) +($P21*VLOOKUP($S21+12,rate_basefnd,6))) *$R21 -> 1929.864833 | Y21: =(($D21*'fnd base rates'!G$107) +($E21*'fnd base rates'!G$108) +($F21*'fnd base rates'!G$109) +($G21*'fnd base rates'!G$110) +($H21*'fnd base rates'!G$111) +($I21*'fnd base rates'!G$112) +($J21*'fnd base rates'!G$113) +($K21*'fnd base rates'!G$114) +($M21*'fnd base rates'!G$116) +($N21*'fnd base rates'!G$117) +($O21*'fnd base rates'!G$118) +($P21*VLOOKUP($S21+12,rate_basefnd,7))) *$R21 -> 743.8727416 | Z21: =(($D21*'fnd base rates'!H$107) +($E21*'fnd base rates'!H$108) +($F21*'fnd base rates'!H$109) +($G21*'fnd base rates'!H$110) +($H21*'fnd base rates'!H$111) +($I21*'fnd base rates'!H$112) +($J21*'fnd base rates'!H$113) +($K21*'fnd base rates'!H$114) +($M21*'fnd base rates'!H$116) +($N21*'fnd base rates'!H$117) +($O21*'fnd base rates'!H$118) +($P21*VLOOKUP($S21+12,rate_basefnd,8))) -> 1710.717868 | AA21: =(($D21*'fnd base rates'!I$107) +($E21*'fnd base rates'!I$108) +($F21*'fnd base rates'!I$109) +($G21*'fnd base rates'!I$110) +($H21*'fnd base rates'!I$111) +($I21*'fnd base rates'!I$112) +($J21*'fnd base rates'!I$113) +($K21*'fnd base rates'!I$114) +($M21*'fnd base rates'!I$116) +($N21*'fnd base rates'!I$117) +($O21*'fnd base rates'!I$118) +($P21*VLOOKUP($S21+12,rate_basefnd,9))) *$R21 -> 1250.09024 | AB21: =(($D21*'fnd base rates'!J$107) +($E21*'fnd base rates'!J$108) +($F21*'fnd base rates'!J$109) +($G21*'fnd base rates'!J$110) +($H21*'fnd base rates'!J$111) +($I21*'fnd base rates'!J$112) +($J21*'fnd base rates'!J$113) +($K21*'fnd base rates'!J$114) +($M21*'fnd base rates'!J$116) +($N21*'fnd base rates'!J$117) +($O21*'fnd base rates'!J$118) +($P21*VLOOKUP($S21+12,rate_basefnd,10))) *$R21 -> 2928.11264 | AC21: =(($D21*'fnd base rates'!K$107) +($E21*'fnd base rates'!K$108) +($F21*'fnd base rates'!K$109) +($G21*'fnd base rates'!K$110) +($H21*'fnd base rates'!K$111) +($I21*'fnd base rates'!K$112) +($J21*'fnd base rates'!K$113) +($K21*'fnd base rates'!K$114) +($M21*'fnd base rates'!K$116) +($N21*'fnd base rates'!K$117) +($O21*'fnd base rates'!K$118) +($P21*VLOOKUP($S21+12,rate_basefnd,11))) *$R21 -> 2502.530299 | AD21: =(($D21*'fnd base rates'!L$107) +($E21*'fnd base rates'!L$108) +($F21*'fnd base rates'!L$109) +($G21*'fnd base rates'!L$110) +($H21*'fnd base rates'!L$111) +($I21*'fnd base rates'!L$112) +($J21*'fnd base rates'!L$113) +($K21*'fnd base rates'!L$114) +($M21*'fnd base rates'!L$116) +($N21*'fnd base rates'!L$117) +($O21*'fnd base rates'!L$118) +($P21*VLOOKUP($S21+12,rate_basefnd,12))) -> 3925.05336 | AE21: =(($D21*'fnd base rates'!M$107) +($E21*'fnd base rates'!M$108) +($F21*'fnd base rates'!M$109) +($G21*'fnd base rates'!M$110) +($H21*'fnd base rates'!M$111) +($I21*'fnd base rates'!M$112) +($J21*'fnd base rates'!M$113) +($K21*'fnd base rates'!M$114) +($M21*'fnd base rates'!M$116) +($N21*'fnd base rates'!M$117) +($O21*'fnd base rates'!M$118) +($P21*VLOOKUP($S21+12,rate_basefnd,13))) -> 0 | AF21: 37484.18877 | AH21: 410035103 | AI21: 410 | AJ21: 035 | AK21: 103 | AL21: 1 | AM21: 2 | AN21: 37484.18877 | AO21: 18742 | AP21: 0 | AQ21: 18742 | AW21: 18742 | AX21: 0 | AY21: 18742 | BB21: =BC21-BA21 -> 0
A22: 410 | B22: 410035149 | C22: EXCEL ACADEMY | D22: ='fnd enro'!D22 -> 0 | E22: ='fnd enro'!E22 -> 0 | F22: ='fnd enro'!F22 -> 0 | G22: ='fnd enro'!G22 -> 0 | H22: ='fnd enro'!H22 -> 0 | I22: ='fnd enro'!I22 -> 1 | J22: ='fnd enro'!J22 -> 0 | K22: ='fnd enro'!K22 -> 0.0386 | L22: ='fnd enro'!L22 -> 0 | M22: ='fnd enro'!M22 -> 0 | N22: ='fnd enro'!N22 -> 0 | O22: ='fnd enro'!O22 -> 0 | P22: ='fnd enro'!P22 -> 0 | Q22: ='fnd enro'!R22 -> 1 | R22: 1.088 | S22: =VALUE('fnd enro'!Q22) -> 12 | U22: =(($D22*'fnd base rates'!C$107) +($E22*'fnd base rates'!C$108) +($F22*'fnd base rates'!C$109) +($G22*'fnd base rates'!C$110) +($H22*'fnd base rates'!C$111) +($I22*'fnd base rates'!C$112) +($J22*'fnd base rates'!C$113) +($K22*'fnd base rates'!C$114) +($M22*'fnd base rates'!C$116) +($N22*'fnd base rates'!C$117) +($O22*'fnd base rates'!C$118) +($P22*VLOOKUP($S22+12,rate_basefnd,3))) *$R22 -> 583.6699444 | V22: =(($D22*'fnd base rates'!D$107) +($E22*'fnd base rates'!D$108) +($F22*'fnd base rates'!D$109) +($G22*'fnd base rates'!D$110) +($H22*'fnd base rates'!D$111) +($I22*'fnd base rates'!D$112) +($J22*'fnd base rates'!D$113) +($K22*'fnd base rates'!D$114) +($M22*'fnd base rates'!D$116) +($N22*'fnd base rates'!D$117) +($O22*'fnd base rates'!D$118) +($P22*VLOOKUP($S22+12,rate_basefnd,4))) *$R22 -> 832.40704 | W22: =(($D22*'fnd base rates'!E$107) +($E22*'fnd base rates'!E$108) +($F22*'fnd base rates'!E$109) +($G22*'fnd base rates'!E$110) +($H22*'fnd base rates'!E$111) +($I22*'fnd base rates'!E$112) +($J22*'fnd base rates'!E$113) +($K22*'fnd base rates'!E$114) +($M22*'fnd base rates'!E$116) +($N22*'fnd base rates'!E$117) +($O22*'fnd base rates'!E$118) +($P22*VLOOKUP($S22+12,rate_basefnd,5))) *$R22 -> 5344.474009 | X22: =(($D22*'fnd base rates'!F$107) +($E22*'fnd base rates'!F$108) +($F22*'fnd base rates'!F$109) +($G22*'fnd base rates'!F$110) +($H22*'fnd base rates'!F$111) +($I22*'fnd base rates'!F$112) +($J22*'fnd base rates'!F$113) +($K22*'fnd base rates'!F$114) +($M22*'fnd base rates'!F$116) +($N22*'fnd base rates'!F$117) +($O22*'fnd base rates'!F$118) +($P22*VLOOKUP($S22+12,rate_basefnd,6))) *$R22 -> 964.9324163 | Y22: =(($D22*'fnd base rates'!G$107) +($E22*'fnd base rates'!G$108) +($F22*'fnd base rates'!G$109) +($G22*'fnd base rates'!G$110) +($H22*'fnd base rates'!G$111) +($I22*'fnd base rates'!G$112) +($J22*'fnd base rates'!G$113) +($K22*'fnd base rates'!G$114) +($M22*'fnd base rates'!G$116) +($N22*'fnd base rates'!G$117) +($O22*'fnd base rates'!G$118) +($P22*VLOOKUP($S22+12,rate_basefnd,7))) *$R22 -> 178.3050108 | Z22: =(($D22*'fnd base rates'!H$107) +($E22*'fnd base rates'!H$108) +($F22*'fnd base rates'!H$109) +($G22*'fnd base rates'!H$110) +($H22*'fnd base rates'!H$111) +($I22*'fnd base rates'!H$112) +($J22*'fnd base rates'!H$113) +($K22*'fnd base rates'!H$114) +($M22*'fnd base rates'!H$116) +($N22*'fnd base rates'!H$117) +($O22*'fnd base rates'!H$118) +($P22*VLOOKUP($S22+12,rate_basefnd,8))) -> 828.078934 | AA22: =(($D22*'fnd base rates'!I$107) +($E22*'fnd base rates'!I$108) +($F22*'fnd base rates'!I$109) +($G22*'fnd base rates'!I$110) +($H22*'fnd base rates'!I$111) +($I22*'fnd base rates'!I$112) +($J22*'fnd base rates'!I$113) +($K22*'fnd base rates'!I$114) +($M22*'fnd base rates'!I$116) +($N22*'fnd base rates'!I$117) +($O22*'fnd base rates'!I$118) +($P22*VLOOKUP($S22+12,rate_basefnd,9))) *$R22 -> 463.42272 | AB22: =(($D22*'fnd base rates'!J$107) +($E22*'fnd base rates'!J$108) +($F22*'fnd base rates'!J$109) +($G22*'fnd base rates'!J$110) +($H22*'fnd base rates'!J$111) +($I22*'fnd base rates'!J$112) +($J22*'fnd base rates'!J$113) +($K22*'fnd base rates'!J$114) +($M22*'fnd base rates'!J$116) +($N22*'fnd base rates'!J$117) +($O22*'fnd base rates'!J$118) +($P22*VLOOKUP($S22+12,rate_basefnd,10))) *$R22 -> 624.24 | AC22: =(($D22*'fnd base rates'!K$107) +($E22*'fnd base rates'!K$108) +($F22*'fnd base rates'!K$109) +($G22*'fnd base rates'!K$110) +($H22*'fnd base rates'!K$111) +($I22*'fnd base rates'!K$112) +($J22*'fnd base rates'!K$113) +($K22*'fnd base rates'!K$114) +($M22*'fnd base rates'!K$116) +($N22*'fnd base rates'!K$117) +($O22*'fnd base rates'!K$118) +($P22*VLOOKUP($S22+12,rate_basefnd,11))) *$R22 -> 1251.265149 | AD22: =(($D22*'fnd base rates'!L$107) +($E22*'fnd base rates'!L$108) +($F22*'fnd base rates'!L$109) +($G22*'fnd base rates'!L$110) +($H22*'fnd base rates'!L$111) +($I22*'fnd base rates'!L$112) +($J22*'fnd base rates'!L$113) +($K22*'fnd base rates'!L$114) +($M22*'fnd base rates'!L$116) +($N22*'fnd base rates'!L$117) +($O22*'fnd base rates'!L$118) +($P22*VLOOKUP($S22+12,rate_basefnd,12))) -> 1369.12668 | AE22: =(($D22*'fnd base rates'!M$107) +($E22*'fnd base rates'!M$108) +($F22*'fnd base rates'!M$109) +($G22*'fnd base rates'!M$110) +($H22*'fnd base rates'!M$111) +($I22*'fnd base rates'!M$112) +($J22*'fnd base rates'!M$113) +($K22*'fnd base rates'!M$114) +($M22*'fnd base rates'!M$116) +($N22*'fnd base rates'!M$117) +($O22*'fnd base rates'!M$118) +($P22*VLOOKUP($S22+12,rate_basefnd,13))) -> 0 | AF22: 12439.9219 | AH22: 410035149 | AI22: 410 | AJ22: 035 | AK22: 149 | AL22: 1 | AM22: 1 | AN22: 12439.9219 | AO22: 12440 | AP22: 0 | AQ22: 12440 | AW22: 12440 | AX22: 0 | AY22: 12440 | BB22: =BC22-BA22 -> 0
A23: 410 | B23: 410035160 | C23: EXCEL ACADEMY | D23: ='fnd enro'!D23 -> 0 | E23: ='fnd enro'!E23 -> 0 | F23: ='fnd enro'!F23 -> 0 | G23: ='fnd enro'!G23 -> 0 | H23: ='fnd enro'!H23 -> 0 | I23: ='fnd enro'!I23 -> 2 | J23: ='fnd enro'!J23 -> 0 | K23: ='fnd enro'!K23 -> 0.0772 | L23: ='fnd enro'!L23 -> 0 | M23: ='fnd enro'!M23 -> 0 | N23: ='fnd enro'!N23 -> 0 | O23: ='fnd enro'!O23 -> 0 | P23: ='fnd enro'!P23 -> 2 | Q23: ='fnd enro'!R23 -> 2 | R23: 1.088 | S23: =VALUE('fnd enro'!Q23) -> 11 | U23: =(($D23*'fnd base rates'!C$107) +($E23*'fnd base rates'!C$108) +($F23*'fnd base rates'!C$109) +($G23*'fnd base rates'!C$110) +($H23*'fnd base rates'!C$111) +($I23*'fnd base rates'!C$112) +($J23*'fnd base rates'!C$113) +($K23*'fnd base rates'!C$114) +($M23*'fnd base rates'!C$116) +($N23*'fnd base rates'!C$117) +($O23*'fnd base rates'!C$118) +($P23*VLOOKUP($S23+12,rate_basefnd,3))) *$R23 -> 1349.297009 | V23: =(($D23*'fnd base rates'!D$107) +($E23*'fnd base rates'!D$108) +($F23*'fnd base rates'!D$109) +($G23*'fnd base rates'!D$110) +($H23*'fnd base rates'!D$111) +($I23*'fnd base rates'!D$112) +($J23*'fnd base rates'!D$113) +($K23*'fnd base rates'!D$114) +($M23*'fnd base rates'!D$116) +($N23*'fnd base rates'!D$117) +($O23*'fnd base rates'!D$118) +($P23*VLOOKUP($S23+12,rate_basefnd,4))) *$R23 -> 2526.90176 | W23: =(($D23*'fnd base rates'!E$107) +($E23*'fnd base rates'!E$108) +($F23*'fnd base rates'!E$109) +($G23*'fnd base rates'!E$110) +($H23*'fnd base rates'!E$111) +($I23*'fnd base rates'!E$112) +($J23*'fnd base rates'!E$113) +($K23*'fnd base rates'!E$114) +($M23*'fnd base rates'!E$116) +($N23*'fnd base rates'!E$117) +($O23*'fnd base rates'!E$118) +($P23*VLOOKUP($S23+12,rate_basefnd,5))) *$R23 -> 19104.54098 | X23: =(($D23*'fnd base rates'!F$107) +($E23*'fnd base rates'!F$108) +($F23*'fnd base rates'!F$109) +($G23*'fnd base rates'!F$110) +($H23*'fnd base rates'!F$111) +($I23*'fnd base rates'!F$112) +($J23*'fnd base rates'!F$113) +($K23*'fnd base rates'!F$114) +($M23*'fnd base rates'!F$116) +($N23*'fnd base rates'!F$117) +($O23*'fnd base rates'!F$118) +($P23*VLOOKUP($S23+12,rate_basefnd,6))) *$R23 -> 1929.864833 | Y23: =(($D23*'fnd base rates'!G$107) +($E23*'fnd base rates'!G$108) +($F23*'fnd base rates'!G$109) +($G23*'fnd base rates'!G$110) +($H23*'fnd base rates'!G$111) +($I23*'fnd base rates'!G$112) +($J23*'fnd base rates'!G$113) +($K23*'fnd base rates'!G$114) +($M23*'fnd base rates'!G$116) +($N23*'fnd base rates'!G$117) +($O23*'fnd base rates'!G$118) +($P23*VLOOKUP($S23+12,rate_basefnd,7))) *$R23 -> 764.8929016 | Z23: =(($D23*'fnd base rates'!H$107) +($E23*'fnd base rates'!H$108) +($F23*'fnd base rates'!H$109) +($G23*'fnd base rates'!H$110) +($H23*'fnd base rates'!H$111) +($I23*'fnd base rates'!H$112) +($J23*'fnd base rates'!H$113) +($K23*'fnd base rates'!H$114) +($M23*'fnd base rates'!H$116) +($N23*'fnd base rates'!H$117) +($O23*'fnd base rates'!H$118) +($P23*VLOOKUP($S23+12,rate_basefnd,8))) -> 1713.677868 | AA23: =(($D23*'fnd base rates'!I$107) +($E23*'fnd base rates'!I$108) +($F23*'fnd base rates'!I$109) +($G23*'fnd base rates'!I$110) +($H23*'fnd base rates'!I$111) +($I23*'fnd base rates'!I$112) +($J23*'fnd base rates'!I$113) +($K23*'fnd base rates'!I$114) +($M23*'fnd base rates'!I$116) +($N23*'fnd base rates'!I$117) +($O23*'fnd base rates'!I$118) +($P23*VLOOKUP($S23+12,rate_basefnd,9))) *$R23 -> 1267.6288 | AB23: =(($D23*'fnd base rates'!J$107) +($E23*'fnd base rates'!J$108) +($F23*'fnd base rates'!J$109) +($G23*'fnd base rates'!J$110) +($H23*'fnd base rates'!J$111) +($I23*'fnd base rates'!J$112) +($J23*'fnd base rates'!J$113) +($K23*'fnd base rates'!J$114) +($M23*'fnd base rates'!J$116) +($N23*'fnd base rates'!J$117) +($O23*'fnd base rates'!J$118) +($P23*VLOOKUP($S23+12,rate_basefnd,10))) *$R23 -> 3019.24352 | AC23: =(($D23*'fnd base rates'!K$107) +($E23*'fnd base rates'!K$108) +($F23*'fnd base rates'!K$109) +($G23*'fnd base rates'!K$110) +($H23*'fnd base rates'!K$111) +($I23*'fnd base rates'!K$112) +($J23*'fnd base rates'!K$113) +($K23*'fnd base rates'!K$114) +($M23*'fnd base rates'!K$116) +($N23*'fnd base rates'!K$117) +($O23*'fnd base rates'!K$118) +($P23*VLOOKUP($S23+12,rate_basefnd,11))) *$R23 -> 2502.530299 | AD23: =(($D23*'fnd base rates'!L$107) +($E23*'fnd base rates'!L$108) +($F23*'fnd base rates'!L$109) +($G23*'fnd base rates'!L$110) +($H23*'fnd base rates'!L$111) +($I23*'fnd base rates'!L$112) +($J23*'fnd base rates'!L$113) +($K23*'fnd base rates'!L$114) +($M23*'fnd base rates'!L$116) +($N23*'fnd base rates'!L$117) +($O23*'fnd base rates'!L$118) +($P23*VLOOKUP($S23+12,rate_basefnd,12))) -> 3989.43336 | AE23: =(($D23*'fnd base rates'!M$107) +($E23*'fnd base rates'!M$108) +($F23*'fnd base rates'!M$109) +($G23*'fnd base rates'!M$110) +($H23*'fnd base rates'!M$111) +($I23*'fnd base rates'!M$112) +($J23*'fnd base rates'!M$113) +($K23*'fnd base rates'!M$114) +($M23*'fnd base rates'!M$116) +($N23*'fnd base rates'!M$117) +($O23*'fnd base rates'!M$118) +($P23*VLOOKUP($S23+12,rate_basefnd,13))) -> 0 | AF23: 38168.01133 | AH23: 410035160 | AI23: 410 | AJ23: 035 | AK23: 160 | AL23: 1 | AM23: 2 | AN23: 38168.01133 | AO23: 19084 | AP23: 0 | AQ23: 19084 | AW23: 19084 | AX23: 0 | AY23: 19084 | BB23: =BC23-BA23 -> 0
A24: 410 | B24: 410035163 | C24: EXCEL ACADEMY | D24: ='fnd enro'!D24 -> 0 | E24: ='fnd enro'!E24 -> 0 | F24: ='fnd enro'!F24 -> 0 | G24: ='fnd enro'!G24 -> 0 | H24: ='fnd enro'!H24 -> 7 | I24: ='fnd enro'!I24 -> 19 | J24: ='fnd enro'!J24 -> 0 | K24: ='fnd enro'!K24 -> 1.0036 | L24: ='fnd enro'!L24 -> 0 | M24: ='fnd enro'!M24 -> 0 | N24: ='fnd enro'!N24 -> 0 | O24: ='fnd enro'!O24 -> 1 | P24: ='fnd enro'!P24 -> 18 | Q24: ='fnd enro'!R24 -> 26 | R24: 1.088 | S24: =VALUE('fnd enro'!Q24) -> 11 | U24: =(($D24*'fnd base rates'!C$107) +($E24*'fnd base rates'!C$108) +($F24*'fnd base rates'!C$109) +($G24*'fnd base rates'!C$110) +($H24*'fnd base rates'!C$111) +($I24*'fnd base rates'!C$112) +($J24*'fnd base rates'!C$113) +($K24*'fnd base rates'!C$114) +($M24*'fnd base rates'!C$116) +($N24*'fnd base rates'!C$117) +($O24*'fnd base rates'!C$118) +($P24*VLOOKUP($S24+12,rate_basefnd,3))) *$R24 -> 16921.43008 | V24: =(($D24*'fnd base rates'!D$107) +($E24*'fnd base rates'!D$108) +($F24*'fnd base rates'!D$109) +($G24*'fnd base rates'!D$110) +($H24*'fnd base rates'!D$111) +($I24*'fnd base rates'!D$112) +($J24*'fnd base rates'!D$113) +($K24*'fnd base rates'!D$114) +($M24*'fnd base rates'!D$116) +($N24*'fnd base rates'!D$117) +($O24*'fnd base rates'!D$118) +($P24*VLOOKUP($S24+12,rate_basefnd,4))) *$R24 -> 29591.05408 | W24: =(($D24*'fnd base rates'!E$107) +($E24*'fnd base rates'!E$108) +($F24*'fnd base rates'!E$109) +($G24*'fnd base rates'!E$110) +($H24*'fnd base rates'!E$111) +($I24*'fnd base rates'!E$112) +($J24*'fnd base rates'!E$113) +($K24*'fnd base rates'!E$114) +($M24*'fnd base rates'!E$116) +($N24*'fnd base rates'!E$117) +($O24*'fnd base rates'!E$118) +($P24*VLOOKUP($S24+12,rate_basefnd,5))) *$R24 -> 204960.497 | X24: =(($D24*'fnd base rates'!F$107) +($E24*'fnd base rates'!F$108) +($F24*'fnd base rates'!F$109) +($G24*'fnd base rates'!F$110) +($H24*'fnd base rates'!F$111) +($I24*'fnd base rates'!F$112) +($J24*'fnd base rates'!F$113) +($K24*'fnd base rates'!F$114) +($M24*'fnd base rates'!F$116) +($N24*'fnd base rates'!F$117) +($O24*'fnd base rates'!F$118) +($P24*VLOOKUP($S24+12,rate_basefnd,6))) *$R24 -> 26104.18458 | Y24: =(($D24*'fnd base rates'!G$107) +($E24*'fnd base rates'!G$108) +($F24*'fnd base rates'!G$109) +($G24*'fnd base rates'!G$110) +($H24*'fnd base rates'!G$111) +($I24*'fnd base rates'!G$112) +($J24*'fnd base rates'!G$113) +($K24*'fnd base rates'!G$114) +($M24*'fnd base rates'!G$116) +($N24*'fnd base rates'!G$117) +($O24*'fnd base rates'!G$118) +($P24*VLOOKUP($S24+12,rate_basefnd,7))) *$R24 -> 8399.463721 | Z24: =(($D24*'fnd base rates'!H$107) +($E24*'fnd base rates'!H$108) +($F24*'fnd base rates'!H$109) +($G24*'fnd base rates'!H$110) +($H24*'fnd base rates'!H$111) +($I24*'fnd base rates'!H$112) +($J24*'fnd base rates'!H$113) +($K24*'fnd base rates'!H$114) +($M24*'fnd base rates'!H$116) +($N24*'fnd base rates'!H$117) +($O24*'fnd base rates'!H$118) +($P24*VLOOKUP($S24+12,rate_basefnd,8))) -> 20039.77228 | AA24: =(($D24*'fnd base rates'!I$107) +($E24*'fnd base rates'!I$108) +($F24*'fnd base rates'!I$109) +($G24*'fnd base rates'!I$110) +($H24*'fnd base rates'!I$111) +($I24*'fnd base rates'!I$112) +($J24*'fnd base rates'!I$113) +($K24*'fnd base rates'!I$114) +($M24*'fnd base rates'!I$116) +($N24*'fnd base rates'!I$117) +($O24*'fnd base rates'!I$118) +($P24*VLOOKUP($S24+12,rate_basefnd,9))) *$R24 -> 14715.61344 | AB24: =(($D24*'fnd base rates'!J$107) +($E24*'fnd base rates'!J$108) +($F24*'fnd base rates'!J$109) +($G24*'fnd base rates'!J$110) +($H24*'fnd base rates'!J$111) +($I24*'fnd base rates'!J$112) +($J24*'fnd base rates'!J$113) +($K24*'fnd base rates'!J$114) +($M24*'fnd base rates'!J$116) +($N24*'fnd base rates'!J$117) +($O24*'fnd base rates'!J$118) +($P24*VLOOKUP($S24+12,rate_basefnd,10))) *$R24 -> 29719.47072 | AC24: =(($D24*'fnd base rates'!K$107) +($E24*'fnd base rates'!K$108) +($F24*'fnd base rates'!K$109) +($G24*'fnd base rates'!K$110) +($H24*'fnd base rates'!K$111) +($I24*'fnd base rates'!K$112) +($J24*'fnd base rates'!K$113) +($K24*'fnd base rates'!K$114) +($M24*'fnd base rates'!K$116) +($N24*'fnd base rates'!K$117) +($O24*'fnd base rates'!K$118) +($P24*VLOOKUP($S24+12,rate_basefnd,11))) *$R24 -> 33102.52717 | AD24: =(($D24*'fnd base rates'!L$107) +($E24*'fnd base rates'!L$108) +($F24*'fnd base rates'!L$109) +($G24*'fnd base rates'!L$110) +($H24*'fnd base rates'!L$111) +($I24*'fnd base rates'!L$112) +($J24*'fnd base rates'!L$113) +($K24*'fnd base rates'!L$114) +($M24*'fnd base rates'!L$116) +($N24*'fnd base rates'!L$117) +($O24*'fnd base rates'!L$118) +($P24*VLOOKUP($S24+12,rate_basefnd,12))) -> 48135.32368 | AE24: =(($D24*'fnd base rates'!M$107) +($E24*'fnd base rates'!M$108) +($F24*'fnd base rates'!M$109) +($G24*'fnd base rates'!M$110) +($H24*'fnd base rates'!M$111) +($I24*'fnd base rates'!M$112) +($J24*'fnd base rates'!M$113) +($K24*'fnd base rates'!M$114) +($M24*'fnd base rates'!M$116) +($N24*'fnd base rates'!M$117) +($O24*'fnd base rates'!M$118) +($P24*VLOOKUP($S24+12,rate_basefnd,13))) -> 0 | AF24: 431689.3368 | AH24: 410035163 | AI24: 410 | AJ24: 035 | AK24: 163 | AL24: 1 | AM24: 26 | AN24: 431689.3368 | AO24: 16603 | AP24: 0 | AQ24: 16603 | AW24: 16603 | AX24: 0 | AY24: 16603 | BB24: =BC24-BA24 -> 0
A25: 410 | B25: 410035165 | C25: EXCEL ACADEMY | D25: ='fnd enro'!D25 -> 0 | E25: ='fnd enro'!E25 -> 0 | F25: ='fnd enro'!F25 -> 0 | G25: ='fnd enro'!G25 -> 0 | H25: ='fnd enro'!H25 -> 3 | I25: ='fnd enro'!I25 -> 2 | J25: ='fnd enro'!J25 -> 0 | K25: ='fnd enro'!K25 -> 0.193 | L25: ='fnd enro'!L25 -> 0 | M25: ='fnd enro'!M25 -> 0 | N25: ='fnd enro'!N25 -> 0 | O25: ='fnd enro'!O25 -> 0 | P25: ='fnd enro'!P25 -> 3 | Q25: ='fnd enro'!R25 -> 5 | R25: 1.088 | S25: =VALUE('fnd enro'!Q25) -> 10 | U25: =(($D25*'fnd base rates'!C$107) +($E25*'fnd base rates'!C$108) +($F25*'fnd base rates'!C$109) +($G25*'fnd base rates'!C$110) +($H25*'fnd base rates'!C$111) +($I25*'fnd base rates'!C$112) +($J25*'fnd base rates'!C$113) +($K25*'fnd base rates'!C$114) +($M25*'fnd base rates'!C$116) +($N25*'fnd base rates'!C$117) +($O25*'fnd base rates'!C$118) +($P25*VLOOKUP($S25+12,rate_basefnd,3))) *$R25 -> 3177.217562 | V25: =(($D25*'fnd base rates'!D$107) +($E25*'fnd base rates'!D$108) +($F25*'fnd base rates'!D$109) +($G25*'fnd base rates'!D$110) +($H25*'fnd base rates'!D$111) +($I25*'fnd base rates'!D$112) +($J25*'fnd base rates'!D$113) +($K25*'fnd base rates'!D$114) +($M25*'fnd base rates'!D$116) +($N25*'fnd base rates'!D$117) +($O25*'fnd base rates'!D$118) +($P25*VLOOKUP($S25+12,rate_basefnd,4))) *$R25 -> 5388.6464 | W25: =(($D25*'fnd base rates'!E$107) +($E25*'fnd base rates'!E$108) +($F25*'fnd base rates'!E$109) +($G25*'fnd base rates'!E$110) +($H25*'fnd base rates'!E$111) +($I25*'fnd base rates'!E$112) +($J25*'fnd base rates'!E$113) +($K25*'fnd base rates'!E$114) +($M25*'fnd base rates'!E$116) +($N25*'fnd base rates'!E$117) +($O25*'fnd base rates'!E$118) +($P25*VLOOKUP($S25+12,rate_basefnd,5))) *$R25 -> 33954.48013 | X25: =(($D25*'fnd base rates'!F$107) +($E25*'fnd base rates'!F$108) +($F25*'fnd base rates'!F$109) +($G25*'fnd base rates'!F$110) +($H25*'fnd base rates'!F$111) +($I25*'fnd base rates'!F$112) +($J25*'fnd base rates'!F$113) +($K25*'fnd base rates'!F$114) +($M25*'fnd base rates'!F$116) +($N25*'fnd base rates'!F$117) +($O25*'fnd base rates'!F$118) +($P25*VLOOKUP($S25+12,rate_basefnd,6))) *$R25 -> 5178.773441 | Y25: =(($D25*'fnd base rates'!G$107) +($E25*'fnd base rates'!G$108) +($F25*'fnd base rates'!G$109) +($G25*'fnd base rates'!G$110) +($H25*'fnd base rates'!G$111) +($I25*'fnd base rates'!G$112) +($J25*'fnd base rates'!G$113) +($K25*'fnd base rates'!G$114) +($M25*'fnd base rates'!G$116) +($N25*'fnd base rates'!G$117) +($O25*'fnd base rates'!G$118) +($P25*VLOOKUP($S25+12,rate_basefnd,7))) *$R25 -> 1487.335614 | Z25: =(($D25*'fnd base rates'!H$107) +($E25*'fnd base rates'!H$108) +($F25*'fnd base rates'!H$109) +($G25*'fnd base rates'!H$110) +($H25*'fnd base rates'!H$111) +($I25*'fnd base rates'!H$112) +($J25*'fnd base rates'!H$113) +($K25*'fnd base rates'!H$114) +($M25*'fnd base rates'!H$116) +($N25*'fnd base rates'!H$117) +($O25*'fnd base rates'!H$118) +($P25*VLOOKUP($S25+12,rate_basefnd,8))) -> 3308.31467 | AA25: =(($D25*'fnd base rates'!I$107) +($E25*'fnd base rates'!I$108) +($F25*'fnd base rates'!I$109) +($G25*'fnd base rates'!I$110) +($H25*'fnd base rates'!I$111) +($I25*'fnd base rates'!I$112) +($J25*'fnd base rates'!I$113) +($K25*'fnd base rates'!I$114) +($M25*'fnd base rates'!I$116) +($N25*'fnd base rates'!I$117) +($O25*'fnd base rates'!I$118) +($P25*VLOOKUP($S25+12,rate_basefnd,9))) *$R25 -> 2595.5328 | AB25: =(($D25*'fnd base rates'!J$107) +($E25*'fnd base rates'!J$108) +($F25*'fnd base rates'!J$109) +($G25*'fnd base rates'!J$110) +($H25*'fnd base rates'!J$111) +($I25*'fnd base rates'!J$112) +($J25*'fnd base rates'!J$113) +($K25*'fnd base rates'!J$114) +($M25*'fnd base rates'!J$116) +($N25*'fnd base rates'!J$117) +($O25*'fnd base rates'!J$118) +($P25*VLOOKUP($S25+12,rate_basefnd,10))) *$R25 -> 4580.0448 | AC25: =(($D25*'fnd base rates'!K$107) +($E25*'fnd base rates'!K$108) +($F25*'fnd base rates'!K$109) +($G25*'fnd base rates'!K$110) +($H25*'fnd base rates'!K$111) +($I25*'fnd base rates'!K$112) +($J25*'fnd base rates'!K$113) +($K25*'fnd base rates'!K$114) +($M25*'fnd base rates'!K$116) +($N25*'fnd base rates'!K$117) +($O25*'fnd base rates'!K$118) +($P25*VLOOKUP($S25+12,rate_basefnd,11))) *$R25 -> 6361.100147 | AD25: =(($D25*'fnd base rates'!L$107) +($E25*'fnd base rates'!L$108) +($F25*'fnd base rates'!L$109) +($G25*'fnd base rates'!L$110) +($H25*'fnd base rates'!L$111) +($I25*'fnd base rates'!L$112) +($J25*'fnd base rates'!L$113) +($K25*'fnd base rates'!L$114) +($M25*'fnd base rates'!L$116) +($N25*'fnd base rates'!L$117) +($O25*'fnd base rates'!L$118) +($P25*VLOOKUP($S25+12,rate_basefnd,12))) -> 9055.8834 | AE25: =(($D25*'fnd base rates'!M$107) +($E25*'fnd base rates'!M$108) +($F25*'fnd base rates'!M$109) +($G25*'fnd base rates'!M$110) +($H25*'fnd base rates'!M$111) +($I25*'fnd base rates'!M$112) +($J25*'fnd base rates'!M$113) +($K25*'fnd base rates'!M$114) +($M25*'fnd base rates'!M$116) +($N25*'fnd base rates'!M$117) +($O25*'fnd base rates'!M$118) +($P25*VLOOKUP($S25+12,rate_basefnd,13))) -> 0 | AF25: 75087.32896 | AH25: 410035165 | AI25: 410 | AJ25: 035 | AK25: 165 | AL25: 1 | AM25: 5 | AN25: 75087.32896 | AO25: 15017 | AP25: 0 | AQ25: 15017 | AW25: 15017 | AX25: 0 | AY25: 15017 | BB25: =BC25-BA25 -> 0
A26: 410 | B26: 410035217 | C26: EXCEL ACADEMY | D26: ='fnd enro'!D26 -> 0 | E26: ='fnd enro'!E26 -> 0 | F26: ='fnd enro'!F26 -> 0 | G26: ='fnd enro'!G26 -> 0 | H26: ='fnd enro'!H26 -> 0 | I26: ='fnd enro'!I26 -> 1 | J26: ='fnd enro'!J26 -> 0 | K26: ='fnd enro'!K26 -> 0.0386 | L26: ='fnd enro'!L26 -> 0 | M26: ='fnd enro'!M26 -> 0 | N26: ='fnd enro'!N26 -> 0 | O26: ='fnd enro'!O26 -> 0 | P26: ='fnd enro'!P26 -> 1 | Q26: ='fnd enro'!R26 -> 1 | R26: 1.088 | S26: =VALUE('fnd enro'!Q26) -> 3 | U26: =(($D26*'fnd base rates'!C$107) +($E26*'fnd base rates'!C$108) +($F26*'fnd base rates'!C$109) +($G26*'fnd base rates'!C$110) +($H26*'fnd base rates'!C$111) +($I26*'fnd base rates'!C$112) +($J26*'fnd base rates'!C$113) +($K26*'fnd base rates'!C$114) +($M26*'fnd base rates'!C$116) +($N26*'fnd base rates'!C$117) +($O26*'fnd base rates'!C$118) +($P26*VLOOKUP($S26+12,rate_basefnd,3))) *$R26 -> 645.5771444 | V26: =(($D26*'fnd base rates'!D$107) +($E26*'fnd base rates'!D$108) +($F26*'fnd base rates'!D$109) +($G26*'fnd base rates'!D$110) +($H26*'fnd base rates'!D$111) +($I26*'fnd base rates'!D$112) +($J26*'fnd base rates'!D$113) +($K26*'fnd base rates'!D$114) +($M26*'fnd base rates'!D$116) +($N26*'fnd base rates'!D$117) +($O26*'fnd base rates'!D$118) +($P26*VLOOKUP($S26+12,rate_basefnd,4))) *$R26 -> 1125.76448 | W26: =(($D26*'fnd base rates'!E$107) +($E26*'fnd base rates'!E$108) +($F26*'fnd base rates'!E$109) +($G26*'fnd base rates'!E$110) +($H26*'fnd base rates'!E$111) +($I26*'fnd base rates'!E$112) +($J26*'fnd base rates'!E$113) +($K26*'fnd base rates'!E$114) +($M26*'fnd base rates'!E$116) +($N26*'fnd base rates'!E$117) +($O26*'fnd base rates'!E$118) +($P26*VLOOKUP($S26+12,rate_basefnd,5))) *$R26 -> 8208.144409 | X26: =(($D26*'fnd base rates'!F$107) +($E26*'fnd base rates'!F$108) +($F26*'fnd base rates'!F$109) +($G26*'fnd base rates'!F$110) +($H26*'fnd base rates'!F$111) +($I26*'fnd base rates'!F$112) +($J26*'fnd base rates'!F$113) +($K26*'fnd base rates'!F$114) +($M26*'fnd base rates'!F$116) +($N26*'fnd base rates'!F$117) +($O26*'fnd base rates'!F$118) +($P26*VLOOKUP($S26+12,rate_basefnd,6))) *$R26 -> 964.9324163 | Y26: =(($D26*'fnd base rates'!G$107) +($E26*'fnd base rates'!G$108) +($F26*'fnd base rates'!G$109) +($G26*'fnd base rates'!G$110) +($H26*'fnd base rates'!G$111) +($I26*'fnd base rates'!G$112) +($J26*'fnd base rates'!G$113) +($K26*'fnd base rates'!G$114) +($M26*'fnd base rates'!G$116) +($N26*'fnd base rates'!G$117) +($O26*'fnd base rates'!G$118) +($P26*VLOOKUP($S26+12,rate_basefnd,7))) *$R26 -> 317.2426108 | Z26: =(($D26*'fnd base rates'!H$107) +($E26*'fnd base rates'!H$108) +($F26*'fnd base rates'!H$109) +($G26*'fnd base rates'!H$110) +($H26*'fnd base rates'!H$111) +($I26*'fnd base rates'!H$112) +($J26*'fnd base rates'!H$113) +($K26*'fnd base rates'!H$114) +($M26*'fnd base rates'!H$116) +($N26*'fnd base rates'!H$117) +($O26*'fnd base rates'!H$118) +($P26*VLOOKUP($S26+12,rate_basefnd,8))) -> 847.658934 | AA26: =(($D26*'fnd base rates'!I$107) +($E26*'fnd base rates'!I$108) +($F26*'fnd base rates'!I$109) +($G26*'fnd base rates'!I$110) +($H26*'fnd base rates'!I$111) +($I26*'fnd base rates'!I$112) +($J26*'fnd base rates'!I$113) +($K26*'fnd base rates'!I$114) +($M26*'fnd base rates'!I$116) +($N26*'fnd base rates'!I$117) +($O26*'fnd base rates'!I$118) +($P26*VLOOKUP($S26+12,rate_basefnd,9))) *$R26 -> 579.38176 | AB26: =(($D26*'fnd base rates'!J$107) +($E26*'fnd base rates'!J$108) +($F26*'fnd base rates'!J$109) +($G26*'fnd base rates'!J$110) +($H26*'fnd base rates'!J$111) +($I26*'fnd base rates'!J$112) +($J26*'fnd base rates'!J$113) +($K26*'fnd base rates'!J$114) +($M26*'fnd base rates'!J$116) +($N26*'fnd base rates'!J$117) +($O26*'fnd base rates'!J$118) +($P26*VLOOKUP($S26+12,rate_basefnd,10))) *$R26 -> 1226.79616 | AC26: =(($D26*'fnd base rates'!K$107) +($E26*'fnd base rates'!K$108) +($F26*'fnd base rates'!K$109) +($G26*'fnd base rates'!K$110) +($H26*'fnd base rates'!K$111) +($I26*'fnd base rates'!K$112) +($J26*'fnd base rates'!K$113) +($K26*'fnd base rates'!K$114) +($M26*'fnd base rates'!K$116) +($N26*'fnd base rates'!K$117) +($O26*'fnd base rates'!K$118) +($P26*VLOOKUP($S26+12,rate_basefnd,11))) *$R26 -> 1251.265149 | AD26: =(($D26*'fnd base rates'!L$107) +($E26*'fnd base rates'!L$108) +($F26*'fnd base rates'!L$109) +($G26*'fnd base rates'!L$110) +($H26*'fnd base rates'!L$111) +($I26*'fnd base rates'!L$112) +($J26*'fnd base rates'!L$113) +($K26*'fnd base rates'!L$114) +($M26*'fnd base rates'!L$116) +($N26*'fnd base rates'!L$117) +($O26*'fnd base rates'!L$118) +($P26*VLOOKUP($S26+12,rate_basefnd,12))) -> 1794.88668 | AE26: =(($D26*'fnd base rates'!M$107) +($E26*'fnd base rates'!M$108) +($F26*'fnd base rates'!M$109) +($G26*'fnd base rates'!M$110) +($H26*'fnd base rates'!M$111) +($I26*'fnd base rates'!M$112) +($J26*'fnd base rates'!M$113) +($K26*'fnd base rates'!M$114) +($M26*'fnd base rates'!M$116) +($N26*'fnd base rates'!M$117) +($O26*'fnd base rates'!M$118) +($P26*VLOOKUP($S26+12,rate_basefnd,13))) -> 0 | AF26: 16961.64974 | AH26: 410035217 | AI26: 410 | AJ26: 035 | AK26: 217 | AL26: 1 | AM26: 1 | AN26: 16961.64974 | AO26: 16962 | AP26: 0 | AQ26: 16962 | AW26: 16962 | AX26: 0 | AY26: 16962 | BB26: =BC26-BA26 -> 0
A27: 410 | B27: 410035244 | C27: EXCEL ACADEMY | D27: ='fnd enro'!D27 -> 0 | E27: ='fnd enro'!E27 -> 0 | F27: ='fnd enro'!F27 -> 0 | G27: ='fnd enro'!G27 -> 0 | H27: ='fnd enro'!H27 -> 0 | I27: ='fnd enro'!I27 -> 1 | J27: ='fnd enro'!J27 -> 0 | K27: ='fnd enro'!K27 -> 0.0386 | L27: ='fnd enro'!L27 -> 0 | M27: ='fnd enro'!M27 -> 0 | N27: ='fnd enro'!N27 -> 0 | O27: ='fnd enro'!O27 -> 0 | P27: ='fnd enro'!P27 -> 1 | Q27: ='fnd enro'!R27 -> 1 | R27: 1.088 | S27: =VALUE('fnd enro'!Q27) -> 10 | U27: =(($D27*'fnd base rates'!C$107) +($E27*'fnd base rates'!C$108) +($F27*'fnd base rates'!C$109) +($G27*'fnd base rates'!C$110) +($H27*'fnd base rates'!C$111) +($I27*'fnd base rates'!C$112) +($J27*'fnd base rates'!C$113) +($K27*'fnd base rates'!C$114) +($M27*'fnd base rates'!C$116) +($N27*'fnd base rates'!C$117) +($O27*'fnd base rates'!C$118) +($P27*VLOOKUP($S27+12,rate_basefnd,3))) *$R27 -> 669.9592244 | V27: =(($D27*'fnd base rates'!D$107) +($E27*'fnd base rates'!D$108) +($F27*'fnd base rates'!D$109) +($G27*'fnd base rates'!D$110) +($H27*'fnd base rates'!D$111) +($I27*'fnd base rates'!D$112) +($J27*'fnd base rates'!D$113) +($K27*'fnd base rates'!D$114) +($M27*'fnd base rates'!D$116) +($N27*'fnd base rates'!D$117) +($O27*'fnd base rates'!D$118) +($P27*VLOOKUP($S27+12,rate_basefnd,4))) *$R27 -> 1241.27744 | W27: =(($D27*'fnd base rates'!E$107) +($E27*'fnd base rates'!E$108) +($F27*'fnd base rates'!E$109) +($G27*'fnd base rates'!E$110) +($H27*'fnd base rates'!E$111) +($I27*'fnd base rates'!E$112) +($J27*'fnd base rates'!E$113) +($K27*'fnd base rates'!E$114) +($M27*'fnd base rates'!E$116) +($N27*'fnd base rates'!E$117) +($O27*'fnd base rates'!E$118) +($P27*VLOOKUP($S27+12,rate_basefnd,5))) *$R27 -> 9335.736729 | X27: =(($D27*'fnd base rates'!F$107) +($E27*'fnd base rates'!F$108) +($F27*'fnd base rates'!F$109) +($G27*'fnd base rates'!F$110) +($H27*'fnd base rates'!F$111) +($I27*'fnd base rates'!F$112) +($J27*'fnd base rates'!F$113) +($K27*'fnd base rates'!F$114) +($M27*'fnd base rates'!F$116) +($N27*'fnd base rates'!F$117) +($O27*'fnd base rates'!F$118) +($P27*VLOOKUP($S27+12,rate_basefnd,6))) *$R27 -> 964.9324163 | Y27: =(($D27*'fnd base rates'!G$107) +($E27*'fnd base rates'!G$108) +($F27*'fnd base rates'!G$109) +($G27*'fnd base rates'!G$110) +($H27*'fnd base rates'!G$111) +($I27*'fnd base rates'!G$112) +($J27*'fnd base rates'!G$113) +($K27*'fnd base rates'!G$114) +($M27*'fnd base rates'!G$116) +($N27*'fnd base rates'!G$117) +($O27*'fnd base rates'!G$118) +($P27*VLOOKUP($S27+12,rate_basefnd,7))) *$R27 -> 371.9363708 | Z27: =(($D27*'fnd base rates'!H$107) +($E27*'fnd base rates'!H$108) +($F27*'fnd base rates'!H$109) +($G27*'fnd base rates'!H$110) +($H27*'fnd base rates'!H$111) +($I27*'fnd base rates'!H$112) +($J27*'fnd base rates'!H$113) +($K27*'fnd base rates'!H$114) +($M27*'fnd base rates'!H$116) +($N27*'fnd base rates'!H$117) +($O27*'fnd base rates'!H$118) +($P27*VLOOKUP($S27+12,rate_basefnd,8))) -> 855.358934 | AA27: =(($D27*'fnd base rates'!I$107) +($E27*'fnd base rates'!I$108) +($F27*'fnd base rates'!I$109) +($G27*'fnd base rates'!I$110) +($H27*'fnd base rates'!I$111) +($I27*'fnd base rates'!I$112) +($J27*'fnd base rates'!I$113) +($K27*'fnd base rates'!I$114) +($M27*'fnd base rates'!I$116) +($N27*'fnd base rates'!I$117) +($O27*'fnd base rates'!I$118) +($P27*VLOOKUP($S27+12,rate_basefnd,9))) *$R27 -> 625.04512 | AB27: =(($D27*'fnd base rates'!J$107) +($E27*'fnd base rates'!J$108) +($F27*'fnd base rates'!J$109) +($G27*'fnd base rates'!J$110) +($H27*'fnd base rates'!J$111) +($I27*'fnd base rates'!J$112) +($J27*'fnd base rates'!J$113) +($K27*'fnd base rates'!J$114) +($M27*'fnd base rates'!J$116) +($N27*'fnd base rates'!J$117) +($O27*'fnd base rates'!J$118) +($P27*VLOOKUP($S27+12,rate_basefnd,10))) *$R27 -> 1464.05632 | AC27: =(($D27*'fnd base rates'!K$107) +($E27*'fnd base rates'!K$108) +($F27*'fnd base rates'!K$109) +($G27*'fnd base rates'!K$110) +($H27*'fnd base rates'!K$111) +($I27*'fnd base rates'!K$112) +($J27*'fnd base rates'!K$113) +($K27*'fnd base rates'!K$114) +($M27*'fnd base rates'!K$116) +($N27*'fnd base rates'!K$117) +($O27*'fnd base rates'!K$118) +($P27*VLOOKUP($S27+12,rate_basefnd,11))) *$R27 -> 1251.265149 | AD27: =(($D27*'fnd base rates'!L$107) +($E27*'fnd base rates'!L$108) +($F27*'fnd base rates'!L$109) +($G27*'fnd base rates'!L$110) +($H27*'fnd base rates'!L$111) +($I27*'fnd base rates'!L$112) +($J27*'fnd base rates'!L$113) +($K27*'fnd base rates'!L$114) +($M27*'fnd base rates'!L$116) +($N27*'fnd base rates'!L$117) +($O27*'fnd base rates'!L$118) +($P27*VLOOKUP($S27+12,rate_basefnd,12))) -> 1962.52668 | AE27: =(($D27*'fnd base rates'!M$107) +($E27*'fnd base rates'!M$108) +($F27*'fnd base rates'!M$109) +($G27*'fnd base rates'!M$110) +($H27*'fnd base rates'!M$111) +($I27*'fnd base rates'!M$112) +($J27*'fnd base rates'!M$113) +($K27*'fnd base rates'!M$114) +($M27*'fnd base rates'!M$116) +($N27*'fnd base rates'!M$117) +($O27*'fnd base rates'!M$118) +($P27*VLOOKUP($S27+12,rate_basefnd,13))) -> 0 | AF27: 18742.09438 | AH27: 410035244 | AI27: 410 | AJ27: 035 | AK27: 244 | AL27: 1 | AM27: 1 | AN27: 18742.09438 | AO27: 18742 | AP27: 0 | AQ27: 18742 | AW27: 18742 | AX27: 0 | AY27: 18742 | BB27: =BC27-BA27 -> 0
A28: 410 | B28: 410035248 | C28: EXCEL ACADEMY | D28: ='fnd enro'!D28 -> 0 | E28: ='fnd enro'!E28 -> 0 | F28: ='fnd enro'!F28 -> 0 | G28: ='fnd enro'!G28 -> 0 | H28: ='fnd enro'!H28 -> 15 | I28: ='fnd enro'!I28 -> 42 | J28: ='fnd enro'!J28 -> 0 | K28: ='fnd enro'!K28 -> 2.2002 | L28: ='fnd enro'!L28 -> 0 | M28: ='fnd enro'!M28 -> 0 | N28: ='fnd enro'!N28 -> 4 | O28: ='fnd enro'!O28 -> 2 | P28: ='fnd enro'!P28 -> 35 | Q28: ='fnd enro'!R28 -> 57 | R28: 1.088 | S28: =VALUE('fnd enro'!Q28) -> 11 | U28: =(($D28*'fnd base rates'!C$107) +($E28*'fnd base rates'!C$108) +($F28*'fnd base rates'!C$109) +($G28*'fnd base rates'!C$110) +($H28*'fnd base rates'!C$111) +($I28*'fnd base rates'!C$112) +($J28*'fnd base rates'!C$113) +($K28*'fnd base rates'!C$114) +($M28*'fnd base rates'!C$116) +($N28*'fnd base rates'!C$117) +($O28*'fnd base rates'!C$118) +($P28*VLOOKUP($S28+12,rate_basefnd,3))) *$R28 -> 37134.89435 | V28: =(($D28*'fnd base rates'!D$107) +($E28*'fnd base rates'!D$108) +($F28*'fnd base rates'!D$109) +($G28*'fnd base rates'!D$110) +($H28*'fnd base rates'!D$111) +($I28*'fnd base rates'!D$112) +($J28*'fnd base rates'!D$113) +($K28*'fnd base rates'!D$114) +($M28*'fnd base rates'!D$116) +($N28*'fnd base rates'!D$117) +($O28*'fnd base rates'!D$118) +($P28*VLOOKUP($S28+12,rate_basefnd,4))) *$R28 -> 63726.18368 | W28: =(($D28*'fnd base rates'!E$107) +($E28*'fnd base rates'!E$108) +($F28*'fnd base rates'!E$109) +($G28*'fnd base rates'!E$110) +($H28*'fnd base rates'!E$111) +($I28*'fnd base rates'!E$112) +($J28*'fnd base rates'!E$113) +($K28*'fnd base rates'!E$114) +($M28*'fnd base rates'!E$116) +($N28*'fnd base rates'!E$117) +($O28*'fnd base rates'!E$118) +($P28*VLOOKUP($S28+12,rate_basefnd,5))) *$R28 -> 436546.6409 | X28: =(($D28*'fnd base rates'!F$107) +($E28*'fnd base rates'!F$108) +($F28*'fnd base rates'!F$109) +($G28*'fnd base rates'!F$110) +($H28*'fnd base rates'!F$111) +($I28*'fnd base rates'!F$112) +($J28*'fnd base rates'!F$113) +($K28*'fnd base rates'!F$114) +($M28*'fnd base rates'!F$116) +($N28*'fnd base rates'!F$117) +($O28*'fnd base rates'!F$118) +($P28*VLOOKUP($S28+12,rate_basefnd,6))) *$R28 -> 57964.15253 | Y28: =(($D28*'fnd base rates'!G$107) +($E28*'fnd base rates'!G$108) +($F28*'fnd base rates'!G$109) +($G28*'fnd base rates'!G$110) +($H28*'fnd base rates'!G$111) +($I28*'fnd base rates'!G$112) +($J28*'fnd base rates'!G$113) +($K28*'fnd base rates'!G$114) +($M28*'fnd base rates'!G$116) +($N28*'fnd base rates'!G$117) +($O28*'fnd base rates'!G$118) +($P28*VLOOKUP($S28+12,rate_basefnd,7))) *$R28 -> 17723.59298 | Z28: =(($D28*'fnd base rates'!H$107) +($E28*'fnd base rates'!H$108) +($F28*'fnd base rates'!H$109) +($G28*'fnd base rates'!H$110) +($H28*'fnd base rates'!H$111) +($I28*'fnd base rates'!H$112) +($J28*'fnd base rates'!H$113) +($K28*'fnd base rates'!H$114) +($M28*'fnd base rates'!H$116) +($N28*'fnd base rates'!H$117) +($O28*'fnd base rates'!H$118) +($P28*VLOOKUP($S28+12,rate_basefnd,8))) -> 44420.33924 | AA28: =(($D28*'fnd base rates'!I$107) +($E28*'fnd base rates'!I$108) +($F28*'fnd base rates'!I$109) +($G28*'fnd base rates'!I$110) +($H28*'fnd base rates'!I$111) +($I28*'fnd base rates'!I$112) +($J28*'fnd base rates'!I$113) +($K28*'fnd base rates'!I$114) +($M28*'fnd base rates'!I$116) +($N28*'fnd base rates'!I$117) +($O28*'fnd base rates'!I$118) +($P28*VLOOKUP($S28+12,rate_basefnd,9))) *$R28 -> 31857.64096 | AB28: =(($D28*'fnd base rates'!J$107) +($E28*'fnd base rates'!J$108) +($F28*'fnd base rates'!J$109) +($G28*'fnd base rates'!J$110) +($H28*'fnd base rates'!J$111) +($I28*'fnd base rates'!J$112) +($J28*'fnd base rates'!J$113) +($K28*'fnd base rates'!J$114) +($M28*'fnd base rates'!J$116) +($N28*'fnd base rates'!J$117) +($O28*'fnd base rates'!J$118) +($P28*VLOOKUP($S28+12,rate_basefnd,10))) *$R28 -> 61437.37984 | AC28: =(($D28*'fnd base rates'!K$107) +($E28*'fnd base rates'!K$108) +($F28*'fnd base rates'!K$109) +($G28*'fnd base rates'!K$110) +($H28*'fnd base rates'!K$111) +($I28*'fnd base rates'!K$112) +($J28*'fnd base rates'!K$113) +($K28*'fnd base rates'!K$114) +($M28*'fnd base rates'!K$116) +($N28*'fnd base rates'!K$117) +($O28*'fnd base rates'!K$118) +($P28*VLOOKUP($S28+12,rate_basefnd,11))) *$R28 -> 73890.16344 | AD28: =(($D28*'fnd base rates'!L$107) +($E28*'fnd base rates'!L$108) +($F28*'fnd base rates'!L$109) +($G28*'fnd base rates'!L$110) +($H28*'fnd base rates'!L$111) +($I28*'fnd base rates'!L$112) +($J28*'fnd base rates'!L$113) +($K28*'fnd base rates'!L$114) +($M28*'fnd base rates'!L$116) +($N28*'fnd base rates'!L$117) +($O28*'fnd base rates'!L$118) +($P28*VLOOKUP($S28+12,rate_basefnd,12))) -> 103808.4008 | AE28: =(($D28*'fnd base rates'!M$107) +($E28*'fnd base rates'!M$108) +($F28*'fnd base rates'!M$109) +($G28*'fnd base rates'!M$110) +($H28*'fnd base rates'!M$111) +($I28*'fnd base rates'!M$112) +($J28*'fnd base rates'!M$113) +($K28*'fnd base rates'!M$114) +($M28*'fnd base rates'!M$116) +($N28*'fnd base rates'!M$117) +($O28*'fnd base rates'!M$118) +($P28*VLOOKUP($S28+12,rate_basefnd,13))) -> 0 | AF28: 928509.3887 | AH28: 410035248 | AI28: 410 | AJ28: 035 | AK28: 248 | AL28: 1 | AM28: 57 | AN28: 928509.3887 | AO28: 16290 | AP28: 0 | AQ28: 16290 | AW28: 16290 | AX28: 0 | AY28: 16290 | BB28: =BC28-BA28 -> 0
A29: 410 | B29: 410035262 | C29: EXCEL ACADEMY | D29: ='fnd enro'!D29 -> 0 | E29: ='fnd enro'!E29 -> 0 | F29: ='fnd enro'!F29 -> 0 | G29: ='fnd enro'!G29 -> 0 | H29: ='fnd enro'!H29 -> 0 | I29: ='fnd enro'!I29 -> 4 | J29: ='fnd enro'!J29 -> 0 | K29: ='fnd enro'!K29 -> 0.1544 | L29: ='fnd enro'!L29 -> 0 | M29: ='fnd enro'!M29 -> 0 | N29: ='fnd enro'!N29 -> 0 | O29: ='fnd enro'!O29 -> 1 | P29: ='fnd enro'!P29 -> 4 | Q29: ='fnd enro'!R29 -> 4 | R29: 1.088 | S29: =VALUE('fnd enro'!Q29) -> 9 | U29: =(($D29*'fnd base rates'!C$107) +($E29*'fnd base rates'!C$108) +($F29*'fnd base rates'!C$109) +($G29*'fnd base rates'!C$110) +($H29*'fnd base rates'!C$111) +($I29*'fnd base rates'!C$112) +($J29*'fnd base rates'!C$113) +($K29*'fnd base rates'!C$114) +($M29*'fnd base rates'!C$116) +($N29*'fnd base rates'!C$117) +($O29*'fnd base rates'!C$118) +($P29*VLOOKUP($S29+12,rate_basefnd,3))) *$R29 -> 2772.784738 | V29: =(($D29*'fnd base rates'!D$107) +($E29*'fnd base rates'!D$108) +($F29*'fnd base rates'!D$109) +($G29*'fnd base rates'!D$110) +($H29*'fnd base rates'!D$111) +($I29*'fnd base rates'!D$112) +($J29*'fnd base rates'!D$113) +($K29*'fnd base rates'!D$114) +($M29*'fnd base rates'!D$116) +($N29*'fnd base rates'!D$117) +($O29*'fnd base rates'!D$118) +($P29*VLOOKUP($S29+12,rate_basefnd,4))) *$R29 -> 5081.41696 | W29: =(($D29*'fnd base rates'!E$107) +($E29*'fnd base rates'!E$108) +($F29*'fnd base rates'!E$109) +($G29*'fnd base rates'!E$110) +($H29*'fnd base rates'!E$111) +($I29*'fnd base rates'!E$112) +($J29*'fnd base rates'!E$113) +($K29*'fnd base rates'!E$114) +($M29*'fnd base rates'!E$116) +($N29*'fnd base rates'!E$117) +($O29*'fnd base rates'!E$118) +($P29*VLOOKUP($S29+12,rate_basefnd,5))) *$R29 -> 37954.66404 | X29: =(($D29*'fnd base rates'!F$107) +($E29*'fnd base rates'!F$108) +($F29*'fnd base rates'!F$109) +($G29*'fnd base rates'!F$110) +($H29*'fnd base rates'!F$111) +($I29*'fnd base rates'!F$112) +($J29*'fnd base rates'!F$113) +($K29*'fnd base rates'!F$114) +($M29*'fnd base rates'!F$116) +($N29*'fnd base rates'!F$117) +($O29*'fnd base rates'!F$118) +($P29*VLOOKUP($S29+12,rate_basefnd,6))) *$R29 -> 4049.411585 | Y29: =(($D29*'fnd base rates'!G$107) +($E29*'fnd base rates'!G$108) +($F29*'fnd base rates'!G$109) +($G29*'fnd base rates'!G$110) +($H29*'fnd base rates'!G$111) +($I29*'fnd base rates'!G$112) +($J29*'fnd base rates'!G$113) +($K29*'fnd base rates'!G$114) +($M29*'fnd base rates'!G$116) +($N29*'fnd base rates'!G$117) +($O29*'fnd base rates'!G$118) +($P29*VLOOKUP($S29+12,rate_basefnd,7))) *$R29 -> 1507.198923 | Z29: =(($D29*'fnd base rates'!H$107) +($E29*'fnd base rates'!H$108) +($F29*'fnd base rates'!H$109) +($G29*'fnd base rates'!H$110) +($H29*'fnd base rates'!H$111) +($I29*'fnd base rates'!H$112) +($J29*'fnd base rates'!H$113) +($K29*'fnd base rates'!H$114) +($M29*'fnd base rates'!H$116) +($N29*'fnd base rates'!H$117) +($O29*'fnd base rates'!H$118) +($P29*VLOOKUP($S29+12,rate_basefnd,8))) -> 3541.075736 | AA29: =(($D29*'fnd base rates'!I$107) +($E29*'fnd base rates'!I$108) +($F29*'fnd base rates'!I$109) +($G29*'fnd base rates'!I$110) +($H29*'fnd base rates'!I$111) +($I29*'fnd base rates'!I$112) +($J29*'fnd base rates'!I$113) +($K29*'fnd base rates'!I$114) +($M29*'fnd base rates'!I$116) +($N29*'fnd base rates'!I$117) +($O29*'fnd base rates'!I$118) +($P29*VLOOKUP($S29+12,rate_basefnd,9))) *$R29 -> 2552.43712 | AB29: =(($D29*'fnd base rates'!J$107) +($E29*'fnd base rates'!J$108) +($F29*'fnd base rates'!J$109) +($G29*'fnd base rates'!J$110) +($H29*'fnd base rates'!J$111) +($I29*'fnd base rates'!J$112) +($J29*'fnd base rates'!J$113) +($K29*'fnd base rates'!J$114) +($M29*'fnd base rates'!J$116) +($N29*'fnd base rates'!J$117) +($O29*'fnd base rates'!J$118) +($P29*VLOOKUP($S29+12,rate_basefnd,10))) *$R29 -> 5732.66112 | AC29: =(($D29*'fnd base rates'!K$107) +($E29*'fnd base rates'!K$108) +($F29*'fnd base rates'!K$109) +($G29*'fnd base rates'!K$110) +($H29*'fnd base rates'!K$111) +($I29*'fnd base rates'!K$112) +($J29*'fnd base rates'!K$113) +($K29*'fnd base rates'!K$114) +($M29*'fnd base rates'!K$116) +($N29*'fnd base rates'!K$117) +($O29*'fnd base rates'!K$118) +($P29*VLOOKUP($S29+12,rate_basefnd,11))) *$R29 -> 5330.220278 | AD29: =(($D29*'fnd base rates'!L$107) +($E29*'fnd base rates'!L$108) +($F29*'fnd base rates'!L$109) +($G29*'fnd base rates'!L$110) +($H29*'fnd base rates'!L$111) +($I29*'fnd base rates'!L$112) +($J29*'fnd base rates'!L$113) +($K29*'fnd base rates'!L$114) +($M29*'fnd base rates'!L$116) +($N29*'fnd base rates'!L$117) +($O29*'fnd base rates'!L$118) +($P29*VLOOKUP($S29+12,rate_basefnd,12))) -> 8017.58672 | AE29: =(($D29*'fnd base rates'!M$107) +($E29*'fnd base rates'!M$108) +($F29*'fnd base rates'!M$109) +($G29*'fnd base rates'!M$110) +($H29*'fnd base rates'!M$111) +($I29*'fnd base rates'!M$112) +($J29*'fnd base rates'!M$113) +($K29*'fnd base rates'!M$114) +($M29*'fnd base rates'!M$116) +($N29*'fnd base rates'!M$117) +($O29*'fnd base rates'!M$118) +($P29*VLOOKUP($S29+12,rate_basefnd,13))) -> 0 | AF29: 76539.45722 | AH29: 410035262 | AI29: 410 | AJ29: 035 | AK29: 262 | AL29: 1 | AM29: 4 | AN29: 76539.45722 | AO29: 19135 | AP29: 0 | AQ29: 19135 | AW29: 19135 | AX29: 0 | AY29: 19135 | BB29: =BC29-BA29 -> 0
A30: 410 | B30: 410035346 | C30: EXCEL ACADEMY | D30: ='fnd enro'!D30 -> 0 | E30: ='fnd enro'!E30 -> 0 | F30: ='fnd enro'!F30 -> 0 | G30: ='fnd enro'!G30 -> 1 | H30: ='fnd enro'!H30 -> 6 | I30: ='fnd enro'!I30 -> 3 | J30: ='fnd enro'!J30 -> 0 | K30: ='fnd enro'!K30 -> 0.386 | L30: ='fnd enro'!L30 -> 0 | M30: ='fnd enro'!M30 -> 0 | N30: ='fnd enro'!N30 -> 0 | O30: ='fnd enro'!O30 -> 1 | P30: ='fnd enro'!P30 -> 6 | Q30: ='fnd enro'!R30 -> 10 | R30: 1.088 | S30: =VALUE('fnd enro'!Q30) -> 8 | U30: =(($D30*'fnd base rates'!C$107) +($E30*'fnd base rates'!C$108) +($F30*'fnd base rates'!C$109) +($G30*'fnd base rates'!C$110) +($H30*'fnd base rates'!C$111) +($I30*'fnd base rates'!C$112) +($J30*'fnd base rates'!C$113) +($K30*'fnd base rates'!C$114) +($M30*'fnd base rates'!C$116) +($N30*'fnd base rates'!C$117) +($O30*'fnd base rates'!C$118) +($P30*VLOOKUP($S30+12,rate_basefnd,3))) *$R30 -> 6416.418484 | V30: =(($D30*'fnd base rates'!D$107) +($E30*'fnd base rates'!D$108) +($F30*'fnd base rates'!D$109) +($G30*'fnd base rates'!D$110) +($H30*'fnd base rates'!D$111) +($I30*'fnd base rates'!D$112) +($J30*'fnd base rates'!D$113) +($K30*'fnd base rates'!D$114) +($M30*'fnd base rates'!D$116) +($N30*'fnd base rates'!D$117) +($O30*'fnd base rates'!D$118) +($P30*VLOOKUP($S30+12,rate_basefnd,4))) *$R30 -> 10746.85056 | W30: =(($D30*'fnd base rates'!E$107) +($E30*'fnd base rates'!E$108) +($F30*'fnd base rates'!E$109) +($G30*'fnd base rates'!E$110) +($H30*'fnd base rates'!E$111) +($I30*'fnd base rates'!E$112) +($J30*'fnd base rates'!E$113) +($K30*'fnd base rates'!E$114) +($M30*'fnd base rates'!E$116) +($N30*'fnd base rates'!E$117) +($O30*'fnd base rates'!E$118) +($P30*VLOOKUP($S30+12,rate_basefnd,5))) *$R30 -> 65965.91193 | X30: =(($D30*'fnd base rates'!F$107) +($E30*'fnd base rates'!F$108) +($F30*'fnd base rates'!F$109) +($G30*'fnd base rates'!F$110) +($H30*'fnd base rates'!F$111) +($I30*'fnd base rates'!F$112) +($J30*'fnd base rates'!F$113) +($K30*'fnd base rates'!F$114) +($M30*'fnd base rates'!F$116) +($N30*'fnd base rates'!F$117) +($O30*'fnd base rates'!F$118) +($P30*VLOOKUP($S30+12,rate_basefnd,6))) *$R30 -> 10939.51808 | Y30: =(($D30*'fnd base rates'!G$107) +($E30*'fnd base rates'!G$108) +($F30*'fnd base rates'!G$109) +($G30*'fnd base rates'!G$110) +($H30*'fnd base rates'!G$111) +($I30*'fnd base rates'!G$112) +($J30*'fnd base rates'!G$113) +($K30*'fnd base rates'!G$114) +($M30*'fnd base rates'!G$116) +($N30*'fnd base rates'!G$117) +($O30*'fnd base rates'!G$118) +($P30*VLOOKUP($S30+12,rate_basefnd,7))) *$R30 -> 2916.952828 | Z30: =(($D30*'fnd base rates'!H$107) +($E30*'fnd base rates'!H$108) +($F30*'fnd base rates'!H$109) +($G30*'fnd base rates'!H$110) +($H30*'fnd base rates'!H$111) +($I30*'fnd base rates'!H$112) +($J30*'fnd base rates'!H$113) +($K30*'fnd base rates'!H$114) +($M30*'fnd base rates'!H$116) +($N30*'fnd base rates'!H$117) +($O30*'fnd base rates'!H$118) +($P30*VLOOKUP($S30+12,rate_basefnd,8))) -> 6421.86934 | AA30: =(($D30*'fnd base rates'!I$107) +($E30*'fnd base rates'!I$108) +($F30*'fnd base rates'!I$109) +($G30*'fnd base rates'!I$110) +($H30*'fnd base rates'!I$111) +($I30*'fnd base rates'!I$112) +($J30*'fnd base rates'!I$113) +($K30*'fnd base rates'!I$114) +($M30*'fnd base rates'!I$116) +($N30*'fnd base rates'!I$117) +($O30*'fnd base rates'!I$118) +($P30*VLOOKUP($S30+12,rate_basefnd,9))) *$R30 -> 5055.21792 | AB30: =(($D30*'fnd base rates'!J$107) +($E30*'fnd base rates'!J$108) +($F30*'fnd base rates'!J$109) +($G30*'fnd base rates'!J$110) +($H30*'fnd base rates'!J$111) +($I30*'fnd base rates'!J$112) +($J30*'fnd base rates'!J$113) +($K30*'fnd base rates'!J$114) +($M30*'fnd base rates'!J$116) +($N30*'fnd base rates'!J$117) +($O30*'fnd base rates'!J$118) +($P30*VLOOKUP($S30+12,rate_basefnd,10))) *$R30 -> 8276.61184 | AC30: =(($D30*'fnd base rates'!K$107) +($E30*'fnd base rates'!K$108) +($F30*'fnd base rates'!K$109) +($G30*'fnd base rates'!K$110) +($H30*'fnd base rates'!K$111) +($I30*'fnd base rates'!K$112) +($J30*'fnd base rates'!K$113) +($K30*'fnd base rates'!K$114) +($M30*'fnd base rates'!K$116) +($N30*'fnd base rates'!K$117) +($O30*'fnd base rates'!K$118) +($P30*VLOOKUP($S30+12,rate_basefnd,11))) *$R30 -> 12993.12317 | AD30: =(($D30*'fnd base rates'!L$107) +($E30*'fnd base rates'!L$108) +($F30*'fnd base rates'!L$109) +($G30*'fnd base rates'!L$110) +($H30*'fnd base rates'!L$111) +($I30*'fnd base rates'!L$112) +($J30*'fnd base rates'!L$113) +($K30*'fnd base rates'!L$114) +($M30*'fnd base rates'!L$116) +($N30*'fnd base rates'!L$117) +($O30*'fnd base rates'!L$118) +($P30*VLOOKUP($S30+12,rate_basefnd,12))) -> 18143.3168 | AE30: =(($D30*'fnd base rates'!M$107) +($E30*'fnd base rates'!M$108) +($F30*'fnd base rates'!M$109) +($G30*'fnd base rates'!M$110) +($H30*'fnd base rates'!M$111) +($I30*'fnd base rates'!M$112) +($J30*'fnd base rates'!M$113) +($K30*'fnd base rates'!M$114) +($M30*'fnd base rates'!M$116) +($N30*'fnd base rates'!M$117) +($O30*'fnd base rates'!M$118) +($P30*VLOOKUP($S30+12,rate_basefnd,13))) -> 0 | AF30: 147875.791 | AH30: 410035346 | AI30: 410 | AJ30: 035 | AK30: 346 | AL30: 1 | AM30: 10 | AN30: 147875.791 | AO30: 14788 | AP30: 0 | AQ30: 14788 | AW30: 14788 | AX30: 0 | AY30: 14788 | BB30: =BC30-BA30 -> 0
A31: 410 | B31: 410057035 | C31: EXCEL ACADEMY | D31: ='fnd enro'!D31 -> 0 | E31: ='fnd enro'!E31 -> 0 | F31: ='fnd enro'!F31 -> 0 | G31: ='fnd enro'!G31 -> 0 | H31: ='fnd enro'!H31 -> 13 | I31: ='fnd enro'!I31 -> 0 | J31: ='fnd enro'!J31 -> 0 | K31: ='fnd enro'!K31 -> 0.5018 | L31: ='fnd enro'!L31 -> 0 | M31: ='fnd enro'!M31 -> 0 | N31: ='fnd enro'!N31 -> 1 | O31: ='fnd enro'!O31 -> 0 | P31: ='fnd enro'!P31 -> 9 | Q31: ='fnd enro'!R31 -> 13 | R31: 1.04 | S31: =VALUE('fnd enro'!Q31) -> 11 | U31: =(($D31*'fnd base rates'!C$107) +($E31*'fnd base rates'!C$108) +($F31*'fnd base rates'!C$109) +($G31*'fnd base rates'!C$110) +($H31*'fnd base rates'!C$111) +($I31*'fnd base rates'!C$112) +($J31*'fnd base rates'!C$113) +($K31*'fnd base rates'!C$114) +($M31*'fnd base rates'!C$116) +($N31*'fnd base rates'!C$117) +($O31*'fnd base rates'!C$118) +($P31*VLOOKUP($S31+12,rate_basefnd,3))) *$R31 -> 8146.681398 | V31: =(($D31*'fnd base rates'!D$107) +($E31*'fnd base rates'!D$108) +($F31*'fnd base rates'!D$109) +($G31*'fnd base rates'!D$110) +($H31*'fnd base rates'!D$111) +($I31*'fnd base rates'!D$112) +($J31*'fnd base rates'!D$113) +($K31*'fnd base rates'!D$114) +($M31*'fnd base rates'!D$116) +($N31*'fnd base rates'!D$117) +($O31*'fnd base rates'!D$118) +($P31*VLOOKUP($S31+12,rate_basefnd,4))) *$R31 -> 14246.4296 | W31: =(($D31*'fnd base rates'!E$107) +($E31*'fnd base rates'!E$108) +($F31*'fnd base rates'!E$109) +($G31*'fnd base rates'!E$110) +($H31*'fnd base rates'!E$111) +($I31*'fnd base rates'!E$112) +($J31*'fnd base rates'!E$113) +($K31*'fnd base rates'!E$114) +($M31*'fnd base rates'!E$116) +($N31*'fnd base rates'!E$117) +($O31*'fnd base rates'!E$118) +($P31*VLOOKUP($S31+12,rate_basefnd,5))) *$R31 -> 84331.73308 | X31: =(($D31*'fnd base rates'!F$107) +($E31*'fnd base rates'!F$108) +($F31*'fnd base rates'!F$109) +($G31*'fnd base rates'!F$110) +($H31*'fnd base rates'!F$111) +($I31*'fnd base rates'!F$112) +($J31*'fnd base rates'!F$113) +($K31*'fnd base rates'!F$114) +($M31*'fnd base rates'!F$116) +($N31*'fnd base rates'!F$117) +($O31*'fnd base rates'!F$118) +($P31*VLOOKUP($S31+12,rate_basefnd,6))) *$R31 -> 13651.79229 | Y31: =(($D31*'fnd base rates'!G$107) +($E31*'fnd base rates'!G$108) +($F31*'fnd base rates'!G$109) +($G31*'fnd base rates'!G$110) +($H31*'fnd base rates'!G$111) +($I31*'fnd base rates'!G$112) +($J31*'fnd base rates'!G$113) +($K31*'fnd base rates'!G$114) +($M31*'fnd base rates'!G$116) +($N31*'fnd base rates'!G$117) +($O31*'fnd base rates'!G$118) +($P31*VLOOKUP($S31+12,rate_basefnd,7))) *$R31 -> 4089.220373 | Z31: =(($D31*'fnd base rates'!H$107) +($E31*'fnd base rates'!H$108) +($F31*'fnd base rates'!H$109) +($G31*'fnd base rates'!H$110) +($H31*'fnd base rates'!H$111) +($I31*'fnd base rates'!H$112) +($J31*'fnd base rates'!H$113) +($K31*'fnd base rates'!H$114) +($M31*'fnd base rates'!H$116) +($N31*'fnd base rates'!H$117) +($O31*'fnd base rates'!H$118) +($P31*VLOOKUP($S31+12,rate_basefnd,8))) -> 7196.996142 | AA31: =(($D31*'fnd base rates'!I$107) +($E31*'fnd base rates'!I$108) +($F31*'fnd base rates'!I$109) +($G31*'fnd base rates'!I$110) +($H31*'fnd base rates'!I$111) +($I31*'fnd base rates'!I$112) +($J31*'fnd base rates'!I$113) +($K31*'fnd base rates'!I$114) +($M31*'fnd base rates'!I$116) +($N31*'fnd base rates'!I$117) +($O31*'fnd base rates'!I$118) +($P31*VLOOKUP($S31+12,rate_basefnd,9))) *$R31 -> 6452.7216 | AB31: =(($D31*'fnd base rates'!J$107) +($E31*'fnd base rates'!J$108) +($F31*'fnd base rates'!J$109) +($G31*'fnd base rates'!J$110) +($H31*'fnd base rates'!J$111) +($I31*'fnd base rates'!J$112) +($J31*'fnd base rates'!J$113) +($K31*'fnd base rates'!J$114) +($M31*'fnd base rates'!J$116) +($N31*'fnd base rates'!J$117) +($O31*'fnd base rates'!J$118) +($P31*VLOOKUP($S31+12,rate_basefnd,10))) *$R31 -> 11008.556 | AC31: =(($D31*'fnd base rates'!K$107) +($E31*'fnd base rates'!K$108) +($F31*'fnd base rates'!K$109) +($G31*'fnd base rates'!K$110) +($H31*'fnd base rates'!K$111) +($I31*'fnd base rates'!K$112) +($J31*'fnd base rates'!K$113) +($K31*'fnd base rates'!K$114) +($M31*'fnd base rates'!K$116) +($N31*'fnd base rates'!K$117) +($O31*'fnd base rates'!K$118) +($P31*VLOOKUP($S31+12,rate_basefnd,11))) *$R31 -> 16315.89278 | AD31: =(($D31*'fnd base rates'!L$107) +($E31*'fnd base rates'!L$108) +($F31*'fnd base rates'!L$109) +($G31*'fnd base rates'!L$110) +($H31*'fnd base rates'!L$111) +($I31*'fnd base rates'!L$112) +($J31*'fnd base rates'!L$113) +($K31*'fnd base rates'!L$114) +($M31*'fnd base rates'!L$116) +($N31*'fnd base rates'!L$117) +($O31*'fnd base rates'!L$118) +($P31*VLOOKUP($S31+12,rate_basefnd,12))) -> 25586.09684 | AE31: =(($D31*'fnd base rates'!M$107) +($E31*'fnd base rates'!M$108) +($F31*'fnd base rates'!M$109) +($G31*'fnd base rates'!M$110) +($H31*'fnd base rates'!M$111) +($I31*'fnd base rates'!M$112) +($J31*'fnd base rates'!M$113) +($K31*'fnd base rates'!M$114) +($M31*'fnd base rates'!M$116) +($N31*'fnd base rates'!M$117) +($O31*'fnd base rates'!M$118) +($P31*VLOOKUP($S31+12,rate_basefnd,13))) -> 0 | AF31: 191026.1201 | AH31: 410057035 | AI31: 410 | AJ31: 057 | AK31: 035 | AL31: 1 | AM31: 13 | AN31: 191026.1201 | AO31: 14694 | AP31: 0 | AQ31: 14694 | AW31: 14694 | AX31: 0 | AY31: 14694 | BB31: =BC31-BA31 -> 0
A32: 410 | B32: 410057057 | C32: EXCEL ACADEMY | D32: ='fnd enro'!D32 -> 0 | E32: ='fnd enro'!E32 -> 0 | F32: ='fnd enro'!F32 -> 0 | G32: ='fnd enro'!G32 -> 52 | H32: ='fnd enro'!H32 -> 143 | I32: ='fnd enro'!I32 -> 0 | J32: ='fnd enro'!J32 -> 0 | K32: ='fnd enro'!K32 -> 7.527 | L32: ='fnd enro'!L32 -> 0 | M32: ='fnd enro'!M32 -> 11 | N32: ='fnd enro'!N32 -> 11 | O32: ='fnd enro'!O32 -> 0 | P32: ='fnd enro'!P32 -> 146 | Q32: ='fnd enro'!R32 -> 195 | R32: 1.04 | S32: =VALUE('fnd enro'!Q32) -> 12 | U32: =(($D32*'fnd base rates'!C$107) +($E32*'fnd base rates'!C$108) +($F32*'fnd base rates'!C$109) +($G32*'fnd base rates'!C$110) +($H32*'fnd base rates'!C$111) +($I32*'fnd base rates'!C$112) +($J32*'fnd base rates'!C$113) +($K32*'fnd base rates'!C$114) +($M32*'fnd base rates'!C$116) +($N32*'fnd base rates'!C$117) +($O32*'fnd base rates'!C$118) +($P32*VLOOKUP($S32+12,rate_basefnd,3))) *$R32 -> 124522.853 | V32: =(($D32*'fnd base rates'!D$107) +($E32*'fnd base rates'!D$108) +($F32*'fnd base rates'!D$109) +($G32*'fnd base rates'!D$110) +($H32*'fnd base rates'!D$111) +($I32*'fnd base rates'!D$112) +($J32*'fnd base rates'!D$113) +($K32*'fnd base rates'!D$114) +($M32*'fnd base rates'!D$116) +($N32*'fnd base rates'!D$117) +($O32*'fnd base rates'!D$118) +($P32*VLOOKUP($S32+12,rate_basefnd,4))) *$R32 -> 222572.6568 | W32: =(($D32*'fnd base rates'!E$107) +($E32*'fnd base rates'!E$108) +($F32*'fnd base rates'!E$109) +($G32*'fnd base rates'!E$110) +($H32*'fnd base rates'!E$111) +($I32*'fnd base rates'!E$112) +($J32*'fnd base rates'!E$113) +($K32*'fnd base rates'!E$114) +($M32*'fnd base rates'!E$116) +($N32*'fnd base rates'!E$117) +($O32*'fnd base rates'!E$118) +($P32*VLOOKUP($S32+12,rate_basefnd,5))) *$R32 -> 1370937.051 | X32: =(($D32*'fnd base rates'!F$107) +($E32*'fnd base rates'!F$108) +($F32*'fnd base rates'!F$109) +($G32*'fnd base rates'!F$110) +($H32*'fnd base rates'!F$111) +($I32*'fnd base rates'!F$112) +($J32*'fnd base rates'!F$113) +($K32*'fnd base rates'!F$114) +($M32*'fnd base rates'!F$116) +($N32*'fnd base rates'!F$117) +($O32*'fnd base rates'!F$118) +($P32*VLOOKUP($S32+12,rate_basefnd,6))) *$R32 -> 219656.726 | Y32: =(($D32*'fnd base rates'!G$107) +($E32*'fnd base rates'!G$108) +($F32*'fnd base rates'!G$109) +($G32*'fnd base rates'!G$110) +($H32*'fnd base rates'!G$111) +($I32*'fnd base rates'!G$112) +($J32*'fnd base rates'!G$113) +($K32*'fnd base rates'!G$114) +($M32*'fnd base rates'!G$116) +($N32*'fnd base rates'!G$117) +($O32*'fnd base rates'!G$118) +($P32*VLOOKUP($S32+12,rate_basefnd,7))) *$R32 -> 64675.93599 | Z32: =(($D32*'fnd base rates'!H$107) +($E32*'fnd base rates'!H$108) +($F32*'fnd base rates'!H$109) +($G32*'fnd base rates'!H$110) +($H32*'fnd base rates'!H$111) +($I32*'fnd base rates'!H$112) +($J32*'fnd base rates'!H$113) +($K32*'fnd base rates'!H$114) +($M32*'fnd base rates'!H$116) +($N32*'fnd base rates'!H$117) +($O32*'fnd base rates'!H$118) +($P32*VLOOKUP($S32+12,rate_basefnd,8))) -> 109344.3121 | AA32: =(($D32*'fnd base rates'!I$107) +($E32*'fnd base rates'!I$108) +($F32*'fnd base rates'!I$109) +($G32*'fnd base rates'!I$110) +($H32*'fnd base rates'!I$111) +($I32*'fnd base rates'!I$112) +($J32*'fnd base rates'!I$113) +($K32*'fnd base rates'!I$114) +($M32*'fnd base rates'!I$116) +($N32*'fnd base rates'!I$117) +($O32*'fnd base rates'!I$118) +($P32*VLOOKUP($S32+12,rate_basefnd,9))) *$R32 -> 97294.1112 | AB32: =(($D32*'fnd base rates'!J$107) +($E32*'fnd base rates'!J$108) +($F32*'fnd base rates'!J$109) +($G32*'fnd base rates'!J$110) +($H32*'fnd base rates'!J$111) +($I32*'fnd base rates'!J$112) +($J32*'fnd base rates'!J$113) +($K32*'fnd base rates'!J$114) +($M32*'fnd base rates'!J$116) +($N32*'fnd base rates'!J$117) +($O32*'fnd base rates'!J$118) +($P32*VLOOKUP($S32+12,rate_basefnd,10))) *$R32 -> 175755.632 | AC32: =(($D32*'fnd base rates'!K$107) +($E32*'fnd base rates'!K$108) +($F32*'fnd base rates'!K$109) +($G32*'fnd base rates'!K$110) +($H32*'fnd base rates'!K$111) +($I32*'fnd base rates'!K$112) +($J32*'fnd base rates'!K$113) +($K32*'fnd base rates'!K$114) +($M32*'fnd base rates'!K$116) +($N32*'fnd base rates'!K$117) +($O32*'fnd base rates'!K$118) +($P32*VLOOKUP($S32+12,rate_basefnd,11))) *$R32 -> 242445.6389 | AD32: =(($D32*'fnd base rates'!L$107) +($E32*'fnd base rates'!L$108) +($F32*'fnd base rates'!L$109) +($G32*'fnd base rates'!L$110) +($H32*'fnd base rates'!L$111) +($I32*'fnd base rates'!L$112) +($J32*'fnd base rates'!L$113) +($K32*'fnd base rates'!L$114) +($M32*'fnd base rates'!L$116) +($N32*'fnd base rates'!L$117) +($O32*'fnd base rates'!L$118) +($P32*VLOOKUP($S32+12,rate_basefnd,12))) -> 393809.5526 | AE32: =(($D32*'fnd base rates'!M$107) +($E32*'fnd base rates'!M$108) +($F32*'fnd base rates'!M$109) +($G32*'fnd base rates'!M$110) +($H32*'fnd base rates'!M$111) +($I32*'fnd base rates'!M$112) +($J32*'fnd base rates'!M$113) +($K32*'fnd base rates'!M$114) +($M32*'fnd base rates'!M$116) +($N32*'fnd base rates'!M$117) +($O32*'fnd base rates'!M$118) +($P32*VLOOKUP($S32+12,rate_basefnd,13))) -> 0 | AF32: 3021014.47 | AH32: 410057057 | AI32: 410 | AJ32: 057 | AK32: 057 | AL32: 1 | AM32: 195 | AN32: 3021014.47 | AO32: 15492 | AP32: 0 | AQ32: 15492 | AW32: 15492 | AX32: 0 | AY32: 15492 | BB32: =BC32-BA32 -> 0
A33: 410 | B33: 410057093 | C33: EXCEL ACADEMY | D33: ='fnd enro'!D33 -> 0 | E33: ='fnd enro'!E33 -> 0 | F33: ='fnd enro'!F33 -> 0 | G33: ='fnd enro'!G33 -> 2 | H33: ='fnd enro'!H33 -> 1 | I33: ='fnd enro'!I33 -> 0 | J33: ='fnd enro'!J33 -> 0 | K33: ='fnd enro'!K33 -> 0.1158 | L33: ='fnd enro'!L33 -> 0 | M33: ='fnd enro'!M33 -> 1 | N33: ='fnd enro'!N33 -> 0 | O33: ='fnd enro'!O33 -> 0 | P33: ='fnd enro'!P33 -> 2 | Q33: ='fnd enro'!R33 -> 3 | R33: 1.04 | S33: =VALUE('fnd enro'!Q33) -> 11 | U33: =(($D33*'fnd base rates'!C$107) +($E33*'fnd base rates'!C$108) +($F33*'fnd base rates'!C$109) +($G33*'fnd base rates'!C$110) +($H33*'fnd base rates'!C$111) +($I33*'fnd base rates'!C$112) +($J33*'fnd base rates'!C$113) +($K33*'fnd base rates'!C$114) +($M33*'fnd base rates'!C$116) +($N33*'fnd base rates'!C$117) +($O33*'fnd base rates'!C$118) +($P33*VLOOKUP($S33+12,rate_basefnd,3))) *$R33 -> 1952.8954 | V33: =(($D33*'fnd base rates'!D$107) +($E33*'fnd base rates'!D$108) +($F33*'fnd base rates'!D$109) +($G33*'fnd base rates'!D$110) +($H33*'fnd base rates'!D$111) +($I33*'fnd base rates'!D$112) +($J33*'fnd base rates'!D$113) +($K33*'fnd base rates'!D$114) +($M33*'fnd base rates'!D$116) +($N33*'fnd base rates'!D$117) +($O33*'fnd base rates'!D$118) +($P33*VLOOKUP($S33+12,rate_basefnd,4))) *$R33 -> 3395.2048 | W33: =(($D33*'fnd base rates'!E$107) +($E33*'fnd base rates'!E$108) +($F33*'fnd base rates'!E$109) +($G33*'fnd base rates'!E$110) +($H33*'fnd base rates'!E$111) +($I33*'fnd base rates'!E$112) +($J33*'fnd base rates'!E$113) +($K33*'fnd base rates'!E$114) +($M33*'fnd base rates'!E$116) +($N33*'fnd base rates'!E$117) +($O33*'fnd base rates'!E$118) +($P33*VLOOKUP($S33+12,rate_basefnd,5))) *$R33 -> 21002.12517 | X33: =(($D33*'fnd base rates'!F$107) +($E33*'fnd base rates'!F$108) +($F33*'fnd base rates'!F$109) +($G33*'fnd base rates'!F$110) +($H33*'fnd base rates'!F$111) +($I33*'fnd base rates'!F$112) +($J33*'fnd base rates'!F$113) +($K33*'fnd base rates'!F$114) +($M33*'fnd base rates'!F$116) +($N33*'fnd base rates'!F$117) +($O33*'fnd base rates'!F$118) +($P33*VLOOKUP($S33+12,rate_basefnd,6))) *$R33 -> 3813.980805 | Y33: =(($D33*'fnd base rates'!G$107) +($E33*'fnd base rates'!G$108) +($F33*'fnd base rates'!G$109) +($G33*'fnd base rates'!G$110) +($H33*'fnd base rates'!G$111) +($I33*'fnd base rates'!G$112) +($J33*'fnd base rates'!G$113) +($K33*'fnd base rates'!G$114) +($M33*'fnd base rates'!G$116) +($N33*'fnd base rates'!G$117) +($O33*'fnd base rates'!G$118) +($P33*VLOOKUP($S33+12,rate_basefnd,7))) *$R33 -> 944.1846398 | Z33: =(($D33*'fnd base rates'!H$107) +($E33*'fnd base rates'!H$108) +($F33*'fnd base rates'!H$109) +($G33*'fnd base rates'!H$110) +($H33*'fnd base rates'!H$111) +($I33*'fnd base rates'!H$112) +($J33*'fnd base rates'!H$113) +($K33*'fnd base rates'!H$114) +($M33*'fnd base rates'!H$116) +($N33*'fnd base rates'!H$117) +($O33*'fnd base rates'!H$118) +($P33*VLOOKUP($S33+12,rate_basefnd,8))) -> 1754.266802 | AA33: =(($D33*'fnd base rates'!I$107) +($E33*'fnd base rates'!I$108) +($F33*'fnd base rates'!I$109) +($G33*'fnd base rates'!I$110) +($H33*'fnd base rates'!I$111) +($I33*'fnd base rates'!I$112) +($J33*'fnd base rates'!I$113) +($K33*'fnd base rates'!I$114) +($M33*'fnd base rates'!I$116) +($N33*'fnd base rates'!I$117) +($O33*'fnd base rates'!I$118) +($P33*VLOOKUP($S33+12,rate_basefnd,9))) *$R33 -> 1419.0488 | AB33: =(($D33*'fnd base rates'!J$107) +($E33*'fnd base rates'!J$108) +($F33*'fnd base rates'!J$109) +($G33*'fnd base rates'!J$110) +($H33*'fnd base rates'!J$111) +($I33*'fnd base rates'!J$112) +($J33*'fnd base rates'!J$113) +($K33*'fnd base rates'!J$114) +($M33*'fnd base rates'!J$116) +($N33*'fnd base rates'!J$117) +($O33*'fnd base rates'!J$118) +($P33*VLOOKUP($S33+12,rate_basefnd,10))) *$R33 -> 2294.5416 | AC33: =(($D33*'fnd base rates'!K$107) +($E33*'fnd base rates'!K$108) +($F33*'fnd base rates'!K$109) +($G33*'fnd base rates'!K$110) +($H33*'fnd base rates'!K$111) +($I33*'fnd base rates'!K$112) +($J33*'fnd base rates'!K$113) +($K33*'fnd base rates'!K$114) +($M33*'fnd base rates'!K$116) +($N33*'fnd base rates'!K$117) +($O33*'fnd base rates'!K$118) +($P33*VLOOKUP($S33+12,rate_basefnd,11))) *$R33 -> 3833.470826 | AD33: =(($D33*'fnd base rates'!L$107) +($E33*'fnd base rates'!L$108) +($F33*'fnd base rates'!L$109) +($G33*'fnd base rates'!L$110) +($H33*'fnd base rates'!L$111) +($I33*'fnd base rates'!L$112) +($J33*'fnd base rates'!L$113) +($K33*'fnd base rates'!L$114) +($M33*'fnd base rates'!L$116) +($N33*'fnd base rates'!L$117) +($O33*'fnd base rates'!L$118) +($P33*VLOOKUP($S33+12,rate_basefnd,12))) -> 5934.14004 | AE33: =(($D33*'fnd base rates'!M$107) +($E33*'fnd base rates'!M$108) +($F33*'fnd base rates'!M$109) +($G33*'fnd base rates'!M$110) +($H33*'fnd base rates'!M$111) +($I33*'fnd base rates'!M$112) +($J33*'fnd base rates'!M$113) +($K33*'fnd base rates'!M$114) +($M33*'fnd base rates'!M$116) +($N33*'fnd base rates'!M$117) +($O33*'fnd base rates'!M$118) +($P33*VLOOKUP($S33+12,rate_basefnd,13))) -> 0 | AF33: 46343.85889 | AH33: 410057093 | AI33: 410 | AJ33: 057 | AK33: 093 | AL33: 1 | AM33: 3 | AN33: 46343.85889 | AO33: 15448 | AP33: 0 | AQ33: 15448 | AW33: 15448 | AX33: 0 | AY33: 15448 | BB33: =BC33-BA33 -> 0
A34: 410 | B34: 410057103 | C34: EXCEL ACADEMY | D34: ='fnd enro'!D34 -> 0 | E34: ='fnd enro'!E34 -> 0 | F34: ='fnd enro'!F34 -> 0 | G34: ='fnd enro'!G34 -> 0 | H34: ='fnd enro'!H34 -> 1 | I34: ='fnd enro'!I34 -> 0 | J34: ='fnd enro'!J34 -> 0 | K34: ='fnd enro'!K34 -> 0.0386 | L34: ='fnd enro'!L34 -> 0 | M34: ='fnd enro'!M34 -> 0 | N34: ='fnd enro'!N34 -> 0 | O34: ='fnd enro'!O34 -> 0 | P34: ='fnd enro'!P34 -> 0 | Q34: ='fnd enro'!R34 -> 1 | R34: 1.04 | S34: =VALUE('fnd enro'!Q34) -> 10 | U34: =(($D34*'fnd base rates'!C$107) +($E34*'fnd base rates'!C$108) +($F34*'fnd base rates'!C$109) +($G34*'fnd base rates'!C$110) +($H34*'fnd base rates'!C$111) +($I34*'fnd base rates'!C$112) +($J34*'fnd base rates'!C$113) +($K34*'fnd base rates'!C$114) +($M34*'fnd base rates'!C$116) +($N34*'fnd base rates'!C$117) +($O34*'fnd base rates'!C$118) +($P34*VLOOKUP($S34+12,rate_basefnd,3))) *$R34 -> 557.9197998 | V34: =(($D34*'fnd base rates'!D$107) +($E34*'fnd base rates'!D$108) +($F34*'fnd base rates'!D$109) +($G34*'fnd base rates'!D$110) +($H34*'fnd base rates'!D$111) +($I34*'fnd base rates'!D$112) +($J34*'fnd base rates'!D$113) +($K34*'fnd base rates'!D$114) +($M34*'fnd base rates'!D$116) +($N34*'fnd base rates'!D$117) +($O34*'fnd base rates'!D$118) +($P34*VLOOKUP($S34+12,rate_basefnd,4))) *$R34 -> 795.6832 | W34: =(($D34*'fnd base rates'!E$107) +($E34*'fnd base rates'!E$108) +($F34*'fnd base rates'!E$109) +($G34*'fnd base rates'!E$110) +($H34*'fnd base rates'!E$111) +($I34*'fnd base rates'!E$112) +($J34*'fnd base rates'!E$113) +($K34*'fnd base rates'!E$114) +($M34*'fnd base rates'!E$116) +($N34*'fnd base rates'!E$117) +($O34*'fnd base rates'!E$118) +($P34*VLOOKUP($S34+12,rate_basefnd,5))) *$R34 -> 3597.859591 | X34: =(($D34*'fnd base rates'!F$107) +($E34*'fnd base rates'!F$108) +($F34*'fnd base rates'!F$109) +($G34*'fnd base rates'!F$110) +($H34*'fnd base rates'!F$111) +($I34*'fnd base rates'!F$112) +($J34*'fnd base rates'!F$113) +($K34*'fnd base rates'!F$114) +($M34*'fnd base rates'!F$116) +($N34*'fnd base rates'!F$117) +($O34*'fnd base rates'!F$118) +($P34*VLOOKUP($S34+12,rate_basefnd,6))) *$R34 -> 1035.191468 | Y34: =(($D34*'fnd base rates'!G$107) +($E34*'fnd base rates'!G$108) +($F34*'fnd base rates'!G$109) +($G34*'fnd base rates'!G$110) +($H34*'fnd base rates'!G$111) +($I34*'fnd base rates'!G$112) +($J34*'fnd base rates'!G$113) +($K34*'fnd base rates'!G$114) +($M34*'fnd base rates'!G$116) +($N34*'fnd base rates'!G$117) +($O34*'fnd base rates'!G$118) +($P34*VLOOKUP($S34+12,rate_basefnd,7))) *$R34 -> 175.1914133 | Z34: =(($D34*'fnd base rates'!H$107) +($E34*'fnd base rates'!H$108) +($F34*'fnd base rates'!H$109) +($G34*'fnd base rates'!H$110) +($H34*'fnd base rates'!H$111) +($I34*'fnd base rates'!H$112) +($J34*'fnd base rates'!H$113) +($K34*'fnd base rates'!H$114) +($M34*'fnd base rates'!H$116) +($N34*'fnd base rates'!H$117) +($O34*'fnd base rates'!H$118) +($P34*VLOOKUP($S34+12,rate_basefnd,8))) -> 523.438934 | AA34: =(($D34*'fnd base rates'!I$107) +($E34*'fnd base rates'!I$108) +($F34*'fnd base rates'!I$109) +($G34*'fnd base rates'!I$110) +($H34*'fnd base rates'!I$111) +($I34*'fnd base rates'!I$112) +($J34*'fnd base rates'!I$113) +($K34*'fnd base rates'!I$114) +($M34*'fnd base rates'!I$116) +($N34*'fnd base rates'!I$117) +($O34*'fnd base rates'!I$118) +($P34*VLOOKUP($S34+12,rate_basefnd,9))) *$R34 -> 377.1976 | AB34: =(($D34*'fnd base rates'!J$107) +($E34*'fnd base rates'!J$108) +($F34*'fnd base rates'!J$109) +($G34*'fnd base rates'!J$110) +($H34*'fnd base rates'!J$111) +($I34*'fnd base rates'!J$112) +($J34*'fnd base rates'!J$113) +($K34*'fnd base rates'!J$114) +($M34*'fnd base rates'!J$116) +($N34*'fnd base rates'!J$117) +($O34*'fnd base rates'!J$118) +($P34*VLOOKUP($S34+12,rate_basefnd,10))) *$R34 -> 258.7624 | AC34: =(($D34*'fnd base rates'!K$107) +($E34*'fnd base rates'!K$108) +($F34*'fnd base rates'!K$109) +($G34*'fnd base rates'!K$110) +($H34*'fnd base rates'!K$111) +($I34*'fnd base rates'!K$112) +($J34*'fnd base rates'!K$113) +($K34*'fnd base rates'!K$114) +($M34*'fnd base rates'!K$116) +($N34*'fnd base rates'!K$117) +($O34*'fnd base rates'!K$118) +($P34*VLOOKUP($S34+12,rate_basefnd,11))) *$R34 -> 1229.446275 | AD34: =(($D34*'fnd base rates'!L$107) +($E34*'fnd base rates'!L$108) +($F34*'fnd base rates'!L$109) +($G34*'fnd base rates'!L$110) +($H34*'fnd base rates'!L$111) +($I34*'fnd base rates'!L$112) +($J34*'fnd base rates'!L$113) +($K34*'fnd base rates'!L$114) +($M34*'fnd base rates'!L$116) +($N34*'fnd base rates'!L$117) +($O34*'fnd base rates'!L$118) +($P34*VLOOKUP($S34+12,rate_basefnd,12))) -> 1512.47668 | AE34: =(($D34*'fnd base rates'!M$107) +($E34*'fnd base rates'!M$108) +($F34*'fnd base rates'!M$109) +($G34*'fnd base rates'!M$110) +($H34*'fnd base rates'!M$111) +($I34*'fnd base rates'!M$112) +($J34*'fnd base rates'!M$113) +($K34*'fnd base rates'!M$114) +($M34*'fnd base rates'!M$116) +($N34*'fnd base rates'!M$117) +($O34*'fnd base rates'!M$118) +($P34*VLOOKUP($S34+12,rate_basefnd,13))) -> 0 | AF34: 10063.16736 | AH34: 410057103 | AI34: 410 | AJ34: 057 | AK34: 103 | AL34: 1 | AM34: 1 | AN34: 10063.16736 | AO34: 10063 | AP34: 0 | AQ34: 10063 | AW34: 10063 | AX34: 0 | AY34: 10063 | BB34: =BC34-BA34 -> 0
A35: 410 | B35: 410057163 | C35: EXCEL ACADEMY | D35: ='fnd enro'!D35 -> 0 | E35: ='fnd enro'!E35 -> 0 | F35: ='fnd enro'!F35 -> 0 | G35: ='fnd enro'!G35 -> 0 | H35: ='fnd enro'!H35 -> 4 | I35: ='fnd enro'!I35 -> 0 | J35: ='fnd enro'!J35 -> 0 | K35: ='fnd enro'!K35 -> 0.1544 | L35: ='fnd enro'!L35 -> 0 | M35: ='fnd enro'!M35 -> 0 | N35: ='fnd enro'!N35 -> 0 | O35: ='fnd enro'!O35 -> 0 | P35: ='fnd enro'!P35 -> 3 | Q35: ='fnd enro'!R35 -> 4 | R35: 1.04 | S35: =VALUE('fnd enro'!Q35) -> 11 | U35: =(($D35*'fnd base rates'!C$107) +($E35*'fnd base rates'!C$108) +($F35*'fnd base rates'!C$109) +($G35*'fnd base rates'!C$110) +($H35*'fnd base rates'!C$111) +($I35*'fnd base rates'!C$112) +($J35*'fnd base rates'!C$113) +($K35*'fnd base rates'!C$114) +($M35*'fnd base rates'!C$116) +($N35*'fnd base rates'!C$117) +($O35*'fnd base rates'!C$118) +($P35*VLOOKUP($S35+12,rate_basefnd,3))) *$R35 -> 2492.573599 | V35: =(($D35*'fnd base rates'!D$107) +($E35*'fnd base rates'!D$108) +($F35*'fnd base rates'!D$109) +($G35*'fnd base rates'!D$110) +($H35*'fnd base rates'!D$111) +($I35*'fnd base rates'!D$112) +($J35*'fnd base rates'!D$113) +($K35*'fnd base rates'!D$114) +($M35*'fnd base rates'!D$116) +($N35*'fnd base rates'!D$117) +($O35*'fnd base rates'!D$118) +($P35*VLOOKUP($S35+12,rate_basefnd,4))) *$R35 -> 4418.8144 | W35: =(($D35*'fnd base rates'!E$107) +($E35*'fnd base rates'!E$108) +($F35*'fnd base rates'!E$109) +($G35*'fnd base rates'!E$110) +($H35*'fnd base rates'!E$111) +($I35*'fnd base rates'!E$112) +($J35*'fnd base rates'!E$113) +($K35*'fnd base rates'!E$114) +($M35*'fnd base rates'!E$116) +($N35*'fnd base rates'!E$117) +($O35*'fnd base rates'!E$118) +($P35*VLOOKUP($S35+12,rate_basefnd,5))) *$R35 -> 26457.91356 | X35: =(($D35*'fnd base rates'!F$107) +($E35*'fnd base rates'!F$108) +($F35*'fnd base rates'!F$109) +($G35*'fnd base rates'!F$110) +($H35*'fnd base rates'!F$111) +($I35*'fnd base rates'!F$112) +($J35*'fnd base rates'!F$113) +($K35*'fnd base rates'!F$114) +($M35*'fnd base rates'!F$116) +($N35*'fnd base rates'!F$117) +($O35*'fnd base rates'!F$118) +($P35*VLOOKUP($S35+12,rate_basefnd,6))) *$R35 -> 4140.765874 | Y35: =(($D35*'fnd base rates'!G$107) +($E35*'fnd base rates'!G$108) +($F35*'fnd base rates'!G$109) +($G35*'fnd base rates'!G$110) +($H35*'fnd base rates'!G$111) +($I35*'fnd base rates'!G$112) +($J35*'fnd base rates'!G$113) +($K35*'fnd base rates'!G$114) +($M35*'fnd base rates'!G$116) +($N35*'fnd base rates'!G$117) +($O35*'fnd base rates'!G$118) +($P35*VLOOKUP($S35+12,rate_basefnd,7))) *$R35 -> 1286.171253 | Z35: =(($D35*'fnd base rates'!H$107) +($E35*'fnd base rates'!H$108) +($F35*'fnd base rates'!H$109) +($G35*'fnd base rates'!H$110) +($H35*'fnd base rates'!H$111) +($I35*'fnd base rates'!H$112) +($J35*'fnd base rates'!H$113) +($K35*'fnd base rates'!H$114) +($M35*'fnd base rates'!H$116) +($N35*'fnd base rates'!H$117) +($O35*'fnd base rates'!H$118) +($P35*VLOOKUP($S35+12,rate_basefnd,8))) -> 2180.035736 | AA35: =(($D35*'fnd base rates'!I$107) +($E35*'fnd base rates'!I$108) +($F35*'fnd base rates'!I$109) +($G35*'fnd base rates'!I$110) +($H35*'fnd base rates'!I$111) +($I35*'fnd base rates'!I$112) +($J35*'fnd base rates'!I$113) +($K35*'fnd base rates'!I$114) +($M35*'fnd base rates'!I$116) +($N35*'fnd base rates'!I$117) +($O35*'fnd base rates'!I$118) +($P35*VLOOKUP($S35+12,rate_basefnd,9))) *$R35 -> 1997.4136 | AB35: =(($D35*'fnd base rates'!J$107) +($E35*'fnd base rates'!J$108) +($F35*'fnd base rates'!J$109) +($G35*'fnd base rates'!J$110) +($H35*'fnd base rates'!J$111) +($I35*'fnd base rates'!J$112) +($J35*'fnd base rates'!J$113) +($K35*'fnd base rates'!J$114) +($M35*'fnd base rates'!J$116) +($N35*'fnd base rates'!J$117) +($O35*'fnd base rates'!J$118) +($P35*VLOOKUP($S35+12,rate_basefnd,10))) *$R35 -> 3574.012 | AC35: =(($D35*'fnd base rates'!K$107) +($E35*'fnd base rates'!K$108) +($F35*'fnd base rates'!K$109) +($G35*'fnd base rates'!K$110) +($H35*'fnd base rates'!K$111) +($I35*'fnd base rates'!K$112) +($J35*'fnd base rates'!K$113) +($K35*'fnd base rates'!K$114) +($M35*'fnd base rates'!K$116) +($N35*'fnd base rates'!K$117) +($O35*'fnd base rates'!K$118) +($P35*VLOOKUP($S35+12,rate_basefnd,11))) *$R35 -> 4917.785101 | AD35: =(($D35*'fnd base rates'!L$107) +($E35*'fnd base rates'!L$108) +($F35*'fnd base rates'!L$109) +($G35*'fnd base rates'!L$110) +($H35*'fnd base rates'!L$111) +($I35*'fnd base rates'!L$112) +($J35*'fnd base rates'!L$113) +($K35*'fnd base rates'!L$114) +($M35*'fnd base rates'!L$116) +($N35*'fnd base rates'!L$117) +($O35*'fnd base rates'!L$118) +($P35*VLOOKUP($S35+12,rate_basefnd,12))) -> 7926.67672 | AE35: =(($D35*'fnd base rates'!M$107) +($E35*'fnd base rates'!M$108) +($F35*'fnd base rates'!M$109) +($G35*'fnd base rates'!M$110) +($H35*'fnd base rates'!M$111) +($I35*'fnd base rates'!M$112) +($J35*'fnd base rates'!M$113) +($K35*'fnd base rates'!M$114) +($M35*'fnd base rates'!M$116) +($N35*'fnd base rates'!M$117) +($O35*'fnd base rates'!M$118) +($P35*VLOOKUP($S35+12,rate_basefnd,13))) -> 0 | AF35: 59392.16185 | AH35: 410057163 | AI35: 410 | AJ35: 057 | AK35: 163 | AL35: 1 | AM35: 4 | AN35: 59392.16185 | AO35: 14848 | AP35: 0 | AQ35: 14848 | AW35: 14848 | AX35: 0 | AY35: 14848 | BB35: =BC35-BA35 -> 0
A36: 410 | B36: 410057248 | C36: EXCEL ACADEMY | D36: ='fnd enro'!D36 -> 0 | E36: ='fnd enro'!E36 -> 0 | F36: ='fnd enro'!F36 -> 0 | G36: ='fnd enro'!G36 -> 2 | H36: ='fnd enro'!H36 -> 7 | I36: ='fnd enro'!I36 -> 0 | J36: ='fnd enro'!J36 -> 0 | K36: ='fnd enro'!K36 -> 0.3474 | L36: ='fnd enro'!L36 -> 0 | M36: ='fnd enro'!M36 -> 1 | N36: ='fnd enro'!N36 -> 1 | O36: ='fnd enro'!O36 -> 0 | P36: ='fnd enro'!P36 -> 5 | Q36: ='fnd enro'!R36 -> 9 | R36: 1.04 | S36: =VALUE('fnd enro'!Q36) -> 11 | U36: =(($D36*'fnd base rates'!C$107) +($E36*'fnd base rates'!C$108) +($F36*'fnd base rates'!C$109) +($G36*'fnd base rates'!C$110) +($H36*'fnd base rates'!C$111) +($I36*'fnd base rates'!C$112) +($J36*'fnd base rates'!C$113) +($K36*'fnd base rates'!C$114) +($M36*'fnd base rates'!C$116) +($N36*'fnd base rates'!C$117) +($O36*'fnd base rates'!C$118) +($P36*VLOOKUP($S36+12,rate_basefnd,3))) *$R36 -> 5672.349399 | V36: =(($D36*'fnd base rates'!D$107) +($E36*'fnd base rates'!D$108) +($F36*'fnd base rates'!D$109) +($G36*'fnd base rates'!D$110) +($H36*'fnd base rates'!D$111) +($I36*'fnd base rates'!D$112) +($J36*'fnd base rates'!D$113) +($K36*'fnd base rates'!D$114) +($M36*'fnd base rates'!D$116) +($N36*'fnd base rates'!D$117) +($O36*'fnd base rates'!D$118) +($P36*VLOOKUP($S36+12,rate_basefnd,4))) *$R36 -> 9599.6888 | W36: =(($D36*'fnd base rates'!E$107) +($E36*'fnd base rates'!E$108) +($F36*'fnd base rates'!E$109) +($G36*'fnd base rates'!E$110) +($H36*'fnd base rates'!E$111) +($I36*'fnd base rates'!E$112) +($J36*'fnd base rates'!E$113) +($K36*'fnd base rates'!E$114) +($M36*'fnd base rates'!E$116) +($N36*'fnd base rates'!E$117) +($O36*'fnd base rates'!E$118) +($P36*VLOOKUP($S36+12,rate_basefnd,5))) *$R36 -> 56015.89072 | X36: =(($D36*'fnd base rates'!F$107) +($E36*'fnd base rates'!F$108) +($F36*'fnd base rates'!F$109) +($G36*'fnd base rates'!F$110) +($H36*'fnd base rates'!F$111) +($I36*'fnd base rates'!F$112) +($J36*'fnd base rates'!F$113) +($K36*'fnd base rates'!F$114) +($M36*'fnd base rates'!F$116) +($N36*'fnd base rates'!F$117) +($O36*'fnd base rates'!F$118) +($P36*VLOOKUP($S36+12,rate_basefnd,6))) *$R36 -> 10219.43282 | Y36: =(($D36*'fnd base rates'!G$107) +($E36*'fnd base rates'!G$108) +($F36*'fnd base rates'!G$109) +($G36*'fnd base rates'!G$110) +($H36*'fnd base rates'!G$111) +($I36*'fnd base rates'!G$112) +($J36*'fnd base rates'!G$113) +($K36*'fnd base rates'!G$114) +($M36*'fnd base rates'!G$116) +($N36*'fnd base rates'!G$117) +($O36*'fnd base rates'!G$118) +($P36*VLOOKUP($S36+12,rate_basefnd,7))) *$R36 -> 2636.25392 | Z36: =(($D36*'fnd base rates'!H$107) +($E36*'fnd base rates'!H$108) +($F36*'fnd base rates'!H$109) +($G36*'fnd base rates'!H$110) +($H36*'fnd base rates'!H$111) +($I36*'fnd base rates'!H$112) +($J36*'fnd base rates'!H$113) +($K36*'fnd base rates'!H$114) +($M36*'fnd base rates'!H$116) +($N36*'fnd base rates'!H$117) +($O36*'fnd base rates'!H$118) +($P36*VLOOKUP($S36+12,rate_basefnd,8))) -> 5114.630406 | AA36: =(($D36*'fnd base rates'!I$107) +($E36*'fnd base rates'!I$108) +($F36*'fnd base rates'!I$109) +($G36*'fnd base rates'!I$110) +($H36*'fnd base rates'!I$111) +($I36*'fnd base rates'!I$112) +($J36*'fnd base rates'!I$113) +($K36*'fnd base rates'!I$114) +($M36*'fnd base rates'!I$116) +($N36*'fnd base rates'!I$117) +($O36*'fnd base rates'!I$118) +($P36*VLOOKUP($S36+12,rate_basefnd,9))) *$R36 -> 4254.1408 | AB36: =(($D36*'fnd base rates'!J$107) +($E36*'fnd base rates'!J$108) +($F36*'fnd base rates'!J$109) +($G36*'fnd base rates'!J$110) +($H36*'fnd base rates'!J$111) +($I36*'fnd base rates'!J$112) +($J36*'fnd base rates'!J$113) +($K36*'fnd base rates'!J$114) +($M36*'fnd base rates'!J$116) +($N36*'fnd base rates'!J$117) +($O36*'fnd base rates'!J$118) +($P36*VLOOKUP($S36+12,rate_basefnd,10))) *$R36 -> 6413.836 | AC36: =(($D36*'fnd base rates'!K$107) +($E36*'fnd base rates'!K$108) +($F36*'fnd base rates'!K$109) +($G36*'fnd base rates'!K$110) +($H36*'fnd base rates'!K$111) +($I36*'fnd base rates'!K$112) +($J36*'fnd base rates'!K$113) +($K36*'fnd base rates'!K$114) +($M36*'fnd base rates'!K$116) +($N36*'fnd base rates'!K$117) +($O36*'fnd base rates'!K$118) +($P36*VLOOKUP($S36+12,rate_basefnd,11))) *$R36 -> 11543.23968 | AD36: =(($D36*'fnd base rates'!L$107) +($E36*'fnd base rates'!L$108) +($F36*'fnd base rates'!L$109) +($G36*'fnd base rates'!L$110) +($H36*'fnd base rates'!L$111) +($I36*'fnd base rates'!L$112) +($J36*'fnd base rates'!L$113) +($K36*'fnd base rates'!L$114) +($M36*'fnd base rates'!L$116) +($N36*'fnd base rates'!L$117) +($O36*'fnd base rates'!L$118) +($P36*VLOOKUP($S36+12,rate_basefnd,12))) -> 17179.36012 | AE36: =(($D36*'fnd base rates'!M$107) +($E36*'fnd base rates'!M$108) +($F36*'fnd base rates'!M$109) +($G36*'fnd base rates'!M$110) +($H36*'fnd base rates'!M$111) +($I36*'fnd base rates'!M$112) +($J36*'fnd base rates'!M$113) +($K36*'fnd base rates'!M$114) +($M36*'fnd base rates'!M$116) +($N36*'fnd base rates'!M$117) +($O36*'fnd base rates'!M$118) +($P36*VLOOKUP($S36+12,rate_basefnd,13))) -> 0 | AF36: 128648.8227 | AH36: 410057248 | AI36: 410 | AJ36: 057 | AK36: 248 | AL36: 1 | AM36: 9 | AN36: 128648.8227 | AO36: 14294 | AP36: 0 | AQ36: 14294 | AW36: 14294 | AX36: 0 | AY36: 14294 | BB36: =BC36-BA36 -> 0
A37: 410 | B37: 410057262 | C37: EXCEL ACADEMY | D37: ='fnd enro'!D37 -> 0 | E37: ='fnd enro'!E37 -> 0 | F37: ='fnd enro'!F37 -> 0 | G37: ='fnd enro'!G37 -> 1 | H37: ='fnd enro'!H37 -> 0 | I37: ='fnd enro'!I37 -> 0 | J37: ='fnd enro'!J37 -> 0 | K37: ='fnd enro'!K37 -> 0.0386 | L37: ='fnd enro'!L37 -> 0 | M37: ='fnd enro'!M37 -> 1 | N37: ='fnd enro'!N37 -> 0 | O37: ='fnd enro'!O37 -> 0 | P37: ='fnd enro'!P37 -> 1 | Q37: ='fnd enro'!R37 -> 1 | R37: 1.04 | S37: =VALUE('fnd enro'!Q37) -> 9 | U37: =(($D37*'fnd base rates'!C$107) +($E37*'fnd base rates'!C$108) +($F37*'fnd base rates'!C$109) +($G37*'fnd base rates'!C$110) +($H37*'fnd base rates'!C$111) +($I37*'fnd base rates'!C$112) +($J37*'fnd base rates'!C$113) +($K37*'fnd base rates'!C$114) +($M37*'fnd base rates'!C$116) +($N37*'fnd base rates'!C$117) +($O37*'fnd base rates'!C$118) +($P37*VLOOKUP($S37+12,rate_basefnd,3))) *$R37 -> 741.9165998 | V37: =(($D37*'fnd base rates'!D$107) +($E37*'fnd base rates'!D$108) +($F37*'fnd base rates'!D$109) +($G37*'fnd base rates'!D$110) +($H37*'fnd base rates'!D$111) +($I37*'fnd base rates'!D$112) +($J37*'fnd base rates'!D$113) +($K37*'fnd base rates'!D$114) +($M37*'fnd base rates'!D$116) +($N37*'fnd base rates'!D$117) +($O37*'fnd base rates'!D$118) +($P37*VLOOKUP($S37+12,rate_basefnd,4))) *$R37 -> 1353.0816 | W37: =(($D37*'fnd base rates'!E$107) +($E37*'fnd base rates'!E$108) +($F37*'fnd base rates'!E$109) +($G37*'fnd base rates'!E$110) +($H37*'fnd base rates'!E$111) +($I37*'fnd base rates'!E$112) +($J37*'fnd base rates'!E$113) +($K37*'fnd base rates'!E$114) +($M37*'fnd base rates'!E$116) +($N37*'fnd base rates'!E$117) +($O37*'fnd base rates'!E$118) +($P37*VLOOKUP($S37+12,rate_basefnd,5))) *$R37 -> 8968.367591 | X37: =(($D37*'fnd base rates'!F$107) +($E37*'fnd base rates'!F$108) +($F37*'fnd base rates'!F$109) +($G37*'fnd base rates'!F$110) +($H37*'fnd base rates'!F$111) +($I37*'fnd base rates'!F$112) +($J37*'fnd base rates'!F$113) +($K37*'fnd base rates'!F$114) +($M37*'fnd base rates'!F$116) +($N37*'fnd base rates'!F$117) +($O37*'fnd base rates'!F$118) +($P37*VLOOKUP($S37+12,rate_basefnd,6))) *$R37 -> 1481.445068 | Y37: =(($D37*'fnd base rates'!G$107) +($E37*'fnd base rates'!G$108) +($F37*'fnd base rates'!G$109) +($G37*'fnd base rates'!G$110) +($H37*'fnd base rates'!G$111) +($I37*'fnd base rates'!G$112) +($J37*'fnd base rates'!G$113) +($K37*'fnd base rates'!G$114) +($M37*'fnd base rates'!G$116) +($N37*'fnd base rates'!G$117) +($O37*'fnd base rates'!G$118) +($P37*VLOOKUP($S37+12,rate_basefnd,7))) *$R37 -> 392.4474133 | Z37: =(($D37*'fnd base rates'!H$107) +($E37*'fnd base rates'!H$108) +($F37*'fnd base rates'!H$109) +($G37*'fnd base rates'!H$110) +($H37*'fnd base rates'!H$111) +($I37*'fnd base rates'!H$112) +($J37*'fnd base rates'!H$113) +($K37*'fnd base rates'!H$114) +($M37*'fnd base rates'!H$116) +($N37*'fnd base rates'!H$117) +($O37*'fnd base rates'!H$118) +($P37*VLOOKUP($S37+12,rate_basefnd,8))) -> 675.928934 | AA37: =(($D37*'fnd base rates'!I$107) +($E37*'fnd base rates'!I$108) +($F37*'fnd base rates'!I$109) +($G37*'fnd base rates'!I$110) +($H37*'fnd base rates'!I$111) +($I37*'fnd base rates'!I$112) +($J37*'fnd base rates'!I$113) +($K37*'fnd base rates'!I$114) +($M37*'fnd base rates'!I$116) +($N37*'fnd base rates'!I$117) +($O37*'fnd base rates'!I$118) +($P37*VLOOKUP($S37+12,rate_basefnd,9))) *$R37 -> 545.0536 | AB37: =(($D37*'fnd base rates'!J$107) +($E37*'fnd base rates'!J$108) +($F37*'fnd base rates'!J$109) +($G37*'fnd base rates'!J$110) +($H37*'fnd base rates'!J$111) +($I37*'fnd base rates'!J$112) +($J37*'fnd base rates'!J$113) +($K37*'fnd base rates'!J$114) +($M37*'fnd base rates'!J$116) +($N37*'fnd base rates'!J$117) +($O37*'fnd base rates'!J$118) +($P37*VLOOKUP($S37+12,rate_basefnd,10))) *$R37 -> 951.4856 | AC37: =(($D37*'fnd base rates'!K$107) +($E37*'fnd base rates'!K$108) +($F37*'fnd base rates'!K$109) +($G37*'fnd base rates'!K$110) +($H37*'fnd base rates'!K$111) +($I37*'fnd base rates'!K$112) +($J37*'fnd base rates'!K$113) +($K37*'fnd base rates'!K$114) +($M37*'fnd base rates'!K$116) +($N37*'fnd base rates'!K$117) +($O37*'fnd base rates'!K$118) +($P37*VLOOKUP($S37+12,rate_basefnd,11))) *$R37 -> 1459.806275 | AD37: =(($D37*'fnd base rates'!L$107) +($E37*'fnd base rates'!L$108) +($F37*'fnd base rates'!L$109) +($G37*'fnd base rates'!L$110) +($H37*'fnd base rates'!L$111) +($I37*'fnd base rates'!L$112) +($J37*'fnd base rates'!L$113) +($K37*'fnd base rates'!L$114) +($M37*'fnd base rates'!L$116) +($N37*'fnd base rates'!L$117) +($O37*'fnd base rates'!L$118) +($P37*VLOOKUP($S37+12,rate_basefnd,12))) -> 2291.10668 | AE37: =(($D37*'fnd base rates'!M$107) +($E37*'fnd base rates'!M$108) +($F37*'fnd base rates'!M$109) +($G37*'fnd base rates'!M$110) +($H37*'fnd base rates'!M$111) +($I37*'fnd base rates'!M$112) +($J37*'fnd base rates'!M$113) +($K37*'fnd base rates'!M$114) +($M37*'fnd base rates'!M$116) +($N37*'fnd base rates'!M$117) +($O37*'fnd base rates'!M$118) +($P37*VLOOKUP($S37+12,rate_basefnd,13))) -> 0 | AF37: 18860.63936 | AH37: 410057262 | AI37: 410 | AJ37: 057 | AK37: 262 | AL37: 1 | AM37: 1 | AN37: 18860.63936 | AO37: 18861 | AP37: 0 | AQ37: 18861 | AW37: 18861 | AX37: 0 | AY37: 18861 | BB37: =BC37-BA37 -> 0
A38: 410 | B38: 410057293 | C38: EXCEL ACADEMY | D38: ='fnd enro'!D38 -> 0 | E38: ='fnd enro'!E38 -> 0 | F38: ='fnd enro'!F38 -> 0 | G38: ='fnd enro'!G38 -> 0 | H38: ='fnd enro'!H38 -> 1 | I38: ='fnd enro'!I38 -> 0 | J38: ='fnd enro'!J38 -> 0 | K38: ='fnd enro'!K38 -> 0.0386 | L38: ='fnd enro'!L38 -> 0 | M38: ='fnd enro'!M38 -> 0 | N38: ='fnd enro'!N38 -> 0 | O38: ='fnd enro'!O38 -> 0 | P38: ='fnd enro'!P38 -> 1 | Q38: ='fnd enro'!R38 -> 1 | R38: 1.04 | S38: =VALUE('fnd enro'!Q38) -> 10 | U38: =(($D38*'fnd base rates'!C$107) +($E38*'fnd base rates'!C$108) +($F38*'fnd base rates'!C$109) +($G38*'fnd base rates'!C$110) +($H38*'fnd base rates'!C$111) +($I38*'fnd base rates'!C$112) +($J38*'fnd base rates'!C$113) +($K38*'fnd base rates'!C$114) +($M38*'fnd base rates'!C$116) +($N38*'fnd base rates'!C$117) +($O38*'fnd base rates'!C$118) +($P38*VLOOKUP($S38+12,rate_basefnd,3))) *$R38 -> 640.4021998 | V38: =(($D38*'fnd base rates'!D$107) +($E38*'fnd base rates'!D$108) +($F38*'fnd base rates'!D$109) +($G38*'fnd base rates'!D$110) +($H38*'fnd base rates'!D$111) +($I38*'fnd base rates'!D$112) +($J38*'fnd base rates'!D$113) +($K38*'fnd base rates'!D$114) +($M38*'fnd base rates'!D$116) +($N38*'fnd base rates'!D$117) +($O38*'fnd base rates'!D$118) +($P38*VLOOKUP($S38+12,rate_basefnd,4))) *$R38 -> 1186.5152 | W38: =(($D38*'fnd base rates'!E$107) +($E38*'fnd base rates'!E$108) +($F38*'fnd base rates'!E$109) +($G38*'fnd base rates'!E$110) +($H38*'fnd base rates'!E$111) +($I38*'fnd base rates'!E$112) +($J38*'fnd base rates'!E$113) +($K38*'fnd base rates'!E$114) +($M38*'fnd base rates'!E$116) +($N38*'fnd base rates'!E$117) +($O38*'fnd base rates'!E$118) +($P38*VLOOKUP($S38+12,rate_basefnd,5))) *$R38 -> 7413.037191 | X38: =(($D38*'fnd base rates'!F$107) +($E38*'fnd base rates'!F$108) +($F38*'fnd base rates'!F$109) +($G38*'fnd base rates'!F$110) +($H38*'fnd base rates'!F$111) +($I38*'fnd base rates'!F$112) +($J38*'fnd base rates'!F$113) +($K38*'fnd base rates'!F$114) +($M38*'fnd base rates'!F$116) +($N38*'fnd base rates'!F$117) +($O38*'fnd base rates'!F$118) +($P38*VLOOKUP($S38+12,rate_basefnd,6))) *$R38 -> 1035.191468 | Y38: =(($D38*'fnd base rates'!G$107) +($E38*'fnd base rates'!G$108) +($F38*'fnd base rates'!G$109) +($G38*'fnd base rates'!G$110) +($H38*'fnd base rates'!G$111) +($I38*'fnd base rates'!G$112) +($J38*'fnd base rates'!G$113) +($K38*'fnd base rates'!G$114) +($M38*'fnd base rates'!G$116) +($N38*'fnd base rates'!G$117) +($O38*'fnd base rates'!G$118) +($P38*VLOOKUP($S38+12,rate_basefnd,7))) *$R38 -> 360.2802133 | Z38: =(($D38*'fnd base rates'!H$107) +($E38*'fnd base rates'!H$108) +($F38*'fnd base rates'!H$109) +($G38*'fnd base rates'!H$110) +($H38*'fnd base rates'!H$111) +($I38*'fnd base rates'!H$112) +($J38*'fnd base rates'!H$113) +($K38*'fnd base rates'!H$114) +($M38*'fnd base rates'!H$116) +($N38*'fnd base rates'!H$117) +($O38*'fnd base rates'!H$118) +($P38*VLOOKUP($S38+12,rate_basefnd,8))) -> 550.718934 | AA38: =(($D38*'fnd base rates'!I$107) +($E38*'fnd base rates'!I$108) +($F38*'fnd base rates'!I$109) +($G38*'fnd base rates'!I$110) +($H38*'fnd base rates'!I$111) +($I38*'fnd base rates'!I$112) +($J38*'fnd base rates'!I$113) +($K38*'fnd base rates'!I$114) +($M38*'fnd base rates'!I$116) +($N38*'fnd base rates'!I$117) +($O38*'fnd base rates'!I$118) +($P38*VLOOKUP($S38+12,rate_basefnd,9))) *$R38 -> 531.6896 | AB38: =(($D38*'fnd base rates'!J$107) +($E38*'fnd base rates'!J$108) +($F38*'fnd base rates'!J$109) +($G38*'fnd base rates'!J$110) +($H38*'fnd base rates'!J$111) +($I38*'fnd base rates'!J$112) +($J38*'fnd base rates'!J$113) +($K38*'fnd base rates'!J$114) +($M38*'fnd base rates'!J$116) +($N38*'fnd base rates'!J$117) +($O38*'fnd base rates'!J$118) +($P38*VLOOKUP($S38+12,rate_basefnd,10))) *$R38 -> 1061.528 | AC38: =(($D38*'fnd base rates'!K$107) +($E38*'fnd base rates'!K$108) +($F38*'fnd base rates'!K$109) +($G38*'fnd base rates'!K$110) +($H38*'fnd base rates'!K$111) +($I38*'fnd base rates'!K$112) +($J38*'fnd base rates'!K$113) +($K38*'fnd base rates'!K$114) +($M38*'fnd base rates'!K$116) +($N38*'fnd base rates'!K$117) +($O38*'fnd base rates'!K$118) +($P38*VLOOKUP($S38+12,rate_basefnd,11))) *$R38 -> 1229.446275 | AD38: =(($D38*'fnd base rates'!L$107) +($E38*'fnd base rates'!L$108) +($F38*'fnd base rates'!L$109) +($G38*'fnd base rates'!L$110) +($H38*'fnd base rates'!L$111) +($I38*'fnd base rates'!L$112) +($J38*'fnd base rates'!L$113) +($K38*'fnd base rates'!L$114) +($M38*'fnd base rates'!L$116) +($N38*'fnd base rates'!L$117) +($O38*'fnd base rates'!L$118) +($P38*VLOOKUP($S38+12,rate_basefnd,12))) -> 2105.87668 | AE38: =(($D38*'fnd base rates'!M$107) +($E38*'fnd base rates'!M$108) +($F38*'fnd base rates'!M$109) +($G38*'fnd base rates'!M$110) +($H38*'fnd base rates'!M$111) +($I38*'fnd base rates'!M$112) +($J38*'fnd base rates'!M$113) +($K38*'fnd base rates'!M$114) +($M38*'fnd base rates'!M$116) +($N38*'fnd base rates'!M$117) +($O38*'fnd base rates'!M$118) +($P38*VLOOKUP($S38+12,rate_basefnd,13))) -> 0 | AF38: 16114.68576 | AH38: 410057293 | AI38: 410 | AJ38: 057 | AK38: 293 | AL38: 1 | AM38: 1 | AN38: 16114.68576 | AO38: 16115 | AP38: 0 | AQ38: 16115 | AW38: 16115 | AX38: 0 | AY38: 16115 | BB38: =BC38-BA38 -> 0
A39: 412 | B39: 412035035 | C39: ACADEMY OF THE PACIFIC RIM | D39: ='fnd enro'!D39 -> 0 | E39: ='fnd enro'!E39 -> 0 | F39: ='fnd enro'!F39 -> 0 | G39: ='fnd enro'!G39 -> 46 | H39: ='fnd enro'!H39 -> 184 | I39: ='fnd enro'!I39 -> 242 | J39: ='fnd enro'!J39 -> 0 | K39: ='fnd enro'!K39 -> 18.2192 | L39: ='fnd enro'!L39 -> 0 | M39: ='fnd enro'!M39 -> 4 | N39: ='fnd enro'!N39 -> 18 | O39: ='fnd enro'!O39 -> 23 | P39: ='fnd enro'!P39 -> 321 | Q39: ='fnd enro'!R39 -> 472 | R39: 1.088 | S39: =VALUE('fnd enro'!Q39) -> 11 | U39: =(($D39*'fnd base rates'!C$107) +($E39*'fnd base rates'!C$108) +($F39*'fnd base rates'!C$109) +($G39*'fnd base rates'!C$110) +($H39*'fnd base rates'!C$111) +($I39*'fnd base rates'!C$112) +($J39*'fnd base rates'!C$113) +($K39*'fnd base rates'!C$114) +($M39*'fnd base rates'!C$116) +($N39*'fnd base rates'!C$117) +($O39*'fnd base rates'!C$118) +($P39*VLOOKUP($S39+12,rate_basefnd,3))) *$R39 -> 309720.7047 | V39: =(($D39*'fnd base rates'!D$107) +($E39*'fnd base rates'!D$108) +($F39*'fnd base rates'!D$109) +($G39*'fnd base rates'!D$110) +($H39*'fnd base rates'!D$111) +($I39*'fnd base rates'!D$112) +($J39*'fnd base rates'!D$113) +($K39*'fnd base rates'!D$114) +($M39*'fnd base rates'!D$116) +($N39*'fnd base rates'!D$117) +($O39*'fnd base rates'!D$118) +($P39*VLOOKUP($S39+12,rate_basefnd,4))) *$R39 -> 540053.1494 | W39: =(($D39*'fnd base rates'!E$107) +($E39*'fnd base rates'!E$108) +($F39*'fnd base rates'!E$109) +($G39*'fnd base rates'!E$110) +($H39*'fnd base rates'!E$111) +($I39*'fnd base rates'!E$112) +($J39*'fnd base rates'!E$113) +($K39*'fnd base rates'!E$114) +($M39*'fnd base rates'!E$116) +($N39*'fnd base rates'!E$117) +($O39*'fnd base rates'!E$118) +($P39*VLOOKUP($S39+12,rate_basefnd,5))) *$R39 -> 3592376.61 | X39: =(($D39*'fnd base rates'!F$107) +($E39*'fnd base rates'!F$108) +($F39*'fnd base rates'!F$109) +($G39*'fnd base rates'!F$110) +($H39*'fnd base rates'!F$111) +($I39*'fnd base rates'!F$112) +($J39*'fnd base rates'!F$113) +($K39*'fnd base rates'!F$114) +($M39*'fnd base rates'!F$116) +($N39*'fnd base rates'!F$117) +($O39*'fnd base rates'!F$118) +($P39*VLOOKUP($S39+12,rate_basefnd,6))) *$R39 -> 504004.1914 | Y39: =(($D39*'fnd base rates'!G$107) +($E39*'fnd base rates'!G$108) +($F39*'fnd base rates'!G$109) +($G39*'fnd base rates'!G$110) +($H39*'fnd base rates'!G$111) +($I39*'fnd base rates'!G$112) +($J39*'fnd base rates'!G$113) +($K39*'fnd base rates'!G$114) +($M39*'fnd base rates'!G$116) +($N39*'fnd base rates'!G$117) +($O39*'fnd base rates'!G$118) +($P39*VLOOKUP($S39+12,rate_basefnd,7))) *$R39 -> 152761.0742 | Z39: =(($D39*'fnd base rates'!H$107) +($E39*'fnd base rates'!H$108) +($F39*'fnd base rates'!H$109) +($G39*'fnd base rates'!H$110) +($H39*'fnd base rates'!H$111) +($I39*'fnd base rates'!H$112) +($J39*'fnd base rates'!H$113) +($K39*'fnd base rates'!H$114) +($M39*'fnd base rates'!H$116) +($N39*'fnd base rates'!H$117) +($O39*'fnd base rates'!H$118) +($P39*VLOOKUP($S39+12,rate_basefnd,8))) -> 335789.7968 | AA39: =(($D39*'fnd base rates'!I$107) +($E39*'fnd base rates'!I$108) +($F39*'fnd base rates'!I$109) +($G39*'fnd base rates'!I$110) +($H39*'fnd base rates'!I$111) +($I39*'fnd base rates'!I$112) +($J39*'fnd base rates'!I$113) +($K39*'fnd base rates'!I$114) +($M39*'fnd base rates'!I$116) +($N39*'fnd base rates'!I$117) +($O39*'fnd base rates'!I$118) +($P39*VLOOKUP($S39+12,rate_basefnd,9))) *$R39 -> 258551.8413 | AB39: =(($D39*'fnd base rates'!J$107) +($E39*'fnd base rates'!J$108) +($F39*'fnd base rates'!J$109) +($G39*'fnd base rates'!J$110) +($H39*'fnd base rates'!J$111) +($I39*'fnd base rates'!J$112) +($J39*'fnd base rates'!J$113) +($K39*'fnd base rates'!J$114) +($M39*'fnd base rates'!J$116) +($N39*'fnd base rates'!J$117) +($O39*'fnd base rates'!J$118) +($P39*VLOOKUP($S39+12,rate_basefnd,10))) *$R39 -> 493962.8582 | AC39: =(($D39*'fnd base rates'!K$107) +($E39*'fnd base rates'!K$108) +($F39*'fnd base rates'!K$109) +($G39*'fnd base rates'!K$110) +($H39*'fnd base rates'!K$111) +($I39*'fnd base rates'!K$112) +($J39*'fnd base rates'!K$113) +($K39*'fnd base rates'!K$114) +($M39*'fnd base rates'!K$116) +($N39*'fnd base rates'!K$117) +($O39*'fnd base rates'!K$118) +($P39*VLOOKUP($S39+12,rate_basefnd,11))) *$R39 -> 609600.0715 | AD39: =(($D39*'fnd base rates'!L$107) +($E39*'fnd base rates'!L$108) +($F39*'fnd base rates'!L$109) +($G39*'fnd base rates'!L$110) +($H39*'fnd base rates'!L$111) +($I39*'fnd base rates'!L$112) +($J39*'fnd base rates'!L$113) +($K39*'fnd base rates'!L$114) +($M39*'fnd base rates'!L$116) +($N39*'fnd base rates'!L$117) +($O39*'fnd base rates'!L$118) +($P39*VLOOKUP($S39+12,rate_basefnd,12))) -> 889660.343 | AE39: =(($D39*'fnd base rates'!M$107) +($E39*'fnd base rates'!M$108) +($F39*'fnd base rates'!M$109) +($G39*'fnd base rates'!M$110) +($H39*'fnd base rates'!M$111) +($I39*'fnd base rates'!M$112) +($J39*'fnd base rates'!M$113) +($K39*'fnd base rates'!M$114) +($M39*'fnd base rates'!M$116) +($N39*'fnd base rates'!M$117) +($O39*'fnd base rates'!M$118) +($P39*VLOOKUP($S39+12,rate_basefnd,13))) -> 0 | AF39: 7686480.641 | AH39: 412035035 | AI39: 412 | AJ39: 035 | AK39: 035 | AL39: 1 | AM39: 472 | AN39: 7686480.641 | AO39: 16285 | AP39: 0 | AQ39: 16285 | AW39: 16285 | AX39: 0 | AY39: 16285 | BB39: =BC39-BA39 -> 0
A40: 412 | B40: 412035044 | C40: ACADEMY OF THE PACIFIC RIM | D40: ='fnd enro'!D40 -> 0 | E40: ='fnd enro'!E40 -> 0 | F40: ='fnd enro'!F40 -> 0 | G40: ='fnd enro'!G40 -> 2 | H40: ='fnd enro'!H40 -> 5 | I40: ='fnd enro'!I40 -> 8 | J40: ='fnd enro'!J40 -> 0 | K40: ='fnd enro'!K40 -> 0.579 | L40: ='fnd enro'!L40 -> 0 | M40: ='fnd enro'!M40 -> 0 | N40: ='fnd enro'!N40 -> 0 | O40: ='fnd enro'!O40 -> 0 | P40: ='fnd enro'!P40 -> 3 | Q40: ='fnd enro'!R40 -> 15 | R40: 1.088 | S40: =VALUE('fnd enro'!Q40) -> 11 | U40: =(($D40*'fnd base rates'!C$107) +($E40*'fnd base rates'!C$108) +($F40*'fnd base rates'!C$109) +($G40*'fnd base rates'!C$110) +($H40*'fnd base rates'!C$111) +($I40*'fnd base rates'!C$112) +($J40*'fnd base rates'!C$113) +($K40*'fnd base rates'!C$114) +($M40*'fnd base rates'!C$116) +($N40*'fnd base rates'!C$117) +($O40*'fnd base rates'!C$118) +($P40*VLOOKUP($S40+12,rate_basefnd,3))) *$R40 -> 9027.984847 | V40: =(($D40*'fnd base rates'!D$107) +($E40*'fnd base rates'!D$108) +($F40*'fnd base rates'!D$109) +($G40*'fnd base rates'!D$110) +($H40*'fnd base rates'!D$111) +($I40*'fnd base rates'!D$112) +($J40*'fnd base rates'!D$113) +($K40*'fnd base rates'!D$114) +($M40*'fnd base rates'!D$116) +($N40*'fnd base rates'!D$117) +($O40*'fnd base rates'!D$118) +($P40*VLOOKUP($S40+12,rate_basefnd,4))) *$R40 -> 13779.23712 | W40: =(($D40*'fnd base rates'!E$107) +($E40*'fnd base rates'!E$108) +($F40*'fnd base rates'!E$109) +($G40*'fnd base rates'!E$110) +($H40*'fnd base rates'!E$111) +($I40*'fnd base rates'!E$112) +($J40*'fnd base rates'!E$113) +($K40*'fnd base rates'!E$114) +($M40*'fnd base rates'!E$116) +($N40*'fnd base rates'!E$117) +($O40*'fnd base rates'!E$118) +($P40*VLOOKUP($S40+12,rate_basefnd,5))) *$R40 -> 82642.57126 | X40: =(($D40*'fnd base rates'!F$107) +($E40*'fnd base rates'!F$108) +($F40*'fnd base rates'!F$109) +($G40*'fnd base rates'!F$110) +($H40*'fnd base rates'!F$111) +($I40*'fnd base rates'!F$112) +($J40*'fnd base rates'!F$113) +($K40*'fnd base rates'!F$114) +($M40*'fnd base rates'!F$116) +($N40*'fnd base rates'!F$117) +($O40*'fnd base rates'!F$118) +($P40*VLOOKUP($S40+12,rate_basefnd,6))) *$R40 -> 15848.7504 | Y40: =(($D40*'fnd base rates'!G$107) +($E40*'fnd base rates'!G$108) +($F40*'fnd base rates'!G$109) +($G40*'fnd base rates'!G$110) +($H40*'fnd base rates'!G$111) +($I40*'fnd base rates'!G$112) +($J40*'fnd base rates'!G$113) +($K40*'fnd base rates'!G$114) +($M40*'fnd base rates'!G$116) +($N40*'fnd base rates'!G$117) +($O40*'fnd base rates'!G$118) +($P40*VLOOKUP($S40+12,rate_basefnd,7))) *$R40 -> 3296.432442 | Z40: =(($D40*'fnd base rates'!H$107) +($E40*'fnd base rates'!H$108) +($F40*'fnd base rates'!H$109) +($G40*'fnd base rates'!H$110) +($H40*'fnd base rates'!H$111) +($I40*'fnd base rates'!H$112) +($J40*'fnd base rates'!H$113) +($K40*'fnd base rates'!H$114) +($M40*'fnd base rates'!H$116) +($N40*'fnd base rates'!H$117) +($O40*'fnd base rates'!H$118) +($P40*VLOOKUP($S40+12,rate_basefnd,8))) -> 10374.98401 | AA40: =(($D40*'fnd base rates'!I$107) +($E40*'fnd base rates'!I$108) +($F40*'fnd base rates'!I$109) +($G40*'fnd base rates'!I$110) +($H40*'fnd base rates'!I$111) +($I40*'fnd base rates'!I$112) +($J40*'fnd base rates'!I$113) +($K40*'fnd base rates'!I$114) +($M40*'fnd base rates'!I$116) +($N40*'fnd base rates'!I$117) +($O40*'fnd base rates'!I$118) +($P40*VLOOKUP($S40+12,rate_basefnd,9))) *$R40 -> 6858.208 | AB40: =(($D40*'fnd base rates'!J$107) +($E40*'fnd base rates'!J$108) +($F40*'fnd base rates'!J$109) +($G40*'fnd base rates'!J$110) +($H40*'fnd base rates'!J$111) +($I40*'fnd base rates'!J$112) +($J40*'fnd base rates'!J$113) +($K40*'fnd base rates'!J$114) +($M40*'fnd base rates'!J$116) +($N40*'fnd base rates'!J$117) +($O40*'fnd base rates'!J$118) +($P40*VLOOKUP($S40+12,rate_basefnd,10))) *$R40 -> 9335.04 | AC40: =(($D40*'fnd base rates'!K$107) +($E40*'fnd base rates'!K$108) +($F40*'fnd base rates'!K$109) +($G40*'fnd base rates'!K$110) +($H40*'fnd base rates'!K$111) +($I40*'fnd base rates'!K$112) +($J40*'fnd base rates'!K$113) +($K40*'fnd base rates'!K$114) +($M40*'fnd base rates'!K$116) +($N40*'fnd base rates'!K$117) +($O40*'fnd base rates'!K$118) +($P40*VLOOKUP($S40+12,rate_basefnd,11))) *$R40 -> 18835.12764 | AD40: =(($D40*'fnd base rates'!L$107) +($E40*'fnd base rates'!L$108) +($F40*'fnd base rates'!L$109) +($G40*'fnd base rates'!L$110) +($H40*'fnd base rates'!L$111) +($I40*'fnd base rates'!L$112) +($J40*'fnd base rates'!L$113) +($K40*'fnd base rates'!L$114) +($M40*'fnd base rates'!L$116) +($N40*'fnd base rates'!L$117) +($O40*'fnd base rates'!L$118) +($P40*VLOOKUP($S40+12,rate_basefnd,12))) -> 23284.4802 | AE40: =(($D40*'fnd base rates'!M$107) +($E40*'fnd base rates'!M$108) +($F40*'fnd base rates'!M$109) +($G40*'fnd base rates'!M$110) +($H40*'fnd base rates'!M$111) +($I40*'fnd base rates'!M$112) +($J40*'fnd base rates'!M$113) +($K40*'fnd base rates'!M$114) +($M40*'fnd base rates'!M$116) +($N40*'fnd base rates'!M$117) +($O40*'fnd base rates'!M$118) +($P40*VLOOKUP($S40+12,rate_basefnd,13))) -> 0 | AF40: 193282.8159 | AH40: 412035044 | AI40: 412 | AJ40: 035 | AK40: 044 | AL40: 1 | AM40: 15 | AN40: 193282.8159 | AO40: 12886 | AP40: 0 | AQ40: 12886 | AW40: 12886 | AX40: 0 | AY40: 12886 | BB40: =BC40-BA40 -> 0
A41: 412 | B41: 412035220 | C41: ACADEMY OF THE PACIFIC RIM | D41: ='fnd enro'!D41 -> 0 | E41: ='fnd enro'!E41 -> 0 | F41: ='fnd enro'!F41 -> 0 | G41: ='fnd enro'!G41 -> 0 | H41: ='fnd enro'!H41 -> 1 | I41: ='fnd enro'!I41 -> 2 | J41: ='fnd enro'!J41 -> 0 | K41: ='fnd enro'!K41 -> 0.1158 | L41: ='fnd enro'!L41 -> 0 | M41: ='fnd enro'!M41 -> 0 | N41: ='fnd enro'!N41 -> 0 | O41: ='fnd enro'!O41 -> 0 | P41: ='fnd enro'!P41 -> 2 | Q41: ='fnd enro'!R41 -> 3 | R41: 1.088 | S41: =VALUE('fnd enro'!Q41) -> 7 | U41: =(($D41*'fnd base rates'!C$107) +($E41*'fnd base rates'!C$108) +($F41*'fnd base rates'!C$109) +($G41*'fnd base rates'!C$110) +($H41*'fnd base rates'!C$111) +($I41*'fnd base rates'!C$112) +($J41*'fnd base rates'!C$113) +($K41*'fnd base rates'!C$114) +($M41*'fnd base rates'!C$116) +($N41*'fnd base rates'!C$117) +($O41*'fnd base rates'!C$118) +($P41*VLOOKUP($S41+12,rate_basefnd,3))) *$R41 -> 1900.370473 | V41: =(($D41*'fnd base rates'!D$107) +($E41*'fnd base rates'!D$108) +($F41*'fnd base rates'!D$109) +($G41*'fnd base rates'!D$110) +($H41*'fnd base rates'!D$111) +($I41*'fnd base rates'!D$112) +($J41*'fnd base rates'!D$113) +($K41*'fnd base rates'!D$114) +($M41*'fnd base rates'!D$116) +($N41*'fnd base rates'!D$117) +($O41*'fnd base rates'!D$118) +($P41*VLOOKUP($S41+12,rate_basefnd,4))) *$R41 -> 3204.89984 | W41: =(($D41*'fnd base rates'!E$107) +($E41*'fnd base rates'!E$108) +($F41*'fnd base rates'!E$109) +($G41*'fnd base rates'!E$110) +($H41*'fnd base rates'!E$111) +($I41*'fnd base rates'!E$112) +($J41*'fnd base rates'!E$113) +($K41*'fnd base rates'!E$114) +($M41*'fnd base rates'!E$116) +($N41*'fnd base rates'!E$117) +($O41*'fnd base rates'!E$118) +($P41*VLOOKUP($S41+12,rate_basefnd,5))) *$R41 -> 21361.29275 | X41: =(($D41*'fnd base rates'!F$107) +($E41*'fnd base rates'!F$108) +($F41*'fnd base rates'!F$109) +($G41*'fnd base rates'!F$110) +($H41*'fnd base rates'!F$111) +($I41*'fnd base rates'!F$112) +($J41*'fnd base rates'!F$113) +($K41*'fnd base rates'!F$114) +($M41*'fnd base rates'!F$116) +($N41*'fnd base rates'!F$117) +($O41*'fnd base rates'!F$118) +($P41*VLOOKUP($S41+12,rate_basefnd,6))) *$R41 -> 3012.834369 | Y41: =(($D41*'fnd base rates'!G$107) +($E41*'fnd base rates'!G$108) +($F41*'fnd base rates'!G$109) +($G41*'fnd base rates'!G$110) +($H41*'fnd base rates'!G$111) +($I41*'fnd base rates'!G$112) +($J41*'fnd base rates'!G$113) +($K41*'fnd base rates'!G$114) +($M41*'fnd base rates'!G$116) +($N41*'fnd base rates'!G$117) +($O41*'fnd base rates'!G$118) +($P41*VLOOKUP($S41+12,rate_basefnd,7))) *$R41 -> 875.0347124 | Z41: =(($D41*'fnd base rates'!H$107) +($E41*'fnd base rates'!H$108) +($F41*'fnd base rates'!H$109) +($G41*'fnd base rates'!H$110) +($H41*'fnd base rates'!H$111) +($I41*'fnd base rates'!H$112) +($J41*'fnd base rates'!H$113) +($K41*'fnd base rates'!H$114) +($M41*'fnd base rates'!H$116) +($N41*'fnd base rates'!H$117) +($O41*'fnd base rates'!H$118) +($P41*VLOOKUP($S41+12,rate_basefnd,8))) -> 2226.816802 | AA41: =(($D41*'fnd base rates'!I$107) +($E41*'fnd base rates'!I$108) +($F41*'fnd base rates'!I$109) +($G41*'fnd base rates'!I$110) +($H41*'fnd base rates'!I$111) +($I41*'fnd base rates'!I$112) +($J41*'fnd base rates'!I$113) +($K41*'fnd base rates'!I$114) +($M41*'fnd base rates'!I$116) +($N41*'fnd base rates'!I$117) +($O41*'fnd base rates'!I$118) +($P41*VLOOKUP($S41+12,rate_basefnd,9))) *$R41 -> 1601.19872 | AB41: =(($D41*'fnd base rates'!J$107) +($E41*'fnd base rates'!J$108) +($F41*'fnd base rates'!J$109) +($G41*'fnd base rates'!J$110) +($H41*'fnd base rates'!J$111) +($I41*'fnd base rates'!J$112) +($J41*'fnd base rates'!J$113) +($K41*'fnd base rates'!J$114) +($M41*'fnd base rates'!J$116) +($N41*'fnd base rates'!J$117) +($O41*'fnd base rates'!J$118) +($P41*VLOOKUP($S41+12,rate_basefnd,10))) *$R41 -> 2972.81856 | AC41: =(($D41*'fnd base rates'!K$107) +($E41*'fnd base rates'!K$108) +($F41*'fnd base rates'!K$109) +($G41*'fnd base rates'!K$110) +($H41*'fnd base rates'!K$111) +($I41*'fnd base rates'!K$112) +($J41*'fnd base rates'!K$113) +($K41*'fnd base rates'!K$114) +($M41*'fnd base rates'!K$116) +($N41*'fnd base rates'!K$117) +($O41*'fnd base rates'!K$118) +($P41*VLOOKUP($S41+12,rate_basefnd,11))) *$R41 -> 3788.720248 | AD41: =(($D41*'fnd base rates'!L$107) +($E41*'fnd base rates'!L$108) +($F41*'fnd base rates'!L$109) +($G41*'fnd base rates'!L$110) +($H41*'fnd base rates'!L$111) +($I41*'fnd base rates'!L$112) +($J41*'fnd base rates'!L$113) +($K41*'fnd base rates'!L$114) +($M41*'fnd base rates'!L$116) +($N41*'fnd base rates'!L$117) +($O41*'fnd base rates'!L$118) +($P41*VLOOKUP($S41+12,rate_basefnd,12))) -> 5277.83004 | AE41: =(($D41*'fnd base rates'!M$107) +($E41*'fnd base rates'!M$108) +($F41*'fnd base rates'!M$109) +($G41*'fnd base rates'!M$110) +($H41*'fnd base rates'!M$111) +($I41*'fnd base rates'!M$112) +($J41*'fnd base rates'!M$113) +($K41*'fnd base rates'!M$114) +($M41*'fnd base rates'!M$116) +($N41*'fnd base rates'!M$117) +($O41*'fnd base rates'!M$118) +($P41*VLOOKUP($S41+12,rate_basefnd,13))) -> 0 | AF41: 46221.81651 | AH41: 412035220 | AI41: 412 | AJ41: 035 | AK41: 220 | AL41: 1 | AM41: 3 | AN41: 46221.81651 | AO41: 15407 | AP41: 0 | AQ41: 15407 | AW41: 15407 | AX41: 0 | AY41: 15407 | BB41: =BC41-BA41 -> 0
A42: 412 | B42: 412035243 | C42: ACADEMY OF THE PACIFIC RIM | D42: ='fnd enro'!D42 -> 0 | E42: ='fnd enro'!E42 -> 0 | F42: ='fnd enro'!F42 -> 0 | G42: ='fnd enro'!G42 -> 0 | H42: ='fnd enro'!H42 -> 1 | I42: ='fnd enro'!I42 -> 0 | J42: ='fnd enro'!J42 -> 0 | K42: ='fnd enro'!K42 -> 0.0386 | L42: ='fnd enro'!L42 -> 0 | M42: ='fnd enro'!M42 -> 0 | N42: ='fnd enro'!N42 -> 0 | O42: ='fnd enro'!O42 -> 0 | P42: ='fnd enro'!P42 -> 0 | Q42: ='fnd enro'!R42 -> 1 | R42: 1.088 | S42: =VALUE('fnd enro'!Q42) -> 9 | U42: =(($D42*'fnd base rates'!C$107) +($E42*'fnd base rates'!C$108) +($F42*'fnd base rates'!C$109) +($G42*'fnd base rates'!C$110) +($H42*'fnd base rates'!C$111) +($I42*'fnd base rates'!C$112) +($J42*'fnd base rates'!C$113) +($K42*'fnd base rates'!C$114) +($M42*'fnd base rates'!C$116) +($N42*'fnd base rates'!C$117) +($O42*'fnd base rates'!C$118) +($P42*VLOOKUP($S42+12,rate_basefnd,3))) *$R42 -> 583.6699444 | V42: =(($D42*'fnd base rates'!D$107) +($E42*'fnd base rates'!D$108) +($F42*'fnd base rates'!D$109) +($G42*'fnd base rates'!D$110) +($H42*'fnd base rates'!D$111) +($I42*'fnd base rates'!D$112) +($J42*'fnd base rates'!D$113) +($K42*'fnd base rates'!D$114) +($M42*'fnd base rates'!D$116) +($N42*'fnd base rates'!D$117) +($O42*'fnd base rates'!D$118) +($P42*VLOOKUP($S42+12,rate_basefnd,4))) *$R42 -> 832.40704 | W42: =(($D42*'fnd base rates'!E$107) +($E42*'fnd base rates'!E$108) +($F42*'fnd base rates'!E$109) +($G42*'fnd base rates'!E$110) +($H42*'fnd base rates'!E$111) +($I42*'fnd base rates'!E$112) +($J42*'fnd base rates'!E$113) +($K42*'fnd base rates'!E$114) +($M42*'fnd base rates'!E$116) +($N42*'fnd base rates'!E$117) +($O42*'fnd base rates'!E$118) +($P42*VLOOKUP($S42+12,rate_basefnd,5))) *$R42 -> 3763.914649 | X42: =(($D42*'fnd base rates'!F$107) +($E42*'fnd base rates'!F$108) +($F42*'fnd base rates'!F$109) +($G42*'fnd base rates'!F$110) +($H42*'fnd base rates'!F$111) +($I42*'fnd base rates'!F$112) +($J42*'fnd base rates'!F$113) +($K42*'fnd base rates'!F$114) +($M42*'fnd base rates'!F$116) +($N42*'fnd base rates'!F$117) +($O42*'fnd base rates'!F$118) +($P42*VLOOKUP($S42+12,rate_basefnd,6))) *$R42 -> 1082.969536 | Y42: =(($D42*'fnd base rates'!G$107) +($E42*'fnd base rates'!G$108) +($F42*'fnd base rates'!G$109) +($G42*'fnd base rates'!G$110) +($H42*'fnd base rates'!G$111) +($I42*'fnd base rates'!G$112) +($J42*'fnd base rates'!G$113) +($K42*'fnd base rates'!G$114) +($M42*'fnd base rates'!G$116) +($N42*'fnd base rates'!G$117) +($O42*'fnd base rates'!G$118) +($P42*VLOOKUP($S42+12,rate_basefnd,7))) *$R42 -> 183.2771708 | Z42: =(($D42*'fnd base rates'!H$107) +($E42*'fnd base rates'!H$108) +($F42*'fnd base rates'!H$109) +($G42*'fnd base rates'!H$110) +($H42*'fnd base rates'!H$111) +($I42*'fnd base rates'!H$112) +($J42*'fnd base rates'!H$113) +($K42*'fnd base rates'!H$114) +($M42*'fnd base rates'!H$116) +($N42*'fnd base rates'!H$117) +($O42*'fnd base rates'!H$118) +($P42*VLOOKUP($S42+12,rate_basefnd,8))) -> 523.438934 | AA42: =(($D42*'fnd base rates'!I$107) +($E42*'fnd base rates'!I$108) +($F42*'fnd base rates'!I$109) +($G42*'fnd base rates'!I$110) +($H42*'fnd base rates'!I$111) +($I42*'fnd base rates'!I$112) +($J42*'fnd base rates'!I$113) +($K42*'fnd base rates'!I$114) +($M42*'fnd base rates'!I$116) +($N42*'fnd base rates'!I$117) +($O42*'fnd base rates'!I$118) +($P42*VLOOKUP($S42+12,rate_basefnd,9))) *$R42 -> 394.60672 | AB42: =(($D42*'fnd base rates'!J$107) +($E42*'fnd base rates'!J$108) +($F42*'fnd base rates'!J$109) +($G42*'fnd base rates'!J$110) +($H42*'fnd base rates'!J$111) +($I42*'fnd base rates'!J$112) +($J42*'fnd base rates'!J$113) +($K42*'fnd base rates'!J$114) +($M42*'fnd base rates'!J$116) +($N42*'fnd base rates'!J$117) +($O42*'fnd base rates'!J$118) +($P42*VLOOKUP($S42+12,rate_basefnd,10))) *$R42 -> 270.70528 | AC42: =(($D42*'fnd base rates'!K$107) +($E42*'fnd base rates'!K$108) +($F42*'fnd base rates'!K$109) +($G42*'fnd base rates'!K$110) +($H42*'fnd base rates'!K$111) +($I42*'fnd base rates'!K$112) +($J42*'fnd base rates'!K$113) +($K42*'fnd base rates'!K$114) +($M42*'fnd base rates'!K$116) +($N42*'fnd base rates'!K$117) +($O42*'fnd base rates'!K$118) +($P42*VLOOKUP($S42+12,rate_basefnd,11))) *$R42 -> 1286.189949 | AD42: =(($D42*'fnd base rates'!L$107) +($E42*'fnd base rates'!L$108) +($F42*'fnd base rates'!L$109) +($G42*'fnd base rates'!L$110) +($H42*'fnd base rates'!L$111) +($I42*'fnd base rates'!L$112) +($J42*'fnd base rates'!L$113) +($K42*'fnd base rates'!L$114) +($M42*'fnd base rates'!L$116) +($N42*'fnd base rates'!L$117) +($O42*'fnd base rates'!L$118) +($P42*VLOOKUP($S42+12,rate_basefnd,12))) -> 1512.47668 | AE42: =(($D42*'fnd base rates'!M$107) +($E42*'fnd base rates'!M$108) +($F42*'fnd base rates'!M$109) +($G42*'fnd base rates'!M$110) +($H42*'fnd base rates'!M$111) +($I42*'fnd base rates'!M$112) +($J42*'fnd base rates'!M$113) +($K42*'fnd base rates'!M$114) +($M42*'fnd base rates'!M$116) +($N42*'fnd base rates'!M$117) +($O42*'fnd base rates'!M$118) +($P42*VLOOKUP($S42+12,rate_basefnd,13))) -> 0 | AF42: 10433.6559 | AH42: 412035243 | AI42: 412 | AJ42: 035 | AK42: 243 | AL42: 1 | AM42: 1 | AN42: 10433.6559 | AO42: 10434 | AP42: 0 | AQ42: 10434 | AW42: 10434 | AX42: 0 | AY42: 10434 | BB42: =BC42-BA42 -> 0
A43: 412 | B43: 412035244 | C43: ACADEMY OF THE PACIFIC RIM | D43: ='fnd enro'!D43 -> 0 | E43: ='fnd enro'!E43 -> 0 | F43: ='fnd enro'!F43 -> 0 | G43: ='fnd enro'!G43 -> 0 | H43: ='fnd enro'!H43 -> 7 | I43: ='fnd enro'!I43 -> 3 | J43: ='fnd enro'!J43 -> 0 | K43: ='fnd enro'!K43 -> 0.386 | L43: ='fnd enro'!L43 -> 0 | M43: ='fnd enro'!M43 -> 0 | N43: ='fnd enro'!N43 -> 0 | O43: ='fnd enro'!O43 -> 0 | P43: ='fnd enro'!P43 -> 7 | Q43: ='fnd enro'!R43 -> 10 | R43: 1.088 | S43: =VALUE('fnd enro'!Q43) -> 10 | U43: =(($D43*'fnd base rates'!C$107) +($E43*'fnd base rates'!C$108) +($F43*'fnd base rates'!C$109) +($G43*'fnd base rates'!C$110) +($H43*'fnd base rates'!C$111) +($I43*'fnd base rates'!C$112) +($J43*'fnd base rates'!C$113) +($K43*'fnd base rates'!C$114) +($M43*'fnd base rates'!C$116) +($N43*'fnd base rates'!C$117) +($O43*'fnd base rates'!C$118) +($P43*VLOOKUP($S43+12,rate_basefnd,3))) *$R43 -> 6440.724404 | V43: =(($D43*'fnd base rates'!D$107) +($E43*'fnd base rates'!D$108) +($F43*'fnd base rates'!D$109) +($G43*'fnd base rates'!D$110) +($H43*'fnd base rates'!D$111) +($I43*'fnd base rates'!D$112) +($J43*'fnd base rates'!D$113) +($K43*'fnd base rates'!D$114) +($M43*'fnd base rates'!D$116) +($N43*'fnd base rates'!D$117) +($O43*'fnd base rates'!D$118) +($P43*VLOOKUP($S43+12,rate_basefnd,4))) *$R43 -> 11186.1632 | W43: =(($D43*'fnd base rates'!E$107) +($E43*'fnd base rates'!E$108) +($F43*'fnd base rates'!E$109) +($G43*'fnd base rates'!E$110) +($H43*'fnd base rates'!E$111) +($I43*'fnd base rates'!E$112) +($J43*'fnd base rates'!E$113) +($K43*'fnd base rates'!E$114) +($M43*'fnd base rates'!E$116) +($N43*'fnd base rates'!E$117) +($O43*'fnd base rates'!E$118) +($P43*VLOOKUP($S43+12,rate_basefnd,5))) *$R43 -> 70319.66361 | X43: =(($D43*'fnd base rates'!F$107) +($E43*'fnd base rates'!F$108) +($F43*'fnd base rates'!F$109) +($G43*'fnd base rates'!F$110) +($H43*'fnd base rates'!F$111) +($I43*'fnd base rates'!F$112) +($J43*'fnd base rates'!F$113) +($K43*'fnd base rates'!F$114) +($M43*'fnd base rates'!F$116) +($N43*'fnd base rates'!F$117) +($O43*'fnd base rates'!F$118) +($P43*VLOOKUP($S43+12,rate_basefnd,6))) *$R43 -> 10475.584 | Y43: =(($D43*'fnd base rates'!G$107) +($E43*'fnd base rates'!G$108) +($F43*'fnd base rates'!G$109) +($G43*'fnd base rates'!G$110) +($H43*'fnd base rates'!G$111) +($I43*'fnd base rates'!G$112) +($J43*'fnd base rates'!G$113) +($K43*'fnd base rates'!G$114) +($M43*'fnd base rates'!G$116) +($N43*'fnd base rates'!G$117) +($O43*'fnd base rates'!G$118) +($P43*VLOOKUP($S43+12,rate_basefnd,7))) *$R43 -> 3173.274748 | Z43: =(($D43*'fnd base rates'!H$107) +($E43*'fnd base rates'!H$108) +($F43*'fnd base rates'!H$109) +($G43*'fnd base rates'!H$110) +($H43*'fnd base rates'!H$111) +($I43*'fnd base rates'!H$112) +($J43*'fnd base rates'!H$113) +($K43*'fnd base rates'!H$114) +($M43*'fnd base rates'!H$116) +($N43*'fnd base rates'!H$117) +($O43*'fnd base rates'!H$118) +($P43*VLOOKUP($S43+12,rate_basefnd,8))) -> 6339.26934 | AA43: =(($D43*'fnd base rates'!I$107) +($E43*'fnd base rates'!I$108) +($F43*'fnd base rates'!I$109) +($G43*'fnd base rates'!I$110) +($H43*'fnd base rates'!I$111) +($I43*'fnd base rates'!I$112) +($J43*'fnd base rates'!I$113) +($K43*'fnd base rates'!I$114) +($M43*'fnd base rates'!I$116) +($N43*'fnd base rates'!I$117) +($O43*'fnd base rates'!I$118) +($P43*VLOOKUP($S43+12,rate_basefnd,9))) *$R43 -> 5283.872 | AB43: =(($D43*'fnd base rates'!J$107) +($E43*'fnd base rates'!J$108) +($F43*'fnd base rates'!J$109) +($G43*'fnd base rates'!J$110) +($H43*'fnd base rates'!J$111) +($I43*'fnd base rates'!J$112) +($J43*'fnd base rates'!J$113) +($K43*'fnd base rates'!J$114) +($M43*'fnd base rates'!J$116) +($N43*'fnd base rates'!J$117) +($O43*'fnd base rates'!J$118) +($P43*VLOOKUP($S43+12,rate_basefnd,10))) *$R43 -> 9646.3712 | AC43: =(($D43*'fnd base rates'!K$107) +($E43*'fnd base rates'!K$108) +($F43*'fnd base rates'!K$109) +($G43*'fnd base rates'!K$110) +($H43*'fnd base rates'!K$111) +($I43*'fnd base rates'!K$112) +($J43*'fnd base rates'!K$113) +($K43*'fnd base rates'!K$114) +($M43*'fnd base rates'!K$116) +($N43*'fnd base rates'!K$117) +($O43*'fnd base rates'!K$118) +($P43*VLOOKUP($S43+12,rate_basefnd,11))) *$R43 -> 12757.12509 | AD43: =(($D43*'fnd base rates'!L$107) +($E43*'fnd base rates'!L$108) +($F43*'fnd base rates'!L$109) +($G43*'fnd base rates'!L$110) +($H43*'fnd base rates'!L$111) +($I43*'fnd base rates'!L$112) +($J43*'fnd base rates'!L$113) +($K43*'fnd base rates'!L$114) +($M43*'fnd base rates'!L$116) +($N43*'fnd base rates'!L$117) +($O43*'fnd base rates'!L$118) +($P43*VLOOKUP($S43+12,rate_basefnd,12))) -> 18848.5168 | AE43: =(($D43*'fnd base rates'!M$107) +($E43*'fnd base rates'!M$108) +($F43*'fnd base rates'!M$109) +($G43*'fnd base rates'!M$110) +($H43*'fnd base rates'!M$111) +($I43*'fnd base rates'!M$112) +($J43*'fnd base rates'!M$113) +($K43*'fnd base rates'!M$114) +($M43*'fnd base rates'!M$116) +($N43*'fnd base rates'!M$117) +($O43*'fnd base rates'!M$118) +($P43*VLOOKUP($S43+12,rate_basefnd,13))) -> 0 | AF43: 154470.5644 | AH43: 412035244 | AI43: 412 | AJ43: 035 | AK43: 244 | AL43: 1 | AM43: 10 | AN43: 154470.5644 | AO43: 15447 | AP43: 0 | AQ43: 15447 | AW43: 15447 | AX43: 0 | AY43: 15447 | BB43: =BC43-BA43 -> 0
A44: 412 | B44: 412035285 | C44: ACADEMY OF THE PACIFIC RIM | D44: ='fnd enro'!D44 -> 0 | E44: ='fnd enro'!E44 -> 0 | F44: ='fnd enro'!F44 -> 0 | G44: ='fnd enro'!G44 -> 0 | H44: ='fnd enro'!H44 -> 2 | I44: ='fnd enro'!I44 -> 4 | J44: ='fnd enro'!J44 -> 0 | K44: ='fnd enro'!K44 -> 0.2316 | L44: ='fnd enro'!L44 -> 0 | M44: ='fnd enro'!M44 -> 0 | N44: ='fnd enro'!N44 -> 0 | O44: ='fnd enro'!O44 -> 0 | P44: ='fnd enro'!P44 -> 2 | Q44: ='fnd enro'!R44 -> 6 | R44: 1.088 | S44: =VALUE('fnd enro'!Q44) -> 8 | U44: =(($D44*'fnd base rates'!C$107) +($E44*'fnd base rates'!C$108) +($F44*'fnd base rates'!C$109) +($G44*'fnd base rates'!C$110) +($H44*'fnd base rates'!C$111) +($I44*'fnd base rates'!C$112) +($J44*'fnd base rates'!C$113) +($K44*'fnd base rates'!C$114) +($M44*'fnd base rates'!C$116) +($N44*'fnd base rates'!C$117) +($O44*'fnd base rates'!C$118) +($P44*VLOOKUP($S44+12,rate_basefnd,3))) *$R44 -> 3659.126867 | V44: =(($D44*'fnd base rates'!D$107) +($E44*'fnd base rates'!D$108) +($F44*'fnd base rates'!D$109) +($G44*'fnd base rates'!D$110) +($H44*'fnd base rates'!D$111) +($I44*'fnd base rates'!D$112) +($J44*'fnd base rates'!D$113) +($K44*'fnd base rates'!D$114) +($M44*'fnd base rates'!D$116) +($N44*'fnd base rates'!D$117) +($O44*'fnd base rates'!D$118) +($P44*VLOOKUP($S44+12,rate_basefnd,4))) *$R44 -> 5738.80832 | W44: =(($D44*'fnd base rates'!E$107) +($E44*'fnd base rates'!E$108) +($F44*'fnd base rates'!E$109) +($G44*'fnd base rates'!E$110) +($H44*'fnd base rates'!E$111) +($I44*'fnd base rates'!E$112) +($J44*'fnd base rates'!E$113) +($K44*'fnd base rates'!E$114) +($M44*'fnd base rates'!E$116) +($N44*'fnd base rates'!E$117) +($O44*'fnd base rates'!E$118) +($P44*VLOOKUP($S44+12,rate_basefnd,5))) *$R44 -> 36172.17269 | X44: =(($D44*'fnd base rates'!F$107) +($E44*'fnd base rates'!F$108) +($F44*'fnd base rates'!F$109) +($G44*'fnd base rates'!F$110) +($H44*'fnd base rates'!F$111) +($I44*'fnd base rates'!F$112) +($J44*'fnd base rates'!F$113) +($K44*'fnd base rates'!F$114) +($M44*'fnd base rates'!F$116) +($N44*'fnd base rates'!F$117) +($O44*'fnd base rates'!F$118) +($P44*VLOOKUP($S44+12,rate_basefnd,6))) *$R44 -> 6025.668738 | Y44: =(($D44*'fnd base rates'!G$107) +($E44*'fnd base rates'!G$108) +($F44*'fnd base rates'!G$109) +($G44*'fnd base rates'!G$110) +($H44*'fnd base rates'!G$111) +($I44*'fnd base rates'!G$112) +($J44*'fnd base rates'!G$113) +($K44*'fnd base rates'!G$114) +($M44*'fnd base rates'!G$116) +($N44*'fnd base rates'!G$117) +($O44*'fnd base rates'!G$118) +($P44*VLOOKUP($S44+12,rate_basefnd,7))) *$R44 -> 1432.308145 | Z44: =(($D44*'fnd base rates'!H$107) +($E44*'fnd base rates'!H$108) +($F44*'fnd base rates'!H$109) +($G44*'fnd base rates'!H$110) +($H44*'fnd base rates'!H$111) +($I44*'fnd base rates'!H$112) +($J44*'fnd base rates'!H$113) +($K44*'fnd base rates'!H$114) +($M44*'fnd base rates'!H$116) +($N44*'fnd base rates'!H$117) +($O44*'fnd base rates'!H$118) +($P44*VLOOKUP($S44+12,rate_basefnd,8))) -> 4408.873604 | AA44: =(($D44*'fnd base rates'!I$107) +($E44*'fnd base rates'!I$108) +($F44*'fnd base rates'!I$109) +($G44*'fnd base rates'!I$110) +($H44*'fnd base rates'!I$111) +($I44*'fnd base rates'!I$112) +($J44*'fnd base rates'!I$113) +($K44*'fnd base rates'!I$114) +($M44*'fnd base rates'!I$116) +($N44*'fnd base rates'!I$117) +($O44*'fnd base rates'!I$118) +($P44*VLOOKUP($S44+12,rate_basefnd,9))) *$R44 -> 2937.14304 | AB44: =(($D44*'fnd base rates'!J$107) +($E44*'fnd base rates'!J$108) +($F44*'fnd base rates'!J$109) +($G44*'fnd base rates'!J$110) +($H44*'fnd base rates'!J$111) +($I44*'fnd base rates'!J$112) +($J44*'fnd base rates'!J$113) +($K44*'fnd base rates'!J$114) +($M44*'fnd base rates'!J$116) +($N44*'fnd base rates'!J$117) +($O44*'fnd base rates'!J$118) +($P44*VLOOKUP($S44+12,rate_basefnd,10))) *$R44 -> 4567.3152 | AC44: =(($D44*'fnd base rates'!K$107) +($E44*'fnd base rates'!K$108) +($F44*'fnd base rates'!K$109) +($G44*'fnd base rates'!K$110) +($H44*'fnd base rates'!K$111) +($I44*'fnd base rates'!K$112) +($J44*'fnd base rates'!K$113) +($K44*'fnd base rates'!K$114) +($M44*'fnd base rates'!K$116) +($N44*'fnd base rates'!K$117) +($O44*'fnd base rates'!K$118) +($P44*VLOOKUP($S44+12,rate_basefnd,11))) *$R44 -> 7577.440497 | AD44: =(($D44*'fnd base rates'!L$107) +($E44*'fnd base rates'!L$108) +($F44*'fnd base rates'!L$109) +($G44*'fnd base rates'!L$110) +($H44*'fnd base rates'!L$111) +($I44*'fnd base rates'!L$112) +($J44*'fnd base rates'!L$113) +($K44*'fnd base rates'!L$114) +($M44*'fnd base rates'!L$116) +($N44*'fnd base rates'!L$117) +($O44*'fnd base rates'!L$118) +($P44*VLOOKUP($S44+12,rate_basefnd,12))) -> 9581.78008 | AE44: =(($D44*'fnd base rates'!M$107) +($E44*'fnd base rates'!M$108) +($F44*'fnd base rates'!M$109) +($G44*'fnd base rates'!M$110) +($H44*'fnd base rates'!M$111) +($I44*'fnd base rates'!M$112) +($J44*'fnd base rates'!M$113) +($K44*'fnd base rates'!M$114) +($M44*'fnd base rates'!M$116) +($N44*'fnd base rates'!M$117) +($O44*'fnd base rates'!M$118) +($P44*VLOOKUP($S44+12,rate_basefnd,13))) -> 0 | AF44: 82100.63718 | AH44: 412035285 | AI44: 412 | AJ44: 035 | AK44: 285 | AL44: 1 | AM44: 6 | AN44: 82100.63718 | AO44: 13683 | AP44: 0 | AQ44: 13683 | AW44: 13683 | AX44: 0 | AY44: 13683 | BB44: =BC44-BA44 -> 0
A45: 412 | B45: 412035293 | C45: ACADEMY OF THE PACIFIC RIM | D45: ='fnd enro'!D45 -> 0 | E45: ='fnd enro'!E45 -> 0 | F45: ='fnd enro'!F45 -> 0 | G45: ='fnd enro'!G45 -> 0 | H45: ='fnd enro'!H45 -> 1 | I45: ='fnd enro'!I45 -> 0 | J45: ='fnd enro'!J45 -> 0 | K45: ='fnd enro'!K45 -> 0.0386 | L45: ='fnd enro'!L45 -> 0 | M45: ='fnd enro'!M45 -> 0 | N45: ='fnd enro'!N45 -> 0 | O45: ='fnd enro'!O45 -> 0 | P45: ='fnd enro'!P45 -> 0 | Q45: ='fnd enro'!R45 -> 1 | R45: 1.088 | S45: =VALUE('fnd enro'!Q45) -> 10 | U45: =(($D45*'fnd base rates'!C$107) +($E45*'fnd base rates'!C$108) +($F45*'fnd base rates'!C$109) +($G45*'fnd base rates'!C$110) +($H45*'fnd base rates'!C$111) +($I45*'fnd base rates'!C$112) +($J45*'fnd base rates'!C$113) +($K45*'fnd base rates'!C$114) +($M45*'fnd base rates'!C$116) +($N45*'fnd base rates'!C$117) +($O45*'fnd base rates'!C$118) +($P45*VLOOKUP($S45+12,rate_basefnd,3))) *$R45 -> 583.6699444 | V45: =(($D45*'fnd base rates'!D$107) +($E45*'fnd base rates'!D$108) +($F45*'fnd base rates'!D$109) +($G45*'fnd base rates'!D$110) +($H45*'fnd base rates'!D$111) +($I45*'fnd base rates'!D$112) +($J45*'fnd base rates'!D$113) +($K45*'fnd base rates'!D$114) +($M45*'fnd base rates'!D$116) +($N45*'fnd base rates'!D$117) +($O45*'fnd base rates'!D$118) +($P45*VLOOKUP($S45+12,rate_basefnd,4))) *$R45 -> 832.40704 | W45: =(($D45*'fnd base rates'!E$107) +($E45*'fnd base rates'!E$108) +($F45*'fnd base rates'!E$109) +($G45*'fnd base rates'!E$110) +($H45*'fnd base rates'!E$111) +($I45*'fnd base rates'!E$112) +($J45*'fnd base rates'!E$113) +($K45*'fnd base rates'!E$114) +($M45*'fnd base rates'!E$116) +($N45*'fnd base rates'!E$117) +($O45*'fnd base rates'!E$118) +($P45*VLOOKUP($S45+12,rate_basefnd,5))) *$R45 -> 3763.914649 | X45: =(($D45*'fnd base rates'!F$107) +($E45*'fnd base rates'!F$108) +($F45*'fnd base rates'!F$109) +($G45*'fnd base rates'!F$110) +($H45*'fnd base rates'!F$111) +($I45*'fnd base rates'!F$112) +($J45*'fnd base rates'!F$113) +($K45*'fnd base rates'!F$114) +($M45*'fnd base rates'!F$116) +($N45*'fnd base rates'!F$117) +($O45*'fnd base rates'!F$118) +($P45*VLOOKUP($S45+12,rate_basefnd,6))) *$R45 -> 1082.969536 | Y45: =(($D45*'fnd base rates'!G$107) +($E45*'fnd base rates'!G$108) +($F45*'fnd base rates'!G$109) +($G45*'fnd base rates'!G$110) +($H45*'fnd base rates'!G$111) +($I45*'fnd base rates'!G$112) +($J45*'fnd base rates'!G$113) +($K45*'fnd base rates'!G$114) +($M45*'fnd base rates'!G$116) +($N45*'fnd base rates'!G$117) +($O45*'fnd base rates'!G$118) +($P45*VLOOKUP($S45+12,rate_basefnd,7))) *$R45 -> 183.2771708 | Z45: =(($D45*'fnd base rates'!H$107) +($E45*'fnd base rates'!H$108) +($F45*'fnd base rates'!H$109) +($G45*'fnd base rates'!H$110) +($H45*'fnd base rates'!H$111) +($I45*'fnd base rates'!H$112) +($J45*'fnd base rates'!H$113) +($K45*'fnd base rates'!H$114) +($M45*'fnd base rates'!H$116) +($N45*'fnd base rates'!H$117) +($O45*'fnd base rates'!H$118) +($P45*VLOOKUP($S45+12,rate_basefnd,8))) -> 523.438934 | AA45: =(($D45*'fnd base rates'!I$107) +($E45*'fnd base rates'!I$108) +($F45*'fnd base rates'!I$109) +($G45*'fnd base rates'!I$110) +($H45*'fnd base rates'!I$111) +($I45*'fnd base rates'!I$112) +($J45*'fnd base rates'!I$113) +($K45*'fnd base rates'!I$114) +($M45*'fnd base rates'!I$116) +($N45*'fnd base rates'!I$117) +($O45*'fnd base rates'!I$118) +($P45*VLOOKUP($S45+12,rate_basefnd,9))) *$R45 -> 394.60672 | AB45: =(($D45*'fnd base rates'!J$107) +($E45*'fnd base rates'!J$108) +($F45*'fnd base rates'!J$109) +($G45*'fnd base rates'!J$110) +($H45*'fnd base rates'!J$111) +($I45*'fnd base rates'!J$112) +($J45*'fnd base rates'!J$113) +($K45*'fnd base rates'!J$114) +($M45*'fnd base rates'!J$116) +($N45*'fnd base rates'!J$117) +($O45*'fnd base rates'!J$118) +($P45*VLOOKUP($S45+12,rate_basefnd,10))) *$R45 -> 270.70528 | AC45: =(($D45*'fnd base rates'!K$107) +($E45*'fnd base rates'!K$108) +($F45*'fnd base rates'!K$109) +($G45*'fnd base rates'!K$110) +($H45*'fnd base rates'!K$111) +($I45*'fnd base rates'!K$112) +($J45*'fnd base rates'!K$113) +($K45*'fnd base rates'!K$114) +($M45*'fnd base rates'!K$116) +($N45*'fnd base rates'!K$117) +($O45*'fnd base rates'!K$118) +($P45*VLOOKUP($S45+12,rate_basefnd,11))) *$R45 -> 1286.189949 | AD45: =(($D45*'fnd base rates'!L$107) +($E45*'fnd base rates'!L$108) +($F45*'fnd base rates'!L$109) +($G45*'fnd base rates'!L$110) +($H45*'fnd base rates'!L$111) +($I45*'fnd base rates'!L$112) +($J45*'fnd base rates'!L$113) +($K45*'fnd base rates'!L$114) +($M45*'fnd base rates'!L$116) +($N45*'fnd base rates'!L$117) +($O45*'fnd base rates'!L$118) +($P45*VLOOKUP($S45+12,rate_basefnd,12))) -> 1512.47668 | AE45: =(($D45*'fnd base rates'!M$107) +($E45*'fnd base rates'!M$108) +($F45*'fnd base rates'!M$109) +($G45*'fnd base rates'!M$110) +($H45*'fnd base rates'!M$111) +($I45*'fnd base rates'!M$112) +($J45*'fnd base rates'!M$113) +($K45*'fnd base rates'!M$114) +($M45*'fnd base rates'!M$116) +($N45*'fnd base rates'!M$117) +($O45*'fnd base rates'!M$118) +($P45*VLOOKUP($S45+12,rate_basefnd,13))) -> 0 | AF45: 10433.6559 | AH45: 412035293 | AI45: 412 | AJ45: 035 | AK45: 293 | AL45: 1 | AM45: 1 | AN45: 10433.6559 | AO45: 10434 | AP45: 0 | AQ45: 10434 | AW45: 10434 | AX45: 0 | AY45: 10434 | BB45: =BC45-BA45 -> 0
A46: 412 | B46: 412035307 | C46: ACADEMY OF THE PACIFIC RIM | D46: ='fnd enro'!D46 -> 0 | E46: ='fnd enro'!E46 -> 0 | F46: ='fnd enro'!F46 -> 0 | G46: ='fnd enro'!G46 -> 1 | H46: ='fnd enro'!H46 -> 1 | I46: ='fnd enro'!I46 -> 0 | J46: ='fnd enro'!J46 -> 0 | K46: ='fnd enro'!K46 -> 0.0772 | L46: ='fnd enro'!L46 -> 0 | M46: ='fnd enro'!M46 -> 1 | N46: ='fnd enro'!N46 -> 0 | O46: ='fnd enro'!O46 -> 0 | P46: ='fnd enro'!P46 -> 0 | Q46: ='fnd enro'!R46 -> 2 | R46: 1.088 | S46: =VALUE('fnd enro'!Q46) -> 4 | U46: =(($D46*'fnd base rates'!C$107) +($E46*'fnd base rates'!C$108) +($F46*'fnd base rates'!C$109) +($G46*'fnd base rates'!C$110) +($H46*'fnd base rates'!C$111) +($I46*'fnd base rates'!C$112) +($J46*'fnd base rates'!C$113) +($K46*'fnd base rates'!C$114) +($M46*'fnd base rates'!C$116) +($N46*'fnd base rates'!C$117) +($O46*'fnd base rates'!C$118) +($P46*VLOOKUP($S46+12,rate_basefnd,3))) *$R46 -> 1277.401969 | V46: =(($D46*'fnd base rates'!D$107) +($E46*'fnd base rates'!D$108) +($F46*'fnd base rates'!D$109) +($G46*'fnd base rates'!D$110) +($H46*'fnd base rates'!D$111) +($I46*'fnd base rates'!D$112) +($J46*'fnd base rates'!D$113) +($K46*'fnd base rates'!D$114) +($M46*'fnd base rates'!D$116) +($N46*'fnd base rates'!D$117) +($O46*'fnd base rates'!D$118) +($P46*VLOOKUP($S46+12,rate_basefnd,4))) *$R46 -> 1857.41184 | W46: =(($D46*'fnd base rates'!E$107) +($E46*'fnd base rates'!E$108) +($F46*'fnd base rates'!E$109) +($G46*'fnd base rates'!E$110) +($H46*'fnd base rates'!E$111) +($I46*'fnd base rates'!E$112) +($J46*'fnd base rates'!E$113) +($K46*'fnd base rates'!E$114) +($M46*'fnd base rates'!E$116) +($N46*'fnd base rates'!E$117) +($O46*'fnd base rates'!E$118) +($P46*VLOOKUP($S46+12,rate_basefnd,5))) *$R46 -> 9333.952818 | X46: =(($D46*'fnd base rates'!F$107) +($E46*'fnd base rates'!F$108) +($F46*'fnd base rates'!F$109) +($G46*'fnd base rates'!F$110) +($H46*'fnd base rates'!F$111) +($I46*'fnd base rates'!F$112) +($J46*'fnd base rates'!F$113) +($K46*'fnd base rates'!F$114) +($M46*'fnd base rates'!F$116) +($N46*'fnd base rates'!F$117) +($O46*'fnd base rates'!F$118) +($P46*VLOOKUP($S46+12,rate_basefnd,6))) *$R46 -> 2632.788993 | Y46: =(($D46*'fnd base rates'!G$107) +($E46*'fnd base rates'!G$108) +($F46*'fnd base rates'!G$109) +($G46*'fnd base rates'!G$110) +($H46*'fnd base rates'!G$111) +($I46*'fnd base rates'!G$112) +($J46*'fnd base rates'!G$113) +($K46*'fnd base rates'!G$114) +($M46*'fnd base rates'!G$116) +($N46*'fnd base rates'!G$117) +($O46*'fnd base rates'!G$118) +($P46*VLOOKUP($S46+12,rate_basefnd,7))) *$R46 -> 408.8884216 | Z46: =(($D46*'fnd base rates'!H$107) +($E46*'fnd base rates'!H$108) +($F46*'fnd base rates'!H$109) +($G46*'fnd base rates'!H$110) +($H46*'fnd base rates'!H$111) +($I46*'fnd base rates'!H$112) +($J46*'fnd base rates'!H$113) +($K46*'fnd base rates'!H$114) +($M46*'fnd base rates'!H$116) +($N46*'fnd base rates'!H$117) +($O46*'fnd base rates'!H$118) +($P46*VLOOKUP($S46+12,rate_basefnd,8))) -> 1173.307868 | AA46: =(($D46*'fnd base rates'!I$107) +($E46*'fnd base rates'!I$108) +($F46*'fnd base rates'!I$109) +($G46*'fnd base rates'!I$110) +($H46*'fnd base rates'!I$111) +($I46*'fnd base rates'!I$112) +($J46*'fnd base rates'!I$113) +($K46*'fnd base rates'!I$114) +($M46*'fnd base rates'!I$116) +($N46*'fnd base rates'!I$117) +($O46*'fnd base rates'!I$118) +($P46*VLOOKUP($S46+12,rate_basefnd,9))) *$R46 -> 810.4512 | AB46: =(($D46*'fnd base rates'!J$107) +($E46*'fnd base rates'!J$108) +($F46*'fnd base rates'!J$109) +($G46*'fnd base rates'!J$110) +($H46*'fnd base rates'!J$111) +($I46*'fnd base rates'!J$112) +($J46*'fnd base rates'!J$113) +($K46*'fnd base rates'!J$114) +($M46*'fnd base rates'!J$116) +($N46*'fnd base rates'!J$117) +($O46*'fnd base rates'!J$118) +($P46*VLOOKUP($S46+12,rate_basefnd,10))) *$R46 -> 463.95584 | AC46: =(($D46*'fnd base rates'!K$107) +($E46*'fnd base rates'!K$108) +($F46*'fnd base rates'!K$109) +($G46*'fnd base rates'!K$110) +($H46*'fnd base rates'!K$111) +($I46*'fnd base rates'!K$112) +($J46*'fnd base rates'!K$113) +($K46*'fnd base rates'!K$114) +($M46*'fnd base rates'!K$116) +($N46*'fnd base rates'!K$117) +($O46*'fnd base rates'!K$118) +($P46*VLOOKUP($S46+12,rate_basefnd,11))) *$R46 -> 2813.371899 | AD46: =(($D46*'fnd base rates'!L$107) +($E46*'fnd base rates'!L$108) +($F46*'fnd base rates'!L$109) +($G46*'fnd base rates'!L$110) +($H46*'fnd base rates'!L$111) +($I46*'fnd base rates'!L$112) +($J46*'fnd base rates'!L$113) +($K46*'fnd base rates'!L$114) +($M46*'fnd base rates'!L$116) +($N46*'fnd base rates'!L$117) +($O46*'fnd base rates'!L$118) +($P46*VLOOKUP($S46+12,rate_basefnd,12))) -> 3236.80336 | AE46: =(($D46*'fnd base rates'!M$107) +($E46*'fnd base rates'!M$108) +($F46*'fnd base rates'!M$109) +($G46*'fnd base rates'!M$110) +($H46*'fnd base rates'!M$111) +($I46*'fnd base rates'!M$112) +($J46*'fnd base rates'!M$113) +($K46*'fnd base rates'!M$114) +($M46*'fnd base rates'!M$116) +($N46*'fnd base rates'!M$117) +($O46*'fnd base rates'!M$118) +($P46*VLOOKUP($S46+12,rate_basefnd,13))) -> 0 | AF46: 24008.33421 | AH46: 412035307 | AI46: 412 | AJ46: 035 | AK46: 307 | AL46: 1 | AM46: 2 | AN46: 24008.33421 | AO46: 12004 | AP46: 0 | AQ46: 12004 | AW46: 12004 | AX46: 0 | AY46: 12004 | BB46: =BC46-BA46 -> 0
A47: 413 | B47: 413114091 | C47: FOUR RIVERS | D47: ='fnd enro'!D47 -> 0 | E47: ='fnd enro'!E47 -> 0 | F47: ='fnd enro'!F47 -> 0 | G47: ='fnd enro'!G47 -> 0 | H47: ='fnd enro'!H47 -> 0 | I47: ='fnd enro'!I47 -> 1 | J47: ='fnd enro'!J47 -> 0 | K47: ='fnd enro'!K47 -> 0.0386 | L47: ='fnd enro'!L47 -> 0 | M47: ='fnd enro'!M47 -> 0 | N47: ='fnd enro'!N47 -> 0 | O47: ='fnd enro'!O47 -> 0 | P47: ='fnd enro'!P47 -> 0 | Q47: ='fnd enro'!R47 -> 1 | R47: 1 | S47: =VALUE('fnd enro'!Q47) -> 9 | U47: =(($D47*'fnd base rates'!C$107) +($E47*'fnd base rates'!C$108) +($F47*'fnd base rates'!C$109) +($G47*'fnd base rates'!C$110) +($H47*'fnd base rates'!C$111) +($I47*'fnd base rates'!C$112) +($J47*'fnd base rates'!C$113) +($K47*'fnd base rates'!C$114) +($M47*'fnd base rates'!C$116) +($N47*'fnd base rates'!C$117) +($O47*'fnd base rates'!C$118) +($P47*VLOOKUP($S47+12,rate_basefnd,3))) *$R47 -> 536.461346 | V47: =(($D47*'fnd base rates'!D$107) +($E47*'fnd base rates'!D$108) +($F47*'fnd base rates'!D$109) +($G47*'fnd base rates'!D$110) +($H47*'fnd base rates'!D$111) +($I47*'fnd base rates'!D$112) +($J47*'fnd base rates'!D$113) +($K47*'fnd base rates'!D$114) +($M47*'fnd base rates'!D$116) +($N47*'fnd base rates'!D$117) +($O47*'fnd base rates'!D$118) +($P47*VLOOKUP($S47+12,rate_basefnd,4))) *$R47 -> 765.08 | W47: =(($D47*'fnd base rates'!E$107) +($E47*'fnd base rates'!E$108) +($F47*'fnd base rates'!E$109) +($G47*'fnd base rates'!E$110) +($H47*'fnd base rates'!E$111) +($I47*'fnd base rates'!E$112) +($J47*'fnd base rates'!E$113) +($K47*'fnd base rates'!E$114) +($M47*'fnd base rates'!E$116) +($N47*'fnd base rates'!E$117) +($O47*'fnd base rates'!E$118) +($P47*VLOOKUP($S47+12,rate_basefnd,5))) *$R47 -> 4912.200376 | X47: =(($D47*'fnd base rates'!F$107) +($E47*'fnd base rates'!F$108) +($F47*'fnd base rates'!F$109) +($G47*'fnd base rates'!F$110) +($H47*'fnd base rates'!F$111) +($I47*'fnd base rates'!F$112) +($J47*'fnd base rates'!F$113) +($K47*'fnd base rates'!F$114) +($M47*'fnd base rates'!F$116) +($N47*'fnd base rates'!F$117) +($O47*'fnd base rates'!F$118) +($P47*VLOOKUP($S47+12,rate_basefnd,6))) *$R47 -> 886.886412 | Y47: =(($D47*'fnd base rates'!G$107) +($E47*'fnd base rates'!G$108) +($F47*'fnd base rates'!G$109) +($G47*'fnd base rates'!G$110) +($H47*'fnd base rates'!G$111) +($I47*'fnd base rates'!G$112) +($J47*'fnd base rates'!G$113) +($K47*'fnd base rates'!G$114) +($M47*'fnd base rates'!G$116) +($N47*'fnd base rates'!G$117) +($O47*'fnd base rates'!G$118) +($P47*VLOOKUP($S47+12,rate_basefnd,7))) *$R47 -> 163.883282 | Z47: =(($D47*'fnd base rates'!H$107) +($E47*'fnd base rates'!H$108) +($F47*'fnd base rates'!H$109) +($G47*'fnd base rates'!H$110) +($H47*'fnd base rates'!H$111) +($I47*'fnd base rates'!H$112) +($J47*'fnd base rates'!H$113) +($K47*'fnd base rates'!H$114) +($M47*'fnd base rates'!H$116) +($N47*'fnd base rates'!H$117) +($O47*'fnd base rates'!H$118) +($P47*VLOOKUP($S47+12,rate_basefnd,8))) -> 828.078934 | AA47: =(($D47*'fnd base rates'!I$107) +($E47*'fnd base rates'!I$108) +($F47*'fnd base rates'!I$109) +($G47*'fnd base rates'!I$110) +($H47*'fnd base rates'!I$111) +($I47*'fnd base rates'!I$112) +($J47*'fnd base rates'!I$113) +($K47*'fnd base rates'!I$114) +($M47*'fnd base rates'!I$116) +($N47*'fnd base rates'!I$117) +($O47*'fnd base rates'!I$118) +($P47*VLOOKUP($S47+12,rate_basefnd,9))) *$R47 -> 425.94 | AB47: =(($D47*'fnd base rates'!J$107) +($E47*'fnd base rates'!J$108) +($F47*'fnd base rates'!J$109) +($G47*'fnd base rates'!J$110) +($H47*'fnd base rates'!J$111) +($I47*'fnd base rates'!J$112) +($J47*'fnd base rates'!J$113) +($K47*'fnd base rates'!J$114) +($M47*'fnd base rates'!J$116) +($N47*'fnd base rates'!J$117) +($O47*'fnd base rates'!J$118) +($P47*VLOOKUP($S47+12,rate_basefnd,10))) *$R47 -> 573.75 | AC47: =(($D47*'fnd base rates'!K$107) +($E47*'fnd base rates'!K$108) +($F47*'fnd base rates'!K$109) +($G47*'fnd base rates'!K$110) +($H47*'fnd base rates'!K$111) +($I47*'fnd base rates'!K$112) +($J47*'fnd base rates'!K$113) +($K47*'fnd base rates'!K$114) +($M47*'fnd base rates'!K$116) +($N47*'fnd base rates'!K$117) +($O47*'fnd base rates'!K$118) +($P47*VLOOKUP($S47+12,rate_basefnd,11))) *$R47 -> 1150.05988 | AD47: =(($D47*'fnd base rates'!L$107) +($E47*'fnd base rates'!L$108) +($F47*'fnd base rates'!L$109) +($G47*'fnd base rates'!L$110) +($H47*'fnd base rates'!L$111) +($I47*'fnd base rates'!L$112) +($J47*'fnd base rates'!L$113) +($K47*'fnd base rates'!L$114) +($M47*'fnd base rates'!L$116) +($N47*'fnd base rates'!L$117) +($O47*'fnd base rates'!L$118) +($P47*VLOOKUP($S47+12,rate_basefnd,12))) -> 1369.12668 | AE47: =(($D47*'fnd base rates'!M$107) +($E47*'fnd base rates'!M$108) +($F47*'fnd base rates'!M$109) +($G47*'fnd base rates'!M$110) +($H47*'fnd base rates'!M$111) +($I47*'fnd base rates'!M$112) +($J47*'fnd base rates'!M$113) +($K47*'fnd base rates'!M$114) +($M47*'fnd base rates'!M$116) +($N47*'fnd base rates'!M$117) +($O47*'fnd base rates'!M$118) +($P47*VLOOKUP($S47+12,rate_basefnd,13))) -> 0 | AF47: 11611.46691 | AH47: 413114091 | AI47: 413 | AJ47: 114 | AK47: 091 | AL47: 1 | AM47: 1 | AN47: 11611.46691 | AO47: 11611 | AP47: 0 | AQ47: 11611 | AW47: 11611 | AX47: 0 | AY47: 11611 | BB47: =BC47-BA47 -> 0
A48: 413 | B48: 413114114 | C48: FOUR RIVERS | D48: ='fnd enro'!D48 -> 0 | E48: ='fnd enro'!E48 -> 0 | F48: ='fnd enro'!F48 -> 0 | G48: ='fnd enro'!G48 -> 0 | H48: ='fnd enro'!H48 -> 31 | I48: ='fnd enro'!I48 -> 38 | J48: ='fnd enro'!J48 -> 0 | K48: ='fnd enro'!K48 -> 2.6634 | L48: ='fnd enro'!L48 -> 0 | M48: ='fnd enro'!M48 -> 0 | N48: ='fnd enro'!N48 -> 0 | O48: ='fnd enro'!O48 -> 0 | P48: ='fnd enro'!P48 -> 30 | Q48: ='fnd enro'!R48 -> 69 | R48: 1 | S48: =VALUE('fnd enro'!Q48) -> 10 | U48: =(($D48*'fnd base rates'!C$107) +($E48*'fnd base rates'!C$108) +($F48*'fnd base rates'!C$109) +($G48*'fnd base rates'!C$110) +($H48*'fnd base rates'!C$111) +($I48*'fnd base rates'!C$112) +($J48*'fnd base rates'!C$113) +($K48*'fnd base rates'!C$114) +($M48*'fnd base rates'!C$116) +($N48*'fnd base rates'!C$117) +($O48*'fnd base rates'!C$118) +($P48*VLOOKUP($S48+12,rate_basefnd,3))) *$R48 -> 39395.13287 | V48: =(($D48*'fnd base rates'!D$107) +($E48*'fnd base rates'!D$108) +($F48*'fnd base rates'!D$109) +($G48*'fnd base rates'!D$110) +($H48*'fnd base rates'!D$111) +($I48*'fnd base rates'!D$112) +($J48*'fnd base rates'!D$113) +($K48*'fnd base rates'!D$114) +($M48*'fnd base rates'!D$116) +($N48*'fnd base rates'!D$117) +($O48*'fnd base rates'!D$118) +($P48*VLOOKUP($S48+12,rate_basefnd,4))) *$R48 -> 64064.52 | W48: =(($D48*'fnd base rates'!E$107) +($E48*'fnd base rates'!E$108) +($F48*'fnd base rates'!E$109) +($G48*'fnd base rates'!E$110) +($H48*'fnd base rates'!E$111) +($I48*'fnd base rates'!E$112) +($J48*'fnd base rates'!E$113) +($K48*'fnd base rates'!E$114) +($M48*'fnd base rates'!E$116) +($N48*'fnd base rates'!E$117) +($O48*'fnd base rates'!E$118) +($P48*VLOOKUP($S48+12,rate_basefnd,5))) *$R48 -> 403960.7059 | X48: =(($D48*'fnd base rates'!F$107) +($E48*'fnd base rates'!F$108) +($F48*'fnd base rates'!F$109) +($G48*'fnd base rates'!F$110) +($H48*'fnd base rates'!F$111) +($I48*'fnd base rates'!F$112) +($J48*'fnd base rates'!F$113) +($K48*'fnd base rates'!F$114) +($M48*'fnd base rates'!F$116) +($N48*'fnd base rates'!F$117) +($O48*'fnd base rates'!F$118) +($P48*VLOOKUP($S48+12,rate_basefnd,6))) *$R48 -> 64558.35243 | Y48: =(($D48*'fnd base rates'!G$107) +($E48*'fnd base rates'!G$108) +($F48*'fnd base rates'!G$109) +($G48*'fnd base rates'!G$110) +($H48*'fnd base rates'!G$111) +($I48*'fnd base rates'!G$112) +($J48*'fnd base rates'!G$113) +($K48*'fnd base rates'!G$114) +($M48*'fnd base rates'!G$116) +($N48*'fnd base rates'!G$117) +($O48*'fnd base rates'!G$118) +($P48*VLOOKUP($S48+12,rate_basefnd,7))) *$R48 -> 16788.71646 | Z48: =(($D48*'fnd base rates'!H$107) +($E48*'fnd base rates'!H$108) +($F48*'fnd base rates'!H$109) +($G48*'fnd base rates'!H$110) +($H48*'fnd base rates'!H$111) +($I48*'fnd base rates'!H$112) +($J48*'fnd base rates'!H$113) +($K48*'fnd base rates'!H$114) +($M48*'fnd base rates'!H$116) +($N48*'fnd base rates'!H$117) +($O48*'fnd base rates'!H$118) +($P48*VLOOKUP($S48+12,rate_basefnd,8))) -> 48512.00645 | AA48: =(($D48*'fnd base rates'!I$107) +($E48*'fnd base rates'!I$108) +($F48*'fnd base rates'!I$109) +($G48*'fnd base rates'!I$110) +($H48*'fnd base rates'!I$111) +($I48*'fnd base rates'!I$112) +($J48*'fnd base rates'!I$113) +($K48*'fnd base rates'!I$114) +($M48*'fnd base rates'!I$116) +($N48*'fnd base rates'!I$117) +($O48*'fnd base rates'!I$118) +($P48*VLOOKUP($S48+12,rate_basefnd,9))) *$R48 -> 31885.61 | AB48: =(($D48*'fnd base rates'!J$107) +($E48*'fnd base rates'!J$108) +($F48*'fnd base rates'!J$109) +($G48*'fnd base rates'!J$110) +($H48*'fnd base rates'!J$111) +($I48*'fnd base rates'!J$112) +($J48*'fnd base rates'!J$113) +($K48*'fnd base rates'!J$114) +($M48*'fnd base rates'!J$116) +($N48*'fnd base rates'!J$117) +($O48*'fnd base rates'!J$118) +($P48*VLOOKUP($S48+12,rate_basefnd,10))) *$R48 -> 52672.31 | AC48: =(($D48*'fnd base rates'!K$107) +($E48*'fnd base rates'!K$108) +($F48*'fnd base rates'!K$109) +($G48*'fnd base rates'!K$110) +($H48*'fnd base rates'!K$111) +($I48*'fnd base rates'!K$112) +($J48*'fnd base rates'!K$113) +($K48*'fnd base rates'!K$114) +($M48*'fnd base rates'!K$116) +($N48*'fnd base rates'!K$117) +($O48*'fnd base rates'!K$118) +($P48*VLOOKUP($S48+12,rate_basefnd,11))) *$R48 -> 80349.23172 | AD48: =(($D48*'fnd base rates'!L$107) +($E48*'fnd base rates'!L$108) +($F48*'fnd base rates'!L$109) +($G48*'fnd base rates'!L$110) +($H48*'fnd base rates'!L$111) +($I48*'fnd base rates'!L$112) +($J48*'fnd base rates'!L$113) +($K48*'fnd base rates'!L$114) +($M48*'fnd base rates'!L$116) +($N48*'fnd base rates'!L$117) +($O48*'fnd base rates'!L$118) +($P48*VLOOKUP($S48+12,rate_basefnd,12))) -> 116715.5909 | AE48: =(($D48*'fnd base rates'!M$107) +($E48*'fnd base rates'!M$108) +($F48*'fnd base rates'!M$109) +($G48*'fnd base rates'!M$110) +($H48*'fnd base rates'!M$111) +($I48*'fnd base rates'!M$112) +($J48*'fnd base rates'!M$113) +($K48*'fnd base rates'!M$114) +($M48*'fnd base rates'!M$116) +($N48*'fnd base rates'!M$117) +($O48*'fnd base rates'!M$118) +($P48*VLOOKUP($S48+12,rate_basefnd,13))) -> 0 | AF48: 918902.1768 | AH48: 413114114 | AI48: 413 | AJ48: 114 | AK48: 114 | AL48: 1 | AM48: 69 | AN48: 918902.1768 | AO48: 13317 | AP48: 0 | AQ48: 13317 | AW48: 13317 | AX48: 0 | AY48: 13317 | BB48: =BC48-BA48 -> 0
A49: 413 | B49: 413114127 | C49: FOUR RIVERS | D49: ='fnd enro'!D49 -> 0 | E49: ='fnd enro'!E49 -> 0 | F49: ='fnd enro'!F49 -> 0 | G49: ='fnd enro'!G49 -> 0 | H49: ='fnd enro'!H49 -> 0 | I49: ='fnd enro'!I49 -> 1 | J49: ='fnd enro'!J49 -> 0 | K49: ='fnd enro'!K49 -> 0.0386 | L49: ='fnd enro'!L49 -> 0 | M49: ='fnd enro'!M49 -> 0 | N49: ='fnd enro'!N49 -> 0 | O49: ='fnd enro'!O49 -> 0 | P49: ='fnd enro'!P49 -> 0 | Q49: ='fnd enro'!R49 -> 1 | R49: 1 | S49: =VALUE('fnd enro'!Q49) -> 5 | U49: =(($D49*'fnd base rates'!C$107) +($E49*'fnd base rates'!C$108) +($F49*'fnd base rates'!C$109) +($G49*'fnd base rates'!C$110) +($H49*'fnd base rates'!C$111) +($I49*'fnd base rates'!C$112) +($J49*'fnd base rates'!C$113) +($K49*'fnd base rates'!C$114) +($M49*'fnd base rates'!C$116) +($N49*'fnd base rates'!C$117) +($O49*'fnd base rates'!C$118) +($P49*VLOOKUP($S49+12,rate_basefnd,3))) *$R49 -> 536.461346 | V49: =(($D49*'fnd base rates'!D$107) +($E49*'fnd base rates'!D$108) +($F49*'fnd base rates'!D$109) +($G49*'fnd base rates'!D$110) +($H49*'fnd base rates'!D$111) +($I49*'fnd base rates'!D$112) +($J49*'fnd base rates'!D$113) +($K49*'fnd base rates'!D$114) +($M49*'fnd base rates'!D$116) +($N49*'fnd base rates'!D$117) +($O49*'fnd base rates'!D$118) +($P49*VLOOKUP($S49+12,rate_basefnd,4))) *$R49 -> 765.08 | W49: =(($D49*'fnd base rates'!E$107) +($E49*'fnd base rates'!E$108) +($F49*'fnd base rates'!E$109) +($G49*'fnd base rates'!E$110) +($H49*'fnd base rates'!E$111) +($I49*'fnd base rates'!E$112) +($J49*'fnd base rates'!E$113) +($K49*'fnd base rates'!E$114) +($M49*'fnd base rates'!E$116) +($N49*'fnd base rates'!E$117) +($O49*'fnd base rates'!E$118) +($P49*VLOOKUP($S49+12,rate_basefnd,5))) *$R49 -> 4912.200376 | X49: =(($D49*'fnd base rates'!F$107) +($E49*'fnd base rates'!F$108) +($F49*'fnd base rates'!F$109) +($G49*'fnd base rates'!F$110) +($H49*'fnd base rates'!F$111) +($I49*'fnd base rates'!F$112) +($J49*'fnd base rates'!F$113) +($K49*'fnd base rates'!F$114) +($M49*'fnd base rates'!F$116) +($N49*'fnd base rates'!F$117) +($O49*'fnd base rates'!F$118) +($P49*VLOOKUP($S49+12,rate_basefnd,6))) *$R49 -> 886.886412 | Y49: =(($D49*'fnd base rates'!G$107) +($E49*'fnd base rates'!G$108) +($F49*'fnd base rates'!G$109) +($G49*'fnd base rates'!G$110) +($H49*'fnd base rates'!G$111) +($I49*'fnd base rates'!G$112) +($J49*'fnd base rates'!G$113) +($K49*'fnd base rates'!G$114) +($M49*'fnd base rates'!G$116) +($N49*'fnd base rates'!G$117) +($O49*'fnd base rates'!G$118) +($P49*VLOOKUP($S49+12,rate_basefnd,7))) *$R49 -> 163.883282 | Z49: =(($D49*'fnd base rates'!H$107) +($E49*'fnd base rates'!H$108) +($F49*'fnd base rates'!H$109) +($G49*'fnd base rates'!H$110) +($H49*'fnd base rates'!H$111) +($I49*'fnd base rates'!H$112) +($J49*'fnd base rates'!H$113) +($K49*'fnd base rates'!H$114) +($M49*'fnd base rates'!H$116) +($N49*'fnd base rates'!H$117) +($O49*'fnd base rates'!H$118) +($P49*VLOOKUP($S49+12,rate_basefnd,8))) -> 828.078934 | AA49: =(($D49*'fnd base rates'!I$107) +($E49*'fnd base rates'!I$108) +($F49*'fnd base rates'!I$109) +($G49*'fnd base rates'!I$110) +($H49*'fnd base rates'!I$111) +($I49*'fnd base rates'!I$112) +($J49*'fnd base rates'!I$113) +($K49*'fnd base rates'!I$114) +($M49*'fnd base rates'!I$116) +($N49*'fnd base rates'!I$117) +($O49*'fnd base rates'!I$118) +($P49*VLOOKUP($S49+12,rate_basefnd,9))) *$R49 -> 425.94 | AB49: =(($D49*'fnd base rates'!J$107) +($E49*'fnd base rates'!J$108) +($F49*'fnd base rates'!J$109) +($G49*'fnd base rates'!J$110) +($H49*'fnd base rates'!J$111) +($I49*'fnd base rates'!J$112) +($J49*'fnd base rates'!J$113) +($K49*'fnd base rates'!J$114) +($M49*'fnd base rates'!J$116) +($N49*'fnd base rates'!J$117) +($O49*'fnd base rates'!J$118) +($P49*VLOOKUP($S49+12,rate_basefnd,10))) *$R49 -> 573.75 | AC49: =(($D49*'fnd base rates'!K$107) +($E49*'fnd base rates'!K$108) +($F49*'fnd base rates'!K$109) +($G49*'fnd base rates'!K$110) +($H49*'fnd base rates'!K$111) +($I49*'fnd base rates'!K$112) +($J49*'fnd base rates'!K$113) +($K49*'fnd base rates'!K$114) +($M49*'fnd base rates'!K$116) +($N49*'fnd base rates'!K$117) +($O49*'fnd base rates'!K$118) +($P49*VLOOKUP($S49+12,rate_basefnd,11))) *$R49 -> 1150.05988 | AD49: =(($D49*'fnd base rates'!L$107) +($E49*'fnd base rates'!L$108) +($F49*'fnd base rates'!L$109) +($G49*'fnd base rates'!L$110) +($H49*'fnd base rates'!L$111) +($I49*'fnd base rates'!L$112) +($J49*'fnd base rates'!L$113) +($K49*'fnd base rates'!L$114) +($M49*'fnd base rates'!L$116) +($N49*'fnd base rates'!L$117) +($O49*'fnd base rates'!L$118) +($P49*VLOOKUP($S49+12,rate_basefnd,12))) -> 1369.12668 | AE49: =(($D49*'fnd base rates'!M$107) +($E49*'fnd base rates'!M$108) +($F49*'fnd base rates'!M$109) +($G49*'fnd base rates'!M$110) +($H49*'fnd base rates'!M$111) +($I49*'fnd base rates'!M$112) +($J49*'fnd base rates'!M$113) +($K49*'fnd base rates'!M$114) +($M49*'fnd base rates'!M$116) +($N49*'fnd base rates'!M$117) +($O49*'fnd base rates'!M$118) +($P49*VLOOKUP($S49+12,rate_basefnd,13))) -> 0 | AF49: 11611.46691 | AH49: 413114127 | AI49: 413 | AJ49: 114 | AK49: 127 | AL49: 1 | AM49: 1 | AN49: 11611.46691 | AO49: 11611 | AP49: 0 | AQ49: 11611 | AW49: 11611 | AX49: 0 | AY49: 11611 | BB49: =BC49-BA49 -> 0
A50: 413 | B50: 413114210 | C50: FOUR RIVERS | D50: ='fnd enro'!D50 -> 0 | E50: ='fnd enro'!E50 -> 0 | F50: ='fnd enro'!F50 -> 0 | G50: ='fnd enro'!G50 -> 0 | H50: ='fnd enro'!H50 -> 0 | I50: ='fnd enro'!I50 -> 1 | J50: ='fnd enro'!J50 -> 0 | K50: ='fnd enro'!K50 -> 0.0386 | L50: ='fnd enro'!L50 -> 0 | M50: ='fnd enro'!M50 -> 0 | N50: ='fnd enro'!N50 -> 0 | O50: ='fnd enro'!O50 -> 0 | P50: ='fnd enro'!P50 -> 0 | Q50: ='fnd enro'!R50 -> 1 | R50: 1 | S50: =VALUE('fnd enro'!Q50) -> 6 | U50: =(($D50*'fnd base rates'!C$107) +($E50*'fnd base rates'!C$108) +($F50*'fnd base rates'!C$109) +($G50*'fnd base rates'!C$110) +($H50*'fnd base rates'!C$111) +($I50*'fnd base rates'!C$112) +($J50*'fnd base rates'!C$113) +($K50*'fnd base rates'!C$114) +($M50*'fnd base rates'!C$116) +($N50*'fnd base rates'!C$117) +($O50*'fnd base rates'!C$118) +($P50*VLOOKUP($S50+12,rate_basefnd,3))) *$R50 -> 536.461346 | V50: =(($D50*'fnd base rates'!D$107) +($E50*'fnd base rates'!D$108) +($F50*'fnd base rates'!D$109) +($G50*'fnd base rates'!D$110) +($H50*'fnd base rates'!D$111) +($I50*'fnd base rates'!D$112) +($J50*'fnd base rates'!D$113) +($K50*'fnd base rates'!D$114) +($M50*'fnd base rates'!D$116) +($N50*'fnd base rates'!D$117) +($O50*'fnd base rates'!D$118) +($P50*VLOOKUP($S50+12,rate_basefnd,4))) *$R50 -> 765.08 | W50: =(($D50*'fnd base rates'!E$107) +($E50*'fnd base rates'!E$108) +($F50*'fnd base rates'!E$109) +($G50*'fnd base rates'!E$110) +($H50*'fnd base rates'!E$111) +($I50*'fnd base rates'!E$112) +($J50*'fnd base rates'!E$113) +($K50*'fnd base rates'!E$114) +($M50*'fnd base rates'!E$116) +($N50*'fnd base rates'!E$117) +($O50*'fnd base rates'!E$118) +($P50*VLOOKUP($S50+12,rate_basefnd,5))) *$R50 -> 4912.200376 | X50: =(($D50*'fnd base rates'!F$107) +($E50*'fnd base rates'!F$108) +($F50*'fnd base rates'!F$109) +($G50*'fnd base rates'!F$110) +($H50*'fnd base rates'!F$111) +($I50*'fnd base rates'!F$112) +($J50*'fnd base rates'!F$113) +($K50*'fnd base rates'!F$114) +($M50*'fnd base rates'!F$116) +($N50*'fnd base rates'!F$117) +($O50*'fnd base rates'!F$118) +($P50*VLOOKUP($S50+12,rate_basefnd,6))) *$R50 -> 886.886412 | Y50: =(($D50*'fnd base rates'!G$107) +($E50*'fnd base rates'!G$108) +($F50*'fnd base rates'!G$109) +($G50*'fnd base rates'!G$110) +($H50*'fnd base rates'!G$111) +($I50*'fnd base rates'!G$112) +($J50*'fnd base rates'!G$113) +($K50*'fnd base rates'!G$114) +($M50*'fnd base rates'!G$116) +($N50*'fnd base rates'!G$117) +($O50*'fnd base rates'!G$118) +($P50*VLOOKUP($S50+12,rate_basefnd,7))) *$R50 -> 163.883282 | Z50: =(($D50*'fnd base rates'!H$107) +($E50*'fnd base rates'!H$108) +($F50*'fnd base rates'!H$109) +($G50*'fnd base rates'!H$110) +($H50*'fnd base rates'!H$111) +($I50*'fnd base rates'!H$112) +($J50*'fnd base rates'!H$113) +($K50*'fnd base rates'!H$114) +($M50*'fnd base rates'!H$116) +($N50*'fnd base rates'!H$117) +($O50*'fnd base rates'!H$118) +($P50*VLOOKUP($S50+12,rate_basefnd,8))) -> 828.078934 | AA50: =(($D50*'fnd base rates'!I$107) +($E50*'fnd base rates'!I$108) +($F50*'fnd base rates'!I$109) +($G50*'fnd base rates'!I$110) +($H50*'fnd base rates'!I$111) +($I50*'fnd base rates'!I$112) +($J50*'fnd base rates'!I$113) +($K50*'fnd base rates'!I$114) +($M50*'fnd base rates'!I$116) +($N50*'fnd base rates'!I$117) +($O50*'fnd base rates'!I$118) +($P50*VLOOKUP($S50+12,rate_basefnd,9))) *$R50 -> 425.94 | AB50: =(($D50*'fnd base rates'!J$107) +($E50*'fnd base rates'!J$108) +($F50*'fnd base rates'!J$109) +($G50*'fnd base rates'!J$110) +($H50*'fnd base rates'!J$111) +($I50*'fnd base rates'!J$112) +($J50*'fnd base rates'!J$113) +($K50*'fnd base rates'!J$114) +($M50*'fnd base rates'!J$116) +($N50*'fnd base rates'!J$117) +($O50*'fnd base rates'!J$118) +($P50*VLOOKUP($S50+12,rate_basefnd,10))) *$R50 -> 573.75 | AC50: =(($D50*'fnd base rates'!K$107) +($E50*'fnd base rates'!K$108) +($F50*'fnd base rates'!K$109) +($G50*'fnd base rates'!K$110) +($H50*'fnd base rates'!K$111) +($I50*'fnd base rates'!K$112) +($J50*'fnd base rates'!K$113) +($K50*'fnd base rates'!K$114) +($M50*'fnd base rates'!K$116) +($N50*'fnd base rates'!K$117) +($O50*'fnd base rates'!K$118) +($P50*VLOOKUP($S50+12,rate_basefnd,11))) *$R50 -> 1150.05988 | AD50: =(($D50*'fnd base rates'!L$107) +($E50*'fnd base rates'!L$108) +($F50*'fnd base rates'!L$109) +($G50*'fnd base rates'!L$110) +($H50*'fnd base rates'!L$111) +($I50*'fnd base rates'!L$112) +($J50*'fnd base rates'!L$113) +($K50*'fnd base rates'!L$114) +($M50*'fnd base rates'!L$116) +($N50*'fnd base rates'!L$117) +($O50*'fnd base rates'!L$118) +($P50*VLOOKUP($S50+12,rate_basefnd,12))) -> 1369.12668 | AE50: =(($D50*'fnd base rates'!M$107) +($E50*'fnd base rates'!M$108) +($F50*'fnd base rates'!M$109) +($G50*'fnd base rates'!M$110) +($H50*'fnd base rates'!M$111) +($I50*'fnd base rates'!M$112) +($J50*'fnd base rates'!M$113) +($K50*'fnd base rates'!M$114) +($M50*'fnd base rates'!M$116) +($N50*'fnd base rates'!M$117) +($O50*'fnd base rates'!M$118) +($P50*VLOOKUP($S50+12,rate_basefnd,13))) -> 0 | AF50: 11611.46691 | AH50: 413114210 | AI50: 413 | AJ50: 114 | AK50: 210 | AL50: 1 | AM50: 1 | AN50: 11611.46691 | AO50: 11611 | AP50: 0 | AQ50: 11611 | AW50: 11611 | AX50: 0 | AY50: 11611 | BB50: =BC50-BA50 -> 0
A51: 413 | B51: 413114253 | C51: FOUR RIVERS | D51: ='fnd enro'!D51 -> 0 | E51: ='fnd enro'!E51 -> 0 | F51: ='fnd enro'!F51 -> 0 | G51: ='fnd enro'!G51 -> 0 | H51: ='fnd enro'!H51 -> 0 | I51: ='fnd enro'!I51 -> 1 | J51: ='fnd enro'!J51 -> 0 | K51: ='fnd enro'!K51 -> 0.0386 | L51: ='fnd enro'!L51 -> 0 | M51: ='fnd enro'!M51 -> 0 | N51: ='fnd enro'!N51 -> 0 | O51: ='fnd enro'!O51 -> 0 | P51: ='fnd enro'!P51 -> 0 | Q51: ='fnd enro'!R51 -> 1 | R51: 1 | S51: =VALUE('fnd enro'!Q51) -> 10 | U51: =(($D51*'fnd base rates'!C$107) +($E51*'fnd base rates'!C$108) +($F51*'fnd base rates'!C$109) +($G51*'fnd base rates'!C$110) +($H51*'fnd base rates'!C$111) +($I51*'fnd base rates'!C$112) +($J51*'fnd base rates'!C$113) +($K51*'fnd base rates'!C$114) +($M51*'fnd base rates'!C$116) +($N51*'fnd base rates'!C$117) +($O51*'fnd base rates'!C$118) +($P51*VLOOKUP($S51+12,rate_basefnd,3))) *$R51 -> 536.461346 | V51: =(($D51*'fnd base rates'!D$107) +($E51*'fnd base rates'!D$108) +($F51*'fnd base rates'!D$109) +($G51*'fnd base rates'!D$110) +($H51*'fnd base rates'!D$111) +($I51*'fnd base rates'!D$112) +($J51*'fnd base rates'!D$113) +($K51*'fnd base rates'!D$114) +($M51*'fnd base rates'!D$116) +($N51*'fnd base rates'!D$117) +($O51*'fnd base rates'!D$118) +($P51*VLOOKUP($S51+12,rate_basefnd,4))) *$R51 -> 765.08 | W51: =(($D51*'fnd base rates'!E$107) +($E51*'fnd base rates'!E$108) +($F51*'fnd base rates'!E$109) +($G51*'fnd base rates'!E$110) +($H51*'fnd base rates'!E$111) +($I51*'fnd base rates'!E$112) +($J51*'fnd base rates'!E$113) +($K51*'fnd base rates'!E$114) +($M51*'fnd base rates'!E$116) +($N51*'fnd base rates'!E$117) +($O51*'fnd base rates'!E$118) +($P51*VLOOKUP($S51+12,rate_basefnd,5))) *$R51 -> 4912.200376 | X51: =(($D51*'fnd base rates'!F$107) +($E51*'fnd base rates'!F$108) +($F51*'fnd base rates'!F$109) +($G51*'fnd base rates'!F$110) +($H51*'fnd base rates'!F$111) +($I51*'fnd base rates'!F$112) +($J51*'fnd base rates'!F$113) +($K51*'fnd base rates'!F$114) +($M51*'fnd base rates'!F$116) +($N51*'fnd base rates'!F$117) +($O51*'fnd base rates'!F$118) +($P51*VLOOKUP($S51+12,rate_basefnd,6))) *$R51 -> 886.886412 | Y51: =(($D51*'fnd base rates'!G$107) +($E51*'fnd base rates'!G$108) +($F51*'fnd base rates'!G$109) +($G51*'fnd base rates'!G$110) +($H51*'fnd base rates'!G$111) +($I51*'fnd base rates'!G$112) +($J51*'fnd base rates'!G$113) +($K51*'fnd base rates'!G$114) +($M51*'fnd base rates'!G$116) +($N51*'fnd base rates'!G$117) +($O51*'fnd base rates'!G$118) +($P51*VLOOKUP($S51+12,rate_basefnd,7))) *$R51 -> 163.883282 | Z51: =(($D51*'fnd base rates'!H$107) +($E51*'fnd base rates'!H$108) +($F51*'fnd base rates'!H$109) +($G51*'fnd base rates'!H$110) +($H51*'fnd base rates'!H$111) +($I51*'fnd base rates'!H$112) +($J51*'fnd base rates'!H$113) +($K51*'fnd base rates'!H$114) +($M51*'fnd base rates'!H$116) +($N51*'fnd base rates'!H$117) +($O51*'fnd base rates'!H$118) +($P51*VLOOKUP($S51+12,rate_basefnd,8))) -> 828.078934 | AA51: =(($D51*'fnd base rates'!I$107) +($E51*'fnd base rates'!I$108) +($F51*'fnd base rates'!I$109) +($G51*'fnd base rates'!I$110) +($H51*'fnd base rates'!I$111) +($I51*'fnd base rates'!I$112) +($J51*'fnd base rates'!I$113) +($K51*'fnd base rates'!I$114) +($M51*'fnd base rates'!I$116) +($N51*'fnd base rates'!I$117) +($O51*'fnd base rates'!I$118) +($P51*VLOOKUP($S51+12,rate_basefnd,9))) *$R51 -> 425.94 | AB51: =(($D51*'fnd base rates'!J$107) +($E51*'fnd base rates'!J$108) +($F51*'fnd base rates'!J$109) +($G51*'fnd base rates'!J$110) +($H51*'fnd base rates'!J$111) +($I51*'fnd base rates'!J$112) +($J51*'fnd base rates'!J$113) +($K51*'fnd base rates'!J$114) +($M51*'fnd base rates'!J$116) +($N51*'fnd base rates'!J$117) +($O51*'fnd base rates'!J$118) +($P51*VLOOKUP($S51+12,rate_basefnd,10))) *$R51 -> 573.75 | AC51: =(($D51*'fnd base rates'!K$107) +($E51*'fnd base rates'!K$108) +($F51*'fnd base rates'!K$109) +($G51*'fnd base rates'!K$110) +($H51*'fnd base rates'!K$111) +($I51*'fnd base rates'!K$112) +($J51*'fnd base rates'!K$113) +($K51*'fnd base rates'!K$114) +($M51*'fnd base rates'!K$116) +($N51*'fnd base rates'!K$117) +($O51*'fnd base rates'!K$118) +($P51*VLOOKUP($S51+12,rate_basefnd,11))) *$R51 -> 1150.05988 | AD51: =(($D51*'fnd base rates'!L$107) +($E51*'fnd base rates'!L$108) +($F51*'fnd base rates'!L$109) +($G51*'fnd base rates'!L$110) +($H51*'fnd base rates'!L$111) +($I51*'fnd base rates'!L$112) +($J51*'fnd base rates'!L$113) +($K51*'fnd base rates'!L$114) +($M51*'fnd base rates'!L$116) +($N51*'fnd base rates'!L$117) +($O51*'fnd base rates'!L$118) +($P51*VLOOKUP($S51+12,rate_basefnd,12))) -> 1369.12668 | AE51: =(($D51*'fnd base rates'!M$107) +($E51*'fnd base rates'!M$108) +($F51*'fnd base rates'!M$109) +($G51*'fnd base rates'!M$110) +($H51*'fnd base rates'!M$111) +($I51*'fnd base rates'!M$112) +($J51*'fnd base rates'!M$113) +($K51*'fnd base rates'!M$114) +($M51*'fnd base rates'!M$116) +($N51*'fnd base rates'!M$117) +($O51*'fnd base rates'!M$118) +($P51*VLOOKUP($S51+12,rate_basefnd,13))) -> 0 | AF51: 11611.46691 | AH51: 413114253 | AI51: 413 | AJ51: 114 | AK51: 253 | AL51: 1 | AM51: 1 | AN51: 11611.46691 | AO51: 11611 | AP51: 0 | AQ51: 11611 | AW51: 11611 | AX51: 0 | AY51: 11611 | BB51: =BC51-BA51 -> 0
A52: 413 | B52: 413114605 | C52: FOUR RIVERS | D52: ='fnd enro'!D52 -> 0 | E52: ='fnd enro'!E52 -> 0 | F52: ='fnd enro'!F52 -> 0 | G52: ='fnd enro'!G52 -> 0 | H52: ='fnd enro'!H52 -> 1 | I52: ='fnd enro'!I52 -> 1 | J52: ='fnd enro'!J52 -> 0 | K52: ='fnd enro'!K52 -> 0.0772 | L52: ='fnd enro'!L52 -> 0 | M52: ='fnd enro'!M52 -> 0 | N52: ='fnd enro'!N52 -> 0 | O52: ='fnd enro'!O52 -> 0 | P52: ='fnd enro'!P52 -> 2 | Q52: ='fnd enro'!R52 -> 2 | R52: 1 | S52: =VALUE('fnd enro'!Q52) -> 6 | U52: =(($D52*'fnd base rates'!C$107) +($E52*'fnd base rates'!C$108) +($F52*'fnd base rates'!C$109) +($G52*'fnd base rates'!C$110) +($H52*'fnd base rates'!C$111) +($I52*'fnd base rates'!C$112) +($J52*'fnd base rates'!C$113) +($K52*'fnd base rates'!C$114) +($M52*'fnd base rates'!C$116) +($N52*'fnd base rates'!C$117) +($O52*'fnd base rates'!C$118) +($P52*VLOOKUP($S52+12,rate_basefnd,3))) *$R52 -> 1203.102692 | V52: =(($D52*'fnd base rates'!D$107) +($E52*'fnd base rates'!D$108) +($F52*'fnd base rates'!D$109) +($G52*'fnd base rates'!D$110) +($H52*'fnd base rates'!D$111) +($I52*'fnd base rates'!D$112) +($J52*'fnd base rates'!D$113) +($K52*'fnd base rates'!D$114) +($M52*'fnd base rates'!D$116) +($N52*'fnd base rates'!D$117) +($O52*'fnd base rates'!D$118) +($P52*VLOOKUP($S52+12,rate_basefnd,4))) *$R52 -> 2146.9 | W52: =(($D52*'fnd base rates'!E$107) +($E52*'fnd base rates'!E$108) +($F52*'fnd base rates'!E$109) +($G52*'fnd base rates'!E$110) +($H52*'fnd base rates'!E$111) +($I52*'fnd base rates'!E$112) +($J52*'fnd base rates'!E$113) +($K52*'fnd base rates'!E$114) +($M52*'fnd base rates'!E$116) +($N52*'fnd base rates'!E$117) +($O52*'fnd base rates'!E$118) +($P52*VLOOKUP($S52+12,rate_basefnd,5))) *$R52 -> 14392.28075 | X52: =(($D52*'fnd base rates'!F$107) +($E52*'fnd base rates'!F$108) +($F52*'fnd base rates'!F$109) +($G52*'fnd base rates'!F$110) +($H52*'fnd base rates'!F$111) +($I52*'fnd base rates'!F$112) +($J52*'fnd base rates'!F$113) +($K52*'fnd base rates'!F$114) +($M52*'fnd base rates'!F$116) +($N52*'fnd base rates'!F$117) +($O52*'fnd base rates'!F$118) +($P52*VLOOKUP($S52+12,rate_basefnd,6))) *$R52 -> 1882.262824 | Y52: =(($D52*'fnd base rates'!G$107) +($E52*'fnd base rates'!G$108) +($F52*'fnd base rates'!G$109) +($G52*'fnd base rates'!G$110) +($H52*'fnd base rates'!G$111) +($I52*'fnd base rates'!G$112) +($J52*'fnd base rates'!G$113) +($K52*'fnd base rates'!G$114) +($M52*'fnd base rates'!G$116) +($N52*'fnd base rates'!G$117) +($O52*'fnd base rates'!G$118) +($P52*VLOOKUP($S52+12,rate_basefnd,7))) *$R52 -> 624.416564 | Z52: =(($D52*'fnd base rates'!H$107) +($E52*'fnd base rates'!H$108) +($F52*'fnd base rates'!H$109) +($G52*'fnd base rates'!H$110) +($H52*'fnd base rates'!H$111) +($I52*'fnd base rates'!H$112) +($J52*'fnd base rates'!H$113) +($K52*'fnd base rates'!H$114) +($M52*'fnd base rates'!H$116) +($N52*'fnd base rates'!H$117) +($O52*'fnd base rates'!H$118) +($P52*VLOOKUP($S52+12,rate_basefnd,8))) -> 1396.297868 | AA52: =(($D52*'fnd base rates'!I$107) +($E52*'fnd base rates'!I$108) +($F52*'fnd base rates'!I$109) +($G52*'fnd base rates'!I$110) +($H52*'fnd base rates'!I$111) +($I52*'fnd base rates'!I$112) +($J52*'fnd base rates'!I$113) +($K52*'fnd base rates'!I$114) +($M52*'fnd base rates'!I$116) +($N52*'fnd base rates'!I$117) +($O52*'fnd base rates'!I$118) +($P52*VLOOKUP($S52+12,rate_basefnd,9))) *$R52 -> 1032.41 | AB52: =(($D52*'fnd base rates'!J$107) +($E52*'fnd base rates'!J$108) +($F52*'fnd base rates'!J$109) +($G52*'fnd base rates'!J$110) +($H52*'fnd base rates'!J$111) +($I52*'fnd base rates'!J$112) +($J52*'fnd base rates'!J$113) +($K52*'fnd base rates'!J$114) +($M52*'fnd base rates'!J$116) +($N52*'fnd base rates'!J$117) +($O52*'fnd base rates'!J$118) +($P52*VLOOKUP($S52+12,rate_basefnd,10))) *$R52 -> 2089.36 | AC52: =(($D52*'fnd base rates'!K$107) +($E52*'fnd base rates'!K$108) +($F52*'fnd base rates'!K$109) +($G52*'fnd base rates'!K$110) +($H52*'fnd base rates'!K$111) +($I52*'fnd base rates'!K$112) +($J52*'fnd base rates'!K$113) +($K52*'fnd base rates'!K$114) +($M52*'fnd base rates'!K$116) +($N52*'fnd base rates'!K$117) +($O52*'fnd base rates'!K$118) +($P52*VLOOKUP($S52+12,rate_basefnd,11))) *$R52 -> 2332.21976 | AD52: =(($D52*'fnd base rates'!L$107) +($E52*'fnd base rates'!L$108) +($F52*'fnd base rates'!L$109) +($G52*'fnd base rates'!L$110) +($H52*'fnd base rates'!L$111) +($I52*'fnd base rates'!L$112) +($J52*'fnd base rates'!L$113) +($K52*'fnd base rates'!L$114) +($M52*'fnd base rates'!L$116) +($N52*'fnd base rates'!L$117) +($O52*'fnd base rates'!L$118) +($P52*VLOOKUP($S52+12,rate_basefnd,12))) -> 3855.48336 | AE52: =(($D52*'fnd base rates'!M$107) +($E52*'fnd base rates'!M$108) +($F52*'fnd base rates'!M$109) +($G52*'fnd base rates'!M$110) +($H52*'fnd base rates'!M$111) +($I52*'fnd base rates'!M$112) +($J52*'fnd base rates'!M$113) +($K52*'fnd base rates'!M$114) +($M52*'fnd base rates'!M$116) +($N52*'fnd base rates'!M$117) +($O52*'fnd base rates'!M$118) +($P52*VLOOKUP($S52+12,rate_basefnd,13))) -> 0 | AF52: 30954.73382 | AH52: 413114605 | AI52: 413 | AJ52: 114 | AK52: 605 | AL52: 1 | AM52: 2 | AN52: 30954.73382 | AO52: 15477 | AP52: 0 | AQ52: 15477 | AW52: 15477 | AX52: 0 | AY52: 15477 | BB52: =BC52-BA52 -> 0
A53: 413 | B53: 413114615 | C53: FOUR RIVERS | D53: ='fnd enro'!D53 -> 0 | E53: ='fnd enro'!E53 -> 0 | F53: ='fnd enro'!F53 -> 0 | G53: ='fnd enro'!G53 -> 0 | H53: ='fnd enro'!H53 -> 0 | I53: ='fnd enro'!I53 -> 1 | J53: ='fnd enro'!J53 -> 0 | K53: ='fnd enro'!K53 -> 0.0386 | L53: ='fnd enro'!L53 -> 0 | M53: ='fnd enro'!M53 -> 0 | N53: ='fnd enro'!N53 -> 0 | O53: ='fnd enro'!O53 -> 0 | P53: ='fnd enro'!P53 -> 0 | Q53: ='fnd enro'!R53 -> 1 | R53: 1 | S53: =VALUE('fnd enro'!Q53) -> 10 | U53: =(($D53*'fnd base rates'!C$107) +($E53*'fnd base rates'!C$108) +($F53*'fnd base rates'!C$109) +($G53*'fnd base rates'!C$110) +($H53*'fnd base rates'!C$111) +($I53*'fnd base rates'!C$112) +($J53*'fnd base rates'!C$113) +($K53*'fnd base rates'!C$114) +($M53*'fnd base rates'!C$116) +($N53*'fnd base rates'!C$117) +($O53*'fnd base rates'!C$118) +($P53*VLOOKUP($S53+12,rate_basefnd,3))) *$R53 -> 536.461346 | V53: =(($D53*'fnd base rates'!D$107) +($E53*'fnd base rates'!D$108) +($F53*'fnd base rates'!D$109) +($G53*'fnd base rates'!D$110) +($H53*'fnd base rates'!D$111) +($I53*'fnd base rates'!D$112) +($J53*'fnd base rates'!D$113) +($K53*'fnd base rates'!D$114) +($M53*'fnd base rates'!D$116) +($N53*'fnd base rates'!D$117) +($O53*'fnd base rates'!D$118) +($P53*VLOOKUP($S53+12,rate_basefnd,4))) *$R53 -> 765.08 | W53: =(($D53*'fnd base rates'!E$107) +($E53*'fnd base rates'!E$108) +($F53*'fnd base rates'!E$109) +($G53*'fnd base rates'!E$110) +($H53*'fnd base rates'!E$111) +($I53*'fnd base rates'!E$112) +($J53*'fnd base rates'!E$113) +($K53*'fnd base rates'!E$114) +($M53*'fnd base rates'!E$116) +($N53*'fnd base rates'!E$117) +($O53*'fnd base rates'!E$118) +($P53*VLOOKUP($S53+12,rate_basefnd,5))) *$R53 -> 4912.200376 | X53: =(($D53*'fnd base rates'!F$107) +($E53*'fnd base rates'!F$108) +($F53*'fnd base rates'!F$109) +($G53*'fnd base rates'!F$110) +($H53*'fnd base rates'!F$111) +($I53*'fnd base rates'!F$112) +($J53*'fnd base rates'!F$113) +($K53*'fnd base rates'!F$114) +($M53*'fnd base rates'!F$116) +($N53*'fnd base rates'!F$117) +($O53*'fnd base rates'!F$118) +($P53*VLOOKUP($S53+12,rate_basefnd,6))) *$R53 -> 886.886412 | Y53: =(($D53*'fnd base rates'!G$107) +($E53*'fnd base rates'!G$108) +($F53*'fnd base rates'!G$109) +($G53*'fnd base rates'!G$110) +($H53*'fnd base rates'!G$111) +($I53*'fnd base rates'!G$112) +($J53*'fnd base rates'!G$113) +($K53*'fnd base rates'!G$114) +($M53*'fnd base rates'!G$116) +($N53*'fnd base rates'!G$117) +($O53*'fnd base rates'!G$118) +($P53*VLOOKUP($S53+12,rate_basefnd,7))) *$R53 -> 163.883282 | Z53: =(($D53*'fnd base rates'!H$107) +($E53*'fnd base rates'!H$108) +($F53*'fnd base rates'!H$109) +($G53*'fnd base rates'!H$110) +($H53*'fnd base rates'!H$111) +($I53*'fnd base rates'!H$112) +($J53*'fnd base rates'!H$113) +($K53*'fnd base rates'!H$114) +($M53*'fnd base rates'!H$116) +($N53*'fnd base rates'!H$117) +($O53*'fnd base rates'!H$118) +($P53*VLOOKUP($S53+12,rate_basefnd,8))) -> 828.078934 | AA53: =(($D53*'fnd base rates'!I$107) +($E53*'fnd base rates'!I$108) +($F53*'fnd base rates'!I$109) +($G53*'fnd base rates'!I$110) +($H53*'fnd base rates'!I$111) +($I53*'fnd base rates'!I$112) +($J53*'fnd base rates'!I$113) +($K53*'fnd base rates'!I$114) +($M53*'fnd base rates'!I$116) +($N53*'fnd base rates'!I$117) +($O53*'fnd base rates'!I$118) +($P53*VLOOKUP($S53+12,rate_basefnd,9))) *$R53 -> 425.94 | AB53: =(($D53*'fnd base rates'!J$107) +($E53*'fnd base rates'!J$108) +($F53*'fnd base rates'!J$109) +($G53*'fnd base rates'!J$110) +($H53*'fnd base rates'!J$111) +($I53*'fnd base rates'!J$112) +($J53*'fnd base rates'!J$113) +($K53*'fnd base rates'!J$114) +($M53*'fnd base rates'!J$116) +($N53*'fnd base rates'!J$117) +($O53*'fnd base rates'!J$118) +($P53*VLOOKUP($S53+12,rate_basefnd,10))) *$R53 -> 573.75 | AC53: =(($D53*'fnd base rates'!K$107) +($E53*'fnd base rates'!K$108) +($F53*'fnd base rates'!K$109) +($G53*'fnd base rates'!K$110) +($H53*'fnd base rates'!K$111) +($I53*'fnd base rates'!K$112) +($J53*'fnd base rates'!K$113) +($K53*'fnd base rates'!K$114) +($M53*'fnd base rates'!K$116) +($N53*'fnd base rates'!K$117) +($O53*'fnd base rates'!K$118) +($P53*VLOOKUP($S53+12,rate_basefnd,11))) *$R53 -> 1150.05988 | AD53: =(($D53*'fnd base rates'!L$107) +($E53*'fnd base rates'!L$108) +($F53*'fnd base rates'!L$109) +($G53*'fnd base rates'!L$110) +($H53*'fnd base rates'!L$111) +($I53*'fnd base rates'!L$112) +($J53*'fnd base rates'!L$113) +($K53*'fnd base rates'!L$114) +($M53*'fnd base rates'!L$116) +($N53*'fnd base rates'!L$117) +($O53*'fnd base rates'!L$118) +($P53*VLOOKUP($S53+12,rate_basefnd,12))) -> 1369.12668 | AE53: =(($D53*'fnd base rates'!M$107) +($E53*'fnd base rates'!M$108) +($F53*'fnd base rates'!M$109) +($G53*'fnd base rates'!M$110) +($H53*'fnd base rates'!M$111) +($I53*'fnd base rates'!M$112) +($J53*'fnd base rates'!M$113) +($K53*'fnd base rates'!M$114) +($M53*'fnd base rates'!M$116) +($N53*'fnd base rates'!M$117) +($O53*'fnd base rates'!M$118) +($P53*VLOOKUP($S53+12,rate_basefnd,13))) -> 0 | AF53: 11611.46691 | AH53: 413114615 | AI53: 413 | AJ53: 114 | AK53: 615 | AL53: 1 | AM53: 1 | AN53: 11611.46691 | AO53: 11611 | AP53: 0 | AQ53: 11611 | AW53: 11611 | AX53: 0 | AY53: 11611 | BB53: =BC53-BA53 -> 0
A54: 413 | B54: 413114635 | C54: FOUR RIVERS | D54: ='fnd enro'!D54 -> 0 | E54: ='fnd enro'!E54 -> 0 | F54: ='fnd enro'!F54 -> 0 | G54: ='fnd enro'!G54 -> 0 | H54: ='fnd enro'!H54 -> 0 | I54: ='fnd enro'!I54 -> 1 | J54: ='fnd enro'!J54 -> 0 | K54: ='fnd enro'!K54 -> 0.0386 | L54: ='fnd enro'!L54 -> 0 | M54: ='fnd enro'!M54 -> 0 | N54: ='fnd enro'!N54 -> 0 | O54: ='fnd enro'!O54 -> 0 | P54: ='fnd enro'!P54 -> 1 | Q54: ='fnd enro'!R54 -> 1 | R54: 1 | S54: =VALUE('fnd enro'!Q54) -> 8 | U54: =(($D54*'fnd base rates'!C$107) +($E54*'fnd base rates'!C$108) +($F54*'fnd base rates'!C$109) +($G54*'fnd base rates'!C$110) +($H54*'fnd base rates'!C$111) +($I54*'fnd base rates'!C$112) +($J54*'fnd base rates'!C$113) +($K54*'fnd base rates'!C$114) +($M54*'fnd base rates'!C$116) +($N54*'fnd base rates'!C$117) +($O54*'fnd base rates'!C$118) +($P54*VLOOKUP($S54+12,rate_basefnd,3))) *$R54 -> 608.661346 | V54: =(($D54*'fnd base rates'!D$107) +($E54*'fnd base rates'!D$108) +($F54*'fnd base rates'!D$109) +($G54*'fnd base rates'!D$110) +($H54*'fnd base rates'!D$111) +($I54*'fnd base rates'!D$112) +($J54*'fnd base rates'!D$113) +($K54*'fnd base rates'!D$114) +($M54*'fnd base rates'!D$116) +($N54*'fnd base rates'!D$117) +($O54*'fnd base rates'!D$118) +($P54*VLOOKUP($S54+12,rate_basefnd,4))) *$R54 -> 1107.16 | W54: =(($D54*'fnd base rates'!E$107) +($E54*'fnd base rates'!E$108) +($F54*'fnd base rates'!E$109) +($G54*'fnd base rates'!E$110) +($H54*'fnd base rates'!E$111) +($I54*'fnd base rates'!E$112) +($J54*'fnd base rates'!E$113) +($K54*'fnd base rates'!E$114) +($M54*'fnd base rates'!E$116) +($N54*'fnd base rates'!E$117) +($O54*'fnd base rates'!E$118) +($P54*VLOOKUP($S54+12,rate_basefnd,5))) *$R54 -> 8251.560376 | X54: =(($D54*'fnd base rates'!F$107) +($E54*'fnd base rates'!F$108) +($F54*'fnd base rates'!F$109) +($G54*'fnd base rates'!F$110) +($H54*'fnd base rates'!F$111) +($I54*'fnd base rates'!F$112) +($J54*'fnd base rates'!F$113) +($K54*'fnd base rates'!F$114) +($M54*'fnd base rates'!F$116) +($N54*'fnd base rates'!F$117) +($O54*'fnd base rates'!F$118) +($P54*VLOOKUP($S54+12,rate_basefnd,6))) *$R54 -> 886.886412 | Y54: =(($D54*'fnd base rates'!G$107) +($E54*'fnd base rates'!G$108) +($F54*'fnd base rates'!G$109) +($G54*'fnd base rates'!G$110) +($H54*'fnd base rates'!G$111) +($I54*'fnd base rates'!G$112) +($J54*'fnd base rates'!G$113) +($K54*'fnd base rates'!G$114) +($M54*'fnd base rates'!G$116) +($N54*'fnd base rates'!G$117) +($O54*'fnd base rates'!G$118) +($P54*VLOOKUP($S54+12,rate_basefnd,7))) *$R54 -> 325.893282 | Z54: =(($D54*'fnd base rates'!H$107) +($E54*'fnd base rates'!H$108) +($F54*'fnd base rates'!H$109) +($G54*'fnd base rates'!H$110) +($H54*'fnd base rates'!H$111) +($I54*'fnd base rates'!H$112) +($J54*'fnd base rates'!H$113) +($K54*'fnd base rates'!H$114) +($M54*'fnd base rates'!H$116) +($N54*'fnd base rates'!H$117) +($O54*'fnd base rates'!H$118) +($P54*VLOOKUP($S54+12,rate_basefnd,8))) -> 852.918934 | AA54: =(($D54*'fnd base rates'!I$107) +($E54*'fnd base rates'!I$108) +($F54*'fnd base rates'!I$109) +($G54*'fnd base rates'!I$110) +($H54*'fnd base rates'!I$111) +($I54*'fnd base rates'!I$112) +($J54*'fnd base rates'!I$113) +($K54*'fnd base rates'!I$114) +($M54*'fnd base rates'!I$116) +($N54*'fnd base rates'!I$117) +($O54*'fnd base rates'!I$118) +($P54*VLOOKUP($S54+12,rate_basefnd,9))) *$R54 -> 561.16 | AB54: =(($D54*'fnd base rates'!J$107) +($E54*'fnd base rates'!J$108) +($F54*'fnd base rates'!J$109) +($G54*'fnd base rates'!J$110) +($H54*'fnd base rates'!J$111) +($I54*'fnd base rates'!J$112) +($J54*'fnd base rates'!J$113) +($K54*'fnd base rates'!J$114) +($M54*'fnd base rates'!J$116) +($N54*'fnd base rates'!J$117) +($O54*'fnd base rates'!J$118) +($P54*VLOOKUP($S54+12,rate_basefnd,10))) *$R54 -> 1276.39 | AC54: =(($D54*'fnd base rates'!K$107) +($E54*'fnd base rates'!K$108) +($F54*'fnd base rates'!K$109) +($G54*'fnd base rates'!K$110) +($H54*'fnd base rates'!K$111) +($I54*'fnd base rates'!K$112) +($J54*'fnd base rates'!K$113) +($K54*'fnd base rates'!K$114) +($M54*'fnd base rates'!K$116) +($N54*'fnd base rates'!K$117) +($O54*'fnd base rates'!K$118) +($P54*VLOOKUP($S54+12,rate_basefnd,11))) *$R54 -> 1150.05988 | AD54: =(($D54*'fnd base rates'!L$107) +($E54*'fnd base rates'!L$108) +($F54*'fnd base rates'!L$109) +($G54*'fnd base rates'!L$110) +($H54*'fnd base rates'!L$111) +($I54*'fnd base rates'!L$112) +($J54*'fnd base rates'!L$113) +($K54*'fnd base rates'!L$114) +($M54*'fnd base rates'!L$116) +($N54*'fnd base rates'!L$117) +($O54*'fnd base rates'!L$118) +($P54*VLOOKUP($S54+12,rate_basefnd,12))) -> 1909.28668 | AE54: =(($D54*'fnd base rates'!M$107) +($E54*'fnd base rates'!M$108) +($F54*'fnd base rates'!M$109) +($G54*'fnd base rates'!M$110) +($H54*'fnd base rates'!M$111) +($I54*'fnd base rates'!M$112) +($J54*'fnd base rates'!M$113) +($K54*'fnd base rates'!M$114) +($M54*'fnd base rates'!M$116) +($N54*'fnd base rates'!M$117) +($O54*'fnd base rates'!M$118) +($P54*VLOOKUP($S54+12,rate_basefnd,13))) -> 0 | AF54: 16929.97691 | AH54: 413114635 | AI54: 413 | AJ54: 114 | AK54: 635 | AL54: 1 | AM54: 1 | AN54: 16929.97691 | AO54: 16930 | AP54: 0 | AQ54: 16930 | AW54: 16930 | AX54: 0 | AY54: 16930 | BB54: =BC54-BA54 -> 0
A55: 413 | B55: 413114670 | C55: FOUR RIVERS | D55: ='fnd enro'!D55 -> 0 | E55: ='fnd enro'!E55 -> 0 | F55: ='fnd enro'!F55 -> 0 | G55: ='fnd enro'!G55 -> 0 | H55: ='fnd enro'!H55 -> 6 | I55: ='fnd enro'!I55 -> 17 | J55: ='fnd enro'!J55 -> 0 | K55: ='fnd enro'!K55 -> 0.8878 | L55: ='fnd enro'!L55 -> 0 | M55: ='fnd enro'!M55 -> 0 | N55: ='fnd enro'!N55 -> 0 | O55: ='fnd enro'!O55 -> 0 | P55: ='fnd enro'!P55 -> 4 | Q55: ='fnd enro'!R55 -> 23 | R55: 1 | S55: =VALUE('fnd enro'!Q55) -> 6 | U55: =(($D55*'fnd base rates'!C$107) +($E55*'fnd base rates'!C$108) +($F55*'fnd base rates'!C$109) +($G55*'fnd base rates'!C$110) +($H55*'fnd base rates'!C$111) +($I55*'fnd base rates'!C$112) +($J55*'fnd base rates'!C$113) +($K55*'fnd base rates'!C$114) +($M55*'fnd base rates'!C$116) +($N55*'fnd base rates'!C$117) +($O55*'fnd base rates'!C$118) +($P55*VLOOKUP($S55+12,rate_basefnd,3))) *$R55 -> 12598.97096 | V55: =(($D55*'fnd base rates'!D$107) +($E55*'fnd base rates'!D$108) +($F55*'fnd base rates'!D$109) +($G55*'fnd base rates'!D$110) +($H55*'fnd base rates'!D$111) +($I55*'fnd base rates'!D$112) +($J55*'fnd base rates'!D$113) +($K55*'fnd base rates'!D$114) +($M55*'fnd base rates'!D$116) +($N55*'fnd base rates'!D$117) +($O55*'fnd base rates'!D$118) +($P55*VLOOKUP($S55+12,rate_basefnd,4))) *$R55 -> 18830.32 | W55: =(($D55*'fnd base rates'!E$107) +($E55*'fnd base rates'!E$108) +($F55*'fnd base rates'!E$109) +($G55*'fnd base rates'!E$110) +($H55*'fnd base rates'!E$111) +($I55*'fnd base rates'!E$112) +($J55*'fnd base rates'!E$113) +($K55*'fnd base rates'!E$114) +($M55*'fnd base rates'!E$116) +($N55*'fnd base rates'!E$117) +($O55*'fnd base rates'!E$118) +($P55*VLOOKUP($S55+12,rate_basefnd,5))) *$R55 -> 116305.4886 | X55: =(($D55*'fnd base rates'!F$107) +($E55*'fnd base rates'!F$108) +($F55*'fnd base rates'!F$109) +($G55*'fnd base rates'!F$110) +($H55*'fnd base rates'!F$111) +($I55*'fnd base rates'!F$112) +($J55*'fnd base rates'!F$113) +($K55*'fnd base rates'!F$114) +($M55*'fnd base rates'!F$116) +($N55*'fnd base rates'!F$117) +($O55*'fnd base rates'!F$118) +($P55*VLOOKUP($S55+12,rate_basefnd,6))) *$R55 -> 21049.32748 | Y55: =(($D55*'fnd base rates'!G$107) +($E55*'fnd base rates'!G$108) +($F55*'fnd base rates'!G$109) +($G55*'fnd base rates'!G$110) +($H55*'fnd base rates'!G$111) +($I55*'fnd base rates'!G$112) +($J55*'fnd base rates'!G$113) +($K55*'fnd base rates'!G$114) +($M55*'fnd base rates'!G$116) +($N55*'fnd base rates'!G$117) +($O55*'fnd base rates'!G$118) +($P55*VLOOKUP($S55+12,rate_basefnd,7))) *$R55 -> 4380.895486 | Z55: =(($D55*'fnd base rates'!H$107) +($E55*'fnd base rates'!H$108) +($F55*'fnd base rates'!H$109) +($G55*'fnd base rates'!H$110) +($H55*'fnd base rates'!H$111) +($I55*'fnd base rates'!H$112) +($J55*'fnd base rates'!H$113) +($K55*'fnd base rates'!H$114) +($M55*'fnd base rates'!H$116) +($N55*'fnd base rates'!H$117) +($O55*'fnd base rates'!H$118) +($P55*VLOOKUP($S55+12,rate_basefnd,8))) -> 17307.53548 | AA55: =(($D55*'fnd base rates'!I$107) +($E55*'fnd base rates'!I$108) +($F55*'fnd base rates'!I$109) +($G55*'fnd base rates'!I$110) +($H55*'fnd base rates'!I$111) +($I55*'fnd base rates'!I$112) +($J55*'fnd base rates'!I$113) +($K55*'fnd base rates'!I$114) +($M55*'fnd base rates'!I$116) +($N55*'fnd base rates'!I$117) +($O55*'fnd base rates'!I$118) +($P55*VLOOKUP($S55+12,rate_basefnd,9))) *$R55 -> 9904.68 | AB55: =(($D55*'fnd base rates'!J$107) +($E55*'fnd base rates'!J$108) +($F55*'fnd base rates'!J$109) +($G55*'fnd base rates'!J$110) +($H55*'fnd base rates'!J$111) +($I55*'fnd base rates'!J$112) +($J55*'fnd base rates'!J$113) +($K55*'fnd base rates'!J$114) +($M55*'fnd base rates'!J$116) +($N55*'fnd base rates'!J$117) +($O55*'fnd base rates'!J$118) +($P55*VLOOKUP($S55+12,rate_basefnd,10))) *$R55 -> 13780.21 | AC55: =(($D55*'fnd base rates'!K$107) +($E55*'fnd base rates'!K$108) +($F55*'fnd base rates'!K$109) +($G55*'fnd base rates'!K$110) +($H55*'fnd base rates'!K$111) +($I55*'fnd base rates'!K$112) +($J55*'fnd base rates'!K$113) +($K55*'fnd base rates'!K$114) +($M55*'fnd base rates'!K$116) +($N55*'fnd base rates'!K$117) +($O55*'fnd base rates'!K$118) +($P55*VLOOKUP($S55+12,rate_basefnd,11))) *$R55 -> 26643.97724 | AD55: =(($D55*'fnd base rates'!L$107) +($E55*'fnd base rates'!L$108) +($F55*'fnd base rates'!L$109) +($G55*'fnd base rates'!L$110) +($H55*'fnd base rates'!L$111) +($I55*'fnd base rates'!L$112) +($J55*'fnd base rates'!L$113) +($K55*'fnd base rates'!L$114) +($M55*'fnd base rates'!L$116) +($N55*'fnd base rates'!L$117) +($O55*'fnd base rates'!L$118) +($P55*VLOOKUP($S55+12,rate_basefnd,12))) -> 34297.77364 | AE55: =(($D55*'fnd base rates'!M$107) +($E55*'fnd base rates'!M$108) +($F55*'fnd base rates'!M$109) +($G55*'fnd base rates'!M$110) +($H55*'fnd base rates'!M$111) +($I55*'fnd base rates'!M$112) +($J55*'fnd base rates'!M$113) +($K55*'fnd base rates'!M$114) +($M55*'fnd base rates'!M$116) +($N55*'fnd base rates'!M$117) +($O55*'fnd base rates'!M$118) +($P55*VLOOKUP($S55+12,rate_basefnd,13))) -> 0 | AF55: 275099.1789 | AH55: 413114670 | AI55: 413 | AJ55: 114 | AK55: 670 | AL55: 1 | AM55: 23 | AN55: 275099.1789 | AO55: 11961 | AP55: 0 | AQ55: 11961 | AW55: 11961 | AX55: 0 | AY55: 11961 | BB55: =BC55-BA55 -> 0
A56: 413 | B56: 413114674 | C56: FOUR RIVERS | D56: ='fnd enro'!D56 -> 0 | E56: ='fnd enro'!E56 -> 0 | F56: ='fnd enro'!F56 -> 0 | G56: ='fnd enro'!G56 -> 0 | H56: ='fnd enro'!H56 -> 21 | I56: ='fnd enro'!I56 -> 34 | J56: ='fnd enro'!J56 -> 0 | K56: ='fnd enro'!K56 -> 2.123 | L56: ='fnd enro'!L56 -> 0 | M56: ='fnd enro'!M56 -> 0 | N56: ='fnd enro'!N56 -> 0 | O56: ='fnd enro'!O56 -> 0 | P56: ='fnd enro'!P56 -> 22 | Q56: ='fnd enro'!R56 -> 55 | R56: 1 | S56: =VALUE('fnd enro'!Q56) -> 10 | U56: =(($D56*'fnd base rates'!C$107) +($E56*'fnd base rates'!C$108) +($F56*'fnd base rates'!C$109) +($G56*'fnd base rates'!C$110) +($H56*'fnd base rates'!C$111) +($I56*'fnd base rates'!C$112) +($J56*'fnd base rates'!C$113) +($K56*'fnd base rates'!C$114) +($M56*'fnd base rates'!C$116) +($N56*'fnd base rates'!C$117) +($O56*'fnd base rates'!C$118) +($P56*VLOOKUP($S56+12,rate_basefnd,3))) *$R56 -> 31250.19403 | V56: =(($D56*'fnd base rates'!D$107) +($E56*'fnd base rates'!D$108) +($F56*'fnd base rates'!D$109) +($G56*'fnd base rates'!D$110) +($H56*'fnd base rates'!D$111) +($I56*'fnd base rates'!D$112) +($J56*'fnd base rates'!D$113) +($K56*'fnd base rates'!D$114) +($M56*'fnd base rates'!D$116) +($N56*'fnd base rates'!D$117) +($O56*'fnd base rates'!D$118) +($P56*VLOOKUP($S56+12,rate_basefnd,4))) *$R56 -> 50347 | W56: =(($D56*'fnd base rates'!E$107) +($E56*'fnd base rates'!E$108) +($F56*'fnd base rates'!E$109) +($G56*'fnd base rates'!E$110) +($H56*'fnd base rates'!E$111) +($I56*'fnd base rates'!E$112) +($J56*'fnd base rates'!E$113) +($K56*'fnd base rates'!E$114) +($M56*'fnd base rates'!E$116) +($N56*'fnd base rates'!E$117) +($O56*'fnd base rates'!E$118) +($P56*VLOOKUP($S56+12,rate_basefnd,5))) *$R56 -> 320369.5807 | X56: =(($D56*'fnd base rates'!F$107) +($E56*'fnd base rates'!F$108) +($F56*'fnd base rates'!F$109) +($G56*'fnd base rates'!F$110) +($H56*'fnd base rates'!F$111) +($I56*'fnd base rates'!F$112) +($J56*'fnd base rates'!F$113) +($K56*'fnd base rates'!F$114) +($M56*'fnd base rates'!F$116) +($N56*'fnd base rates'!F$117) +($O56*'fnd base rates'!F$118) +($P56*VLOOKUP($S56+12,rate_basefnd,6))) *$R56 -> 51057.04266 | Y56: =(($D56*'fnd base rates'!G$107) +($E56*'fnd base rates'!G$108) +($F56*'fnd base rates'!G$109) +($G56*'fnd base rates'!G$110) +($H56*'fnd base rates'!G$111) +($I56*'fnd base rates'!G$112) +($J56*'fnd base rates'!G$113) +($K56*'fnd base rates'!G$114) +($M56*'fnd base rates'!G$116) +($N56*'fnd base rates'!G$117) +($O56*'fnd base rates'!G$118) +($P56*VLOOKUP($S56+12,rate_basefnd,7))) *$R56 -> 13024.89051 | Z56: =(($D56*'fnd base rates'!H$107) +($E56*'fnd base rates'!H$108) +($F56*'fnd base rates'!H$109) +($G56*'fnd base rates'!H$110) +($H56*'fnd base rates'!H$111) +($I56*'fnd base rates'!H$112) +($J56*'fnd base rates'!H$113) +($K56*'fnd base rates'!H$114) +($M56*'fnd base rates'!H$116) +($N56*'fnd base rates'!H$117) +($O56*'fnd base rates'!H$118) +($P56*VLOOKUP($S56+12,rate_basefnd,8))) -> 39747.06137 | AA56: =(($D56*'fnd base rates'!I$107) +($E56*'fnd base rates'!I$108) +($F56*'fnd base rates'!I$109) +($G56*'fnd base rates'!I$110) +($H56*'fnd base rates'!I$111) +($I56*'fnd base rates'!I$112) +($J56*'fnd base rates'!I$113) +($K56*'fnd base rates'!I$114) +($M56*'fnd base rates'!I$116) +($N56*'fnd base rates'!I$117) +($O56*'fnd base rates'!I$118) +($P56*VLOOKUP($S56+12,rate_basefnd,9))) *$R56 -> 25366.55 | AB56: =(($D56*'fnd base rates'!J$107) +($E56*'fnd base rates'!J$108) +($F56*'fnd base rates'!J$109) +($G56*'fnd base rates'!J$110) +($H56*'fnd base rates'!J$111) +($I56*'fnd base rates'!J$112) +($J56*'fnd base rates'!J$113) +($K56*'fnd base rates'!J$114) +($M56*'fnd base rates'!J$116) +($N56*'fnd base rates'!J$117) +($O56*'fnd base rates'!J$118) +($P56*VLOOKUP($S56+12,rate_basefnd,10))) *$R56 -> 41714.09 | AC56: =(($D56*'fnd base rates'!K$107) +($E56*'fnd base rates'!K$108) +($F56*'fnd base rates'!K$109) +($G56*'fnd base rates'!K$110) +($H56*'fnd base rates'!K$111) +($I56*'fnd base rates'!K$112) +($J56*'fnd base rates'!K$113) +($K56*'fnd base rates'!K$114) +($M56*'fnd base rates'!K$116) +($N56*'fnd base rates'!K$117) +($O56*'fnd base rates'!K$118) +($P56*VLOOKUP($S56+12,rate_basefnd,11))) *$R56 -> 63927.3934 | AD56: =(($D56*'fnd base rates'!L$107) +($E56*'fnd base rates'!L$108) +($F56*'fnd base rates'!L$109) +($G56*'fnd base rates'!L$110) +($H56*'fnd base rates'!L$111) +($I56*'fnd base rates'!L$112) +($J56*'fnd base rates'!L$113) +($K56*'fnd base rates'!L$114) +($M56*'fnd base rates'!L$116) +($N56*'fnd base rates'!L$117) +($O56*'fnd base rates'!L$118) +($P56*VLOOKUP($S56+12,rate_basefnd,12))) -> 91367.1174 | AE56: =(($D56*'fnd base rates'!M$107) +($E56*'fnd base rates'!M$108) +($F56*'fnd base rates'!M$109) +($G56*'fnd base rates'!M$110) +($H56*'fnd base rates'!M$111) +($I56*'fnd base rates'!M$112) +($J56*'fnd base rates'!M$113) +($K56*'fnd base rates'!M$114) +($M56*'fnd base rates'!M$116) +($N56*'fnd base rates'!M$117) +($O56*'fnd base rates'!M$118) +($P56*VLOOKUP($S56+12,rate_basefnd,13))) -> 0 | AF56: 728170.92 | AH56: 413114674 | AI56: 413 | AJ56: 114 | AK56: 674 | AL56: 1 | AM56: 55 | AN56: 728170.92 | AO56: 13239 | AP56: 0 | AQ56: 13239 | AW56: 13239 | AX56: 0 | AY56: 13239 | BB56: =BC56-BA56 -> 0
A57: 413 | B57: 413114683 | C57: FOUR RIVERS | D57: ='fnd enro'!D57 -> 0 | E57: ='fnd enro'!E57 -> 0 | F57: ='fnd enro'!F57 -> 0 | G57: ='fnd enro'!G57 -> 0 | H57: ='fnd enro'!H57 -> 0 | I57: ='fnd enro'!I57 -> 1 | J57: ='fnd enro'!J57 -> 0 | K57: ='fnd enro'!K57 -> 0.0386 | L57: ='fnd enro'!L57 -> 0 | M57: ='fnd enro'!M57 -> 0 | N57: ='fnd enro'!N57 -> 0 | O57: ='fnd enro'!O57 -> 0 | P57: ='fnd enro'!P57 -> 1 | Q57: ='fnd enro'!R57 -> 1 | R57: 1 | S57: =VALUE('fnd enro'!Q57) -> 5 | U57: =(($D57*'fnd base rates'!C$107) +($E57*'fnd base rates'!C$108) +($F57*'fnd base rates'!C$109) +($G57*'fnd base rates'!C$110) +($H57*'fnd base rates'!C$111) +($I57*'fnd base rates'!C$112) +($J57*'fnd base rates'!C$113) +($K57*'fnd base rates'!C$114) +($M57*'fnd base rates'!C$116) +($N57*'fnd base rates'!C$117) +($O57*'fnd base rates'!C$118) +($P57*VLOOKUP($S57+12,rate_basefnd,3))) *$R57 -> 596.331346 | V57: =(($D57*'fnd base rates'!D$107) +($E57*'fnd base rates'!D$108) +($F57*'fnd base rates'!D$109) +($G57*'fnd base rates'!D$110) +($H57*'fnd base rates'!D$111) +($I57*'fnd base rates'!D$112) +($J57*'fnd base rates'!D$113) +($K57*'fnd base rates'!D$114) +($M57*'fnd base rates'!D$116) +($N57*'fnd base rates'!D$117) +($O57*'fnd base rates'!D$118) +($P57*VLOOKUP($S57+12,rate_basefnd,4))) *$R57 -> 1048.74 | W57: =(($D57*'fnd base rates'!E$107) +($E57*'fnd base rates'!E$108) +($F57*'fnd base rates'!E$109) +($G57*'fnd base rates'!E$110) +($H57*'fnd base rates'!E$111) +($I57*'fnd base rates'!E$112) +($J57*'fnd base rates'!E$113) +($K57*'fnd base rates'!E$114) +($M57*'fnd base rates'!E$116) +($N57*'fnd base rates'!E$117) +($O57*'fnd base rates'!E$118) +($P57*VLOOKUP($S57+12,rate_basefnd,5))) *$R57 -> 7681.310376 | X57: =(($D57*'fnd base rates'!F$107) +($E57*'fnd base rates'!F$108) +($F57*'fnd base rates'!F$109) +($G57*'fnd base rates'!F$110) +($H57*'fnd base rates'!F$111) +($I57*'fnd base rates'!F$112) +($J57*'fnd base rates'!F$113) +($K57*'fnd base rates'!F$114) +($M57*'fnd base rates'!F$116) +($N57*'fnd base rates'!F$117) +($O57*'fnd base rates'!F$118) +($P57*VLOOKUP($S57+12,rate_basefnd,6))) *$R57 -> 886.886412 | Y57: =(($D57*'fnd base rates'!G$107) +($E57*'fnd base rates'!G$108) +($F57*'fnd base rates'!G$109) +($G57*'fnd base rates'!G$110) +($H57*'fnd base rates'!G$111) +($I57*'fnd base rates'!G$112) +($J57*'fnd base rates'!G$113) +($K57*'fnd base rates'!G$114) +($M57*'fnd base rates'!G$116) +($N57*'fnd base rates'!G$117) +($O57*'fnd base rates'!G$118) +($P57*VLOOKUP($S57+12,rate_basefnd,7))) *$R57 -> 298.233282 | Z57: =(($D57*'fnd base rates'!H$107) +($E57*'fnd base rates'!H$108) +($F57*'fnd base rates'!H$109) +($G57*'fnd base rates'!H$110) +($H57*'fnd base rates'!H$111) +($I57*'fnd base rates'!H$112) +($J57*'fnd base rates'!H$113) +($K57*'fnd base rates'!H$114) +($M57*'fnd base rates'!H$116) +($N57*'fnd base rates'!H$117) +($O57*'fnd base rates'!H$118) +($P57*VLOOKUP($S57+12,rate_basefnd,8))) -> 848.668934 | AA57: =(($D57*'fnd base rates'!I$107) +($E57*'fnd base rates'!I$108) +($F57*'fnd base rates'!I$109) +($G57*'fnd base rates'!I$110) +($H57*'fnd base rates'!I$111) +($I57*'fnd base rates'!I$112) +($J57*'fnd base rates'!I$113) +($K57*'fnd base rates'!I$114) +($M57*'fnd base rates'!I$116) +($N57*'fnd base rates'!I$117) +($O57*'fnd base rates'!I$118) +($P57*VLOOKUP($S57+12,rate_basefnd,9))) *$R57 -> 538.07 | AB57: =(($D57*'fnd base rates'!J$107) +($E57*'fnd base rates'!J$108) +($F57*'fnd base rates'!J$109) +($G57*'fnd base rates'!J$110) +($H57*'fnd base rates'!J$111) +($I57*'fnd base rates'!J$112) +($J57*'fnd base rates'!J$113) +($K57*'fnd base rates'!J$114) +($M57*'fnd base rates'!J$116) +($N57*'fnd base rates'!J$117) +($O57*'fnd base rates'!J$118) +($P57*VLOOKUP($S57+12,rate_basefnd,10))) *$R57 -> 1156.41 | AC57: =(($D57*'fnd base rates'!K$107) +($E57*'fnd base rates'!K$108) +($F57*'fnd base rates'!K$109) +($G57*'fnd base rates'!K$110) +($H57*'fnd base rates'!K$111) +($I57*'fnd base rates'!K$112) +($J57*'fnd base rates'!K$113) +($K57*'fnd base rates'!K$114) +($M57*'fnd base rates'!K$116) +($N57*'fnd base rates'!K$117) +($O57*'fnd base rates'!K$118) +($P57*VLOOKUP($S57+12,rate_basefnd,11))) *$R57 -> 1150.05988 | AD57: =(($D57*'fnd base rates'!L$107) +($E57*'fnd base rates'!L$108) +($F57*'fnd base rates'!L$109) +($G57*'fnd base rates'!L$110) +($H57*'fnd base rates'!L$111) +($I57*'fnd base rates'!L$112) +($J57*'fnd base rates'!L$113) +($K57*'fnd base rates'!L$114) +($M57*'fnd base rates'!L$116) +($N57*'fnd base rates'!L$117) +($O57*'fnd base rates'!L$118) +($P57*VLOOKUP($S57+12,rate_basefnd,12))) -> 1817.05668 | AE57: =(($D57*'fnd base rates'!M$107) +($E57*'fnd base rates'!M$108) +($F57*'fnd base rates'!M$109) +($G57*'fnd base rates'!M$110) +($H57*'fnd base rates'!M$111) +($I57*'fnd base rates'!M$112) +($J57*'fnd base rates'!M$113) +($K57*'fnd base rates'!M$114) +($M57*'fnd base rates'!M$116) +($N57*'fnd base rates'!M$117) +($O57*'fnd base rates'!M$118) +($P57*VLOOKUP($S57+12,rate_basefnd,13))) -> 0 | AF57: 16021.76691 | AH57: 413114683 | AI57: 413 | AJ57: 114 | AK57: 683 | AL57: 1 | AM57: 1 | AN57: 16021.76691 | AO57: 16022 | AP57: 0 | AQ57: 16022 | AW57: 16022 | AX57: 0 | AY57: 16022 | BB57: =BC57-BA57 -> 0
A58: 413 | B58: 413114717 | C58: FOUR RIVERS | D58: ='fnd enro'!D58 -> 0 | E58: ='fnd enro'!E58 -> 0 | F58: ='fnd enro'!F58 -> 0 | G58: ='fnd enro'!G58 -> 0 | H58: ='fnd enro'!H58 -> 8 | I58: ='fnd enro'!I58 -> 23 | J58: ='fnd enro'!J58 -> 0 | K58: ='fnd enro'!K58 -> 1.1966 | L58: ='fnd enro'!L58 -> 0 | M58: ='fnd enro'!M58 -> 0 | N58: ='fnd enro'!N58 -> 0 | O58: ='fnd enro'!O58 -> 0 | P58: ='fnd enro'!P58 -> 12 | Q58: ='fnd enro'!R58 -> 31 | R58: 1 | S58: =VALUE('fnd enro'!Q58) -> 9 | U58: =(($D58*'fnd base rates'!C$107) +($E58*'fnd base rates'!C$108) +($F58*'fnd base rates'!C$109) +($G58*'fnd base rates'!C$110) +($H58*'fnd base rates'!C$111) +($I58*'fnd base rates'!C$112) +($J58*'fnd base rates'!C$113) +($K58*'fnd base rates'!C$114) +($M58*'fnd base rates'!C$116) +($N58*'fnd base rates'!C$117) +($O58*'fnd base rates'!C$118) +($P58*VLOOKUP($S58+12,rate_basefnd,3))) *$R58 -> 17539.42173 | V58: =(($D58*'fnd base rates'!D$107) +($E58*'fnd base rates'!D$108) +($F58*'fnd base rates'!D$109) +($G58*'fnd base rates'!D$110) +($H58*'fnd base rates'!D$111) +($I58*'fnd base rates'!D$112) +($J58*'fnd base rates'!D$113) +($K58*'fnd base rates'!D$114) +($M58*'fnd base rates'!D$116) +($N58*'fnd base rates'!D$117) +($O58*'fnd base rates'!D$118) +($P58*VLOOKUP($S58+12,rate_basefnd,4))) *$R58 -> 28024.76 | W58: =(($D58*'fnd base rates'!E$107) +($E58*'fnd base rates'!E$108) +($F58*'fnd base rates'!E$109) +($G58*'fnd base rates'!E$110) +($H58*'fnd base rates'!E$111) +($I58*'fnd base rates'!E$112) +($J58*'fnd base rates'!E$113) +($K58*'fnd base rates'!E$114) +($M58*'fnd base rates'!E$116) +($N58*'fnd base rates'!E$117) +($O58*'fnd base rates'!E$118) +($P58*VLOOKUP($S58+12,rate_basefnd,5))) *$R58 -> 182703.3717 | X58: =(($D58*'fnd base rates'!F$107) +($E58*'fnd base rates'!F$108) +($F58*'fnd base rates'!F$109) +($G58*'fnd base rates'!F$110) +($H58*'fnd base rates'!F$111) +($I58*'fnd base rates'!F$112) +($J58*'fnd base rates'!F$113) +($K58*'fnd base rates'!F$114) +($M58*'fnd base rates'!F$116) +($N58*'fnd base rates'!F$117) +($O58*'fnd base rates'!F$118) +($P58*VLOOKUP($S58+12,rate_basefnd,6))) *$R58 -> 28361.39877 | Y58: =(($D58*'fnd base rates'!G$107) +($E58*'fnd base rates'!G$108) +($F58*'fnd base rates'!G$109) +($G58*'fnd base rates'!G$110) +($H58*'fnd base rates'!G$111) +($I58*'fnd base rates'!G$112) +($J58*'fnd base rates'!G$113) +($K58*'fnd base rates'!G$114) +($M58*'fnd base rates'!G$116) +($N58*'fnd base rates'!G$117) +($O58*'fnd base rates'!G$118) +($P58*VLOOKUP($S58+12,rate_basefnd,7))) *$R58 -> 7156.821742 | Z58: =(($D58*'fnd base rates'!H$107) +($E58*'fnd base rates'!H$108) +($F58*'fnd base rates'!H$109) +($G58*'fnd base rates'!H$110) +($H58*'fnd base rates'!H$111) +($I58*'fnd base rates'!H$112) +($J58*'fnd base rates'!H$113) +($K58*'fnd base rates'!H$114) +($M58*'fnd base rates'!H$116) +($N58*'fnd base rates'!H$117) +($O58*'fnd base rates'!H$118) +($P58*VLOOKUP($S58+12,rate_basefnd,8))) -> 23546.04695 | AA58: =(($D58*'fnd base rates'!I$107) +($E58*'fnd base rates'!I$108) +($F58*'fnd base rates'!I$109) +($G58*'fnd base rates'!I$110) +($H58*'fnd base rates'!I$111) +($I58*'fnd base rates'!I$112) +($J58*'fnd base rates'!I$113) +($K58*'fnd base rates'!I$114) +($M58*'fnd base rates'!I$116) +($N58*'fnd base rates'!I$117) +($O58*'fnd base rates'!I$118) +($P58*VLOOKUP($S58+12,rate_basefnd,9))) *$R58 -> 14400.7 | AB58: =(($D58*'fnd base rates'!J$107) +($E58*'fnd base rates'!J$108) +($F58*'fnd base rates'!J$109) +($G58*'fnd base rates'!J$110) +($H58*'fnd base rates'!J$111) +($I58*'fnd base rates'!J$112) +($J58*'fnd base rates'!J$113) +($K58*'fnd base rates'!J$114) +($M58*'fnd base rates'!J$116) +($N58*'fnd base rates'!J$117) +($O58*'fnd base rates'!J$118) +($P58*VLOOKUP($S58+12,rate_basefnd,10))) *$R58 -> 24033.97 | AC58: =(($D58*'fnd base rates'!K$107) +($E58*'fnd base rates'!K$108) +($F58*'fnd base rates'!K$109) +($G58*'fnd base rates'!K$110) +($H58*'fnd base rates'!K$111) +($I58*'fnd base rates'!K$112) +($J58*'fnd base rates'!K$113) +($K58*'fnd base rates'!K$114) +($M58*'fnd base rates'!K$116) +($N58*'fnd base rates'!K$117) +($O58*'fnd base rates'!K$118) +($P58*VLOOKUP($S58+12,rate_basefnd,11))) *$R58 -> 35908.65628 | AD58: =(($D58*'fnd base rates'!L$107) +($E58*'fnd base rates'!L$108) +($F58*'fnd base rates'!L$109) +($G58*'fnd base rates'!L$110) +($H58*'fnd base rates'!L$111) +($I58*'fnd base rates'!L$112) +($J58*'fnd base rates'!L$113) +($K58*'fnd base rates'!L$114) +($M58*'fnd base rates'!L$116) +($N58*'fnd base rates'!L$117) +($O58*'fnd base rates'!L$118) +($P58*VLOOKUP($S58+12,rate_basefnd,12))) -> 50391.08708 | AE58: =(($D58*'fnd base rates'!M$107) +($E58*'fnd base rates'!M$108) +($F58*'fnd base rates'!M$109) +($G58*'fnd base rates'!M$110) +($H58*'fnd base rates'!M$111) +($I58*'fnd base rates'!M$112) +($J58*'fnd base rates'!M$113) +($K58*'fnd base rates'!M$114) +($M58*'fnd base rates'!M$116) +($N58*'fnd base rates'!M$117) +($O58*'fnd base rates'!M$118) +($P58*VLOOKUP($S58+12,rate_basefnd,13))) -> 0 | AF58: 412066.2342 | AH58: 413114717 | AI58: 413 | AJ58: 114 | AK58: 717 | AL58: 1 | AM58: 31 | AN58: 412066.2342 | AO58: 13292 | AP58: 0 | AQ58: 13292 | AW58: 13292 | AX58: 0 | AY58: 13292 | BB58: =BC58-BA58 -> 0
A59: 413 | B59: 413114750 | C59: FOUR RIVERS | D59: ='fnd enro'!D59 -> 0 | E59: ='fnd enro'!E59 -> 0 | F59: ='fnd enro'!F59 -> 0 | G59: ='fnd enro'!G59 -> 0 | H59: ='fnd enro'!H59 -> 3 | I59: ='fnd enro'!I59 -> 20 | J59: ='fnd enro'!J59 -> 0 | K59: ='fnd enro'!K59 -> 0.8878 | L59: ='fnd enro'!L59 -> 0 | M59: ='fnd enro'!M59 -> 0 | N59: ='fnd enro'!N59 -> 0 | O59: ='fnd enro'!O59 -> 0 | P59: ='fnd enro'!P59 -> 6 | Q59: ='fnd enro'!R59 -> 23 | R59: 1 | S59: =VALUE('fnd enro'!Q59) -> 7 | U59: =(($D59*'fnd base rates'!C$107) +($E59*'fnd base rates'!C$108) +($F59*'fnd base rates'!C$109) +($G59*'fnd base rates'!C$110) +($H59*'fnd base rates'!C$111) +($I59*'fnd base rates'!C$112) +($J59*'fnd base rates'!C$113) +($K59*'fnd base rates'!C$114) +($M59*'fnd base rates'!C$116) +($N59*'fnd base rates'!C$117) +($O59*'fnd base rates'!C$118) +($P59*VLOOKUP($S59+12,rate_basefnd,3))) *$R59 -> 12750.45096 | V59: =(($D59*'fnd base rates'!D$107) +($E59*'fnd base rates'!D$108) +($F59*'fnd base rates'!D$109) +($G59*'fnd base rates'!D$110) +($H59*'fnd base rates'!D$111) +($I59*'fnd base rates'!D$112) +($J59*'fnd base rates'!D$113) +($K59*'fnd base rates'!D$114) +($M59*'fnd base rates'!D$116) +($N59*'fnd base rates'!D$117) +($O59*'fnd base rates'!D$118) +($P59*VLOOKUP($S59+12,rate_basefnd,4))) *$R59 -> 19548.16 | W59: =(($D59*'fnd base rates'!E$107) +($E59*'fnd base rates'!E$108) +($F59*'fnd base rates'!E$109) +($G59*'fnd base rates'!E$110) +($H59*'fnd base rates'!E$111) +($I59*'fnd base rates'!E$112) +($J59*'fnd base rates'!E$113) +($K59*'fnd base rates'!E$114) +($M59*'fnd base rates'!E$116) +($N59*'fnd base rates'!E$117) +($O59*'fnd base rates'!E$118) +($P59*VLOOKUP($S59+12,rate_basefnd,5))) *$R59 -> 127671.4286 | X59: =(($D59*'fnd base rates'!F$107) +($E59*'fnd base rates'!F$108) +($F59*'fnd base rates'!F$109) +($G59*'fnd base rates'!F$110) +($H59*'fnd base rates'!F$111) +($I59*'fnd base rates'!F$112) +($J59*'fnd base rates'!F$113) +($K59*'fnd base rates'!F$114) +($M59*'fnd base rates'!F$116) +($N59*'fnd base rates'!F$117) +($O59*'fnd base rates'!F$118) +($P59*VLOOKUP($S59+12,rate_basefnd,6))) *$R59 -> 20723.85748 | Y59: =(($D59*'fnd base rates'!G$107) +($E59*'fnd base rates'!G$108) +($F59*'fnd base rates'!G$109) +($G59*'fnd base rates'!G$110) +($H59*'fnd base rates'!G$111) +($I59*'fnd base rates'!G$112) +($J59*'fnd base rates'!G$113) +($K59*'fnd base rates'!G$114) +($M59*'fnd base rates'!G$116) +($N59*'fnd base rates'!G$117) +($O59*'fnd base rates'!G$118) +($P59*VLOOKUP($S59+12,rate_basefnd,7))) *$R59 -> 4707.145486 | Z59: =(($D59*'fnd base rates'!H$107) +($E59*'fnd base rates'!H$108) +($F59*'fnd base rates'!H$109) +($G59*'fnd base rates'!H$110) +($H59*'fnd base rates'!H$111) +($I59*'fnd base rates'!H$112) +($J59*'fnd base rates'!H$113) +($K59*'fnd base rates'!H$114) +($M59*'fnd base rates'!H$116) +($N59*'fnd base rates'!H$117) +($O59*'fnd base rates'!H$118) +($P59*VLOOKUP($S59+12,rate_basefnd,8))) -> 18273.55548 | AA59: =(($D59*'fnd base rates'!I$107) +($E59*'fnd base rates'!I$108) +($F59*'fnd base rates'!I$109) +($G59*'fnd base rates'!I$110) +($H59*'fnd base rates'!I$111) +($I59*'fnd base rates'!I$112) +($J59*'fnd base rates'!I$113) +($K59*'fnd base rates'!I$114) +($M59*'fnd base rates'!I$116) +($N59*'fnd base rates'!I$117) +($O59*'fnd base rates'!I$118) +($P59*VLOOKUP($S59+12,rate_basefnd,9))) *$R59 -> 10378.23 | AB59: =(($D59*'fnd base rates'!J$107) +($E59*'fnd base rates'!J$108) +($F59*'fnd base rates'!J$109) +($G59*'fnd base rates'!J$110) +($H59*'fnd base rates'!J$111) +($I59*'fnd base rates'!J$112) +($J59*'fnd base rates'!J$113) +($K59*'fnd base rates'!J$114) +($M59*'fnd base rates'!J$116) +($N59*'fnd base rates'!J$117) +($O59*'fnd base rates'!J$118) +($P59*VLOOKUP($S59+12,rate_basefnd,10))) *$R59 -> 16229.61 | AC59: =(($D59*'fnd base rates'!K$107) +($E59*'fnd base rates'!K$108) +($F59*'fnd base rates'!K$109) +($G59*'fnd base rates'!K$110) +($H59*'fnd base rates'!K$111) +($I59*'fnd base rates'!K$112) +($J59*'fnd base rates'!K$113) +($K59*'fnd base rates'!K$114) +($M59*'fnd base rates'!K$116) +($N59*'fnd base rates'!K$117) +($O59*'fnd base rates'!K$118) +($P59*VLOOKUP($S59+12,rate_basefnd,11))) *$R59 -> 26547.67724 | AD59: =(($D59*'fnd base rates'!L$107) +($E59*'fnd base rates'!L$108) +($F59*'fnd base rates'!L$109) +($G59*'fnd base rates'!L$110) +($H59*'fnd base rates'!L$111) +($I59*'fnd base rates'!L$112) +($J59*'fnd base rates'!L$113) +($K59*'fnd base rates'!L$114) +($M59*'fnd base rates'!L$116) +($N59*'fnd base rates'!L$117) +($O59*'fnd base rates'!L$118) +($P59*VLOOKUP($S59+12,rate_basefnd,12))) -> 35001.26364 | AE59: =(($D59*'fnd base rates'!M$107) +($E59*'fnd base rates'!M$108) +($F59*'fnd base rates'!M$109) +($G59*'fnd base rates'!M$110) +($H59*'fnd base rates'!M$111) +($I59*'fnd base rates'!M$112) +($J59*'fnd base rates'!M$113) +($K59*'fnd base rates'!M$114) +($M59*'fnd base rates'!M$116) +($N59*'fnd base rates'!M$117) +($O59*'fnd base rates'!M$118) +($P59*VLOOKUP($S59+12,rate_basefnd,13))) -> 0 | AF59: 291831.3789 | AH59: 413114750 | AI59: 413 | AJ59: 114 | AK59: 750 | AL59: 1 | AM59: 23 | AN59: 291831.3789 | AO59: 12688 | AP59: 0 | AQ59: 12688 | AW59: 12688 | AX59: 0 | AY59: 12688 | BB59: =BC59-BA59 -> 0
A60: 413 | B60: 413114755 | C60: FOUR RIVERS | D60: ='fnd enro'!D60 -> 0 | E60: ='fnd enro'!E60 -> 0 | F60: ='fnd enro'!F60 -> 0 | G60: ='fnd enro'!G60 -> 0 | H60: ='fnd enro'!H60 -> 4 | I60: ='fnd enro'!I60 -> 4 | J60: ='fnd enro'!J60 -> 0 | K60: ='fnd enro'!K60 -> 0.3088 | L60: ='fnd enro'!L60 -> 0 | M60: ='fnd enro'!M60 -> 0 | N60: ='fnd enro'!N60 -> 0 | O60: ='fnd enro'!O60 -> 0 | P60: ='fnd enro'!P60 -> 2 | Q60: ='fnd enro'!R60 -> 8 | R60: 1 | S60: =VALUE('fnd enro'!Q60) -> 10 | U60: =(($D60*'fnd base rates'!C$107) +($E60*'fnd base rates'!C$108) +($F60*'fnd base rates'!C$109) +($G60*'fnd base rates'!C$110) +($H60*'fnd base rates'!C$111) +($I60*'fnd base rates'!C$112) +($J60*'fnd base rates'!C$113) +($K60*'fnd base rates'!C$114) +($M60*'fnd base rates'!C$116) +($N60*'fnd base rates'!C$117) +($O60*'fnd base rates'!C$118) +($P60*VLOOKUP($S60+12,rate_basefnd,3))) *$R60 -> 4450.310768 | V60: =(($D60*'fnd base rates'!D$107) +($E60*'fnd base rates'!D$108) +($F60*'fnd base rates'!D$109) +($G60*'fnd base rates'!D$110) +($H60*'fnd base rates'!D$111) +($I60*'fnd base rates'!D$112) +($J60*'fnd base rates'!D$113) +($K60*'fnd base rates'!D$114) +($M60*'fnd base rates'!D$116) +($N60*'fnd base rates'!D$117) +($O60*'fnd base rates'!D$118) +($P60*VLOOKUP($S60+12,rate_basefnd,4))) *$R60 -> 6872.24 | W60: =(($D60*'fnd base rates'!E$107) +($E60*'fnd base rates'!E$108) +($F60*'fnd base rates'!E$109) +($G60*'fnd base rates'!E$110) +($H60*'fnd base rates'!E$111) +($I60*'fnd base rates'!E$112) +($J60*'fnd base rates'!E$113) +($K60*'fnd base rates'!E$114) +($M60*'fnd base rates'!E$116) +($N60*'fnd base rates'!E$117) +($O60*'fnd base rates'!E$118) +($P60*VLOOKUP($S60+12,rate_basefnd,5))) *$R60 -> 40823.60301 | X60: =(($D60*'fnd base rates'!F$107) +($E60*'fnd base rates'!F$108) +($F60*'fnd base rates'!F$109) +($G60*'fnd base rates'!F$110) +($H60*'fnd base rates'!F$111) +($I60*'fnd base rates'!F$112) +($J60*'fnd base rates'!F$113) +($K60*'fnd base rates'!F$114) +($M60*'fnd base rates'!F$116) +($N60*'fnd base rates'!F$117) +($O60*'fnd base rates'!F$118) +($P60*VLOOKUP($S60+12,rate_basefnd,6))) *$R60 -> 7529.051296 | Y60: =(($D60*'fnd base rates'!G$107) +($E60*'fnd base rates'!G$108) +($F60*'fnd base rates'!G$109) +($G60*'fnd base rates'!G$110) +($H60*'fnd base rates'!G$111) +($I60*'fnd base rates'!G$112) +($J60*'fnd base rates'!G$113) +($K60*'fnd base rates'!G$114) +($M60*'fnd base rates'!G$116) +($N60*'fnd base rates'!G$117) +($O60*'fnd base rates'!G$118) +($P60*VLOOKUP($S60+12,rate_basefnd,7))) *$R60 -> 1685.286256 | Z60: =(($D60*'fnd base rates'!H$107) +($E60*'fnd base rates'!H$108) +($F60*'fnd base rates'!H$109) +($G60*'fnd base rates'!H$110) +($H60*'fnd base rates'!H$111) +($I60*'fnd base rates'!H$112) +($J60*'fnd base rates'!H$113) +($K60*'fnd base rates'!H$114) +($M60*'fnd base rates'!H$116) +($N60*'fnd base rates'!H$117) +($O60*'fnd base rates'!H$118) +($P60*VLOOKUP($S60+12,rate_basefnd,8))) -> 5460.631472 | AA60: =(($D60*'fnd base rates'!I$107) +($E60*'fnd base rates'!I$108) +($F60*'fnd base rates'!I$109) +($G60*'fnd base rates'!I$110) +($H60*'fnd base rates'!I$111) +($I60*'fnd base rates'!I$112) +($J60*'fnd base rates'!I$113) +($K60*'fnd base rates'!I$114) +($M60*'fnd base rates'!I$116) +($N60*'fnd base rates'!I$117) +($O60*'fnd base rates'!I$118) +($P60*VLOOKUP($S60+12,rate_basefnd,9))) *$R60 -> 3451.62 | AB60: =(($D60*'fnd base rates'!J$107) +($E60*'fnd base rates'!J$108) +($F60*'fnd base rates'!J$109) +($G60*'fnd base rates'!J$110) +($H60*'fnd base rates'!J$111) +($I60*'fnd base rates'!J$112) +($J60*'fnd base rates'!J$113) +($K60*'fnd base rates'!J$114) +($M60*'fnd base rates'!J$116) +($N60*'fnd base rates'!J$117) +($O60*'fnd base rates'!J$118) +($P60*VLOOKUP($S60+12,rate_basefnd,10))) *$R60 -> 4834.02 | AC60: =(($D60*'fnd base rates'!K$107) +($E60*'fnd base rates'!K$108) +($F60*'fnd base rates'!K$109) +($G60*'fnd base rates'!K$110) +($H60*'fnd base rates'!K$111) +($I60*'fnd base rates'!K$112) +($J60*'fnd base rates'!K$113) +($K60*'fnd base rates'!K$114) +($M60*'fnd base rates'!K$116) +($N60*'fnd base rates'!K$117) +($O60*'fnd base rates'!K$118) +($P60*VLOOKUP($S60+12,rate_basefnd,11))) *$R60 -> 9328.87904 | AD60: =(($D60*'fnd base rates'!L$107) +($E60*'fnd base rates'!L$108) +($F60*'fnd base rates'!L$109) +($G60*'fnd base rates'!L$110) +($H60*'fnd base rates'!L$111) +($I60*'fnd base rates'!L$112) +($J60*'fnd base rates'!L$113) +($K60*'fnd base rates'!L$114) +($M60*'fnd base rates'!L$116) +($N60*'fnd base rates'!L$117) +($O60*'fnd base rates'!L$118) +($P60*VLOOKUP($S60+12,rate_basefnd,12))) -> 12713.21344 | AE60: =(($D60*'fnd base rates'!M$107) +($E60*'fnd base rates'!M$108) +($F60*'fnd base rates'!M$109) +($G60*'fnd base rates'!M$110) +($H60*'fnd base rates'!M$111) +($I60*'fnd base rates'!M$112) +($J60*'fnd base rates'!M$113) +($K60*'fnd base rates'!M$114) +($M60*'fnd base rates'!M$116) +($N60*'fnd base rates'!M$117) +($O60*'fnd base rates'!M$118) +($P60*VLOOKUP($S60+12,rate_basefnd,13))) -> 0 | AF60: 97148.85528 | AH60: 413114755 | AI60: 413 | AJ60: 114 | AK60: 755 | AL60: 1 | AM60: 8 | AN60: 97148.85528 | AO60: 12144 | AP60: 0 | AQ60: 12144 | AW60: 12144 | AX60: 0 | AY60: 12144 | BB60: =BC60-BA60 -> 0
